Workbook

Sheet zadani
B2: Skript pro odhořívání povrchů v programu CFAST
U3: Poznámky a dodatečné informace
B4: CFAST Tabs: Compartments | K4: CFAST Tabs: Wall Vents, Ceiling/Floor Vents
B5: Základní informace | K5: Otvory v konstrukcích | U5: 1) Tato sekce poznámek a dodatečných infrmací není určena k tisku. 2) Všechny šedé pole musí být vyplněny hodnotou, i kdyby hodnotou nulovu. 3) Pokud kontrola uvádí hlášku "fatal error", je nutné zvolit hrubější dělení na jednotkové požáry. Nebo omezit plochy, kde budou požáry osazovány. 4) Do každé stěny dovoluje doplněk vložit pouze dva otvory, jelikož každé okno zavádí nepřesnosti. Doplněk nedopočítává přesné rozložení ploch jednotkových požárů v okolí oken a pouze vynechává jednotkové požáry, které mají střed své plochy v daném otvoru. 5) Rozměry otvorů je nutno do zadání vkládat pouze pokud se na danou stěnu vkládají jednotkové požáry. 6) Otvory mohou nahrazovat i prostory, které mají nehořlavé povrchy. Vstupní hodnoty na tomto listu nejsou vkládány do výpočtu, jsou pouze používány. 5) Pokud je požadován odlišný počet vrstev jednotkových požárů i v sobě protilehlých stranách místnosti, lze použít výsledky postupně pro různé vstupy bez vytvoření systematické chyby. V ostatních hodnotách vstupních dat není tento postup možný. 6) Počátek souřadnic kartézké soustavy [0;0;0] je v souladu s náčrtem i programem CFAST umístěn v předním spodním rohu stěny A. 7) Pro správné fungování skriptu je nutné mít povolená makra.
B6: označení místnosti | G6: C1 | K6: stěna | L6: otvor | M6: x [m] | O6: y [m] | Q6: z [m]
B7: šířka místnost (x) | G7: 5 | H7: m | M7: od | N7: do | O7: od | P7: do | Q7: od | R7: do
B8: délka místnosti (y) | G8: 10 | H8: m | K8: A (front) | L8: ne | M8: 0 | N8: 0 | O8: - | P8: - | Q8: 0 | R8: 0
B9: výška místnosti (z) | G9: 3.5 | H9: m | L9: ne | M9: 0 | N9: 0 | O9: - | P9: - | Q9: 0 | R9: 0
B10: osazovat požáry od vzdálenosti | F10: x = | G10: 0 | H10: m | K10: B (right) | L10: ne | M10: - | N10: - | O10: 0 | P10: 0 | Q10: 0 | R10: 0
F11: y = | G11: 0 | H11: m | L11: ne | M11: - | N11: - | O11: 0 | P11: 0 | Q11: 0 | R11: 0
F12: z = | G12: 0 | H12: m | K12: C (back) | L12: ne | M12: 0 | N12: 0 | O12: - | P12: - | Q12: 0 | R12: 0
B13: vzdálenost jednotkového požáru od stěn | G13: 0.05 | H13: m | L13: ne | M13: 0 | N13: 0 | O13: - | P13: - | Q13: 0 | R13: 0
B14: vzdálenost jednotkového požáru od stropu | G14: 0.1 | H14: m | K14: D (left) | L14: ne | M14: - | N14: - | O14: 0 | P14: 0 | Q14: 0 | R14: 0
B15: vzdálenost jednotkového požáru od podlahy | G15: 0.01 | H15: m | L15: ne | M15: - | N15: - | O15: 0 | P15: 0 | Q15: 0 | R15: 0
B16: počet vrstev jednotkových požárů v délce místnost (x) | G16: 5 | K16: E (top) | L16: ne | M16: 0 | N16: 0 | O16: 0 | P16: 0 | Q16: - | R16: -
B17: počet vrstev jednotkových požárů v šířce místnost (y) | G17: 10 | L17: ne | M17: 0 | N17: 0 | O17: 0 | P17: 0 | Q17: - | R17: -
B18: počet vrstev jednotkových požárů ve výšce místnost (z) | G18: 4 | K18: F (bottom) | L18: ne | M18: 0 | N18: 0 | O18: 0 | P18: 0 | Q18: - | R18: -
B19: osazení požárů na stěny | C19: A | D19: ne | F19: D | G19: ne | L19: ne | M19: 0 | N19: 0 | O19: 0 | P19: 0 | Q19: - | R19: -
C20: B | D20: ne | F20: E | G20: ne
C21: C | D21: ne | F21: F | G21: ne | K21: Náčrtek
B23: Kontrola
B24: Přesahuje dělení na jednotkové požáry schopnosti skriptu? | G24: =IF(OR(AND('Fire Devc A'!E4="pozor",D19="ano"),AND('Fire Devc B'!E4="pozor",D20="ano"),AND('Fire Devc C'!E4="pozor",D21="ano"),AND('Fire Devc D'!E4="pozor",G19="ano"),AND('Fire Devc E'!E4="pozor",G20="ano"),AND('Fire Devc F'!E4="pozor",G21="ano"),Tabl!J211="pozor",Tabl!K211="pozor"),"fatal error","ok") -> ok
B25: Jaký je celkový počet osazených jednotkových požárů? | G25: =SUMPRODUCT((vysledky!B:B<>"")*1)-1 -> 0
B27: CFAST Tabs: Fires, Targets
B28: Vlastnosti hoření | F28: HRR křivka
B29: uhlík | C29: 39.3 | F29: čas [s] | G29: HRR [kW/m^2]
B30: chlór | C30: 0 | F30: 0 | G30: 0
B31: vodík | C31: 4.7 | F31: 60 | G31: 210
B32: dusík | C32: 0.4 | F32: 400 | G32: 100
B33: kyslík | C33: 34.1 | F33: 750 | G33: 180
B34: spalné teplo | C34: 14277 | D34: kJ/kg | F34: 1000 | G34: 50
B35: radiační frakce | C35: 0.35 | F35: 1010 | G35: 50
B36: půdorysná plocha | C36: 0.1 | D36: m^2
B37: vypouštění CO | C37: 0 | F37: Vlastnosti Měřících terčů
B38: vypouštění sazí | C38: 0 | F38: ID materiálu | G38: M1
B39: vypouštění HCN | C39: 0 | F39: typ | G39: PLATE
B40: vypouštění HCL | C40: 0 | F40: orientace | G40: FLOOR
B41: vypouštění stopy | C41: 0 | F41: tloušťka | G41: 0.015 | H41: m
B42: zlomová teplota | C42: 250 | D42: °C | F42: hloubka měření | G42: 0 | H42: m

Sheet vysledky
B2: !! Fires | C2: =IF(OR(zadani!$D$19="ano",zadani!$D$21="ano"),Tabl!J3,"") ->  | D2: =IF(OR(zadani!$D$20="ano",zadani!$G$19="ano"),Tabl!K3,"") ->  | E2: =IF(zadani!$G$20="ano",Tabl!L3,"") ->  | F2: !! Devices
B3: =IF(zadani!$G$19="ano",'Fire Devc D'!$T$26,"") ->  | C3: =IF(OR(zadani!$D$19="ano",zadani!$D$21="ano"),Tabl!J4,"") ->  | D3: =IF(OR(zadani!$D$20="ano",zadani!$G$19="ano"),Tabl!K4,"") ->  | E3: =IF(zadani!$G$20="ano",Tabl!L4,"") ->  | F3: =IF(zadani!$G$19="ano",'Fire Devc D'!$V$26,"") -> 
B4: =IF(zadani!$G$19="ano",'Fire Devc D'!$T$25,"") ->  | C4: =IF(OR(zadani!$D$19="ano",zadani!$D$21="ano"),Tabl!J5,"") ->  | D4: =IF(OR(zadani!$D$20="ano",zadani!$G$19="ano"),Tabl!K5,"") ->  | E4: =IF(zadani!$G$20="ano",Tabl!L5,"") ->  | F4: =IF(zadani!$G$19="ano",'Fire Devc D'!$V$25,"") -> 
B5: =IF(zadani!$G$19="ano",'Fire Devc D'!$T$24,"") ->  | C5: =IF(OR(zadani!$D$19="ano",zadani!$D$21="ano"),Tabl!J6,"") ->  | D5: =IF(OR(zadani!$D$20="ano",zadani!$G$19="ano"),Tabl!K6,"") ->  | E5: =IF(zadani!$G$20="ano",Tabl!L6,"") ->  | F5: =IF(zadani!$G$19="ano",'Fire Devc D'!$V$24,"") -> 
B6: =IF(zadani!$G$19="ano",'Fire Devc D'!$T$23,"") ->  | C6: =IF(OR(zadani!$D$19="ano",zadani!$D$21="ano"),Tabl!J7,"") ->  | D6: =IF(OR(zadani!$D$20="ano",zadani!$G$19="ano"),Tabl!K7,"") ->  | E6: =IF(zadani!$G$20="ano",Tabl!L7,"") ->  | F6: =IF(zadani!$G$19="ano",'Fire Devc D'!$V$23,"") -> 
B7: =IF(zadani!$G$19="ano",'Fire Devc D'!$T$22,"") ->  | C7: =IF(OR(zadani!$D$19="ano",zadani!$D$21="ano"),Tabl!J8,"") ->  | D7: =IF(OR(zadani!$D$20="ano",zadani!$G$19="ano"),Tabl!K8,"") ->  | E7: =IF(zadani!$G$20="ano",Tabl!L8,"") ->  | F7: =IF(zadani!$G$19="ano",'Fire Devc D'!$V$22,"") ->  | I7: SEKCE E: Postup používání doplňku
B8: =IF(zadani!$G$19="ano",'Fire Devc D'!$T$21,"") ->  | C8: =IF(OR(zadani!$D$19="ano",zadani!$D$21="ano"),Tabl!J9,"") ->  | D8: =IF(OR(zadani!$D$20="ano",zadani!$G$19="ano"),Tabl!K9,"") ->  | E8: =IF(zadani!$G$20="ano",Tabl!L9,"") ->  | F8: =IF(zadani!$G$19="ano",'Fire Devc D'!$V$21,"") ->  | I8: 1) Vytvořte funkční model v programu CFAST neobsahující errory. 2) Vložte všechny vstupní hodnoty v listě "zadani". 3) Přepočítejte výsledky. 4) Otevřete soubor výpočtu CFAST s koncovkou .in v textovém editoru. 5) Označte v souboru výpočtu CFAST sekci !! Fires a !! Devices a nahraďte je sloupcem D z tohoto listu. 6) Pod vložená data ze sloupce D postupně vložte data ze sloupců E až H tohoto listu. 7) Pokud má soubor výpočtu CFAST více místností, kde je nutné osadit jednotkové požáry, vkládejte data s různými vstupními hodnotami pro dané místnosti v sekcích po místnostech pod sebe. 8) Soubor výpočtu CFAST uložte a následně soubor otevřte programem CFAST. 9) Daný postup odstraní iniciační či jakékoliv jiné požáry a měřící čidla. Pokud soubor výpočtu CFAST obsahuje již požáry a měřící terče, které je nutné zachovat, dané data v sekcích !! FIres a !! Devices nemažte.
B9: =IF(zadani!$G$19="ano",'Fire Devc D'!$T$20,"") ->  | C9: =IF(OR(zadani!$D$19="ano",zadani!$D$21="ano"),Tabl!J10,"") ->  | D9: =IF(OR(zadani!$D$20="ano",zadani!$G$19="ano"),Tabl!K10,"") ->  | E9: =IF(zadani!$G$20="ano",Tabl!L10,"") ->  | F9: =IF(zadani!$G$19="ano",'Fire Devc D'!$V$20,"") -> 
B10: =IF(zadani!$G$19="ano",'Fire Devc D'!$T$19,"") ->  | C10: =IF(OR(zadani!$D$19="ano",zadani!$D$21="ano"),Tabl!J11,"") ->  | D10: =IF(OR(zadani!$D$20="ano",zadani!$G$19="ano"),Tabl!K11,"") ->  | E10: =IF(zadani!$G$21="ano",Tabl!L11,"") ->  | F10: =IF(zadani!$G$19="ano",'Fire Devc D'!$V$19,"") -> 
B11: =IF(zadani!$G$19="ano",'Fire Devc D'!$T$18,"") ->  | C11: =IF(OR(zadani!$D$19="ano",zadani!$D$21="ano"),Tabl!J12,"") ->  | D11: =IF(OR(zadani!$D$20="ano",zadani!$G$19="ano"),Tabl!K12,"") ->  | E11: =IF(zadani!$G$21="ano",Tabl!L12,"") ->  | F11: =IF(zadani!$G$19="ano",'Fire Devc D'!$V$18,"") -> 
B12: =IF(zadani!$G$19="ano",'Fire Devc D'!$T$17,"") ->  | C12: =IF(OR(zadani!$D$19="ano",zadani!$D$21="ano"),Tabl!J13,"") ->  | D12: =IF(OR(zadani!$D$20="ano",zadani!$G$19="ano"),Tabl!K13,"") ->  | E12: =IF(zadani!$G$21="ano",Tabl!L13,"") ->  | F12: =IF(zadani!$G$19="ano",'Fire Devc D'!$V$17,"") -> 
B13: =IF(zadani!$G$19="ano",'Fire Devc D'!$S$36,"") ->  | C13: =IF(OR(zadani!$D$19="ano",zadani!$D$21="ano"),Tabl!J14,"") ->  | D13: =IF(OR(zadani!$D$20="ano",zadani!$G$19="ano"),Tabl!K14,"") ->  | E13: =IF(zadani!$G$21="ano",Tabl!L14,"") ->  | F13: =IF(zadani!$G$19="ano",'Fire Devc D'!$U$36,"") -> 
B14: =IF(zadani!$G$19="ano",'Fire Devc D'!$S$35,"") ->  | C14: =IF(OR(zadani!$D$19="ano",zadani!$D$21="ano"),Tabl!J15,"") ->  | D14: =IF(OR(zadani!$D$20="ano",zadani!$G$19="ano"),Tabl!K15,"") ->  | E14: =IF(zadani!$G$21="ano",Tabl!L15,"") ->  | F14: =IF(zadani!$G$19="ano",'Fire Devc D'!$U$35,"") -> 
B15: =IF(zadani!$G$19="ano",'Fire Devc D'!$S$34,"") ->  | C15: =IF(OR(zadani!$D$19="ano",zadani!$D$21="ano"),Tabl!J16,"") ->  | D15: =IF(OR(zadani!$D$20="ano",zadani!$G$19="ano"),Tabl!K16,"") ->  | E15: =IF(zadani!$G$21="ano",Tabl!L16,"") ->  | F15: =IF(zadani!$G$19="ano",'Fire Devc D'!$U$34,"") -> 
B16: =IF(zadani!$G$19="ano",'Fire Devc D'!$S$33,"") ->  | C16: =IF(OR(zadani!$D$19="ano",zadani!$D$21="ano"),Tabl!J17,"") ->  | D16: =IF(OR(zadani!$D$20="ano",zadani!$G$19="ano"),Tabl!K17,"") ->  | E16: =IF(zadani!$G$21="ano",Tabl!L17,"") ->  | F16: =IF(zadani!$G$19="ano",'Fire Devc D'!$U$33,"") -> 
B17: =IF(zadani!$G$19="ano",'Fire Devc D'!$S$32,"") ->  | C17: =IF(OR(zadani!$D$19="ano",zadani!$D$21="ano"),Tabl!J18,"") ->  | D17: =IF(OR(zadani!$D$20="ano",zadani!$G$19="ano"),Tabl!K18,"") ->  | E17: =IF(zadani!$G$21="ano",Tabl!L18,"") ->  | F17: =IF(zadani!$G$19="ano",'Fire Devc D'!$U$32,"") -> 
B18: =IF(zadani!$G$19="ano",'Fire Devc D'!$S$31,"") ->  | C18: =IF(OR(zadani!$D$19="ano",zadani!$D$21="ano"),Tabl!J19,"") ->  | D18: =IF(OR(zadani!$D$20="ano",zadani!$G$19="ano"),Tabl!K19,"") ->  | F18: =IF(zadani!$G$19="ano",'Fire Devc D'!$U$31,"") -> 
B19: =IF(zadani!$G$19="ano",'Fire Devc D'!$S$30,"") ->  | C19: =IF(OR(zadani!$D$19="ano",zadani!$D$21="ano"),Tabl!J20,"") ->  | D19: =IF(OR(zadani!$D$20="ano",zadani!$G$19="ano"),Tabl!K20,"") ->  | F19: =IF(zadani!$G$19="ano",'Fire Devc D'!$U$30,"") -> 
B20: =IF(zadani!$G$19="ano",'Fire Devc D'!$S$29,"") ->  | C20: =IF(OR(zadani!$D$19="ano",zadani!$D$21="ano"),Tabl!J21,"") ->  | D20: =IF(OR(zadani!$D$20="ano",zadani!$G$19="ano"),Tabl!K21,"") ->  | F20: =IF(zadani!$G$19="ano",'Fire Devc D'!$U$29,"") -> 
B21: =IF(zadani!$G$19="ano",'Fire Devc D'!$S$28,"") ->  | C21: =IF(OR(zadani!$D$19="ano",zadani!$D$21="ano"),Tabl!J22,"") ->  | D21: =IF(OR(zadani!$D$20="ano",zadani!$G$19="ano"),Tabl!K22,"") ->  | F21: =IF(zadani!$G$19="ano",'Fire Devc D'!$U$28,"") -> 
B22: =IF(zadani!$G$19="ano",'Fire Devc D'!$S$27,"") ->  | C22: =IF(OR(zadani!$D$19="ano",zadani!$D$21="ano"),Tabl!J23,"") ->  | D22: =IF(OR(zadani!$D$20="ano",zadani!$G$19="ano"),Tabl!K23,"") ->  | F22: =IF(zadani!$G$19="ano",'Fire Devc D'!$U$27,"") -> 
B23: =IF(zadani!$D$21="ano",'Fire Devc C'!$T$12,"") ->  | C23: =IF(OR(zadani!$D$19="ano",zadani!$D$21="ano"),Tabl!J24,"") ->  | D23: =IF(OR(zadani!$D$20="ano",zadani!$G$19="ano"),Tabl!K24,"") ->  | F23: =IF(zadani!$D$21="ano",'Fire Devc C'!$V$12,"") -> 
B24: =IF(zadani!$D$21="ano",'Fire Devc C'!$T$11,"") ->  | C24: =IF(OR(zadani!$D$19="ano",zadani!$D$21="ano"),Tabl!J25,"") ->  | D24: =IF(OR(zadani!$D$20="ano",zadani!$G$19="ano"),Tabl!K25,"") ->  | F24: =IF(zadani!$D$21="ano",'Fire Devc C'!$V$11,"") -> 
B25: =IF(zadani!$D$21="ano",'Fire Devc C'!$T$10,"") ->  | C25: =IF(OR(zadani!$D$19="ano",zadani!$D$21="ano"),Tabl!J26,"") ->  | D25: =IF(OR(zadani!$D$20="ano",zadani!$G$19="ano"),Tabl!K26,"") ->  | F25: =IF(zadani!$D$21="ano",'Fire Devc C'!$V$10,"") -> 
B26: =IF(zadani!$D$21="ano",'Fire Devc C'!$S$15,"") ->  | C26: =IF(OR(zadani!$D$19="ano",zadani!$D$21="ano"),Tabl!J27,"") ->  | D26: =IF(OR(zadani!$D$20="ano",zadani!$G$19="ano"),Tabl!K27,"") ->  | F26: =IF(zadani!$D$21="ano",'Fire Devc C'!$U$15,"") -> 
B27: =IF(zadani!$D$21="ano",'Fire Devc C'!$S$14,"") ->  | C27: =IF(OR(zadani!$D$19="ano",zadani!$D$21="ano"),Tabl!J28,"") ->  | D27: =IF(OR(zadani!$D$20="ano",zadani!$G$19="ano"),Tabl!K28,"") ->  | F27: =IF(zadani!$D$21="ano",'Fire Devc C'!$U$14,"") -> 
B28: =IF(zadani!$D$21="ano",'Fire Devc C'!$S$13,"") ->  | C28: =IF(OR(zadani!$D$19="ano",zadani!$D$21="ano"),Tabl!J29,"") ->  | D28: =IF(OR(zadani!$D$20="ano",zadani!$G$19="ano"),Tabl!K29,"") ->  | F28: =IF(zadani!$D$21="ano",'Fire Devc C'!$U$13,"") -> 
B29: =IF(zadani!$D$20="ano",'Fire Devc B'!$T$26,"") ->  | C29: =IF(OR(zadani!$D$19="ano",zadani!$D$21="ano"),Tabl!J30,"") ->  | D29: =IF(OR(zadani!$D$20="ano",zadani!$G$19="ano"),Tabl!K30,"") ->  | F29: =IF(zadani!$D$20="ano",'Fire Devc B'!$V$26,"") -> 
B30: =IF(zadani!$D$20="ano",'Fire Devc B'!$T$25,"") ->  | C30: =IF(OR(zadani!$D$19="ano",zadani!$D$21="ano"),Tabl!J31,"") ->  | D30: =IF(OR(zadani!$D$20="ano",zadani!$G$19="ano"),Tabl!K31,"") ->  | F30: =IF(zadani!$D$20="ano",'Fire Devc B'!$V$25,"") -> 
B31: =IF(zadani!$D$20="ano",'Fire Devc B'!$T$24,"") ->  | C31: =IF(OR(zadani!$D$19="ano",zadani!$D$21="ano"),Tabl!J32,"") ->  | D31: =IF(OR(zadani!$D$20="ano",zadani!$G$19="ano"),Tabl!K32,"") ->  | F31: =IF(zadani!$D$20="ano",'Fire Devc B'!$V$24,"") -> 
B32: =IF(zadani!$D$20="ano",'Fire Devc B'!$T$23,"") ->  | C32: =IF(OR(zadani!$D$19="ano",zadani!$D$21="ano"),Tabl!J33,"") ->  | D32: =IF(OR(zadani!$D$20="ano",zadani!$G$19="ano"),Tabl!K33,"") ->  | F32: =IF(zadani!$D$20="ano",'Fire Devc B'!$V$23,"") -> 
B33: =IF(zadani!$D$20="ano",'Fire Devc B'!$T$22,"") ->  | C33: =IF(OR(zadani!$D$19="ano",zadani!$D$21="ano"),Tabl!J34,"") ->  | D33: =IF(OR(zadani!$D$20="ano",zadani!$G$19="ano"),Tabl!K34,"") ->  | F33: =IF(zadani!$D$20="ano",'Fire Devc B'!$V$22,"") -> 
B34: =IF(zadani!$D$20="ano",'Fire Devc B'!$T$21,"") ->  | C34: =IF(OR(zadani!$D$19="ano",zadani!$D$21="ano"),Tabl!J35,"") ->  | D34: =IF(OR(zadani!$D$20="ano",zadani!$G$19="ano"),Tabl!K35,"") ->  | F34: =IF(zadani!$D$20="ano",'Fire Devc B'!$V$21,"") -> 
B35: =IF(zadani!$D$20="ano",'Fire Devc B'!$T$20,"") ->  | C35: =IF(OR(zadani!$D$19="ano",zadani!$D$21="ano"),Tabl!J36,"") ->  | D35: =IF(OR(zadani!$D$20="ano",zadani!$G$19="ano"),Tabl!K36,"") ->  | F35: =IF(zadani!$D$20="ano",'Fire Devc B'!$V$20,"") -> 
B36: =IF(zadani!$D$20="ano",'Fire Devc B'!$T$16,"") ->  | C36: =IF(OR(zadani!$D$19="ano",zadani!$D$21="ano"),Tabl!J37,"") ->  | D36: =IF(OR(zadani!$D$20="ano",zadani!$G$19="ano"),Tabl!K37,"") ->  | F36: =IF(zadani!$D$20="ano",'Fire Devc B'!$V$16,"") -> 
B37: =IF(zadani!$D$20="ano",'Fire Devc B'!$T$15,"") ->  | C37: =IF(OR(zadani!$D$19="ano",zadani!$D$21="ano"),Tabl!J38,"") ->  | D37: =IF(OR(zadani!$D$20="ano",zadani!$G$19="ano"),Tabl!K38,"") ->  | F37: =IF(zadani!$D$20="ano",'Fire Devc B'!$V$15,"") -> 
B38: =IF(zadani!$D$20="ano",'Fire Devc B'!$T$14,"") ->  | C38: =IF(OR(zadani!$D$19="ano",zadani!$D$21="ano"),Tabl!J39,"") ->  | D38: =IF(OR(zadani!$D$20="ano",zadani!$G$19="ano"),Tabl!K39,"") ->  | F38: =IF(zadani!$D$20="ano",'Fire Devc B'!$V$14,"") -> 
B39: =IF(zadani!$D$20="ano",'Fire Devc B'!$T$13,"") ->  | C39: =IF(OR(zadani!$D$19="ano",zadani!$D$21="ano"),Tabl!J40,"") ->  | D39: =IF(OR(zadani!$D$20="ano",zadani!$G$19="ano"),Tabl!K40,"") ->  | F39: =IF(zadani!$D$20="ano",'Fire Devc B'!$V$13,"") -> 
B40: =IF(zadani!$D$20="ano",'Fire Devc B'!$T$12,"") ->  | C40: =IF(OR(zadani!$D$19="ano",zadani!$D$21="ano"),Tabl!J41,"") ->  | D40: =IF(OR(zadani!$D$20="ano",zadani!$G$19="ano"),Tabl!K41,"") ->  | F40: =IF(zadani!$D$20="ano",'Fire Devc B'!$V$12,"") -> 
B41: =IF(zadani!$D$20="ano",'Fire Devc B'!$T$11,"") ->  | C41: =IF(OR(zadani!$D$19="ano",zadani!$D$21="ano"),Tabl!J42,"") ->  | D41: =IF(OR(zadani!$D$20="ano",zadani!$G$19="ano"),Tabl!K42,"") ->  | F41: =IF(zadani!$D$20="ano",'Fire Devc B'!$V$11,"") -> 
B42: =IF(zadani!$D$20="ano",'Fire Devc B'!$T$10,"") ->  | C42: =IF(OR(zadani!$D$19="ano",zadani!$D$21="ano"),Tabl!J43,"") ->  | D42: =IF(OR(zadani!$D$20="ano",zadani!$G$19="ano"),Tabl!K43,"") ->  | F42: =IF(zadani!$D$20="ano",'Fire Devc B'!$V$10,"") -> 
B43: =IF(zadani!$D$20="ano",'Fire Devc B'!$S$36,"") ->  | C43: =IF(OR(zadani!$D$19="ano",zadani!$D$21="ano"),Tabl!J44,"") ->  | D43: =IF(OR(zadani!$D$20="ano",zadani!$G$19="ano"),Tabl!K44,"") ->  | F43: =IF(zadani!$D$20="ano",'Fire Devc B'!$U$36,"") -> 
B44: =IF(zadani!$D$20="ano",'Fire Devc B'!$S$35,"") ->  | C44: =IF(OR(zadani!$D$19="ano",zadani!$D$21="ano"),Tabl!J45,"") ->  | D44: =IF(OR(zadani!$D$20="ano",zadani!$G$19="ano"),Tabl!K45,"") ->  | F44: =IF(zadani!$D$20="ano",'Fire Devc B'!$U$35,"") -> 
B45: =IF(zadani!$D$20="ano",'Fire Devc B'!$S$34,"") ->  | C45: =IF(OR(zadani!$D$19="ano",zadani!$D$21="ano"),Tabl!J46,"") ->  | D45: =IF(OR(zadani!$D$20="ano",zadani!$G$19="ano"),Tabl!K46,"") ->  | F45: =IF(zadani!$D$20="ano",'Fire Devc B'!$U$34,"") -> 
B46: =IF(zadani!$D$20="ano",'Fire Devc B'!$S$33,"") ->  | C46: =IF(OR(zadani!$D$19="ano",zadani!$D$21="ano"),Tabl!J47,"") ->  | D46: =IF(OR(zadani!$D$20="ano",zadani!$G$19="ano"),Tabl!K47,"") ->  | F46: =IF(zadani!$D$20="ano",'Fire Devc B'!$U$33,"") -> 
B47: =IF(zadani!$D$20="ano",'Fire Devc B'!$S$32,"") ->  | C47: =IF(OR(zadani!$D$19="ano",zadani!$D$21="ano"),Tabl!J48,"") ->  | D47: =IF(OR(zadani!$D$20="ano",zadani!$G$19="ano"),Tabl!K48,"") ->  | F47: =IF(zadani!$D$20="ano",'Fire Devc B'!$U$32,"") -> 
B48: =IF(zadani!$D$20="ano",'Fire Devc B'!$S$31,"") ->  | C48: =IF(OR(zadani!$D$19="ano",zadani!$D$21="ano"),Tabl!J49,"") ->  | D48: =IF(OR(zadani!$D$20="ano",zadani!$G$19="ano"),Tabl!K49,"") ->  | F48: =IF(zadani!$D$20="ano",'Fire Devc B'!$U$31,"") -> 
B49: =IF(zadani!$D$20="ano",'Fire Devc B'!$S$30,"") ->  | C49: =IF(OR(zadani!$D$19="ano",zadani!$D$21="ano"),Tabl!J50,"") ->  | D49: =IF(OR(zadani!$D$20="ano",zadani!$G$19="ano"),Tabl!K50,"") ->  | F49: =IF(zadani!$D$20="ano",'Fire Devc B'!$U$30,"") -> 
B50: =IF(zadani!$D$20="ano",'Fire Devc B'!$S$29,"") ->  | C50: =IF(OR(zadani!$D$19="ano",zadani!$D$21="ano"),Tabl!J51,"") ->  | D50: =IF(OR(zadani!$D$20="ano",zadani!$G$19="ano"),Tabl!K51,"") ->  | F50: =IF(zadani!$D$20="ano",'Fire Devc B'!$U$29,"") -> 
B51: =IF(zadani!$D$20="ano",'Fire Devc B'!$S$26,"") ->  | C51: =IF(OR(zadani!$D$19="ano",zadani!$D$21="ano"),Tabl!J52,"") ->  | D51: =IF(OR(zadani!$D$20="ano",zadani!$G$19="ano"),Tabl!K52,"") ->  | F51: =IF(zadani!$D$20="ano",'Fire Devc B'!$U$26,"") -> 
B52: =IF(zadani!$D$20="ano",'Fire Devc B'!$S$25,"") ->  | C52: =IF(OR(zadani!$D$19="ano",zadani!$D$21="ano"),Tabl!J53,"") ->  | D52: =IF(OR(zadani!$D$20="ano",zadani!$G$19="ano"),Tabl!K53,"") ->  | F52: =IF(zadani!$D$20="ano",'Fire Devc B'!$U$25,"") -> 
B53: =IF(zadani!$D$20="ano",'Fire Devc B'!$S$24,"") ->  | C53: =IF(OR(zadani!$D$19="ano",zadani!$D$21="ano"),Tabl!J54,"") ->  | D53: =IF(OR(zadani!$D$20="ano",zadani!$G$19="ano"),Tabl!K54,"") ->  | F53: =IF(zadani!$D$20="ano",'Fire Devc B'!$U$24,"") -> 
B54: =IF(zadani!$D$20="ano",'Fire Devc B'!$S$23,"") ->  | C54: =IF(OR(zadani!$D$19="ano",zadani!$D$21="ano"),Tabl!J55,"") ->  | D54: =IF(OR(zadani!$D$20="ano",zadani!$G$19="ano"),Tabl!K55,"") ->  | F54: =IF(zadani!$D$20="ano",'Fire Devc B'!$U$23,"") -> 
B55: =IF(zadani!$D$20="ano",'Fire Devc B'!$S$22,"") ->  | C55: =IF(OR(zadani!$D$19="ano",zadani!$D$21="ano"),Tabl!J56,"") ->  | D55: =IF(OR(zadani!$D$20="ano",zadani!$G$19="ano"),Tabl!K56,"") ->  | F55: =IF(zadani!$D$20="ano",'Fire Devc B'!$U$22,"") -> 
B56: =IF(zadani!$D$20="ano",'Fire Devc B'!$S$21,"") ->  | C56: =IF(OR(zadani!$D$19="ano",zadani!$D$21="ano"),Tabl!J57,"") ->  | D56: =IF(OR(zadani!$D$20="ano",zadani!$G$19="ano"),Tabl!K57,"") ->  | F56: =IF(zadani!$D$20="ano",'Fire Devc B'!$U$21,"") -> 
B57: =IF(zadani!$D$20="ano",'Fire Devc B'!$S$20,"") ->  | C57: =IF(OR(zadani!$D$19="ano",zadani!$D$21="ano"),Tabl!J58,"") ->  | D57: =IF(OR(zadani!$D$20="ano",zadani!$G$19="ano"),Tabl!K58,"") ->  | F57: =IF(zadani!$D$20="ano",'Fire Devc B'!$U$20,"") -> 
B58: =IF(zadani!$D$20="ano",'Fire Devc B'!$S$19,"") ->  | C58: =IF(OR(zadani!$D$19="ano",zadani!$D$21="ano"),Tabl!J59,"") ->  | D58: =IF(OR(zadani!$D$20="ano",zadani!$G$19="ano"),Tabl!K59,"") ->  | F58: =IF(zadani!$D$20="ano",'Fire Devc B'!$U$19,"") -> 
B59: =IF(zadani!$D$20="ano",'Fire Devc B'!$S$16,"") ->  | C59: =IF(OR(zadani!$D$19="ano",zadani!$D$21="ano"),Tabl!J60,"") ->  | D59: =IF(OR(zadani!$D$20="ano",zadani!$G$19="ano"),Tabl!K60,"") ->  | F59: =IF(zadani!$D$20="ano",'Fire Devc B'!$U$16,"") -> 
B60: =IF(zadani!$D$20="ano",'Fire Devc B'!$S$15,"") ->  | C60: =IF(OR(zadani!$D$19="ano",zadani!$D$21="ano"),Tabl!J61,"") ->  | D60: =IF(OR(zadani!$D$20="ano",zadani!$G$19="ano"),Tabl!K61,"") ->  | F60: =IF(zadani!$D$20="ano",'Fire Devc B'!$U$15,"") -> 
B61: =IF(zadani!$D$20="ano",'Fire Devc B'!$S$14,"") ->  | C61: =IF(OR(zadani!$D$19="ano",zadani!$D$21="ano"),Tabl!J62,"") ->  | D61: =IF(OR(zadani!$D$20="ano",zadani!$G$19="ano"),Tabl!K62,"") ->  | F61: =IF(zadani!$D$20="ano",'Fire Devc B'!$U$14,"") -> 
B62: =IF(zadani!$D$20="ano",'Fire Devc B'!$S$13,"") ->  | C62: =IF(OR(zadani!$D$19="ano",zadani!$D$21="ano"),Tabl!J63,"") ->  | D62: =IF(OR(zadani!$D$20="ano",zadani!$G$19="ano"),Tabl!K63,"") ->  | F62: =IF(zadani!$D$20="ano",'Fire Devc B'!$U$13,"") -> 
B63: =IF(zadani!$D$20="ano",'Fire Devc B'!$S$12,"") ->  | C63: =IF(OR(zadani!$D$19="ano",zadani!$D$21="ano"),Tabl!J64,"") ->  | D63: =IF(OR(zadani!$D$20="ano",zadani!$G$19="ano"),Tabl!K64,"") ->  | F63: =IF(zadani!$D$20="ano",'Fire Devc B'!$U$12,"") -> 
B64: =IF(zadani!$D$20="ano",'Fire Devc B'!$S$11,"") ->  | C64: =IF(OR(zadani!$D$19="ano",zadani!$D$21="ano"),Tabl!J65,"") ->  | D64: =IF(OR(zadani!$D$20="ano",zadani!$G$19="ano"),Tabl!K65,"") ->  | F64: =IF(zadani!$D$20="ano",'Fire Devc B'!$U$11,"") -> 
B65: =IF(zadani!$D$20="ano",'Fire Devc B'!$S$10,"") ->  | C65: =IF(OR(zadani!$D$19="ano",zadani!$D$21="ano"),Tabl!J66,"") ->  | D65: =IF(OR(zadani!$D$20="ano",zadani!$G$19="ano"),Tabl!K66,"") ->  | F65: =IF(zadani!$D$20="ano",'Fire Devc B'!$U$10,"") -> 
B66: =IF(zadani!$D$20="ano",'Fire Devc B'!$S$9,"") ->  | C66: =IF(OR(zadani!$D$19="ano",zadani!$D$21="ano"),Tabl!J67,"") ->  | D66: =IF(OR(zadani!$D$20="ano",zadani!$G$19="ano"),Tabl!K67,"") ->  | F66: =IF(zadani!$D$20="ano",'Fire Devc B'!$U$9,"") -> 
B67: =IF(zadani!$D$19="ano",'Fire Devc A'!$T$12,"") ->  | C67: =IF(OR(zadani!$D$19="ano",zadani!$D$21="ano"),Tabl!J68,"") ->  | D67: =IF(OR(zadani!$D$20="ano",zadani!$G$19="ano"),Tabl!K68,"") ->  | F67: =IF(zadani!$D$19="ano",'Fire Devc A'!$V$12,"") -> 
B68: =IF(zadani!$D$19="ano",'Fire Devc A'!$T$11,"") ->  | C68: =IF(OR(zadani!$D$19="ano",zadani!$D$21="ano"),Tabl!J69,"") ->  | D68: =IF(OR(zadani!$D$20="ano",zadani!$G$19="ano"),Tabl!K69,"") ->  | F68: =IF(zadani!$D$19="ano",'Fire Devc A'!$V$11,"") -> 
B69: =IF(zadani!$D$19="ano",'Fire Devc A'!$T$10,"") ->  | C69: =IF(OR(zadani!$D$19="ano",zadani!$D$21="ano"),Tabl!J70,"") ->  | D69: =IF(OR(zadani!$D$20="ano",zadani!$G$19="ano"),Tabl!K70,"") ->  | F69: =IF(zadani!$D$19="ano",'Fire Devc A'!$V$10,"") -> 
B70: =IF(zadani!$D$19="ano",'Fire Devc A'!$S$15,"") ->  | C70: =IF(OR(zadani!$D$19="ano",zadani!$D$21="ano"),Tabl!J71,"") ->  | D70: =IF(OR(zadani!$D$20="ano",zadani!$G$19="ano"),Tabl!K71,"") ->  | F70: =IF(zadani!$D$19="ano",'Fire Devc A'!$U$15,"") -> 
B71: =IF(zadani!$D$19="ano",'Fire Devc A'!$S$14,"") ->  | C71: =IF(OR(zadani!$D$19="ano",zadani!$D$21="ano"),Tabl!J72,"") ->  | D71: =IF(OR(zadani!$D$20="ano",zadani!$G$19="ano"),Tabl!K72,"") ->  | F71: =IF(zadani!$D$19="ano",'Fire Devc A'!$U$14,"") -> 
B72: =IF(zadani!$D$19="ano",'Fire Devc A'!$S$13,"") ->  | C72: =IF(OR(zadani!$D$19="ano",zadani!$D$21="ano"),Tabl!J73,"") ->  | D72: =IF(OR(zadani!$D$20="ano",zadani!$G$19="ano"),Tabl!K73,"") ->  | F72: =IF(zadani!$D$19="ano",'Fire Devc A'!$U$13,"") -> 
B73: =IF(zadani!$D$21="ano",'Fire Devc C'!$T$56,"") ->  | C73: =IF(OR(zadani!$D$19="ano",zadani!$D$21="ano"),Tabl!J74,"") ->  | D73: =IF(OR(zadani!$D$20="ano",zadani!$G$19="ano"),Tabl!K74,"") ->  | F73: =IF(zadani!$D$21="ano",'Fire Devc C'!$V$56,"") -> 
B74: =IF(zadani!$D$21="ano",'Fire Devc C'!$T$55,"") ->  | C74: =IF(OR(zadani!$D$19="ano",zadani!$D$21="ano"),Tabl!J75,"") ->  | D74: =IF(OR(zadani!$D$20="ano",zadani!$G$19="ano"),Tabl!K75,"") ->  | F74: =IF(zadani!$D$21="ano",'Fire Devc C'!$V$55,"") -> 
B75: =IF(zadani!$D$21="ano",'Fire Devc C'!$T$54,"") ->  | C75: =IF(OR(zadani!$D$19="ano",zadani!$D$21="ano"),Tabl!J76,"") ->  | D75: =IF(OR(zadani!$D$20="ano",zadani!$G$19="ano"),Tabl!K76,"") ->  | F75: =IF(zadani!$D$21="ano",'Fire Devc C'!$V$54,"") -> 
B76: =IF(zadani!$D$21="ano",'Fire Devc C'!$T$53,"") ->  | C76: =IF(OR(zadani!$D$19="ano",zadani!$D$21="ano"),Tabl!J77,"") ->  | D76: =IF(OR(zadani!$D$20="ano",zadani!$G$19="ano"),Tabl!K77,"") ->  | F76: =IF(zadani!$D$21="ano",'Fire Devc C'!$V$53,"") -> 
B77: =IF(zadani!$D$21="ano",'Fire Devc C'!$T$52,"") ->  | C77: =IF(OR(zadani!$D$19="ano",zadani!$D$21="ano"),Tabl!J78,"") ->  | D77: =IF(OR(zadani!$D$20="ano",zadani!$G$19="ano"),Tabl!K78,"") ->  | F77: =IF(zadani!$D$21="ano",'Fire Devc C'!$V$52,"") -> 
B78: =IF(zadani!$D$21="ano",'Fire Devc C'!$T$51,"") ->  | C78: =IF(OR(zadani!$D$19="ano",zadani!$D$21="ano"),Tabl!J79,"") ->  | D78: =IF(OR(zadani!$D$20="ano",zadani!$G$19="ano"),Tabl!K79,"") ->  | F78: =IF(zadani!$D$21="ano",'Fire Devc C'!$V$51,"") -> 
B79: =IF(zadani!$D$21="ano",'Fire Devc C'!$T$46,"") ->  | C79: =IF(OR(zadani!$D$19="ano",zadani!$D$21="ano"),Tabl!J80,"") ->  | D79: =IF(OR(zadani!$D$20="ano",zadani!$G$19="ano"),Tabl!K80,"") ->  | F79: =IF(zadani!$D$21="ano",'Fire Devc C'!$V$46,"") -> 
B80: =IF(zadani!$D$21="ano",'Fire Devc C'!$T$45,"") ->  | C80: =IF(OR(zadani!$D$19="ano",zadani!$D$21="ano"),Tabl!J81,"") ->  | D80: =IF(OR(zadani!$D$20="ano",zadani!$G$19="ano"),Tabl!K81,"") ->  | F80: =IF(zadani!$D$21="ano",'Fire Devc C'!$V$45,"") -> 
B81: =IF(zadani!$D$21="ano",'Fire Devc C'!$T$44,"") ->  | C81: =IF(OR(zadani!$D$19="ano",zadani!$D$21="ano"),Tabl!J82,"") ->  | D81: =IF(OR(zadani!$D$20="ano",zadani!$G$19="ano"),Tabl!K82,"") ->  | F81: =IF(zadani!$D$21="ano",'Fire Devc C'!$V$44,"") -> 
B82: =IF(zadani!$D$21="ano",'Fire Devc C'!$T$43,"") ->  | C82: =IF(OR(zadani!$D$19="ano",zadani!$D$21="ano"),Tabl!J83,"") ->  | D82: =IF(OR(zadani!$D$20="ano",zadani!$G$19="ano"),Tabl!K83,"") ->  | F82: =IF(zadani!$D$21="ano",'Fire Devc C'!$V$43,"") -> 
B83: =IF(zadani!$D$21="ano",'Fire Devc C'!$T$42,"") ->  | C83: =IF(OR(zadani!$D$19="ano",zadani!$D$21="ano"),Tabl!J84,"") ->  | D83: =IF(OR(zadani!$D$20="ano",zadani!$G$19="ano"),Tabl!K84,"") ->  | F83: =IF(zadani!$D$21="ano",'Fire Devc C'!$V$42,"") -> 
B84: =IF(zadani!$D$21="ano",'Fire Devc C'!$T$41,"") ->  | C84: =IF(OR(zadani!$D$19="ano",zadani!$D$21="ano"),Tabl!J85,"") ->  | D84: =IF(OR(zadani!$D$20="ano",zadani!$G$19="ano"),Tabl!K85,"") ->  | F84: =IF(zadani!$D$21="ano",'Fire Devc C'!$V$41,"") -> 
B85: =IF(zadani!$D$21="ano",'Fire Devc C'!$T$36,"") ->  | C85: =IF(OR(zadani!$D$19="ano",zadani!$D$21="ano"),Tabl!J86,"") ->  | D85: =IF(OR(zadani!$D$20="ano",zadani!$G$19="ano"),Tabl!K86,"") ->  | F85: =IF(zadani!$D$21="ano",'Fire Devc C'!$V$36,"") -> 
B86: =IF(zadani!$D$21="ano",'Fire Devc C'!$T$35,"") ->  | C86: =IF(OR(zadani!$D$19="ano",zadani!$D$21="ano"),Tabl!J87,"") ->  | D86: =IF(OR(zadani!$D$20="ano",zadani!$G$19="ano"),Tabl!K87,"") ->  | F86: =IF(zadani!$D$21="ano",'Fire Devc C'!$V$35,"") -> 
B87: =IF(zadani!$D$21="ano",'Fire Devc C'!$T$34,"") ->  | C87: =IF(OR(zadani!$D$19="ano",zadani!$D$21="ano"),Tabl!J88,"") ->  | D87: =IF(OR(zadani!$D$20="ano",zadani!$G$19="ano"),Tabl!K88,"") ->  | F87: =IF(zadani!$D$21="ano",'Fire Devc C'!$V$34,"") -> 
B88: =IF(zadani!$D$21="ano",'Fire Devc C'!$T$33,"") ->  | C88: =IF(OR(zadani!$D$19="ano",zadani!$D$21="ano"),Tabl!J89,"") ->  | D88: =IF(OR(zadani!$D$20="ano",zadani!$G$19="ano"),Tabl!K89,"") ->  | F88: =IF(zadani!$D$21="ano",'Fire Devc C'!$V$33,"") -> 
B89: =IF(zadani!$D$21="ano",'Fire Devc C'!$T$32,"") ->  | C89: =IF(OR(zadani!$D$19="ano",zadani!$D$21="ano"),Tabl!J90,"") ->  | D89: =IF(OR(zadani!$D$20="ano",zadani!$G$19="ano"),Tabl!K90,"") ->  | F89: =IF(zadani!$D$21="ano",'Fire Devc C'!$V$32,"") -> 
B90: =IF(zadani!$D$21="ano",'Fire Devc C'!$T$31,"") ->  | C90: =IF(OR(zadani!$D$19="ano",zadani!$D$21="ano"),Tabl!J91,"") ->  | D90: =IF(OR(zadani!$D$20="ano",zadani!$G$19="ano"),Tabl!K91,"") ->  | F90: =IF(zadani!$D$21="ano",'Fire Devc C'!$V$31,"") -> 
B91: =IF(zadani!$D$21="ano",'Fire Devc C'!$T$26,"") ->  | C91: =IF(OR(zadani!$D$19="ano",zadani!$D$21="ano"),Tabl!J92,"") ->  | D91: =IF(OR(zadani!$D$20="ano",zadani!$G$19="ano"),Tabl!K92,"") ->  | F91: =IF(zadani!$D$21="ano",'Fire Devc C'!$V$26,"") -> 
B92: =IF(zadani!$D$21="ano",'Fire Devc C'!$T$25,"") ->  | C92: =IF(OR(zadani!$D$19="ano",zadani!$D$21="ano"),Tabl!J93,"") ->  | D92: =IF(OR(zadani!$D$20="ano",zadani!$G$19="ano"),Tabl!K93,"") ->  | F92: =IF(zadani!$D$21="ano",'Fire Devc C'!$V$25,"") -> 
B93: =IF(zadani!$D$21="ano",'Fire Devc C'!$T$24,"") ->  | C93: =IF(OR(zadani!$D$19="ano",zadani!$D$21="ano"),Tabl!J94,"") ->  | D93: =IF(OR(zadani!$D$20="ano",zadani!$G$19="ano"),Tabl!K94,"") ->  | F93: =IF(zadani!$D$21="ano",'Fire Devc C'!$V$24,"") -> 
B94: =IF(zadani!$D$21="ano",'Fire Devc C'!$T$23,"") ->  | C94: =IF(OR(zadani!$D$19="ano",zadani!$D$21="ano"),Tabl!J95,"") ->  | D94: =IF(OR(zadani!$D$20="ano",zadani!$G$19="ano"),Tabl!K95,"") ->  | F94: =IF(zadani!$D$21="ano",'Fire Devc C'!$V$23,"") -> 
B95: =IF(zadani!$D$21="ano",'Fire Devc C'!$T$22,"") ->  | C95: =IF(OR(zadani!$D$19="ano",zadani!$D$21="ano"),Tabl!J96,"") ->  | D95: =IF(OR(zadani!$D$20="ano",zadani!$G$19="ano"),Tabl!K96,"") ->  | F95: =IF(zadani!$D$21="ano",'Fire Devc C'!$V$22,"") -> 
B96: =IF(zadani!$D$21="ano",'Fire Devc C'!$T$21,"") ->  | C96: =IF(OR(zadani!$D$19="ano",zadani!$D$21="ano"),Tabl!J97,"") ->  | D96: =IF(OR(zadani!$D$20="ano",zadani!$G$19="ano"),Tabl!K97,"") ->  | F96: =IF(zadani!$D$21="ano",'Fire Devc C'!$V$21,"") -> 
B97: =IF(zadani!$D$21="ano",'Fire Devc C'!$S$56,"") ->  | C97: =IF(OR(zadani!$D$19="ano",zadani!$D$21="ano"),Tabl!J98,"") ->  | D97: =IF(OR(zadani!$D$20="ano",zadani!$G$19="ano"),Tabl!K98,"") ->  | F97: =IF(zadani!$D$21="ano",'Fire Devc C'!$U$56,"") -> 
B98: =IF(zadani!$D$21="ano",'Fire Devc C'!$S$55,"") ->  | C98: =IF(OR(zadani!$D$19="ano",zadani!$D$21="ano"),Tabl!J99,"") ->  | D98: =IF(OR(zadani!$D$20="ano",zadani!$G$19="ano"),Tabl!K99,"") ->  | F98: =IF(zadani!$D$21="ano",'Fire Devc C'!$U$55,"") -> 
B99: =IF(zadani!$D$21="ano",'Fire Devc C'!$S$54,"") ->  | C99: =IF(OR(zadani!$D$19="ano",zadani!$D$21="ano"),Tabl!J100,"") ->  | D99: =IF(OR(zadani!$D$20="ano",zadani!$G$19="ano"),Tabl!K100,"") ->  | F99: =IF(zadani!$D$21="ano",'Fire Devc C'!$U$54,"") -> 
B100: =IF(zadani!$D$21="ano",'Fire Devc C'!$S$53,"") ->  | C100: =IF(OR(zadani!$D$19="ano",zadani!$D$21="ano"),Tabl!J101,"") ->  | D100: =IF(OR(zadani!$D$20="ano",zadani!$G$19="ano"),Tabl!K101,"") ->  | F100: =IF(zadani!$D$21="ano",'Fire Devc C'!$U$53,"") -> 
B101: =IF(zadani!$D$21="ano",'Fire Devc C'!$S$52,"") ->  | C101: =IF(OR(zadani!$D$19="ano",zadani!$D$21="ano"),Tabl!J102,"") ->  | D101: =IF(OR(zadani!$D$20="ano",zadani!$G$19="ano"),Tabl!K102,"") ->  | F101: =IF(zadani!$D$21="ano",'Fire Devc C'!$U$52,"") -> 
B102: =IF(zadani!$D$21="ano",'Fire Devc C'!$S$51,"") ->  | C102: =IF(OR(zadani!$D$19="ano",zadani!$D$21="ano"),Tabl!J103,"") ->  | D102: =IF(OR(zadani!$D$20="ano",zadani!$G$19="ano"),Tabl!K103,"") ->  | F102: =IF(zadani!$D$21="ano",'Fire Devc C'!$U$51,"") -> 
B103: =IF(zadani!$D$21="ano",'Fire Devc C'!$S$46,"") ->  | C103: =IF(OR(zadani!$D$19="ano",zadani!$D$21="ano"),Tabl!J104,"") ->  | D103: =IF(OR(zadani!$D$20="ano",zadani!$G$19="ano"),Tabl!K104,"") ->  | F103: =IF(zadani!$D$21="ano",'Fire Devc C'!$U$46,"") -> 
B104: =IF(zadani!$D$21="ano",'Fire Devc C'!$S$45,"") ->  | C104: =IF(OR(zadani!$D$19="ano",zadani!$D$21="ano"),Tabl!J105,"") ->  | D104: =IF(OR(zadani!$D$20="ano",zadani!$G$19="ano"),Tabl!K105,"") ->  | F104: =IF(zadani!$D$21="ano",'Fire Devc C'!$U$45,"") -> 
B105: =IF(zadani!$D$21="ano",'Fire Devc C'!$S$44,"") ->  | C105: =IF(OR(zadani!$D$19="ano",zadani!$D$21="ano"),Tabl!J106,"") ->  | D105: =IF(OR(zadani!$D$20="ano",zadani!$G$19="ano"),Tabl!K106,"") ->  | F105: =IF(zadani!$D$21="ano",'Fire Devc C'!$U$44,"") -> 
B106: =IF(zadani!$D$21="ano",'Fire Devc C'!$S$43,"") ->  | C106: =IF(OR(zadani!$D$19="ano",zadani!$D$21="ano"),Tabl!J107,"") ->  | D106: =IF(OR(zadani!$D$20="ano",zadani!$G$19="ano"),Tabl!K107,"") ->  | F106: =IF(zadani!$D$21="ano",'Fire Devc C'!$U$43,"") -> 
B107: =IF(zadani!$D$21="ano",'Fire Devc C'!$S$42,"") ->  | C107: =IF(OR(zadani!$D$19="ano",zadani!$D$21="ano"),Tabl!J108,"") ->  | D107: =IF(OR(zadani!$D$20="ano",zadani!$G$19="ano"),Tabl!K108,"") ->  | F107: =IF(zadani!$D$21="ano",'Fire Devc C'!$U$42,"") -> 
B108: =IF(zadani!$D$21="ano",'Fire Devc C'!$S$41,"") ->  | C108: =IF(OR(zadani!$D$19="ano",zadani!$D$21="ano"),Tabl!J109,"") ->  | D108: =IF(OR(zadani!$D$20="ano",zadani!$G$19="ano"),Tabl!K109,"") ->  | F108: =IF(zadani!$D$21="ano",'Fire Devc C'!$U$41,"") -> 
B109: =IF(zadani!$D$21="ano",'Fire Devc C'!$S$36,"") ->  | C109: =IF(OR(zadani!$D$19="ano",zadani!$D$21="ano"),Tabl!J110,"") ->  | D109: =IF(OR(zadani!$D$20="ano",zadani!$G$19="ano"),Tabl!K110,"") ->  | F109: =IF(zadani!$D$21="ano",'Fire Devc C'!$U$36,"") -> 
B110: =IF(zadani!$D$21="ano",'Fire Devc C'!$S$35,"") ->  | C110: =IF(OR(zadani!$D$19="ano",zadani!$D$21="ano"),Tabl!J111,"") ->  | D110: =IF(OR(zadani!$D$20="ano",zadani!$G$19="ano"),Tabl!K111,"") ->  | F110: =IF(zadani!$D$21="ano",'Fire Devc C'!$U$35,"") -> 
B111: =IF(zadani!$D$21="ano",'Fire Devc C'!$S$34,"") ->  | C111: =IF(OR(zadani!$D$19="ano",zadani!$D$21="ano"),Tabl!J112,"") ->  | D111: =IF(OR(zadani!$D$20="ano",zadani!$G$19="ano"),Tabl!K112,"") ->  | F111: =IF(zadani!$D$21="ano",'Fire Devc C'!$U$34,"") -> 
B112: =IF(zadani!$D$21="ano",'Fire Devc C'!$S$33,"") ->  | C112: =IF(OR(zadani!$D$19="ano",zadani!$D$21="ano"),Tabl!J113,"") ->  | D112: =IF(OR(zadani!$D$20="ano",zadani!$G$19="ano"),Tabl!K113,"") ->  | F112: =IF(zadani!$D$21="ano",'Fire Devc C'!$U$33,"") -> 
B113: =IF(zadani!$D$21="ano",'Fire Devc C'!$S$32,"") ->  | C113: =IF(OR(zadani!$D$19="ano",zadani!$D$21="ano"),Tabl!J114,"") ->  | D113: =IF(OR(zadani!$D$20="ano",zadani!$G$19="ano"),Tabl!K114,"") ->  | F113: =IF(zadani!$D$21="ano",'Fire Devc C'!$U$32,"") -> 
B114: =IF(zadani!$D$21="ano",'Fire Devc C'!$S$31,"") ->  | C114: =IF(OR(zadani!$D$19="ano",zadani!$D$21="ano"),Tabl!J115,"") ->  | D114: =IF(OR(zadani!$D$20="ano",zadani!$G$19="ano"),Tabl!K115,"") ->  | F114: =IF(zadani!$D$21="ano",'Fire Devc C'!$U$31,"") -> 
B115: =IF(zadani!$D$21="ano",'Fire Devc C'!$S$26,"") ->  | C115: =IF(OR(zadani!$D$19="ano",zadani!$D$21="ano"),Tabl!J116,"") ->  | D115: =IF(OR(zadani!$D$20="ano",zadani!$G$19="ano"),Tabl!K116,"") ->  | F115: =IF(zadani!$D$21="ano",'Fire Devc C'!$U$26,"") -> 
B116: =IF(zadani!$D$21="ano",'Fire Devc C'!$S$25,"") ->  | C116: =IF(OR(zadani!$D$19="ano",zadani!$D$21="ano"),Tabl!J117,"") ->  | D116: =IF(OR(zadani!$D$20="ano",zadani!$G$19="ano"),Tabl!K117,"") ->  | F116: =IF(zadani!$D$21="ano",'Fire Devc C'!$U$25,"") -> 
B117: =IF(zadani!$D$21="ano",'Fire Devc C'!$S$24,"") ->  | C117: =IF(OR(zadani!$D$19="ano",zadani!$D$21="ano"),Tabl!J118,"") ->  | D117: =IF(OR(zadani!$D$20="ano",zadani!$G$19="ano"),Tabl!K118,"") ->  | F117: =IF(zadani!$D$21="ano",'Fire Devc C'!$U$24,"") -> 
B118: =IF(zadani!$D$21="ano",'Fire Devc C'!$S$23,"") ->  | C118: =IF(OR(zadani!$D$19="ano",zadani!$D$21="ano"),Tabl!J119,"") ->  | D118: =IF(OR(zadani!$D$20="ano",zadani!$G$19="ano"),Tabl!K119,"") ->  | F118: =IF(zadani!$D$21="ano",'Fire Devc C'!$U$23,"") -> 
B119: =IF(zadani!$D$21="ano",'Fire Devc C'!$S$22,"") ->  | C119: =IF(OR(zadani!$D$19="ano",zadani!$D$21="ano"),Tabl!J120,"") ->  | D119: =IF(OR(zadani!$D$20="ano",zadani!$G$19="ano"),Tabl!K120,"") ->  | F119: =IF(zadani!$D$21="ano",'Fire Devc C'!$U$22,"") -> 
B120: =IF(zadani!$D$21="ano",'Fire Devc C'!$S$21,"") ->  | C120: =IF(OR(zadani!$D$19="ano",zadani!$D$21="ano"),Tabl!J121,"") ->  | D120: =IF(OR(zadani!$D$20="ano",zadani!$G$19="ano"),Tabl!K121,"") ->  | F120: =IF(zadani!$D$21="ano",'Fire Devc C'!$U$21,"") -> 
B121: =IF(zadani!$D$20="ano",'Fire Devc B'!$T$81,"") ->  | C121: =IF(OR(zadani!$D$19="ano",zadani!$D$21="ano"),Tabl!J122,"") ->  | D121: =IF(OR(zadani!$D$20="ano",zadani!$G$19="ano"),Tabl!K122,"") ->  | F121: =IF(zadani!$D$20="ano",'Fire Devc B'!$V$81,"") -> 
B122: =IF(zadani!$D$20="ano",'Fire Devc B'!$T$80,"") ->  | C122: =IF(OR(zadani!$D$19="ano",zadani!$D$21="ano"),Tabl!J123,"") ->  | D122: =IF(OR(zadani!$D$20="ano",zadani!$G$19="ano"),Tabl!K123,"") ->  | F122: =IF(zadani!$D$20="ano",'Fire Devc B'!$V$80,"") -> 
B123: =IF(zadani!$D$20="ano",'Fire Devc B'!$T$79,"") ->  | C123: =IF(OR(zadani!$D$19="ano",zadani!$D$21="ano"),Tabl!J124,"") ->  | D123: =IF(OR(zadani!$D$20="ano",zadani!$G$19="ano"),Tabl!K124,"") ->  | F123: =IF(zadani!$D$20="ano",'Fire Devc B'!$V$79,"") -> 
B124: =IF(zadani!$D$20="ano",'Fire Devc B'!$T$78,"") ->  | C124: =IF(OR(zadani!$D$19="ano",zadani!$D$21="ano"),Tabl!J125,"") ->  | D124: =IF(OR(zadani!$D$20="ano",zadani!$G$19="ano"),Tabl!K125,"") ->  | F124: =IF(zadani!$D$20="ano",'Fire Devc B'!$V$78,"") -> 
B125: =IF(zadani!$D$20="ano",'Fire Devc B'!$T$77,"") ->  | C125: =IF(OR(zadani!$D$19="ano",zadani!$D$21="ano"),Tabl!J126,"") ->  | D125: =IF(OR(zadani!$D$20="ano",zadani!$G$19="ano"),Tabl!K126,"") ->  | F125: =IF(zadani!$D$20="ano",'Fire Devc B'!$V$77,"") -> 
B126: =IF(zadani!$D$20="ano",'Fire Devc B'!$T$76,"") ->  | C126: =IF(OR(zadani!$D$19="ano",zadani!$D$21="ano"),Tabl!J127,"") ->  | D126: =IF(OR(zadani!$D$20="ano",zadani!$G$19="ano"),Tabl!K127,"") ->  | F126: =IF(zadani!$D$20="ano",'Fire Devc B'!$V$76,"") -> 
B127: =IF(zadani!$D$20="ano",'Fire Devc B'!$T$75,"") ->  | C127: =IF(OR(zadani!$D$19="ano",zadani!$D$21="ano"),Tabl!J128,"") ->  | D127: =IF(OR(zadani!$D$20="ano",zadani!$G$19="ano"),Tabl!K128,"") ->  | F127: =IF(zadani!$D$20="ano",'Fire Devc B'!$V$75,"") -> 
B128: =IF(zadani!$D$20="ano",'Fire Devc B'!$T$74,"") ->  | C128: =IF(OR(zadani!$D$19="ano",zadani!$D$21="ano"),Tabl!J129,"") ->  | D128: =IF(OR(zadani!$D$20="ano",zadani!$G$19="ano"),Tabl!K129,"") ->  | F128: =IF(zadani!$D$20="ano",'Fire Devc B'!$V$74,"") -> 
B129: =IF(zadani!$D$20="ano",'Fire Devc B'!$T$73,"") ->  | C129: =IF(OR(zadani!$D$19="ano",zadani!$D$21="ano"),Tabl!J130,"") ->  | D129: =IF(OR(zadani!$D$20="ano",zadani!$G$19="ano"),Tabl!K130,"") ->  | F129: =IF(zadani!$D$20="ano",'Fire Devc B'!$V$73,"") -> 
B130: =IF(zadani!$D$20="ano",'Fire Devc B'!$T$72,"") ->  | C130: =IF(OR(zadani!$D$19="ano",zadani!$D$21="ano"),Tabl!J131,"") ->  | D130: =IF(OR(zadani!$D$20="ano",zadani!$G$19="ano"),Tabl!K131,"") ->  | F130: =IF(zadani!$D$20="ano",'Fire Devc B'!$V$72,"") -> 
B131: =IF(zadani!$D$20="ano",'Fire Devc B'!$T$71,"") ->  | C131: =IF(OR(zadani!$D$19="ano",zadani!$D$21="ano"),Tabl!J132,"") ->  | D131: =IF(OR(zadani!$D$20="ano",zadani!$G$19="ano"),Tabl!K132,"") ->  | F131: =IF(zadani!$D$20="ano",'Fire Devc B'!$V$71,"") -> 
B132: =IF(zadani!$D$20="ano",'Fire Devc B'!$T$70,"") ->  | C132: =IF(OR(zadani!$D$19="ano",zadani!$D$21="ano"),Tabl!J133,"") ->  | D132: =IF(OR(zadani!$D$20="ano",zadani!$G$19="ano"),Tabl!K133,"") ->  | F132: =IF(zadani!$D$20="ano",'Fire Devc B'!$V$70,"") -> 
B133: =IF(zadani!$D$20="ano",'Fire Devc B'!$T$69,"") ->  | C133: =IF(OR(zadani!$D$19="ano",zadani!$D$21="ano"),Tabl!J134,"") ->  | D133: =IF(OR(zadani!$D$20="ano",zadani!$G$19="ano"),Tabl!K134,"") ->  | F133: =IF(zadani!$D$20="ano",'Fire Devc B'!$V$69,"") -> 
B134: =IF(zadani!$D$20="ano",'Fire Devc B'!$T$68,"") ->  | C134: =IF(OR(zadani!$D$19="ano",zadani!$D$21="ano"),Tabl!J135,"") ->  | D134: =IF(OR(zadani!$D$20="ano",zadani!$G$19="ano"),Tabl!K135,"") ->  | F134: =IF(zadani!$D$20="ano",'Fire Devc B'!$V$68,"") -> 
B135: =IF(zadani!$D$20="ano",'Fire Devc B'!$T$67,"") ->  | C135: =IF(OR(zadani!$D$19="ano",zadani!$D$21="ano"),Tabl!J136,"") ->  | D135: =IF(OR(zadani!$D$20="ano",zadani!$G$19="ano"),Tabl!K136,"") ->  | F135: =IF(zadani!$D$20="ano",'Fire Devc B'!$V$67,"") -> 
B136: =IF(zadani!$D$20="ano",'Fire Devc B'!$T$66,"") ->  | C136: =IF(OR(zadani!$D$19="ano",zadani!$D$21="ano"),Tabl!J137,"") ->  | D136: =IF(OR(zadani!$D$20="ano",zadani!$G$19="ano"),Tabl!K137,"") ->  | F136: =IF(zadani!$D$20="ano",'Fire Devc B'!$V$66,"") -> 
B137: =IF(zadani!$D$20="ano",'Fire Devc B'!$T$65,"") ->  | C137: =IF(OR(zadani!$D$19="ano",zadani!$D$21="ano"),Tabl!J138,"") ->  | D137: =IF(OR(zadani!$D$20="ano",zadani!$G$19="ano"),Tabl!K138,"") ->  | F137: =IF(zadani!$D$20="ano",'Fire Devc B'!$V$65,"") -> 
B138: =IF(zadani!$D$20="ano",'Fire Devc B'!$T$64,"") ->  | C138: =IF(OR(zadani!$D$19="ano",zadani!$D$21="ano"),Tabl!J139,"") ->  | D138: =IF(OR(zadani!$D$20="ano",zadani!$G$19="ano"),Tabl!K139,"") ->  | F138: =IF(zadani!$D$20="ano",'Fire Devc B'!$V$64,"") -> 
B139: =IF(zadani!$D$20="ano",'Fire Devc B'!$T$63,"") ->  | C139: =IF(OR(zadani!$D$19="ano",zadani!$D$21="ano"),Tabl!J140,"") ->  | D139: =IF(OR(zadani!$D$20="ano",zadani!$G$19="ano"),Tabl!K140,"") ->  | F139: =IF(zadani!$D$20="ano",'Fire Devc B'!$V$63,"") -> 
B140: =IF(zadani!$D$20="ano",'Fire Devc B'!$T$62,"") ->  | C140: =IF(OR(zadani!$D$19="ano",zadani!$D$21="ano"),Tabl!J141,"") ->  | D140: =IF(OR(zadani!$D$20="ano",zadani!$G$19="ano"),Tabl!K141,"") ->  | F140: =IF(zadani!$D$20="ano",'Fire Devc B'!$V$62,"") -> 
B141: =IF(zadani!$D$20="ano",'Fire Devc B'!$T$61,"") ->  | C141: =IF(OR(zadani!$D$19="ano",zadani!$D$21="ano"),Tabl!J142,"") ->  | D141: =IF(OR(zadani!$D$20="ano",zadani!$G$19="ano"),Tabl!K142,"") ->  | F141: =IF(zadani!$D$20="ano",'Fire Devc B'!$V$61,"") -> 
B142: =IF(zadani!$D$20="ano",'Fire Devc B'!$T$60,"") ->  | C142: =IF(OR(zadani!$D$19="ano",zadani!$D$21="ano"),Tabl!J143,"") ->  | D142: =IF(OR(zadani!$D$20="ano",zadani!$G$19="ano"),Tabl!K143,"") ->  | F142: =IF(zadani!$D$20="ano",'Fire Devc B'!$V$60,"") -> 
B143: =IF(zadani!$D$20="ano",'Fire Devc B'!$T$59,"") ->  | C143: =IF(OR(zadani!$D$19="ano",zadani!$D$21="ano"),Tabl!J144,"") ->  | D143: =IF(OR(zadani!$D$20="ano",zadani!$G$19="ano"),Tabl!K144,"") ->  | F143: =IF(zadani!$D$20="ano",'Fire Devc B'!$V$59,"") -> 
B144: =IF(zadani!$D$20="ano",'Fire Devc B'!$T$58,"") ->  | C144: =IF(OR(zadani!$D$19="ano",zadani!$D$21="ano"),Tabl!J145,"") ->  | D144: =IF(OR(zadani!$D$20="ano",zadani!$G$19="ano"),Tabl!K145,"") ->  | F144: =IF(zadani!$D$20="ano",'Fire Devc B'!$V$58,"") -> 
B145: =IF(zadani!$D$20="ano",'Fire Devc B'!$T$57,"") ->  | C145: =IF(OR(zadani!$D$19="ano",zadani!$D$21="ano"),Tabl!J146,"") ->  | D145: =IF(OR(zadani!$D$20="ano",zadani!$G$19="ano"),Tabl!K146,"") ->  | F145: =IF(zadani!$D$20="ano",'Fire Devc B'!$V$57,"") -> 
B146: =IF(zadani!$D$20="ano",'Fire Devc B'!$T$56,"") ->  | C146: =IF(OR(zadani!$D$19="ano",zadani!$D$21="ano"),Tabl!J147,"") ->  | D146: =IF(OR(zadani!$D$20="ano",zadani!$G$19="ano"),Tabl!K147,"") ->  | F146: =IF(zadani!$D$20="ano",'Fire Devc B'!$V$56,"") -> 
B147: =IF(zadani!$D$20="ano",'Fire Devc B'!$T$55,"") ->  | C147: =IF(OR(zadani!$D$19="ano",zadani!$D$21="ano"),Tabl!J148,"") ->  | D147: =IF(OR(zadani!$D$20="ano",zadani!$G$19="ano"),Tabl!K148,"") ->  | F147: =IF(zadani!$D$20="ano",'Fire Devc B'!$V$55,"") -> 
B148: =IF(zadani!$D$20="ano",'Fire Devc B'!$T$54,"") ->  | C148: =IF(OR(zadani!$D$19="ano",zadani!$D$21="ano"),Tabl!J149,"") ->  | D148: =IF(OR(zadani!$D$20="ano",zadani!$G$19="ano"),Tabl!K149,"") ->  | F148: =IF(zadani!$D$20="ano",'Fire Devc B'!$V$54,"") -> 
B149: =IF(zadani!$D$20="ano",'Fire Devc B'!$T$53,"") ->  | C149: =IF(OR(zadani!$D$19="ano",zadani!$D$21="ano"),Tabl!J150,"") ->  | D149: =IF(OR(zadani!$D$20="ano",zadani!$G$19="ano"),Tabl!K150,"") ->  | F149: =IF(zadani!$D$20="ano",'Fire Devc B'!$V$53,"") -> 
B150: =IF(zadani!$D$20="ano",'Fire Devc B'!$T$52,"") ->  | C150: =IF(OR(zadani!$D$19="ano",zadani!$D$21="ano"),Tabl!J151,"") ->  | D150: =IF(OR(zadani!$D$20="ano",zadani!$G$19="ano"),Tabl!K151,"") ->  | F150: =IF(zadani!$D$20="ano",'Fire Devc B'!$V$52,"") -> 
B151: =IF(zadani!$D$20="ano",'Fire Devc B'!$T$51,"") ->  | C151: =IF(OR(zadani!$D$19="ano",zadani!$D$21="ano"),Tabl!J152,"") ->  | D151: =IF(OR(zadani!$D$20="ano",zadani!$G$19="ano"),Tabl!K152,"") ->  | F151: =IF(zadani!$D$20="ano",'Fire Devc B'!$V$51,"") -> 
B152: =IF(zadani!$D$20="ano",'Fire Devc B'!$T$50,"") ->  | C152: =IF(OR(zadani!$D$19="ano",zadani!$D$21="ano"),Tabl!J153,"") ->  | D152: =IF(OR(zadani!$D$20="ano",zadani!$G$19="ano"),Tabl!K153,"") ->  | F152: =IF(zadani!$D$20="ano",'Fire Devc B'!$V$50,"") -> 
B153: =IF(zadani!$D$20="ano",'Fire Devc B'!$T$49,"") ->  | C153: =IF(OR(zadani!$D$19="ano",zadani!$D$21="ano"),Tabl!J154,"") ->  | D153: =IF(OR(zadani!$D$20="ano",zadani!$G$19="ano"),Tabl!K154,"") ->  | F153: =IF(zadani!$D$20="ano",'Fire Devc B'!$V$49,"") -> 
B154: =IF(zadani!$D$20="ano",'Fire Devc B'!$T$48,"") ->  | C154: =IF(OR(zadani!$D$19="ano",zadani!$D$21="ano"),Tabl!J155,"") ->  | D154: =IF(OR(zadani!$D$20="ano",zadani!$G$19="ano"),Tabl!K155,"") ->  | F154: =IF(zadani!$D$20="ano",'Fire Devc B'!$V$48,"") -> 
B155: =IF(zadani!$D$20="ano",'Fire Devc B'!$T$47,"") ->  | C155: =IF(OR(zadani!$D$19="ano",zadani!$D$21="ano"),Tabl!J156,"") ->  | D155: =IF(OR(zadani!$D$20="ano",zadani!$G$19="ano"),Tabl!K156,"") ->  | F155: =IF(zadani!$D$20="ano",'Fire Devc B'!$V$47,"") -> 
B156: =IF(zadani!$D$20="ano",'Fire Devc B'!$T$46,"") ->  | C156: =IF(OR(zadani!$D$19="ano",zadani!$D$21="ano"),Tabl!J157,"") ->  | D156: =IF(OR(zadani!$D$20="ano",zadani!$G$19="ano"),Tabl!K157,"") ->  | F156: =IF(zadani!$D$20="ano",'Fire Devc B'!$V$46,"") -> 
B157: =IF(zadani!$D$20="ano",'Fire Devc B'!$T$45,"") ->  | C157: =IF(OR(zadani!$D$19="ano",zadani!$D$21="ano"),Tabl!J158,"") ->  | D157: =IF(OR(zadani!$D$20="ano",zadani!$G$19="ano"),Tabl!K158,"") ->  | F157: =IF(zadani!$D$20="ano",'Fire Devc B'!$V$45,"") -> 
B158: =IF(zadani!$D$20="ano",'Fire Devc B'!$T$44,"") ->  | C158: =IF(OR(zadani!$D$19="ano",zadani!$D$21="ano"),Tabl!J159,"") ->  | D158: =IF(OR(zadani!$D$20="ano",zadani!$G$19="ano"),Tabl!K159,"") ->  | F158: =IF(zadani!$D$20="ano",'Fire Devc B'!$V$44,"") -> 
B159: =IF(zadani!$D$20="ano",'Fire Devc B'!$T$43,"") ->  | C159: =IF(OR(zadani!$D$19="ano",zadani!$D$21="ano"),Tabl!J160,"") ->  | D159: =IF(OR(zadani!$D$20="ano",zadani!$G$19="ano"),Tabl!K160,"") ->  | F159: =IF(zadani!$D$20="ano",'Fire Devc B'!$V$43,"") -> 
B160: =IF(zadani!$D$20="ano",'Fire Devc B'!$T$42,"") ->  | C160: =IF(OR(zadani!$D$19="ano",zadani!$D$21="ano"),Tabl!J161,"") ->  | D160: =IF(OR(zadani!$D$20="ano",zadani!$G$19="ano"),Tabl!K161,"") ->  | F160: =IF(zadani!$D$20="ano",'Fire Devc B'!$V$42,"") -> 
B161: =IF(zadani!$D$20="ano",'Fire Devc B'!$T$41,"") ->  | C161: =IF(OR(zadani!$D$19="ano",zadani!$D$21="ano"),Tabl!J162,"") ->  | D161: =IF(OR(zadani!$D$20="ano",zadani!$G$19="ano"),Tabl!K162,"") ->  | F161: =IF(zadani!$D$20="ano",'Fire Devc B'!$V$41,"") -> 
B162: =IF(zadani!$D$20="ano",'Fire Devc B'!$T$40,"") ->  | C162: =IF(OR(zadani!$D$19="ano",zadani!$D$21="ano"),Tabl!J163,"") ->  | D162: =IF(OR(zadani!$D$20="ano",zadani!$G$19="ano"),Tabl!K163,"") ->  | F162: =IF(zadani!$D$20="ano",'Fire Devc B'!$V$40,"") -> 
B163: =IF(zadani!$D$20="ano",'Fire Devc B'!$T$39,"") ->  | C163: =IF(OR(zadani!$D$19="ano",zadani!$D$21="ano"),Tabl!J164,"") ->  | D163: =IF(OR(zadani!$D$20="ano",zadani!$G$19="ano"),Tabl!K164,"") ->  | F163: =IF(zadani!$D$20="ano",'Fire Devc B'!$V$39,"") -> 
B164: =IF(zadani!$D$20="ano",'Fire Devc B'!$T$38,"") ->  | C164: =IF(OR(zadani!$D$19="ano",zadani!$D$21="ano"),Tabl!J165,"") ->  | D164: =IF(OR(zadani!$D$20="ano",zadani!$G$19="ano"),Tabl!K165,"") ->  | F164: =IF(zadani!$D$20="ano",'Fire Devc B'!$V$38,"") -> 
B165: =IF(zadani!$D$20="ano",'Fire Devc B'!$T$37,"") ->  | C165: =IF(OR(zadani!$D$19="ano",zadani!$D$21="ano"),Tabl!J166,"") ->  | D165: =IF(OR(zadani!$D$20="ano",zadani!$G$19="ano"),Tabl!K166,"") ->  | F165: =IF(zadani!$D$20="ano",'Fire Devc B'!$V$37,"") -> 
B166: =IF(zadani!$D$20="ano",'Fire Devc B'!$T$36,"") ->  | C166: =IF(OR(zadani!$D$19="ano",zadani!$D$21="ano"),Tabl!J167,"") ->  | D166: =IF(OR(zadani!$D$20="ano",zadani!$G$19="ano"),Tabl!K167,"") ->  | F166: =IF(zadani!$D$20="ano",'Fire Devc B'!$V$36,"") -> 
B167: =IF(zadani!$D$20="ano",'Fire Devc B'!$T$35,"") ->  | C167: =IF(OR(zadani!$D$19="ano",zadani!$D$21="ano"),Tabl!J168,"") ->  | D167: =IF(OR(zadani!$D$20="ano",zadani!$G$19="ano"),Tabl!K168,"") ->  | F167: =IF(zadani!$D$20="ano",'Fire Devc B'!$V$35,"") -> 
B168: =IF(zadani!$D$20="ano",'Fire Devc B'!$T$34,"") ->  | C168: =IF(OR(zadani!$D$19="ano",zadani!$D$21="ano"),Tabl!J169,"") ->  | D168: =IF(OR(zadani!$D$20="ano",zadani!$G$19="ano"),Tabl!K169,"") ->  | F168: =IF(zadani!$D$20="ano",'Fire Devc B'!$V$34,"") -> 
B169: =IF(zadani!$D$20="ano",'Fire Devc B'!$T$33,"") ->  | C169: =IF(OR(zadani!$D$19="ano",zadani!$D$21="ano"),Tabl!J170,"") ->  | D169: =IF(OR(zadani!$D$20="ano",zadani!$G$19="ano"),Tabl!K170,"") ->  | F169: =IF(zadani!$D$20="ano",'Fire Devc B'!$V$33,"") -> 
B170: =IF(zadani!$D$20="ano",'Fire Devc B'!$T$32,"") ->  | C170: =IF(OR(zadani!$D$19="ano",zadani!$D$21="ano"),Tabl!J171,"") ->  | D170: =IF(OR(zadani!$D$20="ano",zadani!$G$19="ano"),Tabl!K171,"") ->  | F170: =IF(zadani!$D$20="ano",'Fire Devc B'!$V$32,"") -> 
B171: =IF(zadani!$D$20="ano",'Fire Devc B'!$T$31,"") ->  | C171: =IF(OR(zadani!$D$19="ano",zadani!$D$21="ano"),Tabl!J172,"") ->  | D171: =IF(OR(zadani!$D$20="ano",zadani!$G$19="ano"),Tabl!K172,"") ->  | F171: =IF(zadani!$D$20="ano",'Fire Devc B'!$V$31,"") -> 
B172: =IF(zadani!$D$20="ano",'Fire Devc B'!$T$30,"") ->  | C172: =IF(OR(zadani!$D$19="ano",zadani!$D$21="ano"),Tabl!J173,"") ->  | D172: =IF(OR(zadani!$D$20="ano",zadani!$G$19="ano"),Tabl!K173,"") ->  | F172: =IF(zadani!$D$20="ano",'Fire Devc B'!$V$30,"") -> 
B173: =IF(zadani!$D$20="ano",'Fire Devc B'!$T$29,"") ->  | C173: =IF(OR(zadani!$D$19="ano",zadani!$D$21="ano"),Tabl!J174,"") ->  | D173: =IF(OR(zadani!$D$20="ano",zadani!$G$19="ano"),Tabl!K174,"") ->  | F173: =IF(zadani!$D$20="ano",'Fire Devc B'!$V$29,"") -> 
B174: =IF(zadani!$D$20="ano",'Fire Devc B'!$T$28,"") ->  | C174: =IF(OR(zadani!$D$19="ano",zadani!$D$21="ano"),Tabl!J175,"") ->  | D174: =IF(OR(zadani!$D$20="ano",zadani!$G$19="ano"),Tabl!K175,"") ->  | F174: =IF(zadani!$D$20="ano",'Fire Devc B'!$V$28,"") -> 
B175: =IF(zadani!$D$20="ano",'Fire Devc B'!$T$27,"") ->  | C175: =IF(OR(zadani!$D$19="ano",zadani!$D$21="ano"),Tabl!J176,"") ->  | D175: =IF(OR(zadani!$D$20="ano",zadani!$G$19="ano"),Tabl!K176,"") ->  | F175: =IF(zadani!$D$20="ano",'Fire Devc B'!$V$27,"") -> 
B176: =IF(zadani!$D$20="ano",'Fire Devc B'!$S$81,"") ->  | C176: =IF(OR(zadani!$D$19="ano",zadani!$D$21="ano"),Tabl!J177,"") ->  | D176: =IF(OR(zadani!$D$20="ano",zadani!$G$19="ano"),Tabl!K177,"") ->  | F176: =IF(zadani!$D$20="ano",'Fire Devc B'!$U$81,"") -> 
B177: =IF(zadani!$D$20="ano",'Fire Devc B'!$S$80,"") ->  | C177: =IF(OR(zadani!$D$19="ano",zadani!$D$21="ano"),Tabl!J178,"") ->  | D177: =IF(OR(zadani!$D$20="ano",zadani!$G$19="ano"),Tabl!K178,"") ->  | F177: =IF(zadani!$D$20="ano",'Fire Devc B'!$U$80,"") -> 
B178: =IF(zadani!$D$20="ano",'Fire Devc B'!$S$79,"") ->  | C178: =IF(OR(zadani!$D$19="ano",zadani!$D$21="ano"),Tabl!J179,"") ->  | D178: =IF(OR(zadani!$D$20="ano",zadani!$G$19="ano"),Tabl!K179,"") ->  | F178: =IF(zadani!$D$20="ano",'Fire Devc B'!$U$79,"") -> 
B179: =IF(zadani!$D$20="ano",'Fire Devc B'!$S$78,"") ->  | C179: =IF(OR(zadani!$D$19="ano",zadani!$D$21="ano"),Tabl!J180,"") ->  | D179: =IF(OR(zadani!$D$20="ano",zadani!$G$19="ano"),Tabl!K180,"") ->  | F179: =IF(zadani!$D$20="ano",'Fire Devc B'!$U$78,"") -> 
B180: =IF(zadani!$D$20="ano",'Fire Devc B'!$S$77,"") ->  | C180: =IF(OR(zadani!$D$19="ano",zadani!$D$21="ano"),Tabl!J181,"") ->  | D180: =IF(OR(zadani!$D$20="ano",zadani!$G$19="ano"),Tabl!K181,"") ->  | F180: =IF(zadani!$D$20="ano",'Fire Devc B'!$U$77,"") -> 
B181: =IF(zadani!$D$20="ano",'Fire Devc B'!$S$76,"") ->  | C181: =IF(OR(zadani!$D$19="ano",zadani!$D$21="ano"),Tabl!J182,"") ->  | D181: =IF(OR(zadani!$D$20="ano",zadani!$G$19="ano"),Tabl!K182,"") ->  | F181: =IF(zadani!$D$20="ano",'Fire Devc B'!$U$76,"") -> 
B182: =IF(zadani!$D$20="ano",'Fire Devc B'!$S$75,"") ->  | C182: =IF(OR(zadani!$D$19="ano",zadani!$D$21="ano"),Tabl!J183,"") ->  | D182: =IF(OR(zadani!$D$20="ano",zadani!$G$19="ano"),Tabl!K183,"") ->  | F182: =IF(zadani!$D$20="ano",'Fire Devc B'!$U$75,"") -> 
B183: =IF(zadani!$D$20="ano",'Fire Devc B'!$S$74,"") ->  | C183: =IF(OR(zadani!$D$19="ano",zadani!$D$21="ano"),Tabl!J184,"") ->  | D183: =IF(OR(zadani!$D$20="ano",zadani!$G$19="ano"),Tabl!K184,"") ->  | F183: =IF(zadani!$D$20="ano",'Fire Devc B'!$U$74,"") -> 
B184: =IF(zadani!$D$20="ano",'Fire Devc B'!$S$73,"") ->  | C184: =IF(OR(zadani!$D$19="ano",zadani!$D$21="ano"),Tabl!J185,"") ->  | D184: =IF(OR(zadani!$D$20="ano",zadani!$G$19="ano"),Tabl!K185,"") ->  | F184: =IF(zadani!$D$20="ano",'Fire Devc B'!$U$73,"") -> 
B185: =IF(zadani!$D$20="ano",'Fire Devc B'!$S$72,"") ->  | C185: =IF(OR(zadani!$D$19="ano",zadani!$D$21="ano"),Tabl!J186,"") ->  | D185: =IF(OR(zadani!$D$20="ano",zadani!$G$19="ano"),Tabl!K186,"") ->  | F185: =IF(zadani!$D$20="ano",'Fire Devc B'!$U$72,"") -> 
B186: =IF(zadani!$D$20="ano",'Fire Devc B'!$S$71,"") ->  | C186: =IF(OR(zadani!$D$19="ano",zadani!$D$21="ano"),Tabl!J187,"") ->  | D186: =IF(OR(zadani!$D$20="ano",zadani!$G$19="ano"),Tabl!K187,"") ->  | F186: =IF(zadani!$D$20="ano",'Fire Devc B'!$U$71,"") -> 
B187: =IF(zadani!$D$20="ano",'Fire Devc B'!$S$70,"") ->  | C187: =IF(OR(zadani!$D$19="ano",zadani!$D$21="ano"),Tabl!J188,"") ->  | D187: =IF(OR(zadani!$D$20="ano",zadani!$G$19="ano"),Tabl!K188,"") ->  | F187: =IF(zadani!$D$20="ano",'Fire Devc B'!$U$70,"") -> 
B188: =IF(zadani!$D$20="ano",'Fire Devc B'!$S$69,"") ->  | C188: =IF(OR(zadani!$D$19="ano",zadani!$D$21="ano"),Tabl!J189,"") ->  | D188: =IF(OR(zadani!$D$20="ano",zadani!$G$19="ano"),Tabl!K189,"") ->  | F188: =IF(zadani!$D$20="ano",'Fire Devc B'!$U$69,"") -> 
B189: =IF(zadani!$D$20="ano",'Fire Devc B'!$S$68,"") ->  | C189: =IF(OR(zadani!$D$19="ano",zadani!$D$21="ano"),Tabl!J190,"") ->  | D189: =IF(OR(zadani!$D$20="ano",zadani!$G$19="ano"),Tabl!K190,"") ->  | F189: =IF(zadani!$D$20="ano",'Fire Devc B'!$U$68,"") -> 
B190: =IF(zadani!$D$20="ano",'Fire Devc B'!$S$67,"") ->  | C190: =IF(OR(zadani!$D$19="ano",zadani!$D$21="ano"),Tabl!J191,"") ->  | D190: =IF(OR(zadani!$D$20="ano",zadani!$G$19="ano"),Tabl!K191,"") ->  | F190: =IF(zadani!$D$20="ano",'Fire Devc B'!$U$67,"") -> 
B191: =IF(zadani!$D$20="ano",'Fire Devc B'!$S$66,"") ->  | C191: =IF(OR(zadani!$D$19="ano",zadani!$D$21="ano"),Tabl!J192,"") ->  | D191: =IF(OR(zadani!$D$20="ano",zadani!$G$19="ano"),Tabl!K192,"") ->  | F191: =IF(zadani!$D$20="ano",'Fire Devc B'!$U$66,"") -> 
B192: =IF(zadani!$D$20="ano",'Fire Devc B'!$S$65,"") ->  | C192: =IF(OR(zadani!$D$19="ano",zadani!$D$21="ano"),Tabl!J193,"") ->  | D192: =IF(OR(zadani!$D$20="ano",zadani!$G$19="ano"),Tabl!K193,"") ->  | F192: =IF(zadani!$D$20="ano",'Fire Devc B'!$U$65,"") -> 
B193: =IF(zadani!$D$20="ano",'Fire Devc B'!$S$64,"") ->  | C193: =IF(OR(zadani!$D$19="ano",zadani!$D$21="ano"),Tabl!J194,"") ->  | D193: =IF(OR(zadani!$D$20="ano",zadani!$G$19="ano"),Tabl!K194,"") ->  | F193: =IF(zadani!$D$20="ano",'Fire Devc B'!$U$64,"") -> 
B194: =IF(zadani!$D$20="ano",'Fire Devc B'!$S$63,"") ->  | C194: =IF(OR(zadani!$D$19="ano",zadani!$D$21="ano"),Tabl!J195,"") ->  | D194: =IF(OR(zadani!$D$20="ano",zadani!$G$19="ano"),Tabl!K195,"") ->  | F194: =IF(zadani!$D$20="ano",'Fire Devc B'!$U$63,"") -> 
B195: =IF(zadani!$D$20="ano",'Fire Devc B'!$S$62,"") ->  | C195: =IF(OR(zadani!$D$19="ano",zadani!$D$21="ano"),Tabl!J196,"") ->  | D195: =IF(OR(zadani!$D$20="ano",zadani!$G$19="ano"),Tabl!K196,"") ->  | F195: =IF(zadani!$D$20="ano",'Fire Devc B'!$U$62,"") -> 
B196: =IF(zadani!$D$20="ano",'Fire Devc B'!$S$61,"") ->  | C196: =IF(OR(zadani!$D$19="ano",zadani!$D$21="ano"),Tabl!J197,"") ->  | D196: =IF(OR(zadani!$D$20="ano",zadani!$G$19="ano"),Tabl!K197,"") ->  | F196: =IF(zadani!$D$20="ano",'Fire Devc B'!$U$61,"") -> 
B197: =IF(zadani!$D$20="ano",'Fire Devc B'!$S$60,"") ->  | C197: =IF(OR(zadani!$D$19="ano",zadani!$D$21="ano"),Tabl!J198,"") ->  | D197: =IF(OR(zadani!$D$20="ano",zadani!$G$19="ano"),Tabl!K198,"") ->  | F197: =IF(zadani!$D$20="ano",'Fire Devc B'!$U$60,"") -> 
B198: =IF(zadani!$D$20="ano",'Fire Devc B'!$S$59,"") ->  | C198: =IF(OR(zadani!$D$19="ano",zadani!$D$21="ano"),Tabl!J199,"") ->  | D198: =IF(OR(zadani!$D$20="ano",zadani!$G$19="ano"),Tabl!K199,"") ->  | F198: =IF(zadani!$D$20="ano",'Fire Devc B'!$U$59,"") -> 
B199: =IF(zadani!$D$20="ano",'Fire Devc B'!$S$58,"") ->  | C199: =IF(OR(zadani!$D$19="ano",zadani!$D$21="ano"),Tabl!J200,"") ->  | D199: =IF(OR(zadani!$D$20="ano",zadani!$G$19="ano"),Tabl!K200,"") ->  | F199: =IF(zadani!$D$20="ano",'Fire Devc B'!$U$58,"") -> 
B200: =IF(zadani!$D$20="ano",'Fire Devc B'!$S$57,"") ->  | C200: =IF(OR(zadani!$D$19="ano",zadani!$D$21="ano"),Tabl!J201,"") ->  | D200: =IF(OR(zadani!$D$20="ano",zadani!$G$19="ano"),Tabl!K201,"") ->  | F200: =IF(zadani!$D$20="ano",'Fire Devc B'!$U$57,"") -> 
B201: =IF(zadani!$D$20="ano",'Fire Devc B'!$S$56,"") ->  | C201: =IF(OR(zadani!$D$19="ano",zadani!$D$21="ano"),Tabl!J202,"") ->  | D201: =IF(OR(zadani!$D$20="ano",zadani!$G$19="ano"),Tabl!K202,"") ->  | F201: =IF(zadani!$D$20="ano",'Fire Devc B'!$U$56,"") -> 
... 801 more rows

Sheet Fire Devc A
B2: x | C2: =zadani!G7 -> 5 | D2: místno. | E2: =zadani!G6 -> C1 | F2: hrana x | G2: =C2/zadani!G16 -> 1 | H2: STRANA A | M2: =zadani!G10 -> 0 | N2: =zadani!G11 -> 0 | O2: =zadani!G12 -> 0 | P2: =zadani!G38 -> M1 | Q2: =zadani!G41 -> 0.015 | R2: =SUBSTITUTE(Q2,",",".") -> 0.015
B3: y | C3: =zadani!G8 -> 10 | D3: odstup | E3: =zadani!G13 -> 0.05 | F3: hrana z | G3: =C4/zadani!G18 -> 0.875 | H3: otvor 1 | I3: =zadani!L8 -> ne | J3: =zadani!M8 -> 0 | K3: =zadani!N8 -> 0 | L3: =zadani!O8 -> - | M3: =zadani!P8 -> - | N3: =zadani!Q8 -> 0 | O3: =zadani!R8 -> 0 | P3: =zadani!G39 -> PLATE | Q3: =zadani!G42 -> 0 | R3: =SUBSTITUTE(Q3,",",".") -> 0
B4: z | C4: =zadani!G9 -> 3.5 | D4: vše ok? | E4: =IF(AND(O108="ok",R108="ok",S108="ok",T108="ok"),"ok","pozor") -> ok | H4: otvor 2 | I4: =zadani!L9 -> ne | J4: =zadani!M9 -> 0 | K4: =zadani!N9 -> 0 | L4: =zadani!O9 -> - | M4: =zadani!P9 -> - | N4: =zadani!Q9 -> 0 | O4: =zadani!R9 -> 0 | P4: =zadani!G40 -> FLOOR | Q4: =zadani!C42 -> 250 | R4: =SUBSTITUTE(Q4,",",".") -> 250
B6: pořad. číslo | C6: X lichá | E6: X sudá | G6: Y | I6: Z lichá | K6: Z sudá | M6: otvor 1 lichy | N6: otvor 2 lichy | O6: otvory liche | P6: otvor 1 sudy | Q6: otvor 2 sudy | R6: otvory sude
B7: =RIGHT("00"&ROW(A1),3) -> 001 | C7: =G2/2 -> 0.5 | D7: =SUBSTITUTE(C7,",",".") -> 0.5 | E7: =E3 -> 0.05 | F7: =SUBSTITUTE(E7,",",".") -> 0.05 | G7: =E3 -> 0.05 | H7: =SUBSTITUTE(G7,",",".") -> 0.05 | I7: =G3/2 -> 0.4375 | J7: =SUBSTITUTE(I7,",",".") -> 0.4375 | K7: =$G$3*1.5 -> 1.3125 | L7: =SUBSTITUTE(K7,",",".") -> 1.3125 | M7: =IF($I$3="ano",IF(AND(C7>$J$3,C7<$K$3,I7>$N$3,I7<$O$3),"otvor","stena"),"stena") -> stena | N7: =IF($I$4="ano",IF(AND(C7>$J$4,C7<$K$4,I7>$N$4,I7<$O$4),"otvor","stena"),"stena") -> stena | O7: =IF(OR(M7="otvor",N7="otvor"),"otvor","stena") -> stena | P7: =IF($I$3="ano",IF(AND(E7>$J$3,E7<$K$3,K7>$N$3,K7<$O$3),"otvor","stena"),"stena") -> stena | Q7: =IF($I$4="ano",IF(AND(E7>$J$4,E7<$K$4,K7>$N$4,K7<$O$4),"otvor","stena"),"stena") -> stena | R7: =IF(OR(P7="otvor",Q7="otvor"),"otvor","stena") -> stena | S7: =IF(AND(C7>$M$2,I7>$O$2),IF(O7="stena",IF(I7>$C$4,"",CONCATENATE("&FIRE ID = 'F.",$E$2,".1.",B7,"' COMP_ID = '",$E$2,"', FIRE_ID = 'FP.",$E$2,".X.",J7,"' LOCATION = ",D7,", ",H7," IGNITION_CRITERION = 'TEMPERATURE', DEVC_ID = 'T.",$E$2,".1.",B7,"', SETPOINT = ",$R$4," /")),""),"") -> &FIRE ID = 'F.C1.1.001' COMP_ID = 'C1', FIRE_ID = 'FP.C1.X.0.4375' LOCATION = 0.5, 0.05 IGNITION_CRITERION = 'TEMPERATURE', DEVC_ID = 'T.C1.1.001', SETPOINT = 250 / | T7: =IF(AND(E7>$M$2,K7>$O$2),IF(R7="stena",IF(K7>$C$4,"",CONCATENATE("&FIRE ID = 'F.",$E$2,".2.",B7,"' COMP_ID = '",$E$2,"', FIRE_ID = 'FP.",$E$2,".X.",L7,"' LOCATION = ",F7,", ",H7," IGNITION_CRITERION = 'TEMPERATURE', DEVC_ID = 'T.",$E$2,".2.",B7,"', SETPOINT = ",$R$4," /")),""),"") -> &FIRE ID = 'F.C1.2.001' COMP_ID = 'C1', FIRE_ID = 'FP.C1.X.1.3125' LOCATION = 0.05, 0.05 IGNITION_CRITERION = 'TEMPERATURE', DEVC_ID = 'T.C1.2.001', SETPOINT = 250 / | U7: =IF(S7="","",IF(O7="stena",IF(I7>$C$4,"",CONCATENATE("&DEVC ID = 'T.",$E$2,".1.",B7,"' COMP_ID = '",$E$2,"' LOCATION = ",D7,", ",H7,", ",J7," TYPE = '",$P$3,"' MATL_ID = '",$P$2,"' SURFACE_ORIENTATION = '",$P$4,"' THICKNESS = ",$R$2," TEMPERATURE_DEPTH = ",$R$3," DEPTH_UNITS = 'M' /")),"")) -> &DEVC ID = 'T.C1.1.001' COMP_ID = 'C1' LOCATION = 0.5, 0.05, 0.4375 TYPE = 'PLATE' MATL_ID = 'M1' SURFACE_ORIENTATION = 'FLOOR' THICKNESS = 0.015 TEMPERATURE_DEPTH = 0 DEPTH_UNITS = 'M' / | V7: =IF(T7="","",IF(R7="stena",IF(K7>$C$4,"",CONCATENATE("&DEVC ID = 'T.",$E$2,".2.",B7,"' COMP_ID = '",$E$2,"' LOCATION = ",F7,", ",H7,", ",L7," TYPE = '",$P$3,"' MATL_ID = '",$P$2,"' SURFACE_ORIENTATION = '",$P$4,"' THICKNESS = ",$R$2," TEMPERATURE_DEPTH = ",$R$3," DEPTH_UNITS = 'M' /")),"")) -> &DEVC ID = 'T.C1.2.001' COMP_ID = 'C1' LOCATION = 0.05, 0.05, 1.3125 TYPE = 'PLATE' MATL_ID = 'M1' SURFACE_ORIENTATION = 'FLOOR' THICKNESS = 0.015 TEMPERATURE_DEPTH = 0 DEPTH_UNITS = 'M' /
B8: =RIGHT("00"&ROW(A2),3) -> 002 | C8: =IF(C7>=($C$2-$G$2),$G$2/2,C7+$G$2) -> 1.5 | D8: 1.5 | E8: =IF(E7>=($C$2-$G$2),$E$3,E7+$G$2) -> 1.05 | F8: 1.05 | G8: =G7 -> 0.05 | H8: =SUBSTITUTE(G8,",",".") -> 0.05 | I8: =IF(C8=$G$2/2,I7+$G$3*2,I7) -> 0.4375 | J8: 0.4375 | K8: =IF(E8=$E$3,K7+$G$3*2,K7) -> 1.3125 | L8: =SUBSTITUTE(K8,",",".") -> 1.3125 | M8: stena | N8: stena | O8: stena | P8: stena | Q8: stena | R8: stena | S8: =IF(AND(C8>$M$2,I8>$O$2),IF(O8="stena",IF(I8>$C$4,"",CONCATENATE("&FIRE ID = 'F.",$E$2,".1.",B8,"' COMP_ID = '",$E$2,"', FIRE_ID = 'FP.",$E$2,".X.",J8,"' LOCATION = ",D8,", ",H8," IGNITION_CRITERION = 'TEMPERATURE', DEVC_ID = 'T.",$E$2,".1.",B8,"', SETPOINT = ",$R$4," /")),""),"") -> &FIRE ID = 'F.C1.1.002' COMP_ID = 'C1', FIRE_ID = 'FP.C1.X.0.4375' LOCATION = 1.5, 0.05 IGNITION_CRITERION = 'TEMPERATURE', DEVC_ID = 'T.C1.1.002', SETPOINT = 250 / | T8: =IF(AND(E8>$M$2,K8>$O$2),IF(R8="stena",IF(K8>$C$4,"",CONCATENATE("&FIRE ID = 'F.",$E$2,".2.",B8,"' COMP_ID = '",$E$2,"', FIRE_ID = 'FP.",$E$2,".X.",L8,"' LOCATION = ",F8,", ",H8," IGNITION_CRITERION = 'TEMPERATURE', DEVC_ID = 'T.",$E$2,".2.",B8,"', SETPOINT = ",$R$4," /")),""),"") -> &FIRE ID = 'F.C1.2.002' COMP_ID = 'C1', FIRE_ID = 'FP.C1.X.1.3125' LOCATION = 1.05, 0.05 IGNITION_CRITERION = 'TEMPERATURE', DEVC_ID = 'T.C1.2.002', SETPOINT = 250 / | U8: =IF(S8="","",IF(O8="stena",IF(I8>$C$4,"",CONCATENATE("&DEVC ID = 'T.",$E$2,".1.",B8,"' COMP_ID = '",$E$2,"' LOCATION = ",D8,", ",H8,", ",J8," TYPE = '",$P$3,"' MATL_ID = '",$P$2,"' SURFACE_ORIENTATION = '",$P$4,"' THICKNESS = ",$R$2," TEMPERATURE_DEPTH = ",$R$3," DEPTH_UNITS = 'M' /")),"")) -> &DEVC ID = 'T.C1.1.002' COMP_ID = 'C1' LOCATION = 1.5, 0.05, 0.4375 TYPE = 'PLATE' MATL_ID = 'M1' SURFACE_ORIENTATION = 'FLOOR' THICKNESS = 0.015 TEMPERATURE_DEPTH = 0 DEPTH_UNITS = 'M' / | V8: =IF(T8="","",IF(R8="stena",IF(K8>$C$4,"",CONCATENATE("&DEVC ID = 'T.",$E$2,".2.",B8,"' COMP_ID = '",$E$2,"' LOCATION = ",F8,", ",H8,", ",L8," TYPE = '",$P$3,"' MATL_ID = '",$P$2,"' SURFACE_ORIENTATION = '",$P$4,"' THICKNESS = ",$R$2," TEMPERATURE_DEPTH = ",$R$3," DEPTH_UNITS = 'M' /")),"")) -> &DEVC ID = 'T.C1.2.002' COMP_ID = 'C1' LOCATION = 1.05, 0.05, 1.3125 TYPE = 'PLATE' MATL_ID = 'M1' SURFACE_ORIENTATION = 'FLOOR' THICKNESS = 0.015 TEMPERATURE_DEPTH = 0 DEPTH_UNITS = 'M' /
B9: =RIGHT("00"&ROW(A3),3) -> 003 | C9: 2.5 | D9: 2.5 | E9: =IF(E8>=($C$2-$G$2),$E$3,E8+$G$2) -> 2.05 | F9: 2.05 | G9: =G8 -> 0.05 | H9: 0.05 | I9: =IF(C9=$G$2/2,I8+$G$3*2,I8) -> 0.4375 | J9: 0.4375 | K9: =IF(E9=$E$3,K8+$G$3*2,K8) -> 1.3125 | L9: =SUBSTITUTE(K9,",",".") -> 1.3125 | M9: stena | N9: stena | O9: stena | P9: stena | Q9: stena | R9: stena | S9: &FIRE ID = 'F.C1.1.003' COMP_ID = 'C1', FIRE_ID = 'FP.C1.X.0.4375' LOCATION = 2.5, 0.05 IGNITION_CRITERION = 'TEMPERATURE', DEVC_ID = 'T.C1.1.003', SETPOINT = 250 / | T9: &FIRE ID = 'F.C1.2.003' COMP_ID = 'C1', FIRE_ID = 'FP.C1.X.1.3125' LOCATION = 2.05, 0.05 IGNITION_CRITERION = 'TEMPERATURE', DEVC_ID = 'T.C1.2.003', SETPOINT = 250 / | U9: &DEVC ID = 'T.C1.1.003' COMP_ID = 'C1' LOCATION = 2.5, 0.05, 0.4375 TYPE = 'PLATE' MATL_ID = 'M1' SURFACE_ORIENTATION = 'FLOOR' THICKNESS = 0.015 TEMPERATURE_DEPTH = 0 DEPTH_UNITS = 'M' / | V9: &DEVC ID = 'T.C1.2.003' COMP_ID = 'C1' LOCATION = 2.05, 0.05, 1.3125 TYPE = 'PLATE' MATL_ID = 'M1' SURFACE_ORIENTATION = 'FLOOR' THICKNESS = 0.015 TEMPERATURE_DEPTH = 0 DEPTH_UNITS = 'M' /
B10: =RIGHT("00"&ROW(A4),3) -> 004 | C10: 3.5 | D10: 3.5 | E10: =IF(E9>=($C$2-$G$2),$E$3,E9+$G$2) -> 3.05 | F10: 3.05 | G10: 0.05 | H10: 0.05 | I10: 0.4375 | J10: 0.4375 | K10: 1.3125 | L10: 1.3125 | M10: stena | N10: stena | O10: stena | P10: stena | Q10: stena | R10: stena | S10: &FIRE ID = 'F.C1.1.004' COMP_ID = 'C1', FIRE_ID = 'FP.C1.X.0.4375' LOCATION = 3.5, 0.05 IGNITION_CRITERION = 'TEMPERATURE', DEVC_ID = 'T.C1.1.004', SETPOINT = 250 / | T10: &FIRE ID = 'F.C1.2.004' COMP_ID = 'C1', FIRE_ID = 'FP.C1.X.1.3125' LOCATION = 3.05, 0.05 IGNITION_CRITERION = 'TEMPERATURE', DEVC_ID = 'T.C1.2.004', SETPOINT = 250 / | U10: &DEVC ID = 'T.C1.1.004' COMP_ID = 'C1' LOCATION = 3.5, 0.05, 0.4375 TYPE = 'PLATE' MATL_ID = 'M1' SURFACE_ORIENTATION = 'FLOOR' THICKNESS = 0.015 TEMPERATURE_DEPTH = 0 DEPTH_UNITS = 'M' / | V10: &DEVC ID = 'T.C1.2.004' COMP_ID = 'C1' LOCATION = 3.05, 0.05, 1.3125 TYPE = 'PLATE' MATL_ID = 'M1' SURFACE_ORIENTATION = 'FLOOR' THICKNESS = 0.015 TEMPERATURE_DEPTH = 0 DEPTH_UNITS = 'M' /
B11: 005 | C11: 4.5 | D11: 4.5 | E11: 4.05 | F11: 4.05 | G11: 0.05 | H11: 0.05 | I11: 0.4375 | J11: 0.4375 | K11: 1.3125 | L11: 1.3125 | M11: stena | N11: stena | O11: =IF(OR(M11="otvor",N11="otvor"),"otvor","stena") -> stena | P11: stena | Q11: stena | R11: stena | S11: &FIRE ID = 'F.C1.1.005' COMP_ID = 'C1', FIRE_ID = 'FP.C1.X.0.4375' LOCATION = 4.5, 0.05 IGNITION_CRITERION = 'TEMPERATURE', DEVC_ID = 'T.C1.1.005', SETPOINT = 250 / | T11: &FIRE ID = 'F.C1.2.005' COMP_ID = 'C1', FIRE_ID = 'FP.C1.X.1.3125' LOCATION = 4.05, 0.05 IGNITION_CRITERION = 'TEMPERATURE', DEVC_ID = 'T.C1.2.005', SETPOINT = 250 / | U11: &DEVC ID = 'T.C1.1.005' COMP_ID = 'C1' LOCATION = 4.5, 0.05, 0.4375 TYPE = 'PLATE' MATL_ID = 'M1' SURFACE_ORIENTATION = 'FLOOR' THICKNESS = 0.015 TEMPERATURE_DEPTH = 0 DEPTH_UNITS = 'M' / | V11: &DEVC ID = 'T.C1.2.005' COMP_ID = 'C1' LOCATION = 4.05, 0.05, 1.3125 TYPE = 'PLATE' MATL_ID = 'M1' SURFACE_ORIENTATION = 'FLOOR' THICKNESS = 0.015 TEMPERATURE_DEPTH = 0 DEPTH_UNITS = 'M' /
B12: 006 | C12: 0.5 | D12: 0.5 | E12: 0.05 | F12: 0.05 | G12: 0.05 | H12: 0.05 | I12: 2.1875 | J12: 2.1875 | K12: 3.0625 | L12: 3.0625 | M12: stena | N12: stena | O12: =IF(OR(M12="otvor",N12="otvor"),"otvor","stena") -> stena | P12: stena | Q12: stena | R12: stena | S12: &FIRE ID = 'F.C1.1.006' COMP_ID = 'C1', FIRE_ID = 'FP.C1.X.2.1875' LOCATION = 0.5, 0.05 IGNITION_CRITERION = 'TEMPERATURE', DEVC_ID = 'T.C1.1.006', SETPOINT = 250 / | T12: &FIRE ID = 'F.C1.2.006' COMP_ID = 'C1', FIRE_ID = 'FP.C1.X.3.0625' LOCATION = 0.05, 0.05 IGNITION_CRITERION = 'TEMPERATURE', DEVC_ID = 'T.C1.2.006', SETPOINT = 250 / | U12: &DEVC ID = 'T.C1.1.006' COMP_ID = 'C1' LOCATION = 0.5, 0.05, 2.1875 TYPE = 'PLATE' MATL_ID = 'M1' SURFACE_ORIENTATION = 'FLOOR' THICKNESS = 0.015 TEMPERATURE_DEPTH = 0 DEPTH_UNITS = 'M' / | V12: &DEVC ID = 'T.C1.2.006' COMP_ID = 'C1' LOCATION = 0.05, 0.05, 3.0625 TYPE = 'PLATE' MATL_ID = 'M1' SURFACE_ORIENTATION = 'FLOOR' THICKNESS = 0.015 TEMPERATURE_DEPTH = 0 DEPTH_UNITS = 'M' /
B13: 007 | C13: 1.5 | D13: 1.5 | E13: 1.05 | F13: 1.05 | G13: 0.05 | H13: 0.05 | I13: 2.1875 | J13: 2.1875 | K13: 3.0625 | L13: 3.0625 | M13: stena | N13: stena | O13: =IF(OR(M13="otvor",N13="otvor"),"otvor","stena") -> stena | P13: stena | Q13: stena | R13: stena | S13: &FIRE ID = 'F.C1.1.007' COMP_ID = 'C1', FIRE_ID = 'FP.C1.X.2.1875' LOCATION = 1.5, 0.05 IGNITION_CRITERION = 'TEMPERATURE', DEVC_ID = 'T.C1.1.007', SETPOINT = 250 / | T13: &FIRE ID = 'F.C1.2.007' COMP_ID = 'C1', FIRE_ID = 'FP.C1.X.3.0625' LOCATION = 1.05, 0.05 IGNITION_CRITERION = 'TEMPERATURE', DEVC_ID = 'T.C1.2.007', SETPOINT = 250 / | U13: &DEVC ID = 'T.C1.1.007' COMP_ID = 'C1' LOCATION = 1.5, 0.05, 2.1875 TYPE = 'PLATE' MATL_ID = 'M1' SURFACE_ORIENTATION = 'FLOOR' THICKNESS = 0.015 TEMPERATURE_DEPTH = 0 DEPTH_UNITS = 'M' / | V13: &DEVC ID = 'T.C1.2.007' COMP_ID = 'C1' LOCATION = 1.05, 0.05, 3.0625 TYPE = 'PLATE' MATL_ID = 'M1' SURFACE_ORIENTATION = 'FLOOR' THICKNESS = 0.015 TEMPERATURE_DEPTH = 0 DEPTH_UNITS = 'M' /
B14: 008 | C14: 2.5 | D14: 2.5 | E14: 2.05 | F14: 2.05 | G14: 0.05 | H14: 0.05 | I14: 2.1875 | J14: 2.1875 | K14: 3.0625 | L14: 3.0625 | M14: stena | N14: stena | O14: stena | P14: stena | Q14: stena | R14: stena | S14: &FIRE ID = 'F.C1.1.008' COMP_ID = 'C1', FIRE_ID = 'FP.C1.X.2.1875' LOCATION = 2.5, 0.05 IGNITION_CRITERION = 'TEMPERATURE', DEVC_ID = 'T.C1.1.008', SETPOINT = 250 / | T14: &FIRE ID = 'F.C1.2.008' COMP_ID = 'C1', FIRE_ID = 'FP.C1.X.3.0625' LOCATION = 2.05, 0.05 IGNITION_CRITERION = 'TEMPERATURE', DEVC_ID = 'T.C1.2.008', SETPOINT = 250 / | U14: &DEVC ID = 'T.C1.1.008' COMP_ID = 'C1' LOCATION = 2.5, 0.05, 2.1875 TYPE = 'PLATE' MATL_ID = 'M1' SURFACE_ORIENTATION = 'FLOOR' THICKNESS = 0.015 TEMPERATURE_DEPTH = 0 DEPTH_UNITS = 'M' / | V14: &DEVC ID = 'T.C1.2.008' COMP_ID = 'C1' LOCATION = 2.05, 0.05, 3.0625 TYPE = 'PLATE' MATL_ID = 'M1' SURFACE_ORIENTATION = 'FLOOR' THICKNESS = 0.015 TEMPERATURE_DEPTH = 0 DEPTH_UNITS = 'M' /
B15: 009 | C15: 3.5 | D15: 3.5 | E15: 3.05 | F15: 3.05 | G15: 0.05 | H15: 0.05 | I15: 2.1875 | J15: 2.1875 | K15: 3.0625 | L15: 3.0625 | M15: stena | N15: stena | O15: stena | P15: stena | Q15: stena | R15: stena | S15: &FIRE ID = 'F.C1.1.009' COMP_ID = 'C1', FIRE_ID = 'FP.C1.X.2.1875' LOCATION = 3.5, 0.05 IGNITION_CRITERION = 'TEMPERATURE', DEVC_ID = 'T.C1.1.009', SETPOINT = 250 / | T15: &FIRE ID = 'F.C1.2.009' COMP_ID = 'C1', FIRE_ID = 'FP.C1.X.3.0625' LOCATION = 3.05, 0.05 IGNITION_CRITERION = 'TEMPERATURE', DEVC_ID = 'T.C1.2.009', SETPOINT = 250 / | U15: &DEVC ID = 'T.C1.1.009' COMP_ID = 'C1' LOCATION = 3.5, 0.05, 2.1875 TYPE = 'PLATE' MATL_ID = 'M1' SURFACE_ORIENTATION = 'FLOOR' THICKNESS = 0.015 TEMPERATURE_DEPTH = 0 DEPTH_UNITS = 'M' / | V15: &DEVC ID = 'T.C1.2.009' COMP_ID = 'C1' LOCATION = 3.05, 0.05, 3.0625 TYPE = 'PLATE' MATL_ID = 'M1' SURFACE_ORIENTATION = 'FLOOR' THICKNESS = 0.015 TEMPERATURE_DEPTH = 0 DEPTH_UNITS = 'M' /
B16: 010 | C16: 4.5 | D16: 4.5 | E16: 4.05 | F16: 4.05 | G16: 0.05 | H16: 0.05 | I16: 2.1875 | J16: 2.1875 | K16: 3.0625 | L16: 3.0625 | M16: stena | N16: stena | O16: stena | P16: stena | Q16: stena | R16: stena | S16: &FIRE ID = 'F.C1.1.010' COMP_ID = 'C1', FIRE_ID = 'FP.C1.X.2.1875' LOCATION = 4.5, 0.05 IGNITION_CRITERION = 'TEMPERATURE', DEVC_ID = 'T.C1.1.010', SETPOINT = 250 / | T16: &FIRE ID = 'F.C1.2.010' COMP_ID = 'C1', FIRE_ID = 'FP.C1.X.3.0625' LOCATION = 4.05, 0.05 IGNITION_CRITERION = 'TEMPERATURE', DEVC_ID = 'T.C1.2.010', SETPOINT = 250 / | U16: &DEVC ID = 'T.C1.1.010' COMP_ID = 'C1' LOCATION = 4.5, 0.05, 2.1875 TYPE = 'PLATE' MATL_ID = 'M1' SURFACE_ORIENTATION = 'FLOOR' THICKNESS = 0.015 TEMPERATURE_DEPTH = 0 DEPTH_UNITS = 'M' / | V16: &DEVC ID = 'T.C1.2.010' COMP_ID = 'C1' LOCATION = 4.05, 0.05, 3.0625 TYPE = 'PLATE' MATL_ID = 'M1' SURFACE_ORIENTATION = 'FLOOR' THICKNESS = 0.015 TEMPERATURE_DEPTH = 0 DEPTH_UNITS = 'M' /
B17: 011 | C17: 0.5 | D17: 0.5 | E17: 0.05 | F17: 0.05 | G17: 0.05 | H17: 0.05 | I17: 3.9375 | J17: 3.9375 | K17: 4.8125 | L17: 4.8125 | M17: stena | N17: stena | O17: stena | P17: stena | Q17: stena | R17: stena
B18: 012 | C18: 1.5 | D18: 1.5 | E18: 1.05 | F18: 1.05 | G18: 0.05 | H18: 0.05 | I18: 3.9375 | J18: 3.9375 | K18: 4.8125 | L18: 4.8125 | M18: stena | N18: stena | O18: stena | P18: stena | Q18: stena | R18: stena
B19: 013 | C19: 2.5 | D19: 2.5 | E19: 2.05 | F19: 2.05 | G19: 0.05 | H19: 0.05 | I19: 3.9375 | J19: 3.9375 | K19: 4.8125 | L19: 4.8125 | M19: stena | N19: stena | O19: stena | P19: stena | Q19: stena | R19: stena
B20: 014 | C20: 3.5 | D20: 3.5 | E20: 3.05 | F20: 3.05 | G20: 0.05 | H20: 0.05 | I20: 3.9375 | J20: 3.9375 | K20: 4.8125 | L20: 4.8125 | M20: stena | N20: stena | O20: stena | P20: stena | Q20: stena | R20: stena
B21: 015 | C21: 4.5 | D21: 4.5 | E21: 4.05 | F21: 4.05 | G21: 0.05 | H21: 0.05 | I21: 3.9375 | J21: 3.9375 | K21: 4.8125 | L21: 4.8125 | M21: stena | N21: stena | O21: stena | P21: stena | Q21: stena | R21: stena
B22: 016 | C22: 0.5 | D22: 0.5 | E22: 0.05 | F22: 0.05 | G22: 0.05 | H22: 0.05 | I22: 5.6875 | J22: 5.6875 | K22: 6.5625 | L22: 6.5625 | M22: stena | N22: stena | O22: stena | P22: stena | Q22: stena | R22: stena
B23: 017 | C23: 1.5 | D23: 1.5 | E23: 1.05 | F23: 1.05 | G23: 0.05 | H23: 0.05 | I23: 5.6875 | J23: 5.6875 | K23: 6.5625 | L23: 6.5625 | M23: stena | N23: stena | O23: stena | P23: stena | Q23: stena | R23: stena
B24: 018 | C24: 2.5 | D24: 2.5 | E24: 2.05 | F24: 2.05 | G24: 0.05 | H24: 0.05 | I24: 5.6875 | J24: 5.6875 | K24: 6.5625 | L24: 6.5625 | M24: stena | N24: stena | O24: stena | P24: stena | Q24: stena | R24: stena
B25: 019 | C25: 3.5 | D25: 3.5 | E25: 3.05 | F25: 3.05 | G25: 0.05 | H25: 0.05 | I25: 5.6875 | J25: 5.6875 | K25: 6.5625 | L25: 6.5625 | M25: stena | N25: stena | O25: stena | P25: stena | Q25: stena | R25: stena
B26: 020 | C26: 4.5 | D26: 4.5 | E26: 4.05 | F26: 4.05 | G26: 0.05 | H26: 0.05 | I26: 5.6875 | J26: 5.6875 | K26: 6.5625 | L26: 6.5625 | M26: stena | N26: stena | O26: stena | P26: stena | Q26: stena | R26: stena
B27: 021 | C27: 0.5 | D27: 0.5 | E27: 0.05 | F27: 0.05 | G27: 0.05 | H27: 0.05 | I27: 7.4375 | J27: 7.4375 | K27: 8.3125 | L27: 8.3125 | M27: stena | N27: stena | O27: stena | P27: stena | Q27: stena | R27: stena
B28: 022 | C28: 1.5 | D28: 1.5 | E28: 1.05 | F28: 1.05 | G28: 0.05 | H28: 0.05 | I28: 7.4375 | J28: 7.4375 | K28: 8.3125 | L28: 8.3125 | M28: stena | N28: stena | O28: stena | P28: stena | Q28: stena | R28: stena
B29: 023 | C29: 2.5 | D29: 2.5 | E29: 2.05 | F29: 2.05 | G29: 0.05 | H29: 0.05 | I29: 7.4375 | J29: 7.4375 | K29: 8.3125 | L29: 8.3125 | M29: stena | N29: stena | O29: stena | P29: stena | Q29: stena | R29: stena
B30: 024 | C30: 3.5 | D30: 3.5 | E30: 3.05 | F30: 3.05 | G30: 0.05 | H30: 0.05 | I30: 7.4375 | J30: 7.4375 | K30: 8.3125 | L30: 8.3125 | M30: stena | N30: stena | O30: stena | P30: stena | Q30: stena | R30: stena
B31: 025 | C31: 4.5 | D31: 4.5 | E31: 4.05 | F31: 4.05 | G31: 0.05 | H31: 0.05 | I31: 7.4375 | J31: 7.4375 | K31: 8.3125 | L31: 8.3125 | M31: stena | N31: stena | O31: stena | P31: stena | Q31: stena | R31: stena
B32: 026 | C32: 0.5 | D32: 0.5 | E32: 0.05 | F32: 0.05 | G32: 0.05 | H32: 0.05 | I32: 9.1875 | J32: 9.1875 | K32: 10.0625 | L32: 10.0625 | M32: stena | N32: stena | O32: stena | P32: stena | Q32: stena | R32: stena
B33: 027 | C33: 1.5 | D33: 1.5 | E33: 1.05 | F33: 1.05 | G33: 0.05 | H33: 0.05 | I33: 9.1875 | J33: 9.1875 | K33: 10.0625 | L33: 10.0625 | M33: stena | N33: stena | O33: stena | P33: stena | Q33: stena | R33: stena
B34: 028 | C34: 2.5 | D34: 2.5 | E34: 2.05 | F34: 2.05 | G34: 0.05 | H34: 0.05 | I34: 9.1875 | J34: 9.1875 | K34: 10.0625 | L34: 10.0625 | M34: stena | N34: stena | O34: stena | P34: stena | Q34: stena | R34: stena
B35: 029 | C35: 3.5 | D35: 3.5 | E35: 3.05 | F35: 3.05 | G35: 0.05 | H35: 0.05 | I35: 9.1875 | J35: 9.1875 | K35: 10.0625 | L35: 10.0625 | M35: stena | N35: stena | O35: stena | P35: stena | Q35: stena | R35: stena
B36: 030 | C36: 4.5 | D36: 4.5 | E36: 4.05 | F36: 4.05 | G36: 0.05 | H36: 0.05 | I36: 9.1875 | J36: 9.1875 | K36: 10.0625 | L36: 10.0625 | M36: stena | N36: stena | O36: stena | P36: stena | Q36: stena | R36: stena
B37: 031 | C37: 0.5 | D37: 0.5 | E37: 0.05 | F37: 0.05 | G37: 0.05 | H37: 0.05 | I37: 10.9375 | J37: 10.9375 | K37: 11.8125 | L37: 11.8125 | M37: stena | N37: stena | O37: stena | P37: stena | Q37: stena | R37: stena
B38: 032 | C38: 1.5 | D38: 1.5 | E38: 1.05 | F38: 1.05 | G38: 0.05 | H38: 0.05 | I38: 10.9375 | J38: 10.9375 | K38: 11.8125 | L38: 11.8125 | M38: stena | N38: stena | O38: stena | P38: stena | Q38: stena | R38: stena
B39: 033 | C39: 2.5 | D39: =SUBSTITUTE(C39,",",".") -> 2.5 | E39: 2.05 | F39: =SUBSTITUTE(E39,",",".") -> 2.05 | G39: 0.05 | H39: 0.05 | I39: 10.9375 | J39: =SUBSTITUTE(I39,",",".") -> 10.9375 | K39: 11.8125 | L39: 11.8125 | M39: =IF($I$3="ano",IF(AND(C39>$J$3,C39<$K$3,I39>$N$3,I39<$O$3),"otvor","stena"),"stena") -> stena | N39: =IF($I$4="ano",IF(AND(C39>$J$4,C39<$K$4,I39>$N$4,I39<$O$4),"otvor","stena"),"stena") -> stena | O39: stena | P39: =IF($I$3="ano",IF(AND(E39>$J$3,E39<$K$3,K39>$N$3,K39<$O$3),"otvor","stena"),"stena") -> stena | Q39: =IF($I$4="ano",IF(AND(E39>$J$4,E39<$K$4,K39>$N$4,K39<$O$4),"otvor","stena"),"stena") -> stena | R39: stena
B40: 034 | C40: =IF(C39>=($C$2-$G$2),$G$2/2,C39+$G$2) -> 3.5 | D40: 3.5 | E40: 3.05 | F40: 3.05 | G40: 0.05 | H40: 0.05 | I40: 10.9375 | J40: 10.9375 | K40: 11.8125 | L40: 11.8125 | M40: stena | N40: stena | O40: stena | P40: stena | Q40: stena | R40: stena
B41: 035 | C41: 4.5 | D41: 4.5 | E41: 4.05 | F41: 4.05 | G41: 0.05 | H41: 0.05 | I41: 10.9375 | J41: 10.9375 | K41: 11.8125 | L41: 11.8125 | M41: stena | N41: stena | O41: stena | P41: stena | Q41: stena | R41: stena
B42: 036 | C42: 0.5 | D42: 0.5 | E42: 0.05 | F42: 0.05 | G42: 0.05 | H42: 0.05 | I42: 12.6875 | J42: 12.6875 | K42: 13.5625 | L42: 13.5625 | M42: stena | N42: stena | O42: stena | P42: stena | Q42: stena | R42: stena
B43: 037 | C43: 1.5 | D43: 1.5 | E43: 1.05 | F43: 1.05 | G43: 0.05 | H43: 0.05 | I43: 12.6875 | J43: 12.6875 | K43: 13.5625 | L43: 13.5625 | M43: stena | N43: stena | O43: stena | P43: stena | Q43: stena | R43: stena
B44: 038 | C44: 2.5 | D44: 2.5 | E44: 2.05 | F44: 2.05 | G44: 0.05 | H44: 0.05 | I44: 12.6875 | J44: 12.6875 | K44: 13.5625 | L44: 13.5625 | M44: stena | N44: stena | O44: stena | P44: stena | Q44: stena | R44: stena
B45: 039 | C45: 3.5 | D45: 3.5 | E45: 3.05 | F45: 3.05 | G45: 0.05 | H45: 0.05 | I45: 12.6875 | J45: 12.6875 | K45: 13.5625 | L45: 13.5625 | M45: stena | N45: stena | O45: stena | P45: stena | Q45: stena | R45: stena
B46: 040 | C46: 4.5 | D46: 4.5 | E46: 4.05 | F46: 4.05 | G46: =G45 -> 0.05 | H46: 0.05 | I46: 12.6875 | J46: 12.6875 | K46: 13.5625 | L46: 13.5625 | M46: stena | N46: stena | O46: stena | P46: stena | Q46: stena | R46: stena
B47: 041 | C47: 0.5 | D47: 0.5 | E47: 0.05 | F47: 0.05 | G47: 0.05 | H47: 0.05 | I47: 14.4375 | J47: 14.4375 | K47: 15.3125 | L47: 15.3125 | M47: stena | N47: stena | O47: stena | P47: stena | Q47: stena | R47: stena
B48: 042 | C48: 1.5 | D48: 1.5 | E48: 1.05 | F48: 1.05 | G48: 0.05 | H48: 0.05 | I48: 14.4375 | J48: 14.4375 | K48: 15.3125 | L48: 15.3125 | M48: stena | N48: stena | O48: stena | P48: stena | Q48: stena | R48: stena
B49: 043 | C49: 2.5 | D49: 2.5 | E49: 2.05 | F49: 2.05 | G49: 0.05 | H49: 0.05 | I49: 14.4375 | J49: 14.4375 | K49: 15.3125 | L49: 15.3125 | M49: stena | N49: stena | O49: stena | P49: stena | Q49: stena | R49: stena
B50: 044 | C50: 3.5 | D50: 3.5 | E50: 3.05 | F50: 3.05 | G50: 0.05 | H50: 0.05 | I50: 14.4375 | J50: 14.4375 | K50: 15.3125 | L50: 15.3125 | M50: stena | N50: stena | O50: stena | P50: stena | Q50: stena | R50: stena
B51: 045 | C51: 4.5 | D51: 4.5 | E51: 4.05 | F51: 4.05 | G51: 0.05 | H51: 0.05 | I51: 14.4375 | J51: 14.4375 | K51: 15.3125 | L51: 15.3125 | M51: stena | N51: stena | O51: stena | P51: stena | Q51: stena | R51: stena
B52: 046 | C52: 0.5 | D52: 0.5 | E52: 0.05 | F52: 0.05 | G52: 0.05 | H52: 0.05 | I52: 16.1875 | J52: 16.1875 | K52: 17.0625 | L52: 17.0625 | M52: stena | N52: stena | O52: stena | P52: stena | Q52: stena | R52: stena
B53: 047 | C53: 1.5 | D53: 1.5 | E53: 1.05 | F53: 1.05 | G53: 0.05 | H53: 0.05 | I53: 16.1875 | J53: 16.1875 | K53: 17.0625 | L53: 17.0625 | M53: stena | N53: stena | O53: stena | P53: stena | Q53: stena | R53: stena
B54: 048 | C54: 2.5 | D54: 2.5 | E54: 2.05 | F54: 2.05 | G54: 0.05 | H54: 0.05 | I54: 16.1875 | J54: 16.1875 | K54: 17.0625 | L54: 17.0625 | M54: stena | N54: stena | O54: stena | P54: stena | Q54: stena | R54: stena
B55: 049 | C55: 3.5 | D55: 3.5 | E55: 3.05 | F55: 3.05 | G55: 0.05 | H55: 0.05 | I55: 16.1875 | J55: 16.1875 | K55: 17.0625 | L55: 17.0625 | M55: stena | N55: stena | O55: stena | P55: stena | Q55: stena | R55: stena
B56: 050 | C56: 4.5 | D56: 4.5 | E56: 4.05 | F56: 4.05 | G56: 0.05 | H56: 0.05 | I56: 16.1875 | J56: 16.1875 | K56: 17.0625 | L56: 17.0625 | M56: stena | N56: stena | O56: stena | P56: stena | Q56: stena | R56: stena
B57: 051 | C57: 0.5 | D57: =SUBSTITUTE(C57,",",".") -> 0.5 | E57: 0.05 | F57: =SUBSTITUTE(E57,",",".") -> 0.05 | G57: =G56 -> 0.05 | H57: 0.05 | I57: 17.9375 | J57: =SUBSTITUTE(I57,",",".") -> 17.9375 | K57: 18.8125 | L57: 18.8125 | M57: stena | N57: stena | O57: stena | P57: stena | Q57: stena | R57: stena
B58: 052 | C58: 1.5 | D58: 1.5 | E58: 1.05 | F58: 1.05 | G58: 0.05 | H58: 0.05 | I58: 17.9375 | J58: 17.9375 | K58: 18.8125 | L58: 18.8125 | M58: stena | N58: stena | O58: stena | P58: stena | Q58: stena | R58: stena
B59: 053 | C59: 2.5 | D59: 2.5 | E59: 2.05 | F59: 2.05 | G59: 0.05 | H59: 0.05 | I59: 17.9375 | J59: 17.9375 | K59: 18.8125 | L59: 18.8125 | M59: stena | N59: stena | O59: stena | P59: stena | Q59: stena | R59: stena
B60: 054 | C60: 3.5 | D60: 3.5 | E60: 3.05 | F60: 3.05 | G60: 0.05 | H60: 0.05 | I60: 17.9375 | J60: 17.9375 | K60: 18.8125 | L60: 18.8125 | M60: stena | N60: stena | O60: stena | P60: stena | Q60: stena | R60: stena
B61: 055 | C61: 4.5 | D61: 4.5 | E61: 4.05 | F61: 4.05 | G61: 0.05 | H61: 0.05 | I61: 17.9375 | J61: 17.9375 | K61: 18.8125 | L61: 18.8125 | M61: stena | N61: stena | O61: stena | P61: stena | Q61: stena | R61: stena
B62: 056 | C62: 0.5 | D62: 0.5 | E62: 0.05 | F62: 0.05 | G62: 0.05 | H62: 0.05 | I62: 19.6875 | J62: 19.6875 | K62: 20.5625 | L62: 20.5625 | M62: stena | N62: stena | O62: stena | P62: stena | Q62: stena | R62: stena
B63: 057 | C63: 1.5 | D63: 1.5 | E63: 1.05 | F63: 1.05 | G63: 0.05 | H63: 0.05 | I63: 19.6875 | J63: 19.6875 | K63: 20.5625 | L63: 20.5625 | M63: stena | N63: stena | O63: stena | P63: stena | Q63: stena | R63: stena
B64: 058 | C64: 2.5 | D64: 2.5 | E64: 2.05 | F64: 2.05 | G64: 0.05 | H64: 0.05 | I64: 19.6875 | J64: 19.6875 | K64: 20.5625 | L64: 20.5625 | M64: stena | N64: stena | O64: stena | P64: stena | Q64: stena | R64: stena
B65: 059 | C65: 3.5 | D65: 3.5 | E65: 3.05 | F65: 3.05 | G65: 0.05 | H65: 0.05 | I65: 19.6875 | J65: 19.6875 | K65: 20.5625 | L65: 20.5625 | M65: stena | N65: stena | O65: stena | P65: stena | Q65: stena | R65: stena
B66: 060 | C66: 4.5 | D66: 4.5 | E66: 4.05 | F66: 4.05 | G66: 0.05 | H66: 0.05 | I66: 19.6875 | J66: 19.6875 | K66: 20.5625 | L66: 20.5625 | M66: stena | N66: stena | O66: stena | P66: stena | Q66: stena | R66: stena
B67: 061 | C67: 0.5 | D67: 0.5 | E67: 0.05 | F67: 0.05 | G67: 0.05 | H67: 0.05 | I67: 21.4375 | J67: 21.4375 | K67: 22.3125 | L67: 22.3125 | M67: stena | N67: stena | O67: stena | P67: stena | Q67: stena | R67: stena
B68: 062 | C68: 1.5 | D68: 1.5 | E68: 1.05 | F68: 1.05 | G68: 0.05 | H68: 0.05 | I68: 21.4375 | J68: 21.4375 | K68: 22.3125 | L68: 22.3125 | M68: stena | N68: stena | O68: stena | P68: stena | Q68: stena | R68: stena
B69: 063 | C69: 2.5 | D69: 2.5 | E69: 2.05 | F69: 2.05 | G69: 0.05 | H69: 0.05 | I69: 21.4375 | J69: 21.4375 | K69: 22.3125 | L69: 22.3125 | M69: stena | N69: stena | O69: stena | P69: stena | Q69: stena | R69: stena
B70: 064 | C70: 3.5 | D70: 3.5 | E70: 3.05 | F70: 3.05 | G70: 0.05 | H70: 0.05 | I70: 21.4375 | J70: 21.4375 | K70: 22.3125 | L70: 22.3125 | M70: stena | N70: stena | O70: stena | P70: stena | Q70: stena | R70: stena
B71: 065 | C71: 4.5 | D71: 4.5 | E71: 4.05 | F71: 4.05 | G71: 0.05 | H71: 0.05 | I71: 21.4375 | J71: 21.4375 | K71: 22.3125 | L71: 22.3125 | M71: =IF($I$3="ano",IF(AND(C71>$J$3,C71<$K$3,I71>$N$3,I71<$O$3),"otvor","stena"),"stena") -> stena | N71: =IF($I$4="ano",IF(AND(C71>$J$4,C71<$K$4,I71>$N$4,I71<$O$4),"otvor","stena"),"stena") -> stena | O71: stena | P71: =IF($I$3="ano",IF(AND(E71>$J$3,E71<$K$3,K71>$N$3,K71<$O$3),"otvor","stena"),"stena") -> stena | Q71: =IF($I$4="ano",IF(AND(E71>$J$4,E71<$K$4,K71>$N$4,K71<$O$4),"otvor","stena"),"stena") -> stena | R71: =IF(OR(P71="otvor",Q71="otvor"),"otvor","stena") -> stena
B72: 066 | C72: =IF(C71>=($C$2-$G$2),$G$2/2,C71+$G$2) -> 0.5 | D72: 0.5 | E72: 0.05 | F72: 0.05 | G72: 0.05 | H72: =SUBSTITUTE(G72,",",".") -> 0.05 | I72: 23.1875 | J72: 23.1875 | K72: 24.0625 | L72: 24.0625 | M72: stena | N72: stena | O72: stena | P72: stena | Q72: stena | R72: stena | S72: =IF(AND(C72>$M$2,I72>$O$2),IF(O72="stena",IF(I72>$C$4,"",CONCATENATE("&FIRE ID = 'F.",$E$2,".1.",B72,"' COMP_ID = '",$E$2,"', FIRE_ID = 'FP.",$E$2,".X.",J72,"' LOCATION = ",D72,", ",H72," IGNITION_CRITERION = 'TEMPERATURE', DEVC_ID = 'T.",$E$2,".1.",B72,"', SETPOINT = ",$R$4," /")),""),"") ->  | T72: =IF(AND(E72>$M$2,K72>$O$2),IF(R72="stena",IF(K72>$C$4,"",CONCATENATE("&FIRE ID = 'F.",$E$2,".2.",B72,"' COMP_ID = '",$E$2,"', FIRE_ID = 'FP.",$E$2,".X.",L72,"' LOCATION = ",F72,", ",H72," IGNITION_CRITERION = 'TEMPERATURE', DEVC_ID = 'T.",$E$2,".2.",B72,"', SETPOINT = ",$R$4," /")),""),"") ->  | U72: =IF(S72="","",IF(O72="stena",IF(I72>$C$4,"",CONCATENATE("&DEVC ID = 'T.",$E$2,".1.",B72,"' COMP_ID = '",$E$2,"' LOCATION = ",D72,", ",H72,", ",J72," TYPE = '",$P$3,"' MATL_ID = '",$P$2,"' SURFACE_ORIENTATION = '",$P$4,"' THICKNESS = ",$R$2," TEMPERATURE_DEPTH = ",$R$3," DEPTH_UNITS = 'M' /")),"")) ->  | V72: =IF(T72="","",IF(R72="stena",IF(K72>$C$4,"",CONCATENATE("&DEVC ID = 'T.",$E$2,".2.",B72,"' COMP_ID = '",$E$2,"' LOCATION = ",F72,", ",H72,", ",L72," TYPE = '",$P$3,"' MATL_ID = '",$P$2,"' SURFACE_ORIENTATION = '",$P$4,"' THICKNESS = ",$R$2," TEMPERATURE_DEPTH = ",$R$3," DEPTH_UNITS = 'M' /")),"")) -> 
B73: 067 | C73: 1.5 | D73: 1.5 | E73: 1.05 | F73: 1.05 | G73: 0.05 | H73: 0.05 | I73: =IF(C73=$G$2/2,I72+$G$3*2,I72) -> 23.1875 | J73: 23.1875 | K73: =IF(E73=$E$3,K72+$G$3*2,K72) -> 24.0625 | L73: =SUBSTITUTE(K73,",",".") -> 24.0625 | M73: stena | N73: stena | O73: stena | P73: stena | Q73: stena | R73: stena
B74: =RIGHT("00"&ROW(A68),3) -> 068 | C74: 2.5 | D74: 2.5 | E74: =IF(E73>=($C$2-$G$2),$E$3,E73+$G$2) -> 2.05 | F74: 2.05 | G74: 0.05 | H74: 0.05 | I74: 23.1875 | J74: 23.1875 | K74: 24.0625 | L74: 24.0625 | M74: stena | N74: stena | O74: stena | P74: stena | Q74: stena | R74: stena
B75: 069 | C75: 3.5 | D75: 3.5 | E75: 3.05 | F75: 3.05 | G75: 0.05 | H75: 0.05 | I75: 23.1875 | J75: 23.1875 | K75: 24.0625 | L75: 24.0625 | M75: stena | N75: stena | O75: stena | P75: stena | Q75: stena | R75: stena
B76: 070 | C76: 4.5 | D76: 4.5 | E76: 4.05 | F76: 4.05 | G76: 0.05 | H76: 0.05 | I76: 23.1875 | J76: 23.1875 | K76: 24.0625 | L76: 24.0625 | M76: stena | N76: stena | O76: stena | P76: stena | Q76: stena | R76: stena
B77: 071 | C77: 0.5 | D77: 0.5 | E77: 0.05 | F77: 0.05 | G77: 0.05 | H77: 0.05 | I77: 24.9375 | J77: 24.9375 | K77: 25.8125 | L77: 25.8125 | M77: stena | N77: stena | O77: =IF(OR(M77="otvor",N77="otvor"),"otvor","stena") -> stena | P77: stena | Q77: stena | R77: stena
B78: 072 | C78: 1.5 | D78: 1.5 | E78: 1.05 | F78: 1.05 | G78: 0.05 | H78: 0.05 | I78: 24.9375 | J78: 24.9375 | K78: 25.8125 | L78: 25.8125 | M78: stena | N78: stena | O78: stena | P78: stena | Q78: stena | R78: stena
B79: 073 | C79: 2.5 | D79: 2.5 | E79: 2.05 | F79: 2.05 | G79: 0.05 | H79: 0.05 | I79: 24.9375 | J79: 24.9375 | K79: 25.8125 | L79: 25.8125 | M79: stena | N79: stena | O79: stena | P79: stena | Q79: stena | R79: stena
B80: 074 | C80: 3.5 | D80: 3.5 | E80: 3.05 | F80: 3.05 | G80: 0.05 | H80: 0.05 | I80: 24.9375 | J80: 24.9375 | K80: 25.8125 | L80: 25.8125 | M80: stena | N80: stena | O80: stena | P80: stena | Q80: stena | R80: stena
B81: 075 | C81: 4.5 | D81: 4.5 | E81: 4.05 | F81: 4.05 | G81: 0.05 | H81: 0.05 | I81: 24.9375 | J81: 24.9375 | K81: 25.8125 | L81: 25.8125 | M81: stena | N81: stena | O81: stena | P81: stena | Q81: stena | R81: stena
B82: 076 | C82: 0.5 | D82: 0.5 | E82: 0.05 | F82: 0.05 | G82: 0.05 | H82: 0.05 | I82: 26.6875 | J82: 26.6875 | K82: 27.5625 | L82: 27.5625 | M82: stena | N82: stena | O82: stena | P82: stena | Q82: stena | R82: stena
B83: 077 | C83: 1.5 | D83: 1.5 | E83: 1.05 | F83: 1.05 | G83: 0.05 | H83: 0.05 | I83: 26.6875 | J83: 26.6875 | K83: 27.5625 | L83: 27.5625 | M83: stena | N83: stena | O83: stena | P83: stena | Q83: stena | R83: stena
B84: 078 | C84: 2.5 | D84: 2.5 | E84: 2.05 | F84: 2.05 | G84: 0.05 | H84: 0.05 | I84: 26.6875 | J84: 26.6875 | K84: 27.5625 | L84: 27.5625 | M84: stena | N84: stena | O84: stena | P84: stena | Q84: stena | R84: stena
B85: 079 | C85: 3.5 | D85: 3.5 | E85: 3.05 | F85: 3.05 | G85: 0.05 | H85: 0.05 | I85: 26.6875 | J85: 26.6875 | K85: 27.5625 | L85: 27.5625 | M85: stena | N85: stena | O85: stena | P85: stena | Q85: stena | R85: stena
B86: 080 | C86: 4.5 | D86: 4.5 | E86: 4.05 | F86: 4.05 | G86: 0.05 | H86: 0.05 | I86: 26.6875 | J86: 26.6875 | K86: 27.5625 | L86: 27.5625 | M86: stena | N86: stena | O86: stena | P86: stena | Q86: stena | R86: stena
B87: 081 | C87: 0.5 | D87: 0.5 | E87: 0.05 | F87: 0.05 | G87: 0.05 | H87: 0.05 | I87: 28.4375 | J87: 28.4375 | K87: 29.3125 | L87: 29.3125 | M87: stena | N87: stena | O87: stena | P87: stena | Q87: stena | R87: stena
B88: 082 | C88: 1.5 | D88: 1.5 | E88: 1.05 | F88: 1.05 | G88: 0.05 | H88: 0.05 | I88: 28.4375 | J88: 28.4375 | K88: 29.3125 | L88: 29.3125 | M88: stena | N88: stena | O88: stena | P88: stena | Q88: stena | R88: stena
B89: 083 | C89: 2.5 | D89: 2.5 | E89: 2.05 | F89: 2.05 | G89: 0.05 | H89: 0.05 | I89: 28.4375 | J89: 28.4375 | K89: 29.3125 | L89: 29.3125 | M89: stena | N89: stena | O89: stena | P89: stena | Q89: stena | R89: stena
B90: 084 | C90: 3.5 | D90: 3.5 | E90: 3.05 | F90: 3.05 | G90: 0.05 | H90: 0.05 | I90: 28.4375 | J90: 28.4375 | K90: 29.3125 | L90: 29.3125 | M90: stena | N90: stena | O90: stena | P90: stena | Q90: stena | R90: stena
B91: 085 | C91: 4.5 | D91: 4.5 | E91: 4.05 | F91: 4.05 | G91: 0.05 | H91: 0.05 | I91: 28.4375 | J91: 28.4375 | K91: 29.3125 | L91: 29.3125 | M91: stena | N91: stena | O91: stena | P91: stena | Q91: stena | R91: stena
B92: 086 | C92: 0.5 | D92: 0.5 | E92: 0.05 | F92: 0.05 | G92: 0.05 | H92: 0.05 | I92: 30.1875 | J92: 30.1875 | K92: 31.0625 | L92: 31.0625 | M92: stena | N92: stena | O92: stena | P92: stena | Q92: stena | R92: stena
B93: 087 | C93: 1.5 | D93: 1.5 | E93: 1.05 | F93: 1.05 | G93: 0.05 | H93: 0.05 | I93: 30.1875 | J93: 30.1875 | K93: 31.0625 | L93: 31.0625 | M93: stena | N93: stena | O93: stena | P93: stena | Q93: stena | R93: stena
B94: 088 | C94: 2.5 | D94: 2.5 | E94: 2.05 | F94: 2.05 | G94: 0.05 | H94: 0.05 | I94: 30.1875 | J94: 30.1875 | K94: 31.0625 | L94: 31.0625 | M94: stena | N94: stena | O94: stena | P94: stena | Q94: stena | R94: stena
B95: 089 | C95: 3.5 | D95: 3.5 | E95: 3.05 | F95: 3.05 | G95: 0.05 | H95: 0.05 | I95: 30.1875 | J95: 30.1875 | K95: 31.0625 | L95: 31.0625 | M95: stena | N95: stena | O95: stena | P95: stena | Q95: stena | R95: stena
B96: 090 | C96: 4.5 | D96: 4.5 | E96: 4.05 | F96: 4.05 | G96: 0.05 | H96: 0.05 | I96: 30.1875 | J96: 30.1875 | K96: 31.0625 | L96: 31.0625 | M96: stena | N96: stena | O96: stena | P96: stena | Q96: stena | R96: stena
B97: 091 | C97: 0.5 | D97: 0.5 | E97: 0.05 | F97: 0.05 | G97: 0.05 | H97: 0.05 | I97: 31.9375 | J97: 31.9375 | K97: 32.8125 | L97: 32.8125 | M97: stena | N97: stena | O97: stena | P97: stena | Q97: stena | R97: stena
B98: 092 | C98: 1.5 | D98: 1.5 | E98: 1.05 | F98: 1.05 | G98: 0.05 | H98: 0.05 | I98: 31.9375 | J98: 31.9375 | K98: 32.8125 | L98: 32.8125 | M98: stena | N98: stena | O98: stena | P98: stena | Q98: stena | R98: stena
B99: 093 | C99: 2.5 | D99: =SUBSTITUTE(C99,",",".") -> 2.5 | E99: 2.05 | F99: =SUBSTITUTE(E99,",",".") -> 2.05 | G99: 0.05 | H99: 0.05 | I99: 31.9375 | J99: =SUBSTITUTE(I99,",",".") -> 31.9375 | K99: 32.8125 | L99: 32.8125 | M99: stena | N99: stena | O99: stena | P99: stena | Q99: stena | R99: stena
B100: 094 | C100: 3.5 | D100: 3.5 | E100: 3.05 | F100: 3.05 | G100: =G99 -> 0.05 | H100: 0.05 | I100: 31.9375 | J100: 31.9375 | K100: 32.8125 | L100: 32.8125 | M100: stena | N100: stena | O100: stena | P100: stena | Q100: stena | R100: stena
B101: 095 | C101: 4.5 | D101: 4.5 | E101: 4.05 | F101: 4.05 | G101: 0.05 | H101: 0.05 | I101: 31.9375 | J101: 31.9375 | K101: 32.8125 | L101: 32.8125 | M101: stena | N101: stena | O101: stena | P101: stena | Q101: stena | R101: stena
B102: 096 | C102: 0.5 | D102: 0.5 | E102: 0.05 | F102: 0.05 | G102: 0.05 | H102: 0.05 | I102: 33.6875 | J102: 33.6875 | K102: 34.5625 | L102: 34.5625 | M102: stena | N102: stena | O102: stena | P102: stena | Q102: stena | R102: stena
B103: 097 | C103: 1.5 | D103: =SUBSTITUTE(C103,",",".") -> 1.5 | E103: 1.05 | F103: =SUBSTITUTE(E103,",",".") -> 1.05 | G103: 0.05 | H103: 0.05 | I103: 33.6875 | J103: =SUBSTITUTE(I103,",",".") -> 33.6875 | K103: 34.5625 | L103: 34.5625 | M103: stena | N103: stena | O103: stena | P103: stena | Q103: stena | R103: stena
B104: 098 | C104: 2.5 | D104: 2.5 | E104: 2.05 | F104: 2.05 | G104: 0.05 | H104: 0.05 | I104: 33.6875 | J104: 33.6875 | K104: 34.5625 | L104: 34.5625 | M104: stena | N104: stena | O104: stena | P104: stena | Q104: stena | R104: stena
B105: 099 | C105: 3.5 | D105: 3.5 | E105: 3.05 | F105: 3.05 | G105: 0.05 | H105: 0.05 | I105: 33.6875 | J105: 33.6875 | K105: 34.5625 | L105: 34.5625 | M105: stena | N105: stena | O105: stena | P105: stena | Q105: stena | R105: stena
B106: 100 | C106: 4.5 | D106: 4.5 | E106: 4.05 | F106: 4.05 | G106: 0.05 | H106: 0.05 | I106: 33.6875 | J106: 33.6875 | K106: 34.5625 | L106: 34.5625 | M106: stena | N106: stena | O106: stena | P106: stena | Q106: stena | R106: stena
B107: 101 | C107: 0.5 | D107: =SUBSTITUTE(C107,",",".") -> 0.5 | E107: 0.05 | F107: =SUBSTITUTE(E107,",",".") -> 0.05 | G107: 0.05 | H107: =SUBSTITUTE(G107,",",".") -> 0.05 | I107: 35.4375 | J107: =SUBSTITUTE(I107,",",".") -> 35.4375 | K107: 36.3125 | L107: =SUBSTITUTE(K107,",",".") -> 36.3125 | M107: stena | N107: stena | O107: =IF(OR(M107="otvor",N107="otvor"),"otvor","stena") -> stena | P107: stena | Q107: stena | R107: =IF(OR(P107="otvor",Q107="otvor"),"otvor","stena") -> stena
O108: =IF(O107="stena","ok","pozor") -> ok | R108: =IF(R107="stena","ok","pozor") -> ok | S108: =IF(S107="","ok","pozor") -> ok | T108: =IF(T107="","ok","pozor") -> ok

Sheet Fire Devc B
B2: x | C2: =zadani!G7 -> 5 | D2: místno. | E2: =zadani!G6 -> C1 | F2: hrana y | G2: =C3/zadani!G17 -> 1 | H2: STRANA B | M2: =zadani!G10 -> 0 | N2: =zadani!G11 -> 0 | O2: =zadani!G12 -> 0 | P2: =zadani!G38 -> M1 | Q2: =zadani!G41 -> 0.015 | R2: =SUBSTITUTE(Q2,",",".") -> 0.015
B3: y | C3: =zadani!G8 -> 10 | D3: odstup | E3: =zadani!G13 -> 0.05 | F3: hrana z | G3: =C4/zadani!G18 -> 0.875 | H3: otvor 1 | I3: =zadani!L10 -> ne | J3: =zadani!M10 -> - | K3: =zadani!N10 -> - | L3: =zadani!O10 -> 0 | M3: =zadani!P10 -> 0 | N3: =zadani!Q10 -> 0 | O3: =zadani!R10 -> 0 | P3: =zadani!G39 -> PLATE | Q3: =zadani!G42 -> 0 | R3: =SUBSTITUTE(Q3,",",".") -> 0
B4: z | C4: =zadani!G9 -> 3.5 | D4: vše ok? | E4: =IF(AND(O108="ok",R108="ok",S108="ok",T108="ok"),"ok","pozor") -> ok | H4: otvor 2 | I4: =zadani!L11 -> ne | J4: =zadani!M11 -> - | K4: =zadani!N11 -> - | L4: =zadani!O11 -> 0 | M4: =zadani!P11 -> 0 | N4: =zadani!Q11 -> 0 | O4: =zadani!R11 -> 0 | P4: =zadani!G40 -> FLOOR | Q4: =zadani!C42 -> 250 | R4: =SUBSTITUTE(Q4,",",".") -> 250
B6: pořad. číslo | C6: X | E6: Y lichá | G6: Y sudá | I6: Z lichá | K6: Z sudá | M6: otvor 1 lichy | N6: otvor 2 lichy | O6: otvory liche | P6: otvor 1 sudy | Q6: otvor 2 sudy | R6: otvory sude
B7: =RIGHT("00"&ROW(A1),3) -> 001 | C7: =C2-E3 -> 4.95 | D7: =SUBSTITUTE(C7,",",".") -> 4.95 | E7: =G2/2 -> 0.5 | F7: =SUBSTITUTE(E7,",",".") -> 0.5 | G7: =E3 -> 0.05 | H7: =SUBSTITUTE(G7,",",".") -> 0.05 | I7: =G3/2 -> 0.4375 | J7: =SUBSTITUTE(I7,",",".") -> 0.4375 | K7: =$G$3*1.5 -> 1.3125 | L7: =SUBSTITUTE(K7,",",".") -> 1.3125 | M7: =IF($I$3="ano",IF(AND(E7>$L$3,E7<$M$3,I7>$N$3,I7<$O$3),"otvor","stena"),"stena") -> stena | N7: =IF($I$4="ano",IF(AND(E7>$L$4,E7<$M$4,I7>$N$4,I7<$O$4),"otvor","stena"),"stena") -> stena | O7: =IF(OR(M7="otvor",N7="otvor"),"otvor","stena") -> stena | P7: =IF($I$3="ano",IF(AND(G7>$L$3,G7<$M$3,K7>$N$3,K7<$O$3),"otvor","stena"),"stena") -> stena | Q7: =IF($I$4="ano",IF(AND(G7>$L$4,G7<$M$4,K7>$N$4,K7<$O$4),"otvor","stena"),"stena") -> stena | R7: =IF(OR(P7="otvor",Q7="otvor"),"otvor","stena") -> stena | S7: =IF(AND(F7>$N$2,I7>$O$2),IF(O7="stena",IF(I7>$C$4,"",CONCATENATE("&FIRE ID = 'F.",$E$2,".3.",B7,"' COMP_ID = '",$E$2,"', FIRE_ID = 'FP.",$E$2,".Y.",J7,"' LOCATION = ",D7,", ",F7," IGNITION_CRITERION = 'TEMPERATURE', DEVC_ID = 'T.",$E$2,".3.",B7,"', SETPOINT = ",$R$4," /")),""),"") -> &FIRE ID = 'F.C1.3.001' COMP_ID = 'C1', FIRE_ID = 'FP.C1.Y.0.4375' LOCATION = 4.95, 0.5 IGNITION_CRITERION = 'TEMPERATURE', DEVC_ID = 'T.C1.3.001', SETPOINT = 250 / | T7: =IF(AND(G7>$N$2,K7>$O$2),IF(R7="stena",IF(K7>$C$4,"",CONCATENATE("&FIRE ID = 'F.",$E$2,".4.",B7,"' COMP_ID = '",$E$2,"', FIRE_ID = 'FP.",$E$2,".Y.",L7,"' LOCATION = ",D7,", ",H7," IGNITION_CRITERION = 'TEMPERATURE', DEVC_ID = 'T.",$E$2,".4.",B7,"', SETPOINT = ",$R$4," /")),""),"") -> &FIRE ID = 'F.C1.4.001' COMP_ID = 'C1', FIRE_ID = 'FP.C1.Y.1.3125' LOCATION = 4.95, 0.05 IGNITION_CRITERION = 'TEMPERATURE', DEVC_ID = 'T.C1.4.001', SETPOINT = 250 / | U7: =IF(S7="","",IF(O7="stena",IF(I7>$C$4,"",CONCATENATE("&DEVC ID = 'T.",$E$2,".3.",B7,"' COMP_ID = '",$E$2,"' LOCATION = ",D7,", ",F7,", ",J7," TYPE = '",$P$3,"' MATL_ID = '",$P$2,"' SURFACE_ORIENTATION = '",$P$4,"' THICKNESS = ",$R$2," TEMPERATURE_DEPTH = ",$R$3," DEPTH_UNITS = 'M' /")),"")) -> &DEVC ID = 'T.C1.3.001' COMP_ID = 'C1' LOCATION = 4.95, 0.5, 0.4375 TYPE = 'PLATE' MATL_ID = 'M1' SURFACE_ORIENTATION = 'FLOOR' THICKNESS = 0.015 TEMPERATURE_DEPTH = 0 DEPTH_UNITS = 'M' / | V7: =IF(T7="","",IF(R7="stena",IF(K7>$C$4,"",CONCATENATE("&DEVC ID = 'T.",$E$2,".4.",B7,"' COMP_ID = '",$E$2,"' LOCATION = ",D7,", ",H7,", ",L7," TYPE = '",$P$3,"' MATL_ID = '",$P$2,"' SURFACE_ORIENTATION = '",$P$4,"' THICKNESS = ",$R$2," TEMPERATURE_DEPTH = ",$R$3," DEPTH_UNITS = 'M' /")),"")) -> &DEVC ID = 'T.C1.4.001' COMP_ID = 'C1' LOCATION = 4.95, 0.05, 1.3125 TYPE = 'PLATE' MATL_ID = 'M1' SURFACE_ORIENTATION = 'FLOOR' THICKNESS = 0.015 TEMPERATURE_DEPTH = 0 DEPTH_UNITS = 'M' /
B8: =RIGHT("00"&ROW(A2),3) -> 002 | C8: =$C$7 -> 4.95 | D8: 4.95 | E8: =IF(E7>=($C$3-$G$2/2),$G$2/2,E7+$G$2) -> 1.5 | F8: 1.5 | G8: =IF(E7>=($C$3-$G$2),$E$3,$G$2+G7) -> 1.05 | H8: =SUBSTITUTE(G8,",",".") -> 1.05 | I8: =IF(E8=$G$2/2,I7+$G$3*2,I7) -> 0.4375 | J8: 0.4375 | K8: =IF(G8=$E$3,K7+$G$3*2,K7) -> 1.3125 | L8: =SUBSTITUTE(K8,",",".") -> 1.3125 | M8: =IF($I$3="ano",IF(AND(E8>$L$3,E8<$M$3,I8>$N$3,I8<$O$3),"otvor","stena"),"stena") -> stena | N8: =IF($I$4="ano",IF(AND(E8>$L$4,E8<$M$4,I8>$N$4,I8<$O$4),"otvor","stena"),"stena") -> stena | O8: stena | P8: =IF($I$3="ano",IF(AND(G8>$L$3,G8<$M$3,K8>$N$3,K8<$O$3),"otvor","stena"),"stena") -> stena | Q8: =IF($I$4="ano",IF(AND(G8>$L$4,G8<$M$4,K8>$N$4,K8<$O$4),"otvor","stena"),"stena") -> stena | R8: stena | S8: =IF(AND(F8>$N$2,I8>$O$2),IF(O8="stena",IF(I8>$C$4,"",CONCATENATE("&FIRE ID = 'F.",$E$2,".3.",B8,"' COMP_ID = '",$E$2,"', FIRE_ID = 'FP.",$E$2,".Y.",J8,"' LOCATION = ",D8,", ",F8," IGNITION_CRITERION = 'TEMPERATURE', DEVC_ID = 'T.",$E$2,".3.",B8,"', SETPOINT = ",$R$4," /")),""),"") -> &FIRE ID = 'F.C1.3.002' COMP_ID = 'C1', FIRE_ID = 'FP.C1.Y.0.4375' LOCATION = 4.95, 1.5 IGNITION_CRITERION = 'TEMPERATURE', DEVC_ID = 'T.C1.3.002', SETPOINT = 250 / | T8: =IF(AND(G8>$N$2,K8>$O$2),IF(R8="stena",IF(K8>$C$4,"",CONCATENATE("&FIRE ID = 'F.",$E$2,".4.",B8,"' COMP_ID = '",$E$2,"', FIRE_ID = 'FP.",$E$2,".Y.",L8,"' LOCATION = ",D8,", ",H8," IGNITION_CRITERION = 'TEMPERATURE', DEVC_ID = 'T.",$E$2,".4.",B8,"', SETPOINT = ",$R$4," /")),""),"") -> &FIRE ID = 'F.C1.4.002' COMP_ID = 'C1', FIRE_ID = 'FP.C1.Y.1.3125' LOCATION = 4.95, 1.05 IGNITION_CRITERION = 'TEMPERATURE', DEVC_ID = 'T.C1.4.002', SETPOINT = 250 / | U8: =IF(S8="","",IF(O8="stena",IF(I8>$C$4,"",CONCATENATE("&DEVC ID = 'T.",$E$2,".3.",B8,"' COMP_ID = '",$E$2,"' LOCATION = ",D8,", ",F8,", ",J8," TYPE = '",$P$3,"' MATL_ID = '",$P$2,"' SURFACE_ORIENTATION = '",$P$4,"' THICKNESS = ",$R$2," TEMPERATURE_DEPTH = ",$R$3," DEPTH_UNITS = 'M' /")),"")) -> &DEVC ID = 'T.C1.3.002' COMP_ID = 'C1' LOCATION = 4.95, 1.5, 0.4375 TYPE = 'PLATE' MATL_ID = 'M1' SURFACE_ORIENTATION = 'FLOOR' THICKNESS = 0.015 TEMPERATURE_DEPTH = 0 DEPTH_UNITS = 'M' / | V8: =IF(T8="","",IF(R8="stena",IF(K8>$C$4,"",CONCATENATE("&DEVC ID = 'T.",$E$2,".4.",B8,"' COMP_ID = '",$E$2,"' LOCATION = ",D8,", ",H8,", ",L8," TYPE = '",$P$3,"' MATL_ID = '",$P$2,"' SURFACE_ORIENTATION = '",$P$4,"' THICKNESS = ",$R$2," TEMPERATURE_DEPTH = ",$R$3," DEPTH_UNITS = 'M' /")),"")) -> &DEVC ID = 'T.C1.4.002' COMP_ID = 'C1' LOCATION = 4.95, 1.05, 1.3125 TYPE = 'PLATE' MATL_ID = 'M1' SURFACE_ORIENTATION = 'FLOOR' THICKNESS = 0.015 TEMPERATURE_DEPTH = 0 DEPTH_UNITS = 'M' /
B9: =RIGHT("00"&ROW(A3),3) -> 003 | C9: =$C$7 -> 4.95 | D9: 4.95 | E9: =IF(E8>=($C$3-$G$2/2),$G$2/2,E8+$G$2) -> 2.5 | F9: 2.5 | G9: =IF(E8>=($C$3-$G$2),$E$3,$G$2+G8) -> 2.05 | H9: 2.05 | I9: =IF(E9=$G$2/2,I8+$G$3*2,I8) -> 0.4375 | J9: 0.4375 | K9: =IF(G9=$E$3,K8+$G$3*2,K8) -> 1.3125 | L9: =SUBSTITUTE(K9,",",".") -> 1.3125 | M9: stena | N9: stena | O9: stena | P9: stena | Q9: stena | R9: stena | S9: &FIRE ID = 'F.C1.3.003' COMP_ID = 'C1', FIRE_ID = 'FP.C1.Y.0.4375' LOCATION = 4.95, 2.5 IGNITION_CRITERION = 'TEMPERATURE', DEVC_ID = 'T.C1.3.003', SETPOINT = 250 / | T9: &FIRE ID = 'F.C1.4.003' COMP_ID = 'C1', FIRE_ID = 'FP.C1.Y.1.3125' LOCATION = 4.95, 2.05 IGNITION_CRITERION = 'TEMPERATURE', DEVC_ID = 'T.C1.4.003', SETPOINT = 250 / | U9: &DEVC ID = 'T.C1.3.003' COMP_ID = 'C1' LOCATION = 4.95, 2.5, 0.4375 TYPE = 'PLATE' MATL_ID = 'M1' SURFACE_ORIENTATION = 'FLOOR' THICKNESS = 0.015 TEMPERATURE_DEPTH = 0 DEPTH_UNITS = 'M' / | V9: &DEVC ID = 'T.C1.4.003' COMP_ID = 'C1' LOCATION = 4.95, 2.05, 1.3125 TYPE = 'PLATE' MATL_ID = 'M1' SURFACE_ORIENTATION = 'FLOOR' THICKNESS = 0.015 TEMPERATURE_DEPTH = 0 DEPTH_UNITS = 'M' /
B10: =RIGHT("00"&ROW(A4),3) -> 004 | C10: 4.95 | D10: 4.95 | E10: 3.5 | F10: 3.5 | G10: 3.05 | H10: 3.05 | I10: 0.4375 | J10: 0.4375 | K10: 1.3125 | L10: 1.3125 | M10: stena | N10: stena | O10: stena | P10: stena | Q10: stena | R10: stena | S10: &FIRE ID = 'F.C1.3.004' COMP_ID = 'C1', FIRE_ID = 'FP.C1.Y.0.4375' LOCATION = 4.95, 3.5 IGNITION_CRITERION = 'TEMPERATURE', DEVC_ID = 'T.C1.3.004', SETPOINT = 250 / | T10: &FIRE ID = 'F.C1.4.004' COMP_ID = 'C1', FIRE_ID = 'FP.C1.Y.1.3125' LOCATION = 4.95, 3.05 IGNITION_CRITERION = 'TEMPERATURE', DEVC_ID = 'T.C1.4.004', SETPOINT = 250 / | U10: &DEVC ID = 'T.C1.3.004' COMP_ID = 'C1' LOCATION = 4.95, 3.5, 0.4375 TYPE = 'PLATE' MATL_ID = 'M1' SURFACE_ORIENTATION = 'FLOOR' THICKNESS = 0.015 TEMPERATURE_DEPTH = 0 DEPTH_UNITS = 'M' / | V10: &DEVC ID = 'T.C1.4.004' COMP_ID = 'C1' LOCATION = 4.95, 3.05, 1.3125 TYPE = 'PLATE' MATL_ID = 'M1' SURFACE_ORIENTATION = 'FLOOR' THICKNESS = 0.015 TEMPERATURE_DEPTH = 0 DEPTH_UNITS = 'M' /
B11: 005 | C11: 4.95 | D11: 4.95 | E11: 4.5 | F11: 4.5 | G11: 4.05 | H11: 4.05 | I11: 0.4375 | J11: 0.4375 | K11: 1.3125 | L11: 1.3125 | M11: stena | N11: stena | O11: =IF(OR(M11="otvor",N11="otvor"),"otvor","stena") -> stena | P11: stena | Q11: stena | R11: stena | S11: &FIRE ID = 'F.C1.3.005' COMP_ID = 'C1', FIRE_ID = 'FP.C1.Y.0.4375' LOCATION = 4.95, 4.5 IGNITION_CRITERION = 'TEMPERATURE', DEVC_ID = 'T.C1.3.005', SETPOINT = 250 / | T11: &FIRE ID = 'F.C1.4.005' COMP_ID = 'C1', FIRE_ID = 'FP.C1.Y.1.3125' LOCATION = 4.95, 4.05 IGNITION_CRITERION = 'TEMPERATURE', DEVC_ID = 'T.C1.4.005', SETPOINT = 250 / | U11: &DEVC ID = 'T.C1.3.005' COMP_ID = 'C1' LOCATION = 4.95, 4.5, 0.4375 TYPE = 'PLATE' MATL_ID = 'M1' SURFACE_ORIENTATION = 'FLOOR' THICKNESS = 0.015 TEMPERATURE_DEPTH = 0 DEPTH_UNITS = 'M' / | V11: &DEVC ID = 'T.C1.4.005' COMP_ID = 'C1' LOCATION = 4.95, 4.05, 1.3125 TYPE = 'PLATE' MATL_ID = 'M1' SURFACE_ORIENTATION = 'FLOOR' THICKNESS = 0.015 TEMPERATURE_DEPTH = 0 DEPTH_UNITS = 'M' /
B12: 006 | C12: 4.95 | D12: 4.95 | E12: 5.5 | F12: 5.5 | G12: 5.05 | H12: 5.05 | I12: 0.4375 | J12: 0.4375 | K12: 1.3125 | L12: 1.3125 | M12: stena | N12: stena | O12: =IF(OR(M12="otvor",N12="otvor"),"otvor","stena") -> stena | P12: stena | Q12: stena | R12: stena | S12: &FIRE ID = 'F.C1.3.006' COMP_ID = 'C1', FIRE_ID = 'FP.C1.Y.0.4375' LOCATION = 4.95, 5.5 IGNITION_CRITERION = 'TEMPERATURE', DEVC_ID = 'T.C1.3.006', SETPOINT = 250 / | T12: &FIRE ID = 'F.C1.4.006' COMP_ID = 'C1', FIRE_ID = 'FP.C1.Y.1.3125' LOCATION = 4.95, 5.05 IGNITION_CRITERION = 'TEMPERATURE', DEVC_ID = 'T.C1.4.006', SETPOINT = 250 / | U12: &DEVC ID = 'T.C1.3.006' COMP_ID = 'C1' LOCATION = 4.95, 5.5, 0.4375 TYPE = 'PLATE' MATL_ID = 'M1' SURFACE_ORIENTATION = 'FLOOR' THICKNESS = 0.015 TEMPERATURE_DEPTH = 0 DEPTH_UNITS = 'M' / | V12: &DEVC ID = 'T.C1.4.006' COMP_ID = 'C1' LOCATION = 4.95, 5.05, 1.3125 TYPE = 'PLATE' MATL_ID = 'M1' SURFACE_ORIENTATION = 'FLOOR' THICKNESS = 0.015 TEMPERATURE_DEPTH = 0 DEPTH_UNITS = 'M' /
B13: 007 | C13: 4.95 | D13: 4.95 | E13: 6.5 | F13: 6.5 | G13: 6.05 | H13: 6.05 | I13: 0.4375 | J13: 0.4375 | K13: 1.3125 | L13: 1.3125 | M13: stena | N13: stena | O13: =IF(OR(M13="otvor",N13="otvor"),"otvor","stena") -> stena | P13: stena | Q13: stena | R13: stena | S13: &FIRE ID = 'F.C1.3.007' COMP_ID = 'C1', FIRE_ID = 'FP.C1.Y.0.4375' LOCATION = 4.95, 6.5 IGNITION_CRITERION = 'TEMPERATURE', DEVC_ID = 'T.C1.3.007', SETPOINT = 250 / | T13: &FIRE ID = 'F.C1.4.007' COMP_ID = 'C1', FIRE_ID = 'FP.C1.Y.1.3125' LOCATION = 4.95, 6.05 IGNITION_CRITERION = 'TEMPERATURE', DEVC_ID = 'T.C1.4.007', SETPOINT = 250 / | U13: &DEVC ID = 'T.C1.3.007' COMP_ID = 'C1' LOCATION = 4.95, 6.5, 0.4375 TYPE = 'PLATE' MATL_ID = 'M1' SURFACE_ORIENTATION = 'FLOOR' THICKNESS = 0.015 TEMPERATURE_DEPTH = 0 DEPTH_UNITS = 'M' / | V13: &DEVC ID = 'T.C1.4.007' COMP_ID = 'C1' LOCATION = 4.95, 6.05, 1.3125 TYPE = 'PLATE' MATL_ID = 'M1' SURFACE_ORIENTATION = 'FLOOR' THICKNESS = 0.015 TEMPERATURE_DEPTH = 0 DEPTH_UNITS = 'M' /
B14: 008 | C14: 4.95 | D14: 4.95 | E14: 7.5 | F14: 7.5 | G14: 7.05 | H14: 7.05 | I14: 0.4375 | J14: 0.4375 | K14: 1.3125 | L14: 1.3125 | M14: stena | N14: stena | O14: stena | P14: stena | Q14: stena | R14: stena | S14: &FIRE ID = 'F.C1.3.008' COMP_ID = 'C1', FIRE_ID = 'FP.C1.Y.0.4375' LOCATION = 4.95, 7.5 IGNITION_CRITERION = 'TEMPERATURE', DEVC_ID = 'T.C1.3.008', SETPOINT = 250 / | T14: &FIRE ID = 'F.C1.4.008' COMP_ID = 'C1', FIRE_ID = 'FP.C1.Y.1.3125' LOCATION = 4.95, 7.05 IGNITION_CRITERION = 'TEMPERATURE', DEVC_ID = 'T.C1.4.008', SETPOINT = 250 / | U14: &DEVC ID = 'T.C1.3.008' COMP_ID = 'C1' LOCATION = 4.95, 7.5, 0.4375 TYPE = 'PLATE' MATL_ID = 'M1' SURFACE_ORIENTATION = 'FLOOR' THICKNESS = 0.015 TEMPERATURE_DEPTH = 0 DEPTH_UNITS = 'M' / | V14: &DEVC ID = 'T.C1.4.008' COMP_ID = 'C1' LOCATION = 4.95, 7.05, 1.3125 TYPE = 'PLATE' MATL_ID = 'M1' SURFACE_ORIENTATION = 'FLOOR' THICKNESS = 0.015 TEMPERATURE_DEPTH = 0 DEPTH_UNITS = 'M' /
B15: 009 | C15: 4.95 | D15: 4.95 | E15: 8.5 | F15: 8.5 | G15: 8.05 | H15: 8.05 | I15: 0.4375 | J15: 0.4375 | K15: 1.3125 | L15: 1.3125 | M15: stena | N15: stena | O15: stena | P15: stena | Q15: stena | R15: stena | S15: &FIRE ID = 'F.C1.3.009' COMP_ID = 'C1', FIRE_ID = 'FP.C1.Y.0.4375' LOCATION = 4.95, 8.5 IGNITION_CRITERION = 'TEMPERATURE', DEVC_ID = 'T.C1.3.009', SETPOINT = 250 / | T15: &FIRE ID = 'F.C1.4.009' COMP_ID = 'C1', FIRE_ID = 'FP.C1.Y.1.3125' LOCATION = 4.95, 8.05 IGNITION_CRITERION = 'TEMPERATURE', DEVC_ID = 'T.C1.4.009', SETPOINT = 250 / | U15: &DEVC ID = 'T.C1.3.009' COMP_ID = 'C1' LOCATION = 4.95, 8.5, 0.4375 TYPE = 'PLATE' MATL_ID = 'M1' SURFACE_ORIENTATION = 'FLOOR' THICKNESS = 0.015 TEMPERATURE_DEPTH = 0 DEPTH_UNITS = 'M' / | V15: &DEVC ID = 'T.C1.4.009' COMP_ID = 'C1' LOCATION = 4.95, 8.05, 1.3125 TYPE = 'PLATE' MATL_ID = 'M1' SURFACE_ORIENTATION = 'FLOOR' THICKNESS = 0.015 TEMPERATURE_DEPTH = 0 DEPTH_UNITS = 'M' /
B16: 010 | C16: 4.95 | D16: 4.95 | E16: 9.5 | F16: 9.5 | G16: 9.05 | H16: 9.05 | I16: 0.4375 | J16: 0.4375 | K16: 1.3125 | L16: 1.3125 | M16: stena | N16: stena | O16: stena | P16: stena | Q16: stena | R16: stena | S16: &FIRE ID = 'F.C1.3.010' COMP_ID = 'C1', FIRE_ID = 'FP.C1.Y.0.4375' LOCATION = 4.95, 9.5 IGNITION_CRITERION = 'TEMPERATURE', DEVC_ID = 'T.C1.3.010', SETPOINT = 250 / | T16: &FIRE ID = 'F.C1.4.010' COMP_ID = 'C1', FIRE_ID = 'FP.C1.Y.1.3125' LOCATION = 4.95, 9.05 IGNITION_CRITERION = 'TEMPERATURE', DEVC_ID = 'T.C1.4.010', SETPOINT = 250 / | U16: &DEVC ID = 'T.C1.3.010' COMP_ID = 'C1' LOCATION = 4.95, 9.5, 0.4375 TYPE = 'PLATE' MATL_ID = 'M1' SURFACE_ORIENTATION = 'FLOOR' THICKNESS = 0.015 TEMPERATURE_DEPTH = 0 DEPTH_UNITS = 'M' / | V16: &DEVC ID = 'T.C1.4.010' COMP_ID = 'C1' LOCATION = 4.95, 9.05, 1.3125 TYPE = 'PLATE' MATL_ID = 'M1' SURFACE_ORIENTATION = 'FLOOR' THICKNESS = 0.015 TEMPERATURE_DEPTH = 0 DEPTH_UNITS = 'M' /
B17: 011 | C17: 4.95 | D17: 4.95 | E17: 0.5 | F17: 0.5 | G17: 0.05 | H17: 0.05 | I17: 2.1875 | J17: 2.1875 | K17: 3.0625 | L17: 3.0625 | M17: stena | N17: stena | O17: stena | P17: stena | Q17: stena | R17: stena | S17: &FIRE ID = 'F.C1.3.011' COMP_ID = 'C1', FIRE_ID = 'FP.C1.Y.2.1875' LOCATION = 4.95, 0.5 IGNITION_CRITERION = 'TEMPERATURE', DEVC_ID = 'T.C1.3.011', SETPOINT = 250 / | T17: &FIRE ID = 'F.C1.4.011' COMP_ID = 'C1', FIRE_ID = 'FP.C1.Y.3.0625' LOCATION = 4.95, 0.05 IGNITION_CRITERION = 'TEMPERATURE', DEVC_ID = 'T.C1.4.011', SETPOINT = 250 / | U17: &DEVC ID = 'T.C1.3.011' COMP_ID = 'C1' LOCATION = 4.95, 0.5, 2.1875 TYPE = 'PLATE' MATL_ID = 'M1' SURFACE_ORIENTATION = 'FLOOR' THICKNESS = 0.015 TEMPERATURE_DEPTH = 0 DEPTH_UNITS = 'M' / | V17: &DEVC ID = 'T.C1.4.011' COMP_ID = 'C1' LOCATION = 4.95, 0.05, 3.0625 TYPE = 'PLATE' MATL_ID = 'M1' SURFACE_ORIENTATION = 'FLOOR' THICKNESS = 0.015 TEMPERATURE_DEPTH = 0 DEPTH_UNITS = 'M' /
B18: 012 | C18: 4.95 | D18: 4.95 | E18: 1.5 | F18: 1.5 | G18: 1.05 | H18: 1.05 | I18: 2.1875 | J18: 2.1875 | K18: 3.0625 | L18: 3.0625 | M18: stena | N18: stena | O18: stena | P18: stena | Q18: stena | R18: stena | S18: &FIRE ID = 'F.C1.3.012' COMP_ID = 'C1', FIRE_ID = 'FP.C1.Y.2.1875' LOCATION = 4.95, 1.5 IGNITION_CRITERION = 'TEMPERATURE', DEVC_ID = 'T.C1.3.012', SETPOINT = 250 / | T18: &FIRE ID = 'F.C1.4.012' COMP_ID = 'C1', FIRE_ID = 'FP.C1.Y.3.0625' LOCATION = 4.95, 1.05 IGNITION_CRITERION = 'TEMPERATURE', DEVC_ID = 'T.C1.4.012', SETPOINT = 250 / | U18: &DEVC ID = 'T.C1.3.012' COMP_ID = 'C1' LOCATION = 4.95, 1.5, 2.1875 TYPE = 'PLATE' MATL_ID = 'M1' SURFACE_ORIENTATION = 'FLOOR' THICKNESS = 0.015 TEMPERATURE_DEPTH = 0 DEPTH_UNITS = 'M' / | V18: &DEVC ID = 'T.C1.4.012' COMP_ID = 'C1' LOCATION = 4.95, 1.05, 3.0625 TYPE = 'PLATE' MATL_ID = 'M1' SURFACE_ORIENTATION = 'FLOOR' THICKNESS = 0.015 TEMPERATURE_DEPTH = 0 DEPTH_UNITS = 'M' /
B19: 013 | C19: 4.95 | D19: 4.95 | E19: 2.5 | F19: 2.5 | G19: 2.05 | H19: 2.05 | I19: 2.1875 | J19: 2.1875 | K19: 3.0625 | L19: 3.0625 | M19: stena | N19: =IF($I$4="ano",IF(AND(E19>$L$4,E19<$M$4,I19>$N$4,I19<$O$4),"otvor","stena"),"stena") -> stena | O19: stena | P19: stena | Q19: stena | R19: stena | S19: &FIRE ID = 'F.C1.3.013' COMP_ID = 'C1', FIRE_ID = 'FP.C1.Y.2.1875' LOCATION = 4.95, 2.5 IGNITION_CRITERION = 'TEMPERATURE', DEVC_ID = 'T.C1.3.013', SETPOINT = 250 / | T19: &FIRE ID = 'F.C1.4.013' COMP_ID = 'C1', FIRE_ID = 'FP.C1.Y.3.0625' LOCATION = 4.95, 2.05 IGNITION_CRITERION = 'TEMPERATURE', DEVC_ID = 'T.C1.4.013', SETPOINT = 250 / | U19: &DEVC ID = 'T.C1.3.013' COMP_ID = 'C1' LOCATION = 4.95, 2.5, 2.1875 TYPE = 'PLATE' MATL_ID = 'M1' SURFACE_ORIENTATION = 'FLOOR' THICKNESS = 0.015 TEMPERATURE_DEPTH = 0 DEPTH_UNITS = 'M' / | V19: &DEVC ID = 'T.C1.4.013' COMP_ID = 'C1' LOCATION = 4.95, 2.05, 3.0625 TYPE = 'PLATE' MATL_ID = 'M1' SURFACE_ORIENTATION = 'FLOOR' THICKNESS = 0.015 TEMPERATURE_DEPTH = 0 DEPTH_UNITS = 'M' /
B20: 014 | C20: 4.95 | D20: 4.95 | E20: 3.5 | F20: 3.5 | G20: 3.05 | H20: 3.05 | I20: 2.1875 | J20: 2.1875 | K20: 3.0625 | L20: 3.0625 | M20: stena | N20: stena | O20: stena | P20: stena | Q20: stena | R20: stena | S20: &FIRE ID = 'F.C1.3.014' COMP_ID = 'C1', FIRE_ID = 'FP.C1.Y.2.1875' LOCATION = 4.95, 3.5 IGNITION_CRITERION = 'TEMPERATURE', DEVC_ID = 'T.C1.3.014', SETPOINT = 250 / | T20: &FIRE ID = 'F.C1.4.014' COMP_ID = 'C1', FIRE_ID = 'FP.C1.Y.3.0625' LOCATION = 4.95, 3.05 IGNITION_CRITERION = 'TEMPERATURE', DEVC_ID = 'T.C1.4.014', SETPOINT = 250 / | U20: &DEVC ID = 'T.C1.3.014' COMP_ID = 'C1' LOCATION = 4.95, 3.5, 2.1875 TYPE = 'PLATE' MATL_ID = 'M1' SURFACE_ORIENTATION = 'FLOOR' THICKNESS = 0.015 TEMPERATURE_DEPTH = 0 DEPTH_UNITS = 'M' / | V20: &DEVC ID = 'T.C1.4.014' COMP_ID = 'C1' LOCATION = 4.95, 3.05, 3.0625 TYPE = 'PLATE' MATL_ID = 'M1' SURFACE_ORIENTATION = 'FLOOR' THICKNESS = 0.015 TEMPERATURE_DEPTH = 0 DEPTH_UNITS = 'M' /
B21: 015 | C21: 4.95 | D21: 4.95 | E21: 4.5 | F21: 4.5 | G21: 4.05 | H21: 4.05 | I21: 2.1875 | J21: 2.1875 | K21: 3.0625 | L21: 3.0625 | M21: stena | N21: stena | O21: stena | P21: stena | Q21: stena | R21: stena | S21: &FIRE ID = 'F.C1.3.015' COMP_ID = 'C1', FIRE_ID = 'FP.C1.Y.2.1875' LOCATION = 4.95, 4.5 IGNITION_CRITERION = 'TEMPERATURE', DEVC_ID = 'T.C1.3.015', SETPOINT = 250 / | T21: &FIRE ID = 'F.C1.4.015' COMP_ID = 'C1', FIRE_ID = 'FP.C1.Y.3.0625' LOCATION = 4.95, 4.05 IGNITION_CRITERION = 'TEMPERATURE', DEVC_ID = 'T.C1.4.015', SETPOINT = 250 / | U21: &DEVC ID = 'T.C1.3.015' COMP_ID = 'C1' LOCATION = 4.95, 4.5, 2.1875 TYPE = 'PLATE' MATL_ID = 'M1' SURFACE_ORIENTATION = 'FLOOR' THICKNESS = 0.015 TEMPERATURE_DEPTH = 0 DEPTH_UNITS = 'M' / | V21: &DEVC ID = 'T.C1.4.015' COMP_ID = 'C1' LOCATION = 4.95, 4.05, 3.0625 TYPE = 'PLATE' MATL_ID = 'M1' SURFACE_ORIENTATION = 'FLOOR' THICKNESS = 0.015 TEMPERATURE_DEPTH = 0 DEPTH_UNITS = 'M' /
B22: 016 | C22: 4.95 | D22: 4.95 | E22: 5.5 | F22: 5.5 | G22: 5.05 | H22: 5.05 | I22: 2.1875 | J22: 2.1875 | K22: 3.0625 | L22: 3.0625 | M22: stena | N22: stena | O22: stena | P22: stena | Q22: stena | R22: stena | S22: &FIRE ID = 'F.C1.3.016' COMP_ID = 'C1', FIRE_ID = 'FP.C1.Y.2.1875' LOCATION = 4.95, 5.5 IGNITION_CRITERION = 'TEMPERATURE', DEVC_ID = 'T.C1.3.016', SETPOINT = 250 / | T22: &FIRE ID = 'F.C1.4.016' COMP_ID = 'C1', FIRE_ID = 'FP.C1.Y.3.0625' LOCATION = 4.95, 5.05 IGNITION_CRITERION = 'TEMPERATURE', DEVC_ID = 'T.C1.4.016', SETPOINT = 250 / | U22: &DEVC ID = 'T.C1.3.016' COMP_ID = 'C1' LOCATION = 4.95, 5.5, 2.1875 TYPE = 'PLATE' MATL_ID = 'M1' SURFACE_ORIENTATION = 'FLOOR' THICKNESS = 0.015 TEMPERATURE_DEPTH = 0 DEPTH_UNITS = 'M' / | V22: &DEVC ID = 'T.C1.4.016' COMP_ID = 'C1' LOCATION = 4.95, 5.05, 3.0625 TYPE = 'PLATE' MATL_ID = 'M1' SURFACE_ORIENTATION = 'FLOOR' THICKNESS = 0.015 TEMPERATURE_DEPTH = 0 DEPTH_UNITS = 'M' /
B23: 017 | C23: 4.95 | D23: 4.95 | E23: 6.5 | F23: 6.5 | G23: 6.05 | H23: 6.05 | I23: 2.1875 | J23: 2.1875 | K23: 3.0625 | L23: 3.0625 | M23: stena | N23: stena | O23: stena | P23: stena | Q23: stena | R23: stena | S23: &FIRE ID = 'F.C1.3.017' COMP_ID = 'C1', FIRE_ID = 'FP.C1.Y.2.1875' LOCATION = 4.95, 6.5 IGNITION_CRITERION = 'TEMPERATURE', DEVC_ID = 'T.C1.3.017', SETPOINT = 250 / | T23: &FIRE ID = 'F.C1.4.017' COMP_ID = 'C1', FIRE_ID = 'FP.C1.Y.3.0625' LOCATION = 4.95, 6.05 IGNITION_CRITERION = 'TEMPERATURE', DEVC_ID = 'T.C1.4.017', SETPOINT = 250 / | U23: &DEVC ID = 'T.C1.3.017' COMP_ID = 'C1' LOCATION = 4.95, 6.5, 2.1875 TYPE = 'PLATE' MATL_ID = 'M1' SURFACE_ORIENTATION = 'FLOOR' THICKNESS = 0.015 TEMPERATURE_DEPTH = 0 DEPTH_UNITS = 'M' / | V23: &DEVC ID = 'T.C1.4.017' COMP_ID = 'C1' LOCATION = 4.95, 6.05, 3.0625 TYPE = 'PLATE' MATL_ID = 'M1' SURFACE_ORIENTATION = 'FLOOR' THICKNESS = 0.015 TEMPERATURE_DEPTH = 0 DEPTH_UNITS = 'M' /
B24: 018 | C24: 4.95 | D24: 4.95 | E24: 7.5 | F24: 7.5 | G24: 7.05 | H24: 7.05 | I24: 2.1875 | J24: 2.1875 | K24: 3.0625 | L24: 3.0625 | M24: stena | N24: stena | O24: stena | P24: stena | Q24: stena | R24: stena | S24: &FIRE ID = 'F.C1.3.018' COMP_ID = 'C1', FIRE_ID = 'FP.C1.Y.2.1875' LOCATION = 4.95, 7.5 IGNITION_CRITERION = 'TEMPERATURE', DEVC_ID = 'T.C1.3.018', SETPOINT = 250 / | T24: &FIRE ID = 'F.C1.4.018' COMP_ID = 'C1', FIRE_ID = 'FP.C1.Y.3.0625' LOCATION = 4.95, 7.05 IGNITION_CRITERION = 'TEMPERATURE', DEVC_ID = 'T.C1.4.018', SETPOINT = 250 / | U24: &DEVC ID = 'T.C1.3.018' COMP_ID = 'C1' LOCATION = 4.95, 7.5, 2.1875 TYPE = 'PLATE' MATL_ID = 'M1' SURFACE_ORIENTATION = 'FLOOR' THICKNESS = 0.015 TEMPERATURE_DEPTH = 0 DEPTH_UNITS = 'M' / | V24: &DEVC ID = 'T.C1.4.018' COMP_ID = 'C1' LOCATION = 4.95, 7.05, 3.0625 TYPE = 'PLATE' MATL_ID = 'M1' SURFACE_ORIENTATION = 'FLOOR' THICKNESS = 0.015 TEMPERATURE_DEPTH = 0 DEPTH_UNITS = 'M' /
B25: 019 | C25: 4.95 | D25: 4.95 | E25: 8.5 | F25: 8.5 | G25: 8.05 | H25: 8.05 | I25: 2.1875 | J25: 2.1875 | K25: 3.0625 | L25: 3.0625 | M25: stena | N25: stena | O25: stena | P25: stena | Q25: stena | R25: stena | S25: &FIRE ID = 'F.C1.3.019' COMP_ID = 'C1', FIRE_ID = 'FP.C1.Y.2.1875' LOCATION = 4.95, 8.5 IGNITION_CRITERION = 'TEMPERATURE', DEVC_ID = 'T.C1.3.019', SETPOINT = 250 / | T25: &FIRE ID = 'F.C1.4.019' COMP_ID = 'C1', FIRE_ID = 'FP.C1.Y.3.0625' LOCATION = 4.95, 8.05 IGNITION_CRITERION = 'TEMPERATURE', DEVC_ID = 'T.C1.4.019', SETPOINT = 250 / | U25: &DEVC ID = 'T.C1.3.019' COMP_ID = 'C1' LOCATION = 4.95, 8.5, 2.1875 TYPE = 'PLATE' MATL_ID = 'M1' SURFACE_ORIENTATION = 'FLOOR' THICKNESS = 0.015 TEMPERATURE_DEPTH = 0 DEPTH_UNITS = 'M' / | V25: &DEVC ID = 'T.C1.4.019' COMP_ID = 'C1' LOCATION = 4.95, 8.05, 3.0625 TYPE = 'PLATE' MATL_ID = 'M1' SURFACE_ORIENTATION = 'FLOOR' THICKNESS = 0.015 TEMPERATURE_DEPTH = 0 DEPTH_UNITS = 'M' /
B26: 020 | C26: 4.95 | D26: 4.95 | E26: 9.5 | F26: 9.5 | G26: 9.05 | H26: 9.05 | I26: 2.1875 | J26: 2.1875 | K26: 3.0625 | L26: 3.0625 | M26: stena | N26: stena | O26: stena | P26: stena | Q26: stena | R26: stena | S26: &FIRE ID = 'F.C1.3.020' COMP_ID = 'C1', FIRE_ID = 'FP.C1.Y.2.1875' LOCATION = 4.95, 9.5 IGNITION_CRITERION = 'TEMPERATURE', DEVC_ID = 'T.C1.3.020', SETPOINT = 250 / | T26: &FIRE ID = 'F.C1.4.020' COMP_ID = 'C1', FIRE_ID = 'FP.C1.Y.3.0625' LOCATION = 4.95, 9.05 IGNITION_CRITERION = 'TEMPERATURE', DEVC_ID = 'T.C1.4.020', SETPOINT = 250 / | U26: &DEVC ID = 'T.C1.3.020' COMP_ID = 'C1' LOCATION = 4.95, 9.5, 2.1875 TYPE = 'PLATE' MATL_ID = 'M1' SURFACE_ORIENTATION = 'FLOOR' THICKNESS = 0.015 TEMPERATURE_DEPTH = 0 DEPTH_UNITS = 'M' / | V26: &DEVC ID = 'T.C1.4.020' COMP_ID = 'C1' LOCATION = 4.95, 9.05, 3.0625 TYPE = 'PLATE' MATL_ID = 'M1' SURFACE_ORIENTATION = 'FLOOR' THICKNESS = 0.015 TEMPERATURE_DEPTH = 0 DEPTH_UNITS = 'M' /
B27: 021 | C27: 4.95 | D27: 4.95 | E27: 0.5 | F27: 0.5 | G27: 0.05 | H27: 0.05 | I27: 3.9375 | J27: 3.9375 | K27: 4.8125 | L27: 4.8125 | M27: stena | N27: stena | O27: stena | P27: stena | Q27: stena | R27: stena
B28: 022 | C28: 4.95 | D28: 4.95 | E28: 1.5 | F28: 1.5 | G28: 1.05 | H28: 1.05 | I28: 3.9375 | J28: 3.9375 | K28: 4.8125 | L28: 4.8125 | M28: stena | N28: stena | O28: stena | P28: stena | Q28: stena | R28: stena
B29: 023 | C29: 4.95 | D29: 4.95 | E29: 2.5 | F29: 2.5 | G29: 2.05 | H29: 2.05 | I29: 3.9375 | J29: 3.9375 | K29: 4.8125 | L29: 4.8125 | M29: stena | N29: stena | O29: stena | P29: stena | Q29: stena | R29: stena
B30: 024 | C30: 4.95 | D30: 4.95 | E30: 3.5 | F30: 3.5 | G30: 3.05 | H30: 3.05 | I30: 3.9375 | J30: 3.9375 | K30: 4.8125 | L30: 4.8125 | M30: stena | N30: stena | O30: stena | P30: stena | Q30: stena | R30: stena
B31: 025 | C31: 4.95 | D31: 4.95 | E31: 4.5 | F31: 4.5 | G31: 4.05 | H31: 4.05 | I31: 3.9375 | J31: 3.9375 | K31: 4.8125 | L31: 4.8125 | M31: stena | N31: stena | O31: stena | P31: stena | Q31: stena | R31: stena
B32: 026 | C32: 4.95 | D32: 4.95 | E32: 5.5 | F32: 5.5 | G32: 5.05 | H32: 5.05 | I32: 3.9375 | J32: 3.9375 | K32: 4.8125 | L32: 4.8125 | M32: stena | N32: stena | O32: stena | P32: stena | Q32: stena | R32: stena
B33: 027 | C33: 4.95 | D33: 4.95 | E33: 6.5 | F33: 6.5 | G33: 6.05 | H33: 6.05 | I33: 3.9375 | J33: 3.9375 | K33: 4.8125 | L33: 4.8125 | M33: stena | N33: stena | O33: stena | P33: stena | Q33: stena | R33: stena
B34: 028 | C34: 4.95 | D34: 4.95 | E34: 7.5 | F34: 7.5 | G34: 7.05 | H34: 7.05 | I34: 3.9375 | J34: 3.9375 | K34: 4.8125 | L34: 4.8125 | M34: stena | N34: stena | O34: stena | P34: stena | Q34: stena | R34: stena
B35: 029 | C35: 4.95 | D35: 4.95 | E35: 8.5 | F35: 8.5 | G35: 8.05 | H35: 8.05 | I35: 3.9375 | J35: 3.9375 | K35: 4.8125 | L35: 4.8125 | M35: stena | N35: stena | O35: stena | P35: stena | Q35: stena | R35: stena
B36: 030 | C36: 4.95 | D36: 4.95 | E36: 9.5 | F36: 9.5 | G36: 9.05 | H36: 9.05 | I36: 3.9375 | J36: 3.9375 | K36: 4.8125 | L36: 4.8125 | M36: stena | N36: stena | O36: stena | P36: stena | Q36: stena | R36: stena
B37: 031 | C37: 4.95 | D37: 4.95 | E37: 0.5 | F37: 0.5 | G37: 0.05 | H37: 0.05 | I37: 5.6875 | J37: 5.6875 | K37: 6.5625 | L37: 6.5625 | M37: stena | N37: stena | O37: stena | P37: stena | Q37: stena | R37: stena
B38: 032 | C38: 4.95 | D38: 4.95 | E38: 1.5 | F38: 1.5 | G38: 1.05 | H38: 1.05 | I38: 5.6875 | J38: 5.6875 | K38: 6.5625 | L38: 6.5625 | M38: stena | N38: stena | O38: stena | P38: stena | Q38: stena | R38: stena
B39: 033 | C39: 4.95 | D39: 4.95 | E39: 2.5 | F39: 2.5 | G39: 2.05 | H39: 2.05 | I39: 5.6875 | J39: 5.6875 | K39: 6.5625 | L39: 6.5625 | M39: stena | N39: stena | O39: stena | P39: stena | Q39: stena | R39: stena
B40: 034 | C40: 4.95 | D40: 4.95 | E40: 3.5 | F40: 3.5 | G40: 3.05 | H40: 3.05 | I40: 5.6875 | J40: 5.6875 | K40: 6.5625 | L40: 6.5625 | M40: stena | N40: stena | O40: stena | P40: stena | Q40: stena | R40: stena
B41: 035 | C41: 4.95 | D41: 4.95 | E41: 4.5 | F41: 4.5 | G41: 4.05 | H41: 4.05 | I41: 5.6875 | J41: 5.6875 | K41: 6.5625 | L41: 6.5625 | M41: stena | N41: stena | O41: stena | P41: stena | Q41: stena | R41: stena
B42: 036 | C42: 4.95 | D42: 4.95 | E42: 5.5 | F42: 5.5 | G42: 5.05 | H42: 5.05 | I42: 5.6875 | J42: 5.6875 | K42: 6.5625 | L42: 6.5625 | M42: stena | N42: stena | O42: stena | P42: stena | Q42: stena | R42: stena
B43: 037 | C43: 4.95 | D43: 4.95 | E43: 6.5 | F43: 6.5 | G43: 6.05 | H43: 6.05 | I43: 5.6875 | J43: 5.6875 | K43: 6.5625 | L43: 6.5625 | M43: stena | N43: stena | O43: stena | P43: stena | Q43: stena | R43: stena
B44: 038 | C44: 4.95 | D44: 4.95 | E44: 7.5 | F44: 7.5 | G44: 7.05 | H44: 7.05 | I44: 5.6875 | J44: 5.6875 | K44: 6.5625 | L44: 6.5625 | M44: stena | N44: stena | O44: stena | P44: stena | Q44: stena | R44: stena
B45: 039 | C45: 4.95 | D45: 4.95 | E45: 8.5 | F45: 8.5 | G45: 8.05 | H45: 8.05 | I45: 5.6875 | J45: 5.6875 | K45: 6.5625 | L45: 6.5625 | M45: stena | N45: stena | O45: stena | P45: stena | Q45: stena | R45: stena
B46: 040 | C46: 4.95 | D46: 4.95 | E46: 9.5 | F46: 9.5 | G46: 9.05 | H46: 9.05 | I46: 5.6875 | J46: 5.6875 | K46: 6.5625 | L46: 6.5625 | M46: stena | N46: stena | O46: stena | P46: stena | Q46: stena | R46: stena
B47: 041 | C47: 4.95 | D47: 4.95 | E47: 0.5 | F47: 0.5 | G47: 0.05 | H47: 0.05 | I47: 7.4375 | J47: 7.4375 | K47: 8.3125 | L47: 8.3125 | M47: stena | N47: stena | O47: stena | P47: stena | Q47: stena | R47: stena
B48: 042 | C48: 4.95 | D48: 4.95 | E48: 1.5 | F48: 1.5 | G48: 1.05 | H48: 1.05 | I48: 7.4375 | J48: 7.4375 | K48: 8.3125 | L48: 8.3125 | M48: stena | N48: stena | O48: stena | P48: stena | Q48: stena | R48: stena
B49: 043 | C49: 4.95 | D49: 4.95 | E49: 2.5 | F49: 2.5 | G49: 2.05 | H49: 2.05 | I49: 7.4375 | J49: 7.4375 | K49: 8.3125 | L49: 8.3125 | M49: stena | N49: stena | O49: stena | P49: stena | Q49: stena | R49: stena
B50: 044 | C50: 4.95 | D50: 4.95 | E50: 3.5 | F50: 3.5 | G50: 3.05 | H50: 3.05 | I50: 7.4375 | J50: 7.4375 | K50: 8.3125 | L50: 8.3125 | M50: stena | N50: stena | O50: stena | P50: stena | Q50: stena | R50: stena
B51: 045 | C51: 4.95 | D51: 4.95 | E51: 4.5 | F51: 4.5 | G51: 4.05 | H51: 4.05 | I51: 7.4375 | J51: 7.4375 | K51: 8.3125 | L51: 8.3125 | M51: stena | N51: stena | O51: stena | P51: stena | Q51: stena | R51: stena
B52: 046 | C52: 4.95 | D52: 4.95 | E52: 5.5 | F52: 5.5 | G52: 5.05 | H52: 5.05 | I52: 7.4375 | J52: 7.4375 | K52: 8.3125 | L52: 8.3125 | M52: stena | N52: stena | O52: stena | P52: stena | Q52: stena | R52: stena
B53: 047 | C53: 4.95 | D53: 4.95 | E53: 6.5 | F53: 6.5 | G53: 6.05 | H53: 6.05 | I53: 7.4375 | J53: 7.4375 | K53: 8.3125 | L53: 8.3125 | M53: stena | N53: stena | O53: stena | P53: stena | Q53: stena | R53: stena
B54: 048 | C54: 4.95 | D54: 4.95 | E54: 7.5 | F54: 7.5 | G54: 7.05 | H54: 7.05 | I54: 7.4375 | J54: 7.4375 | K54: 8.3125 | L54: 8.3125 | M54: stena | N54: stena | O54: stena | P54: stena | Q54: stena | R54: stena
B55: 049 | C55: 4.95 | D55: 4.95 | E55: 8.5 | F55: 8.5 | G55: 8.05 | H55: 8.05 | I55: 7.4375 | J55: 7.4375 | K55: 8.3125 | L55: 8.3125 | M55: stena | N55: stena | O55: stena | P55: stena | Q55: stena | R55: stena
B56: 050 | C56: 4.95 | D56: 4.95 | E56: 9.5 | F56: 9.5 | G56: 9.05 | H56: 9.05 | I56: 7.4375 | J56: 7.4375 | K56: 8.3125 | L56: 8.3125 | M56: stena | N56: stena | O56: stena | P56: stena | Q56: stena | R56: stena
B57: 051 | C57: 4.95 | D57: 4.95 | E57: 0.5 | F57: 0.5 | G57: 0.05 | H57: 0.05 | I57: 9.1875 | J57: 9.1875 | K57: 10.0625 | L57: 10.0625 | M57: stena | N57: stena | O57: stena | P57: stena | Q57: stena | R57: stena
B58: 052 | C58: 4.95 | D58: 4.95 | E58: 1.5 | F58: 1.5 | G58: 1.05 | H58: 1.05 | I58: 9.1875 | J58: 9.1875 | K58: 10.0625 | L58: 10.0625 | M58: stena | N58: stena | O58: stena | P58: stena | Q58: stena | R58: stena
B59: 053 | C59: 4.95 | D59: 4.95 | E59: 2.5 | F59: 2.5 | G59: 2.05 | H59: 2.05 | I59: 9.1875 | J59: 9.1875 | K59: 10.0625 | L59: 10.0625 | M59: stena | N59: stena | O59: stena | P59: stena | Q59: stena | R59: stena
B60: 054 | C60: 4.95 | D60: 4.95 | E60: 3.5 | F60: 3.5 | G60: 3.05 | H60: 3.05 | I60: 9.1875 | J60: 9.1875 | K60: 10.0625 | L60: 10.0625 | M60: stena | N60: stena | O60: stena | P60: stena | Q60: stena | R60: stena
B61: 055 | C61: 4.95 | D61: 4.95 | E61: 4.5 | F61: 4.5 | G61: 4.05 | H61: 4.05 | I61: 9.1875 | J61: 9.1875 | K61: 10.0625 | L61: 10.0625 | M61: stena | N61: stena | O61: stena | P61: stena | Q61: stena | R61: stena
B62: 056 | C62: 4.95 | D62: 4.95 | E62: 5.5 | F62: 5.5 | G62: 5.05 | H62: 5.05 | I62: 9.1875 | J62: 9.1875 | K62: 10.0625 | L62: 10.0625 | M62: stena | N62: stena | O62: stena | P62: stena | Q62: stena | R62: stena
B63: 057 | C63: 4.95 | D63: 4.95 | E63: 6.5 | F63: 6.5 | G63: 6.05 | H63: 6.05 | I63: 9.1875 | J63: 9.1875 | K63: 10.0625 | L63: 10.0625 | M63: stena | N63: stena | O63: stena | P63: stena | Q63: stena | R63: stena
B64: 058 | C64: 4.95 | D64: 4.95 | E64: 7.5 | F64: 7.5 | G64: 7.05 | H64: 7.05 | I64: 9.1875 | J64: 9.1875 | K64: 10.0625 | L64: 10.0625 | M64: stena | N64: stena | O64: stena | P64: stena | Q64: stena | R64: stena
B65: 059 | C65: 4.95 | D65: 4.95 | E65: 8.5 | F65: 8.5 | G65: 8.05 | H65: 8.05 | I65: 9.1875 | J65: 9.1875 | K65: 10.0625 | L65: 10.0625 | M65: stena | N65: stena | O65: stena | P65: stena | Q65: stena | R65: stena
B66: 060 | C66: 4.95 | D66: 4.95 | E66: 9.5 | F66: 9.5 | G66: 9.05 | H66: 9.05 | I66: 9.1875 | J66: 9.1875 | K66: 10.0625 | L66: 10.0625 | M66: stena | N66: stena | O66: stena | P66: stena | Q66: stena | R66: stena
B67: 061 | C67: 4.95 | D67: 4.95 | E67: 0.5 | F67: 0.5 | G67: 0.05 | H67: 0.05 | I67: 10.9375 | J67: 10.9375 | K67: 11.8125 | L67: 11.8125 | M67: stena | N67: stena | O67: stena | P67: stena | Q67: stena | R67: stena
B68: 062 | C68: 4.95 | D68: 4.95 | E68: 1.5 | F68: 1.5 | G68: 1.05 | H68: 1.05 | I68: 10.9375 | J68: 10.9375 | K68: 11.8125 | L68: 11.8125 | M68: stena | N68: stena | O68: stena | P68: stena | Q68: stena | R68: stena
B69: 063 | C69: 4.95 | D69: 4.95 | E69: 2.5 | F69: 2.5 | G69: 2.05 | H69: 2.05 | I69: 10.9375 | J69: 10.9375 | K69: 11.8125 | L69: 11.8125 | M69: stena | N69: stena | O69: stena | P69: stena | Q69: stena | R69: stena
B70: 064 | C70: 4.95 | D70: 4.95 | E70: 3.5 | F70: 3.5 | G70: 3.05 | H70: 3.05 | I70: 10.9375 | J70: 10.9375 | K70: 11.8125 | L70: 11.8125 | M70: stena | N70: stena | O70: stena | P70: stena | Q70: stena | R70: stena
B71: 065 | C71: 4.95 | D71: =SUBSTITUTE(C71,",",".") -> 4.95 | E71: 4.5 | F71: =SUBSTITUTE(E71,",",".") -> 4.5 | G71: 4.05 | H71: 4.05 | I71: 10.9375 | J71: =SUBSTITUTE(I71,",",".") -> 10.9375 | K71: 11.8125 | L71: 11.8125 | M71: stena | N71: stena | O71: stena | P71: stena | Q71: stena | R71: =IF(OR(P71="otvor",Q71="otvor"),"otvor","stena") -> stena
B72: 066 | C72: 4.95 | D72: 4.95 | E72: 5.5 | F72: 5.5 | G72: 5.05 | H72: =SUBSTITUTE(G72,",",".") -> 5.05 | I72: 10.9375 | J72: 10.9375 | K72: 11.8125 | L72: 11.8125 | M72: =IF($I$3="ano",IF(AND(E72>$L$3,E72<$M$3,I72>$N$3,I72<$O$3),"otvor","stena"),"stena") -> stena | N72: =IF($I$4="ano",IF(AND(E72>$L$4,E72<$M$4,I72>$N$4,I72<$O$4),"otvor","stena"),"stena") -> stena | O72: stena | P72: =IF($I$3="ano",IF(AND(G72>$L$3,G72<$M$3,K72>$N$3,K72<$O$3),"otvor","stena"),"stena") -> stena | Q72: =IF($I$4="ano",IF(AND(G72>$L$4,G72<$M$4,K72>$N$4,K72<$O$4),"otvor","stena"),"stena") -> stena | R72: stena | S72: =IF(AND(F72>$N$2,I72>$O$2),IF(O72="stena",IF(I72>$C$4,"",CONCATENATE("&FIRE ID = 'F.",$E$2,".3.",B72,"' COMP_ID = '",$E$2,"', FIRE_ID = 'FP.",$E$2,".Y.",J72,"' LOCATION = ",D72,", ",F72," IGNITION_CRITERION = 'TEMPERATURE', DEVC_ID = 'T.",$E$2,".3.",B72,"', SETPOINT = ",$R$4," /")),""),"") ->  | T72: =IF(AND(G72>$N$2,K72>$O$2),IF(R72="stena",IF(K72>$C$4,"",CONCATENATE("&FIRE ID = 'F.",$E$2,".4.",B72,"' COMP_ID = '",$E$2,"', FIRE_ID = 'FP.",$E$2,".Y.",L72,"' LOCATION = ",D72,", ",H72," IGNITION_CRITERION = 'TEMPERATURE', DEVC_ID = 'T.",$E$2,".4.",B72,"', SETPOINT = ",$R$4," /")),""),"") ->  | U72: =IF(S72="","",IF(O72="stena",IF(I72>$C$4,"",CONCATENATE("&DEVC ID = 'T.",$E$2,".3.",B72,"' COMP_ID = '",$E$2,"' LOCATION = ",D72,", ",F72,", ",J72," TYPE = '",$P$3,"' MATL_ID = '",$P$2,"' SURFACE_ORIENTATION = '",$P$4,"' THICKNESS = ",$R$2," TEMPERATURE_DEPTH = ",$R$3," DEPTH_UNITS = 'M' /")),"")) ->  | V72: =IF(T72="","",IF(R72="stena",IF(K72>$C$4,"",CONCATENATE("&DEVC ID = 'T.",$E$2,".4.",B72,"' COMP_ID = '",$E$2,"' LOCATION = ",D72,", ",H72,", ",L72," TYPE = '",$P$3,"' MATL_ID = '",$P$2,"' SURFACE_ORIENTATION = '",$P$4,"' THICKNESS = ",$R$2," TEMPERATURE_DEPTH = ",$R$3," DEPTH_UNITS = 'M' /")),"")) -> 
B73: 067 | C73: =$C$7 -> 4.95 | D73: 4.95 | E73: =IF(E72>=($C$3-$G$2/2),$G$2/2,E72+$G$2) -> 6.5 | F73: 6.5 | G73: =IF(E72>=($C$3-$G$2),$E$3,$G$2+G72) -> 6.05 | H73: 6.05 | I73: =IF(E73=$G$2/2,I72+$G$3*2,I72) -> 10.9375 | J73: 10.9375 | K73: =IF(G73=$E$3,K72+$G$3*2,K72) -> 11.8125 | L73: =SUBSTITUTE(K73,",",".") -> 11.8125 | M73: stena | N73: stena | O73: stena | P73: stena | Q73: stena | R73: stena
B74: =RIGHT("00"&ROW(A68),3) -> 068 | C74: 4.95 | D74: 4.95 | E74: 7.5 | F74: 7.5 | G74: 7.05 | H74: 7.05 | I74: 10.9375 | J74: 10.9375 | K74: 11.8125 | L74: 11.8125 | M74: stena | N74: stena | O74: stena | P74: stena | Q74: stena | R74: stena
B75: 069 | C75: 4.95 | D75: 4.95 | E75: 8.5 | F75: 8.5 | G75: 8.05 | H75: 8.05 | I75: 10.9375 | J75: 10.9375 | K75: 11.8125 | L75: 11.8125 | M75: stena | N75: stena | O75: stena | P75: stena | Q75: stena | R75: stena
B76: 070 | C76: 4.95 | D76: 4.95 | E76: 9.5 | F76: 9.5 | G76: 9.05 | H76: 9.05 | I76: 10.9375 | J76: 10.9375 | K76: 11.8125 | L76: 11.8125 | M76: stena | N76: stena | O76: stena | P76: stena | Q76: stena | R76: stena
B77: 071 | C77: 4.95 | D77: 4.95 | E77: 0.5 | F77: 0.5 | G77: 0.05 | H77: 0.05 | I77: 12.6875 | J77: 12.6875 | K77: 13.5625 | L77: 13.5625 | M77: stena | N77: stena | O77: =IF(OR(M77="otvor",N77="otvor"),"otvor","stena") -> stena | P77: stena | Q77: stena | R77: stena
B78: 072 | C78: 4.95 | D78: 4.95 | E78: 1.5 | F78: 1.5 | G78: 1.05 | H78: 1.05 | I78: 12.6875 | J78: 12.6875 | K78: 13.5625 | L78: 13.5625 | M78: stena | N78: stena | O78: stena | P78: stena | Q78: stena | R78: stena
B79: 073 | C79: 4.95 | D79: 4.95 | E79: 2.5 | F79: 2.5 | G79: 2.05 | H79: 2.05 | I79: 12.6875 | J79: 12.6875 | K79: 13.5625 | L79: 13.5625 | M79: stena | N79: stena | O79: stena | P79: stena | Q79: stena | R79: stena
B80: 074 | C80: 4.95 | D80: 4.95 | E80: 3.5 | F80: 3.5 | G80: 3.05 | H80: 3.05 | I80: 12.6875 | J80: 12.6875 | K80: 13.5625 | L80: 13.5625 | M80: stena | N80: stena | O80: stena | P80: stena | Q80: stena | R80: stena
B81: 075 | C81: 4.95 | D81: 4.95 | E81: 4.5 | F81: 4.5 | G81: 4.05 | H81: 4.05 | I81: 12.6875 | J81: 12.6875 | K81: 13.5625 | L81: 13.5625 | M81: stena | N81: stena | O81: stena | P81: stena | Q81: stena | R81: stena
B82: 076 | C82: 4.95 | D82: 4.95 | E82: 5.5 | F82: 5.5 | G82: 5.05 | H82: 5.05 | I82: 12.6875 | J82: 12.6875 | K82: 13.5625 | L82: 13.5625 | M82: stena | N82: stena | O82: stena | P82: stena | Q82: stena | R82: stena
B83: 077 | C83: 4.95 | D83: 4.95 | E83: 6.5 | F83: 6.5 | G83: 6.05 | H83: 6.05 | I83: 12.6875 | J83: 12.6875 | K83: 13.5625 | L83: 13.5625 | M83: stena | N83: stena | O83: stena | P83: stena | Q83: stena | R83: stena
B84: 078 | C84: 4.95 | D84: 4.95 | E84: 7.5 | F84: 7.5 | G84: 7.05 | H84: 7.05 | I84: 12.6875 | J84: 12.6875 | K84: 13.5625 | L84: 13.5625 | M84: stena | N84: stena | O84: stena | P84: stena | Q84: stena | R84: stena
B85: 079 | C85: 4.95 | D85: 4.95 | E85: 8.5 | F85: 8.5 | G85: 8.05 | H85: 8.05 | I85: 12.6875 | J85: 12.6875 | K85: 13.5625 | L85: 13.5625 | M85: stena | N85: stena | O85: stena | P85: stena | Q85: stena | R85: stena
B86: 080 | C86: 4.95 | D86: 4.95 | E86: 9.5 | F86: 9.5 | G86: 9.05 | H86: 9.05 | I86: 12.6875 | J86: 12.6875 | K86: 13.5625 | L86: 13.5625 | M86: stena | N86: stena | O86: stena | P86: stena | Q86: stena | R86: stena
B87: 081 | C87: 4.95 | D87: 4.95 | E87: 0.5 | F87: 0.5 | G87: 0.05 | H87: 0.05 | I87: 14.4375 | J87: 14.4375 | K87: 15.3125 | L87: 15.3125 | M87: stena | N87: stena | O87: stena | P87: stena | Q87: stena | R87: stena
B88: 082 | C88: 4.95 | D88: 4.95 | E88: 1.5 | F88: 1.5 | G88: 1.05 | H88: 1.05 | I88: 14.4375 | J88: 14.4375 | K88: 15.3125 | L88: 15.3125 | M88: stena | N88: stena | O88: stena | P88: stena | Q88: stena | R88: stena
B89: 083 | C89: 4.95 | D89: 4.95 | E89: 2.5 | F89: 2.5 | G89: 2.05 | H89: 2.05 | I89: 14.4375 | J89: 14.4375 | K89: 15.3125 | L89: 15.3125 | M89: stena | N89: stena | O89: stena | P89: stena | Q89: stena | R89: stena
B90: 084 | C90: 4.95 | D90: 4.95 | E90: 3.5 | F90: 3.5 | G90: 3.05 | H90: 3.05 | I90: 14.4375 | J90: 14.4375 | K90: 15.3125 | L90: 15.3125 | M90: stena | N90: stena | O90: stena | P90: stena | Q90: stena | R90: stena
B91: 085 | C91: 4.95 | D91: 4.95 | E91: 4.5 | F91: 4.5 | G91: 4.05 | H91: 4.05 | I91: 14.4375 | J91: 14.4375 | K91: 15.3125 | L91: 15.3125 | M91: stena | N91: stena | O91: stena | P91: stena | Q91: stena | R91: stena
B92: 086 | C92: 4.95 | D92: 4.95 | E92: 5.5 | F92: 5.5 | G92: 5.05 | H92: 5.05 | I92: 14.4375 | J92: 14.4375 | K92: 15.3125 | L92: 15.3125 | M92: stena | N92: stena | O92: stena | P92: stena | Q92: stena | R92: stena
B93: 087 | C93: 4.95 | D93: 4.95 | E93: 6.5 | F93: 6.5 | G93: 6.05 | H93: 6.05 | I93: 14.4375 | J93: 14.4375 | K93: 15.3125 | L93: 15.3125 | M93: stena | N93: stena | O93: stena | P93: stena | Q93: stena | R93: stena
B94: 088 | C94: 4.95 | D94: 4.95 | E94: 7.5 | F94: 7.5 | G94: 7.05 | H94: 7.05 | I94: 14.4375 | J94: 14.4375 | K94: 15.3125 | L94: 15.3125 | M94: stena | N94: stena | O94: stena | P94: stena | Q94: stena | R94: stena
B95: 089 | C95: 4.95 | D95: 4.95 | E95: 8.5 | F95: 8.5 | G95: 8.05 | H95: 8.05 | I95: 14.4375 | J95: 14.4375 | K95: 15.3125 | L95: 15.3125 | M95: stena | N95: stena | O95: stena | P95: stena | Q95: stena | R95: stena
B96: 090 | C96: 4.95 | D96: 4.95 | E96: 9.5 | F96: 9.5 | G96: 9.05 | H96: 9.05 | I96: 14.4375 | J96: 14.4375 | K96: 15.3125 | L96: 15.3125 | M96: stena | N96: stena | O96: stena | P96: stena | Q96: stena | R96: stena
B97: 091 | C97: 4.95 | D97: 4.95 | E97: 0.5 | F97: 0.5 | G97: 0.05 | H97: 0.05 | I97: 16.1875 | J97: 16.1875 | K97: 17.0625 | L97: 17.0625 | M97: stena | N97: stena | O97: stena | P97: stena | Q97: stena | R97: stena
B98: 092 | C98: 4.95 | D98: 4.95 | E98: 1.5 | F98: 1.5 | G98: 1.05 | H98: 1.05 | I98: 16.1875 | J98: 16.1875 | K98: 17.0625 | L98: 17.0625 | M98: stena | N98: stena | O98: stena | P98: stena | Q98: stena | R98: stena
B99: 093 | C99: 4.95 | D99: =SUBSTITUTE(C99,",",".") -> 4.95 | E99: 2.5 | F99: =SUBSTITUTE(E99,",",".") -> 2.5 | G99: 2.05 | H99: 2.05 | I99: 16.1875 | J99: =SUBSTITUTE(I99,",",".") -> 16.1875 | K99: 17.0625 | L99: 17.0625 | M99: stena | N99: stena | O99: stena | P99: stena | Q99: stena | R99: stena
B100: 094 | C100: 4.95 | D100: 4.95 | E100: 3.5 | F100: 3.5 | G100: 3.05 | H100: 3.05 | I100: 16.1875 | J100: 16.1875 | K100: 17.0625 | L100: 17.0625 | M100: stena | N100: stena | O100: stena | P100: stena | Q100: stena | R100: stena
B101: 095 | C101: 4.95 | D101: 4.95 | E101: 4.5 | F101: 4.5 | G101: 4.05 | H101: 4.05 | I101: 16.1875 | J101: 16.1875 | K101: 17.0625 | L101: 17.0625 | M101: stena | N101: stena | O101: stena | P101: stena | Q101: stena | R101: stena
B102: 096 | C102: 4.95 | D102: 4.95 | E102: 5.5 | F102: 5.5 | G102: 5.05 | H102: 5.05 | I102: 16.1875 | J102: 16.1875 | K102: 17.0625 | L102: 17.0625 | M102: stena | N102: stena | O102: stena | P102: stena | Q102: stena | R102: stena
B103: 097 | C103: 4.95 | D103: =SUBSTITUTE(C103,",",".") -> 4.95 | E103: 6.5 | F103: =SUBSTITUTE(E103,",",".") -> 6.5 | G103: 6.05 | H103: 6.05 | I103: 16.1875 | J103: =SUBSTITUTE(I103,",",".") -> 16.1875 | K103: 17.0625 | L103: 17.0625 | M103: stena | N103: stena | O103: stena | P103: stena | Q103: stena | R103: stena
B104: 098 | C104: 4.95 | D104: 4.95 | E104: 7.5 | F104: 7.5 | G104: 7.05 | H104: 7.05 | I104: 16.1875 | J104: 16.1875 | K104: 17.0625 | L104: 17.0625 | M104: stena | N104: stena | O104: stena | P104: stena | Q104: stena | R104: stena
B105: 099 | C105: 4.95 | D105: 4.95 | E105: 8.5 | F105: 8.5 | G105: 8.05 | H105: 8.05 | I105: 16.1875 | J105: 16.1875 | K105: 17.0625 | L105: 17.0625 | M105: stena | N105: stena | O105: stena | P105: stena | Q105: stena | R105: stena
B106: 100 | C106: 4.95 | D106: 4.95 | E106: 9.5 | F106: 9.5 | G106: 9.05 | H106: 9.05 | I106: 16.1875 | J106: 16.1875 | K106: 17.0625 | L106: 17.0625 | M106: stena | N106: stena | O106: stena | P106: stena | Q106: stena | R106: stena
B107: 101 | C107: 4.95 | D107: 4.95 | E107: 0.5 | F107: 0.5 | G107: 0.05 | H107: 0.05 | I107: 17.9375 | J107: 17.9375 | K107: 18.8125 | L107: 18.8125 | M107: stena | N107: stena | O107: stena | P107: stena | Q107: stena | R107: stena
O108: =IF(O107="stena","ok","pozor") -> ok | R108: =IF(R107="stena","ok","pozor") -> ok | S108: =IF(S107="","ok","pozor") -> ok | T108: =IF(T107="","ok","pozor") -> ok

Sheet Fire Devc C
B2: x | C2: =zadani!G7 -> 5 | D2: místno. | E2: =zadani!G6 -> C1 | F2: hrana x | G2: =C2/zadani!G16 -> 1 | H2: STRANA C | M2: =zadani!G10 -> 0 | N2: =zadani!G11 -> 0 | O2: =zadani!G12 -> 0 | P2: =zadani!G38 -> M1 | Q2: =zadani!G41 -> 0.015 | R2: =SUBSTITUTE(Q2,",",".") -> 0.015
B3: y | C3: =zadani!G8 -> 10 | D3: odstup | E3: =zadani!G13 -> 0.05 | F3: hrana z | G3: =C4/zadani!G18 -> 0.875 | H3: otvor 1 | I3: =zadani!L12 -> ne | J3: =zadani!M12 -> 0 | K3: =zadani!N12 -> 0 | L3: =zadani!O12 -> - | M3: =zadani!P12 -> - | N3: =zadani!Q12 -> 0 | O3: =zadani!R12 -> 0 | P3: =zadani!G39 -> PLATE | Q3: =zadani!G42 -> 0 | R3: =SUBSTITUTE(Q3,",",".") -> 0
B4: z | C4: =zadani!G9 -> 3.5 | D4: vše ok? | E4: =IF(AND(O108="ok",R108="ok",S108="ok",T108="ok"),"ok","pozor") -> ok | H4: otvor 2 | I4: =zadani!L13 -> ne | J4: =zadani!M13 -> 0 | K4: =zadani!N13 -> 0 | L4: =zadani!O13 -> - | M4: =zadani!P13 -> - | N4: =zadani!Q13 -> 0 | O4: =zadani!R13 -> 0 | P4: =zadani!G40 -> FLOOR | Q4: =zadani!C42 -> 250 | R4: =SUBSTITUTE(Q4,",",".") -> 250
B6: pořad. číslo | C6: X lichá | E6: X sudá | G6: Y | I6: Z lichá | K6: Z sudá | M6: otvor 1 lichy | N6: otvor 2 lichy | O6: otvory liche | P6: otvor 1 sudy | Q6: otvor 2 sudy | R6: otvory sude
B7: =RIGHT("00"&ROW(A1),3) -> 001 | C7: =G2/2 -> 0.5 | D7: =SUBSTITUTE(C7,",",".") -> 0.5 | E7: =G2-E3 -> 0.95 | F7: =SUBSTITUTE(E7,",",".") -> 0.95 | G7: =C3-E3 -> 9.95 | H7: =SUBSTITUTE(G7,",",".") -> 9.95 | I7: =G3/2 -> 0.4375 | J7: =SUBSTITUTE(I7,",",".") -> 0.4375 | K7: =$G$3*1.5 -> 1.3125 | L7: =SUBSTITUTE(K7,",",".") -> 1.3125 | M7: =IF($I$3="ano",IF(AND(C7>$J$3,C7<$K$3,I7>$N$3,I7<$O$3),"otvor","stena"),"stena") -> stena | N7: =IF($I$4="ano",IF(AND(C7>$J$4,C7<$K$4,I7>$N$4,I7<$O$4),"otvor","stena"),"stena") -> stena | O7: =IF(OR(M7="otvor",N7="otvor"),"otvor","stena") -> stena | P7: =IF($I$3="ano",IF(AND(E7>$J$3,E7<$K$3,K7>$N$3,K7<$O$3),"otvor","stena"),"stena") -> stena | Q7: =IF($I$4="ano",IF(AND(E7>$J$4,E7<$K$4,K7>$N$4,K7<$O$4),"otvor","stena"),"stena") -> stena | R7: =IF(OR(P7="otvor",Q7="otvor"),"otvor","stena") -> stena | S7: =IF(AND(C7>$M$2,I7>$O$2),IF(O7="stena",IF(I7>$C$4,"",CONCATENATE("&FIRE ID = 'F.",$E$2,".5.",B7,"' COMP_ID = '",$E$2,"', FIRE_ID = 'FP.",$E$2,".X.",J7,"' LOCATION = ",D7,", ",H7," IGNITION_CRITERION = 'TEMPERATURE', DEVC_ID = 'T.",$E$2,".5.",B7,"', SETPOINT = ",$R$4," /")),""),"") -> &FIRE ID = 'F.C1.5.001' COMP_ID = 'C1', FIRE_ID = 'FP.C1.X.0.4375' LOCATION = 0.5, 9.95 IGNITION_CRITERION = 'TEMPERATURE', DEVC_ID = 'T.C1.5.001', SETPOINT = 250 / | T7: =IF(AND(E7>$M$2,K7>$O$2),IF(R7="stena",IF(K7>$C$4,"",CONCATENATE("&FIRE ID = 'F.",$E$2,".6.",B7,"' COMP_ID = '",$E$2,"', FIRE_ID = 'FP.",$E$2,".X.",L7,"' LOCATION = ",F7,", ",H7," IGNITION_CRITERION = 'TEMPERATURE', DEVC_ID = 'T.",$E$2,".6.",B7,"', SETPOINT = ",$R$4," /")),""),"") -> &FIRE ID = 'F.C1.6.001' COMP_ID = 'C1', FIRE_ID = 'FP.C1.X.1.3125' LOCATION = 0.95, 9.95 IGNITION_CRITERION = 'TEMPERATURE', DEVC_ID = 'T.C1.6.001', SETPOINT = 250 / | U7: =IF(S7="","",IF(O7="stena",IF(I7>$C$4,"",CONCATENATE("&DEVC ID = 'T.",$E$2,".5.",B7,"' COMP_ID = '",$E$2,"' LOCATION = ",D7,", ",H7,", ",J7," TYPE = '",$P$3,"' MATL_ID = '",$P$2,"' SURFACE_ORIENTATION = '",$P$4,"' THICKNESS = ",$R$2," TEMPERATURE_DEPTH = ",$R$3," DEPTH_UNITS = 'M' /")),"")) -> &DEVC ID = 'T.C1.5.001' COMP_ID = 'C1' LOCATION = 0.5, 9.95, 0.4375 TYPE = 'PLATE' MATL_ID = 'M1' SURFACE_ORIENTATION = 'FLOOR' THICKNESS = 0.015 TEMPERATURE_DEPTH = 0 DEPTH_UNITS = 'M' / | V7: =IF(T7="","",IF(R7="stena",IF(K7>$C$4,"",CONCATENATE("&DEVC ID = 'T.",$E$2,".6.",B7,"' COMP_ID = '",$E$2,"' LOCATION = ",F7,", ",H7,", ",L7," TYPE = '",$P$3,"' MATL_ID = '",$P$2,"' SURFACE_ORIENTATION = '",$P$4,"' THICKNESS = ",$R$2," TEMPERATURE_DEPTH = ",$R$3," DEPTH_UNITS = 'M' /")),"")) -> &DEVC ID = 'T.C1.6.001' COMP_ID = 'C1' LOCATION = 0.95, 9.95, 1.3125 TYPE = 'PLATE' MATL_ID = 'M1' SURFACE_ORIENTATION = 'FLOOR' THICKNESS = 0.015 TEMPERATURE_DEPTH = 0 DEPTH_UNITS = 'M' /
B8: =RIGHT("00"&ROW(A2),3) -> 002 | C8: =IF(C7>=($C$2-$G$2),$G$2/2,C7+$G$2) -> 1.5 | D8: 1.5 | E8: =IF(E7>=($C$2-$E$3),$G$2-$E$3,E7+$G$2) -> 1.95 | F8: 1.95 | G8: =G7 -> 9.95 | H8: =SUBSTITUTE(G8,",",".") -> 9.95 | I8: =IF(C8=$G$2/2,I7+$G$3*2,I7) -> 0.4375 | J8: 0.4375 | K8: =IF(E8=($G$2-$E$3),K7+$G$3*2,K7) -> 1.3125 | L8: =SUBSTITUTE(K8,",",".") -> 1.3125 | M8: stena | N8: stena | O8: stena | P8: stena | Q8: stena | R8: stena | S8: =IF(AND(C8>$M$2,I8>$O$2),IF(O8="stena",IF(I8>$C$4,"",CONCATENATE("&FIRE ID = 'F.",$E$2,".5.",B8,"' COMP_ID = '",$E$2,"', FIRE_ID = 'FP.",$E$2,".X.",J8,"' LOCATION = ",D8,", ",H8," IGNITION_CRITERION = 'TEMPERATURE', DEVC_ID = 'T.",$E$2,".5.",B8,"', SETPOINT = ",$R$4," /")),""),"") -> &FIRE ID = 'F.C1.5.002' COMP_ID = 'C1', FIRE_ID = 'FP.C1.X.0.4375' LOCATION = 1.5, 9.95 IGNITION_CRITERION = 'TEMPERATURE', DEVC_ID = 'T.C1.5.002', SETPOINT = 250 / | T8: =IF(AND(E8>$M$2,K8>$O$2),IF(R8="stena",IF(K8>$C$4,"",CONCATENATE("&FIRE ID = 'F.",$E$2,".6.",B8,"' COMP_ID = '",$E$2,"', FIRE_ID = 'FP.",$E$2,".X.",L8,"' LOCATION = ",F8,", ",H8," IGNITION_CRITERION = 'TEMPERATURE', DEVC_ID = 'T.",$E$2,".6.",B8,"', SETPOINT = ",$R$4," /")),""),"") -> &FIRE ID = 'F.C1.6.002' COMP_ID = 'C1', FIRE_ID = 'FP.C1.X.1.3125' LOCATION = 1.95, 9.95 IGNITION_CRITERION = 'TEMPERATURE', DEVC_ID = 'T.C1.6.002', SETPOINT = 250 / | U8: =IF(S8="","",IF(O8="stena",IF(I8>$C$4,"",CONCATENATE("&DEVC ID = 'T.",$E$2,".5.",B8,"' COMP_ID = '",$E$2,"' LOCATION = ",D8,", ",H8,", ",J8," TYPE = '",$P$3,"' MATL_ID = '",$P$2,"' SURFACE_ORIENTATION = '",$P$4,"' THICKNESS = ",$R$2," TEMPERATURE_DEPTH = ",$R$3," DEPTH_UNITS = 'M' /")),"")) -> &DEVC ID = 'T.C1.5.002' COMP_ID = 'C1' LOCATION = 1.5, 9.95, 0.4375 TYPE = 'PLATE' MATL_ID = 'M1' SURFACE_ORIENTATION = 'FLOOR' THICKNESS = 0.015 TEMPERATURE_DEPTH = 0 DEPTH_UNITS = 'M' / | V8: =IF(T8="","",IF(R8="stena",IF(K8>$C$4,"",CONCATENATE("&DEVC ID = 'T.",$E$2,".6.",B8,"' COMP_ID = '",$E$2,"' LOCATION = ",F8,", ",H8,", ",L8," TYPE = '",$P$3,"' MATL_ID = '",$P$2,"' SURFACE_ORIENTATION = '",$P$4,"' THICKNESS = ",$R$2," TEMPERATURE_DEPTH = ",$R$3," DEPTH_UNITS = 'M' /")),"")) -> &DEVC ID = 'T.C1.6.002' COMP_ID = 'C1' LOCATION = 1.95, 9.95, 1.3125 TYPE = 'PLATE' MATL_ID = 'M1' SURFACE_ORIENTATION = 'FLOOR' THICKNESS = 0.015 TEMPERATURE_DEPTH = 0 DEPTH_UNITS = 'M' /
B9: =RIGHT("00"&ROW(A3),3) -> 003 | C9: 2.5 | D9: 2.5 | E9: =IF(E8>=($C$2-$E$3),$G$2-$E$3,E8+$G$2) -> 2.95 | F9: 2.95 | G9: =G8 -> 9.95 | H9: 9.95 | I9: =IF(C9=$G$2/2,I8+$G$3*2,I8) -> 0.4375 | J9: 0.4375 | K9: =IF(E9=($G$2-$E$3),K8+$G$3*2,K8) -> 1.3125 | L9: =SUBSTITUTE(K9,",",".") -> 1.3125 | M9: stena | N9: stena | O9: stena | P9: stena | Q9: stena | R9: stena | S9: &FIRE ID = 'F.C1.5.003' COMP_ID = 'C1', FIRE_ID = 'FP.C1.X.0.4375' LOCATION = 2.5, 9.95 IGNITION_CRITERION = 'TEMPERATURE', DEVC_ID = 'T.C1.5.003', SETPOINT = 250 / | T9: &FIRE ID = 'F.C1.6.003' COMP_ID = 'C1', FIRE_ID = 'FP.C1.X.1.3125' LOCATION = 2.95, 9.95 IGNITION_CRITERION = 'TEMPERATURE', DEVC_ID = 'T.C1.6.003', SETPOINT = 250 / | U9: &DEVC ID = 'T.C1.5.003' COMP_ID = 'C1' LOCATION = 2.5, 9.95, 0.4375 TYPE = 'PLATE' MATL_ID = 'M1' SURFACE_ORIENTATION = 'FLOOR' THICKNESS = 0.015 TEMPERATURE_DEPTH = 0 DEPTH_UNITS = 'M' / | V9: &DEVC ID = 'T.C1.6.003' COMP_ID = 'C1' LOCATION = 2.95, 9.95, 1.3125 TYPE = 'PLATE' MATL_ID = 'M1' SURFACE_ORIENTATION = 'FLOOR' THICKNESS = 0.015 TEMPERATURE_DEPTH = 0 DEPTH_UNITS = 'M' /
B10: =RIGHT("00"&ROW(A4),3) -> 004 | C10: 3.5 | D10: 3.5 | E10: 3.95 | F10: 3.95 | G10: 9.95 | H10: 9.95 | I10: 0.4375 | J10: 0.4375 | K10: 1.3125 | L10: 1.3125 | M10: stena | N10: stena | O10: stena | P10: stena | Q10: stena | R10: stena | S10: &FIRE ID = 'F.C1.5.004' COMP_ID = 'C1', FIRE_ID = 'FP.C1.X.0.4375' LOCATION = 3.5, 9.95 IGNITION_CRITERION = 'TEMPERATURE', DEVC_ID = 'T.C1.5.004', SETPOINT = 250 / | T10: &FIRE ID = 'F.C1.6.004' COMP_ID = 'C1', FIRE_ID = 'FP.C1.X.1.3125' LOCATION = 3.95, 9.95 IGNITION_CRITERION = 'TEMPERATURE', DEVC_ID = 'T.C1.6.004', SETPOINT = 250 / | U10: &DEVC ID = 'T.C1.5.004' COMP_ID = 'C1' LOCATION = 3.5, 9.95, 0.4375 TYPE = 'PLATE' MATL_ID = 'M1' SURFACE_ORIENTATION = 'FLOOR' THICKNESS = 0.015 TEMPERATURE_DEPTH = 0 DEPTH_UNITS = 'M' / | V10: &DEVC ID = 'T.C1.6.004' COMP_ID = 'C1' LOCATION = 3.95, 9.95, 1.3125 TYPE = 'PLATE' MATL_ID = 'M1' SURFACE_ORIENTATION = 'FLOOR' THICKNESS = 0.015 TEMPERATURE_DEPTH = 0 DEPTH_UNITS = 'M' /
B11: 005 | C11: 4.5 | D11: 4.5 | E11: 4.95 | F11: 4.95 | G11: 9.95 | H11: 9.95 | I11: 0.4375 | J11: 0.4375 | K11: 1.3125 | L11: 1.3125 | M11: stena | N11: stena | O11: =IF(OR(M11="otvor",N11="otvor"),"otvor","stena") -> stena | P11: stena | Q11: stena | R11: stena | S11: &FIRE ID = 'F.C1.5.005' COMP_ID = 'C1', FIRE_ID = 'FP.C1.X.0.4375' LOCATION = 4.5, 9.95 IGNITION_CRITERION = 'TEMPERATURE', DEVC_ID = 'T.C1.5.005', SETPOINT = 250 / | T11: &FIRE ID = 'F.C1.6.005' COMP_ID = 'C1', FIRE_ID = 'FP.C1.X.1.3125' LOCATION = 4.95, 9.95 IGNITION_CRITERION = 'TEMPERATURE', DEVC_ID = 'T.C1.6.005', SETPOINT = 250 / | U11: &DEVC ID = 'T.C1.5.005' COMP_ID = 'C1' LOCATION = 4.5, 9.95, 0.4375 TYPE = 'PLATE' MATL_ID = 'M1' SURFACE_ORIENTATION = 'FLOOR' THICKNESS = 0.015 TEMPERATURE_DEPTH = 0 DEPTH_UNITS = 'M' / | V11: &DEVC ID = 'T.C1.6.005' COMP_ID = 'C1' LOCATION = 4.95, 9.95, 1.3125 TYPE = 'PLATE' MATL_ID = 'M1' SURFACE_ORIENTATION = 'FLOOR' THICKNESS = 0.015 TEMPERATURE_DEPTH = 0 DEPTH_UNITS = 'M' /
B12: 006 | C12: 0.5 | D12: 0.5 | E12: 0.95 | F12: 0.95 | G12: 9.95 | H12: 9.95 | I12: 2.1875 | J12: 2.1875 | K12: 3.0625 | L12: 3.0625 | M12: stena | N12: stena | O12: =IF(OR(M12="otvor",N12="otvor"),"otvor","stena") -> stena | P12: stena | Q12: stena | R12: stena | S12: &FIRE ID = 'F.C1.5.006' COMP_ID = 'C1', FIRE_ID = 'FP.C1.X.2.1875' LOCATION = 0.5, 9.95 IGNITION_CRITERION = 'TEMPERATURE', DEVC_ID = 'T.C1.5.006', SETPOINT = 250 / | T12: &FIRE ID = 'F.C1.6.006' COMP_ID = 'C1', FIRE_ID = 'FP.C1.X.3.0625' LOCATION = 0.95, 9.95 IGNITION_CRITERION = 'TEMPERATURE', DEVC_ID = 'T.C1.6.006', SETPOINT = 250 / | U12: &DEVC ID = 'T.C1.5.006' COMP_ID = 'C1' LOCATION = 0.5, 9.95, 2.1875 TYPE = 'PLATE' MATL_ID = 'M1' SURFACE_ORIENTATION = 'FLOOR' THICKNESS = 0.015 TEMPERATURE_DEPTH = 0 DEPTH_UNITS = 'M' / | V12: &DEVC ID = 'T.C1.6.006' COMP_ID = 'C1' LOCATION = 0.95, 9.95, 3.0625 TYPE = 'PLATE' MATL_ID = 'M1' SURFACE_ORIENTATION = 'FLOOR' THICKNESS = 0.015 TEMPERATURE_DEPTH = 0 DEPTH_UNITS = 'M' /
B13: 007 | C13: 1.5 | D13: 1.5 | E13: 1.95 | F13: 1.95 | G13: 9.95 | H13: 9.95 | I13: 2.1875 | J13: 2.1875 | K13: 3.0625 | L13: 3.0625 | M13: stena | N13: stena | O13: =IF(OR(M13="otvor",N13="otvor"),"otvor","stena") -> stena | P13: stena | Q13: stena | R13: stena | S13: &FIRE ID = 'F.C1.5.007' COMP_ID = 'C1', FIRE_ID = 'FP.C1.X.2.1875' LOCATION = 1.5, 9.95 IGNITION_CRITERION = 'TEMPERATURE', DEVC_ID = 'T.C1.5.007', SETPOINT = 250 / | T13: &FIRE ID = 'F.C1.6.007' COMP_ID = 'C1', FIRE_ID = 'FP.C1.X.3.0625' LOCATION = 1.95, 9.95 IGNITION_CRITERION = 'TEMPERATURE', DEVC_ID = 'T.C1.6.007', SETPOINT = 250 / | U13: &DEVC ID = 'T.C1.5.007' COMP_ID = 'C1' LOCATION = 1.5, 9.95, 2.1875 TYPE = 'PLATE' MATL_ID = 'M1' SURFACE_ORIENTATION = 'FLOOR' THICKNESS = 0.015 TEMPERATURE_DEPTH = 0 DEPTH_UNITS = 'M' / | V13: &DEVC ID = 'T.C1.6.007' COMP_ID = 'C1' LOCATION = 1.95, 9.95, 3.0625 TYPE = 'PLATE' MATL_ID = 'M1' SURFACE_ORIENTATION = 'FLOOR' THICKNESS = 0.015 TEMPERATURE_DEPTH = 0 DEPTH_UNITS = 'M' /
B14: 008 | C14: 2.5 | D14: 2.5 | E14: 2.95 | F14: 2.95 | G14: 9.95 | H14: 9.95 | I14: 2.1875 | J14: 2.1875 | K14: 3.0625 | L14: 3.0625 | M14: stena | N14: stena | O14: stena | P14: stena | Q14: stena | R14: stena | S14: &FIRE ID = 'F.C1.5.008' COMP_ID = 'C1', FIRE_ID = 'FP.C1.X.2.1875' LOCATION = 2.5, 9.95 IGNITION_CRITERION = 'TEMPERATURE', DEVC_ID = 'T.C1.5.008', SETPOINT = 250 / | T14: &FIRE ID = 'F.C1.6.008' COMP_ID = 'C1', FIRE_ID = 'FP.C1.X.3.0625' LOCATION = 2.95, 9.95 IGNITION_CRITERION = 'TEMPERATURE', DEVC_ID = 'T.C1.6.008', SETPOINT = 250 / | U14: &DEVC ID = 'T.C1.5.008' COMP_ID = 'C1' LOCATION = 2.5, 9.95, 2.1875 TYPE = 'PLATE' MATL_ID = 'M1' SURFACE_ORIENTATION = 'FLOOR' THICKNESS = 0.015 TEMPERATURE_DEPTH = 0 DEPTH_UNITS = 'M' / | V14: &DEVC ID = 'T.C1.6.008' COMP_ID = 'C1' LOCATION = 2.95, 9.95, 3.0625 TYPE = 'PLATE' MATL_ID = 'M1' SURFACE_ORIENTATION = 'FLOOR' THICKNESS = 0.015 TEMPERATURE_DEPTH = 0 DEPTH_UNITS = 'M' /
B15: 009 | C15: 3.5 | D15: 3.5 | E15: 3.95 | F15: 3.95 | G15: 9.95 | H15: 9.95 | I15: 2.1875 | J15: 2.1875 | K15: 3.0625 | L15: 3.0625 | M15: stena | N15: stena | O15: stena | P15: stena | Q15: stena | R15: stena | S15: &FIRE ID = 'F.C1.5.009' COMP_ID = 'C1', FIRE_ID = 'FP.C1.X.2.1875' LOCATION = 3.5, 9.95 IGNITION_CRITERION = 'TEMPERATURE', DEVC_ID = 'T.C1.5.009', SETPOINT = 250 / | T15: &FIRE ID = 'F.C1.6.009' COMP_ID = 'C1', FIRE_ID = 'FP.C1.X.3.0625' LOCATION = 3.95, 9.95 IGNITION_CRITERION = 'TEMPERATURE', DEVC_ID = 'T.C1.6.009', SETPOINT = 250 / | U15: &DEVC ID = 'T.C1.5.009' COMP_ID = 'C1' LOCATION = 3.5, 9.95, 2.1875 TYPE = 'PLATE' MATL_ID = 'M1' SURFACE_ORIENTATION = 'FLOOR' THICKNESS = 0.015 TEMPERATURE_DEPTH = 0 DEPTH_UNITS = 'M' / | V15: &DEVC ID = 'T.C1.6.009' COMP_ID = 'C1' LOCATION = 3.95, 9.95, 3.0625 TYPE = 'PLATE' MATL_ID = 'M1' SURFACE_ORIENTATION = 'FLOOR' THICKNESS = 0.015 TEMPERATURE_DEPTH = 0 DEPTH_UNITS = 'M' /
B16: 010 | C16: 4.5 | D16: 4.5 | E16: 4.95 | F16: 4.95 | G16: 9.95 | H16: 9.95 | I16: 2.1875 | J16: 2.1875 | K16: 3.0625 | L16: 3.0625 | M16: stena | N16: stena | O16: stena | P16: stena | Q16: stena | R16: stena | S16: &FIRE ID = 'F.C1.5.010' COMP_ID = 'C1', FIRE_ID = 'FP.C1.X.2.1875' LOCATION = 4.5, 9.95 IGNITION_CRITERION = 'TEMPERATURE', DEVC_ID = 'T.C1.5.010', SETPOINT = 250 / | T16: &FIRE ID = 'F.C1.6.010' COMP_ID = 'C1', FIRE_ID = 'FP.C1.X.3.0625' LOCATION = 4.95, 9.95 IGNITION_CRITERION = 'TEMPERATURE', DEVC_ID = 'T.C1.6.010', SETPOINT = 250 / | U16: &DEVC ID = 'T.C1.5.010' COMP_ID = 'C1' LOCATION = 4.5, 9.95, 2.1875 TYPE = 'PLATE' MATL_ID = 'M1' SURFACE_ORIENTATION = 'FLOOR' THICKNESS = 0.015 TEMPERATURE_DEPTH = 0 DEPTH_UNITS = 'M' / | V16: &DEVC ID = 'T.C1.6.010' COMP_ID = 'C1' LOCATION = 4.95, 9.95, 3.0625 TYPE = 'PLATE' MATL_ID = 'M1' SURFACE_ORIENTATION = 'FLOOR' THICKNESS = 0.015 TEMPERATURE_DEPTH = 0 DEPTH_UNITS = 'M' /
B17: 011 | C17: 0.5 | D17: 0.5 | E17: 0.95 | F17: 0.95 | G17: 9.95 | H17: 9.95 | I17: 3.9375 | J17: 3.9375 | K17: 4.8125 | L17: 4.8125 | M17: stena | N17: stena | O17: stena | P17: stena | Q17: stena | R17: stena
B18: 012 | C18: 1.5 | D18: 1.5 | E18: 1.95 | F18: 1.95 | G18: 9.95 | H18: 9.95 | I18: 3.9375 | J18: 3.9375 | K18: 4.8125 | L18: 4.8125 | M18: stena | N18: stena | O18: stena | P18: stena | Q18: stena | R18: stena
B19: 013 | C19: 2.5 | D19: 2.5 | E19: =IF(E18>=($C$2-$E$3),$G$2-$E$3,E18+$G$2) -> 2.95 | F19: 2.95 | G19: 9.95 | H19: 9.95 | I19: 3.9375 | J19: 3.9375 | K19: 4.8125 | L19: 4.8125 | M19: stena | N19: stena | O19: stena | P19: stena | Q19: stena | R19: stena
B20: 014 | C20: 3.5 | D20: 3.5 | E20: 3.95 | F20: 3.95 | G20: 9.95 | H20: 9.95 | I20: 3.9375 | J20: 3.9375 | K20: 4.8125 | L20: 4.8125 | M20: stena | N20: stena | O20: stena | P20: stena | Q20: stena | R20: stena
B21: 015 | C21: 4.5 | D21: 4.5 | E21: 4.95 | F21: 4.95 | G21: 9.95 | H21: 9.95 | I21: 3.9375 | J21: 3.9375 | K21: 4.8125 | L21: 4.8125 | M21: stena | N21: stena | O21: stena | P21: stena | Q21: stena | R21: stena
B22: 016 | C22: 0.5 | D22: 0.5 | E22: 0.95 | F22: 0.95 | G22: 9.95 | H22: 9.95 | I22: 5.6875 | J22: 5.6875 | K22: 6.5625 | L22: 6.5625 | M22: stena | N22: stena | O22: stena | P22: stena | Q22: stena | R22: stena
B23: 017 | C23: 1.5 | D23: 1.5 | E23: 1.95 | F23: 1.95 | G23: 9.95 | H23: 9.95 | I23: 5.6875 | J23: 5.6875 | K23: 6.5625 | L23: 6.5625 | M23: stena | N23: stena | O23: stena | P23: stena | Q23: stena | R23: stena
B24: 018 | C24: 2.5 | D24: 2.5 | E24: 2.95 | F24: 2.95 | G24: 9.95 | H24: 9.95 | I24: 5.6875 | J24: 5.6875 | K24: 6.5625 | L24: 6.5625 | M24: stena | N24: stena | O24: stena | P24: stena | Q24: stena | R24: stena
B25: 019 | C25: 3.5 | D25: 3.5 | E25: 3.95 | F25: 3.95 | G25: 9.95 | H25: 9.95 | I25: 5.6875 | J25: 5.6875 | K25: 6.5625 | L25: 6.5625 | M25: stena | N25: stena | O25: stena | P25: stena | Q25: stena | R25: stena
B26: 020 | C26: 4.5 | D26: 4.5 | E26: 4.95 | F26: 4.95 | G26: 9.95 | H26: 9.95 | I26: 5.6875 | J26: 5.6875 | K26: 6.5625 | L26: 6.5625 | M26: stena | N26: stena | O26: stena | P26: stena | Q26: stena | R26: stena
B27: 021 | C27: 0.5 | D27: 0.5 | E27: 0.95 | F27: 0.95 | G27: 9.95 | H27: 9.95 | I27: 7.4375 | J27: 7.4375 | K27: 8.3125 | L27: 8.3125 | M27: stena | N27: stena | O27: stena | P27: stena | Q27: stena | R27: stena
B28: 022 | C28: 1.5 | D28: 1.5 | E28: 1.95 | F28: 1.95 | G28: 9.95 | H28: 9.95 | I28: 7.4375 | J28: 7.4375 | K28: 8.3125 | L28: 8.3125 | M28: stena | N28: stena | O28: stena | P28: stena | Q28: stena | R28: stena
B29: 023 | C29: 2.5 | D29: 2.5 | E29: 2.95 | F29: 2.95 | G29: 9.95 | H29: 9.95 | I29: 7.4375 | J29: 7.4375 | K29: 8.3125 | L29: 8.3125 | M29: stena | N29: stena | O29: stena | P29: stena | Q29: stena | R29: stena
B30: 024 | C30: 3.5 | D30: 3.5 | E30: 3.95 | F30: 3.95 | G30: 9.95 | H30: 9.95 | I30: 7.4375 | J30: 7.4375 | K30: 8.3125 | L30: 8.3125 | M30: stena | N30: stena | O30: stena | P30: stena | Q30: stena | R30: stena
B31: 025 | C31: 4.5 | D31: 4.5 | E31: 4.95 | F31: 4.95 | G31: 9.95 | H31: 9.95 | I31: 7.4375 | J31: 7.4375 | K31: 8.3125 | L31: 8.3125 | M31: stena | N31: stena | O31: stena | P31: stena | Q31: stena | R31: stena
B32: 026 | C32: 0.5 | D32: 0.5 | E32: 0.95 | F32: 0.95 | G32: 9.95 | H32: 9.95 | I32: 9.1875 | J32: 9.1875 | K32: 10.0625 | L32: 10.0625 | M32: stena | N32: stena | O32: stena | P32: stena | Q32: stena | R32: stena
B33: 027 | C33: 1.5 | D33: 1.5 | E33: 1.95 | F33: 1.95 | G33: 9.95 | H33: 9.95 | I33: 9.1875 | J33: 9.1875 | K33: 10.0625 | L33: 10.0625 | M33: stena | N33: stena | O33: stena | P33: stena | Q33: stena | R33: stena
B34: 028 | C34: 2.5 | D34: 2.5 | E34: 2.95 | F34: 2.95 | G34: 9.95 | H34: 9.95 | I34: 9.1875 | J34: 9.1875 | K34: 10.0625 | L34: 10.0625 | M34: stena | N34: stena | O34: stena | P34: stena | Q34: stena | R34: stena
B35: 029 | C35: 3.5 | D35: 3.5 | E35: 3.95 | F35: 3.95 | G35: 9.95 | H35: 9.95 | I35: 9.1875 | J35: 9.1875 | K35: 10.0625 | L35: 10.0625 | M35: stena | N35: stena | O35: stena | P35: stena | Q35: stena | R35: stena
B36: 030 | C36: 4.5 | D36: 4.5 | E36: 4.95 | F36: 4.95 | G36: 9.95 | H36: 9.95 | I36: 9.1875 | J36: 9.1875 | K36: 10.0625 | L36: 10.0625 | M36: stena | N36: stena | O36: stena | P36: stena | Q36: stena | R36: stena
B37: 031 | C37: 0.5 | D37: 0.5 | E37: 0.95 | F37: 0.95 | G37: 9.95 | H37: 9.95 | I37: 10.9375 | J37: 10.9375 | K37: 11.8125 | L37: 11.8125 | M37: stena | N37: stena | O37: stena | P37: stena | Q37: stena | R37: stena
B38: 032 | C38: 1.5 | D38: 1.5 | E38: 1.95 | F38: 1.95 | G38: 9.95 | H38: 9.95 | I38: 10.9375 | J38: 10.9375 | K38: 11.8125 | L38: 11.8125 | M38: stena | N38: stena | O38: stena | P38: stena | Q38: stena | R38: stena
B39: 033 | C39: 2.5 | D39: 2.5 | E39: 2.95 | F39: 2.95 | G39: 9.95 | H39: 9.95 | I39: 10.9375 | J39: 10.9375 | K39: 11.8125 | L39: 11.8125 | M39: =IF($I$3="ano",IF(AND(C39>$J$3,C39<$K$3,I39>$N$3,I39<$O$3),"otvor","stena"),"stena") -> stena | N39: =IF($I$4="ano",IF(AND(C39>$J$4,C39<$K$4,I39>$N$4,I39<$O$4),"otvor","stena"),"stena") -> stena | O39: stena | P39: =IF($I$3="ano",IF(AND(E39>$J$3,E39<$K$3,K39>$N$3,K39<$O$3),"otvor","stena"),"stena") -> stena | Q39: =IF($I$4="ano",IF(AND(E39>$J$4,E39<$K$4,K39>$N$4,K39<$O$4),"otvor","stena"),"stena") -> stena | R39: stena
B40: 034 | C40: =IF(C39>=($C$2-$G$2),$G$2/2,C39+$G$2) -> 3.5 | D40: 3.5 | E40: 3.95 | F40: 3.95 | G40: 9.95 | H40: 9.95 | I40: 10.9375 | J40: 10.9375 | K40: 11.8125 | L40: 11.8125 | M40: stena | N40: stena | O40: stena | P40: stena | Q40: stena | R40: stena
B41: 035 | C41: 4.5 | D41: 4.5 | E41: 4.95 | F41: 4.95 | G41: 9.95 | H41: 9.95 | I41: 10.9375 | J41: 10.9375 | K41: 11.8125 | L41: 11.8125 | M41: stena | N41: stena | O41: stena | P41: stena | Q41: stena | R41: stena
B42: 036 | C42: 0.5 | D42: 0.5 | E42: 0.95 | F42: 0.95 | G42: 9.95 | H42: 9.95 | I42: 12.6875 | J42: 12.6875 | K42: 13.5625 | L42: 13.5625 | M42: stena | N42: stena | O42: stena | P42: stena | Q42: stena | R42: stena
B43: 037 | C43: 1.5 | D43: 1.5 | E43: 1.95 | F43: 1.95 | G43: 9.95 | H43: 9.95 | I43: 12.6875 | J43: 12.6875 | K43: 13.5625 | L43: 13.5625 | M43: stena | N43: stena | O43: stena | P43: stena | Q43: stena | R43: stena
B44: 038 | C44: 2.5 | D44: 2.5 | E44: 2.95 | F44: 2.95 | G44: 9.95 | H44: 9.95 | I44: 12.6875 | J44: 12.6875 | K44: 13.5625 | L44: 13.5625 | M44: stena | N44: stena | O44: stena | P44: stena | Q44: stena | R44: stena
B45: 039 | C45: 3.5 | D45: 3.5 | E45: 3.95 | F45: 3.95 | G45: 9.95 | H45: 9.95 | I45: 12.6875 | J45: 12.6875 | K45: 13.5625 | L45: 13.5625 | M45: stena | N45: stena | O45: stena | P45: stena | Q45: stena | R45: stena
B46: 040 | C46: 4.5 | D46: 4.5 | E46: 4.95 | F46: 4.95 | G46: 9.95 | H46: 9.95 | I46: 12.6875 | J46: 12.6875 | K46: 13.5625 | L46: 13.5625 | M46: stena | N46: stena | O46: stena | P46: stena | Q46: stena | R46: stena
B47: 041 | C47: 0.5 | D47: 0.5 | E47: 0.95 | F47: 0.95 | G47: 9.95 | H47: 9.95 | I47: 14.4375 | J47: 14.4375 | K47: 15.3125 | L47: 15.3125 | M47: stena | N47: stena | O47: stena | P47: stena | Q47: stena | R47: stena
B48: 042 | C48: 1.5 | D48: 1.5 | E48: 1.95 | F48: 1.95 | G48: 9.95 | H48: 9.95 | I48: 14.4375 | J48: 14.4375 | K48: 15.3125 | L48: 15.3125 | M48: stena | N48: stena | O48: stena | P48: stena | Q48: stena | R48: stena
B49: 043 | C49: 2.5 | D49: 2.5 | E49: 2.95 | F49: 2.95 | G49: 9.95 | H49: 9.95 | I49: 14.4375 | J49: 14.4375 | K49: 15.3125 | L49: 15.3125 | M49: stena | N49: stena | O49: stena | P49: stena | Q49: stena | R49: stena
B50: 044 | C50: 3.5 | D50: 3.5 | E50: 3.95 | F50: 3.95 | G50: 9.95 | H50: 9.95 | I50: 14.4375 | J50: 14.4375 | K50: 15.3125 | L50: 15.3125 | M50: stena | N50: stena | O50: stena | P50: stena | Q50: stena | R50: stena
B51: 045 | C51: 4.5 | D51: 4.5 | E51: 4.95 | F51: 4.95 | G51: 9.95 | H51: 9.95 | I51: 14.4375 | J51: 14.4375 | K51: 15.3125 | L51: 15.3125 | M51: stena | N51: stena | O51: stena | P51: stena | Q51: stena | R51: stena
B52: 046 | C52: 0.5 | D52: 0.5 | E52: 0.95 | F52: 0.95 | G52: 9.95 | H52: 9.95 | I52: 16.1875 | J52: 16.1875 | K52: 17.0625 | L52: 17.0625 | M52: stena | N52: stena | O52: stena | P52: stena | Q52: stena | R52: stena
B53: 047 | C53: 1.5 | D53: 1.5 | E53: 1.95 | F53: 1.95 | G53: 9.95 | H53: 9.95 | I53: 16.1875 | J53: 16.1875 | K53: 17.0625 | L53: 17.0625 | M53: stena | N53: stena | O53: stena | P53: stena | Q53: stena | R53: stena
B54: 048 | C54: 2.5 | D54: 2.5 | E54: 2.95 | F54: 2.95 | G54: 9.95 | H54: 9.95 | I54: 16.1875 | J54: 16.1875 | K54: 17.0625 | L54: 17.0625 | M54: stena | N54: stena | O54: stena | P54: stena | Q54: stena | R54: stena
B55: 049 | C55: 3.5 | D55: 3.5 | E55: 3.95 | F55: 3.95 | G55: 9.95 | H55: 9.95 | I55: 16.1875 | J55: 16.1875 | K55: 17.0625 | L55: 17.0625 | M55: stena | N55: stena | O55: stena | P55: stena | Q55: stena | R55: stena
B56: 050 | C56: 4.5 | D56: 4.5 | E56: 4.95 | F56: 4.95 | G56: 9.95 | H56: 9.95 | I56: 16.1875 | J56: 16.1875 | K56: 17.0625 | L56: 17.0625 | M56: stena | N56: stena | O56: stena | P56: stena | Q56: stena | R56: stena
B57: 051 | C57: 0.5 | D57: 0.5 | E57: 0.95 | F57: 0.95 | G57: 9.95 | H57: 9.95 | I57: 17.9375 | J57: 17.9375 | K57: 18.8125 | L57: 18.8125 | M57: stena | N57: stena | O57: stena | P57: stena | Q57: stena | R57: stena
B58: 052 | C58: 1.5 | D58: 1.5 | E58: 1.95 | F58: 1.95 | G58: 9.95 | H58: 9.95 | I58: 17.9375 | J58: 17.9375 | K58: 18.8125 | L58: 18.8125 | M58: stena | N58: stena | O58: stena | P58: stena | Q58: stena | R58: stena
B59: 053 | C59: 2.5 | D59: 2.5 | E59: 2.95 | F59: 2.95 | G59: 9.95 | H59: 9.95 | I59: 17.9375 | J59: 17.9375 | K59: 18.8125 | L59: 18.8125 | M59: stena | N59: stena | O59: stena | P59: stena | Q59: stena | R59: stena
B60: 054 | C60: 3.5 | D60: 3.5 | E60: 3.95 | F60: 3.95 | G60: 9.95 | H60: 9.95 | I60: 17.9375 | J60: 17.9375 | K60: 18.8125 | L60: 18.8125 | M60: stena | N60: stena | O60: stena | P60: stena | Q60: stena | R60: stena
B61: 055 | C61: 4.5 | D61: 4.5 | E61: 4.95 | F61: 4.95 | G61: 9.95 | H61: 9.95 | I61: 17.9375 | J61: 17.9375 | K61: 18.8125 | L61: 18.8125 | M61: stena | N61: stena | O61: stena | P61: stena | Q61: stena | R61: stena
B62: 056 | C62: 0.5 | D62: 0.5 | E62: 0.95 | F62: 0.95 | G62: 9.95 | H62: 9.95 | I62: 19.6875 | J62: 19.6875 | K62: 20.5625 | L62: 20.5625 | M62: stena | N62: stena | O62: stena | P62: stena | Q62: stena | R62: stena
B63: 057 | C63: 1.5 | D63: 1.5 | E63: 1.95 | F63: 1.95 | G63: 9.95 | H63: 9.95 | I63: 19.6875 | J63: 19.6875 | K63: 20.5625 | L63: 20.5625 | M63: stena | N63: stena | O63: stena | P63: stena | Q63: stena | R63: stena
B64: 058 | C64: 2.5 | D64: 2.5 | E64: 2.95 | F64: 2.95 | G64: 9.95 | H64: 9.95 | I64: 19.6875 | J64: 19.6875 | K64: 20.5625 | L64: 20.5625 | M64: stena | N64: stena | O64: stena | P64: stena | Q64: stena | R64: stena
B65: 059 | C65: 3.5 | D65: 3.5 | E65: 3.95 | F65: 3.95 | G65: 9.95 | H65: 9.95 | I65: 19.6875 | J65: 19.6875 | K65: 20.5625 | L65: 20.5625 | M65: stena | N65: stena | O65: stena | P65: stena | Q65: stena | R65: stena
B66: 060 | C66: 4.5 | D66: 4.5 | E66: 4.95 | F66: 4.95 | G66: 9.95 | H66: 9.95 | I66: 19.6875 | J66: 19.6875 | K66: 20.5625 | L66: 20.5625 | M66: stena | N66: stena | O66: stena | P66: stena | Q66: stena | R66: stena
B67: 061 | C67: 0.5 | D67: 0.5 | E67: 0.95 | F67: 0.95 | G67: 9.95 | H67: 9.95 | I67: 21.4375 | J67: 21.4375 | K67: 22.3125 | L67: 22.3125 | M67: stena | N67: stena | O67: stena | P67: stena | Q67: stena | R67: stena
B68: 062 | C68: 1.5 | D68: 1.5 | E68: 1.95 | F68: 1.95 | G68: 9.95 | H68: 9.95 | I68: 21.4375 | J68: 21.4375 | K68: 22.3125 | L68: 22.3125 | M68: stena | N68: stena | O68: stena | P68: stena | Q68: stena | R68: stena
B69: 063 | C69: 2.5 | D69: 2.5 | E69: 2.95 | F69: 2.95 | G69: 9.95 | H69: 9.95 | I69: 21.4375 | J69: 21.4375 | K69: 22.3125 | L69: 22.3125 | M69: stena | N69: stena | O69: stena | P69: stena | Q69: stena | R69: stena
B70: 064 | C70: 3.5 | D70: 3.5 | E70: 3.95 | F70: 3.95 | G70: 9.95 | H70: 9.95 | I70: 21.4375 | J70: 21.4375 | K70: 22.3125 | L70: 22.3125 | M70: stena | N70: stena | O70: stena | P70: stena | Q70: stena | R70: stena
B71: 065 | C71: 4.5 | D71: =SUBSTITUTE(C71,",",".") -> 4.5 | E71: 4.95 | F71: =SUBSTITUTE(E71,",",".") -> 4.95 | G71: 9.95 | H71: 9.95 | I71: 21.4375 | J71: =SUBSTITUTE(I71,",",".") -> 21.4375 | K71: 22.3125 | L71: 22.3125 | M71: =IF($I$3="ano",IF(AND(C71>$J$3,C71<$K$3,I71>$N$3,I71<$O$3),"otvor","stena"),"stena") -> stena | N71: =IF($I$4="ano",IF(AND(C71>$J$4,C71<$K$4,I71>$N$4,I71<$O$4),"otvor","stena"),"stena") -> stena | O71: stena | P71: =IF($I$3="ano",IF(AND(E71>$J$3,E71<$K$3,K71>$N$3,K71<$O$3),"otvor","stena"),"stena") -> stena | Q71: =IF($I$4="ano",IF(AND(E71>$J$4,E71<$K$4,K71>$N$4,K71<$O$4),"otvor","stena"),"stena") -> stena | R71: =IF(OR(P71="otvor",Q71="otvor"),"otvor","stena") -> stena
B72: 066 | C72: =IF(C71>=($C$2-$G$2),$G$2/2,C71+$G$2) -> 0.5 | D72: 0.5 | E72: 0.95 | F72: 0.95 | G72: 9.95 | H72: =SUBSTITUTE(G72,",",".") -> 9.95 | I72: 23.1875 | J72: 23.1875 | K72: 24.0625 | L72: 24.0625 | M72: stena | N72: stena | O72: stena | P72: stena | Q72: stena | R72: stena | S72: =IF(AND(C72>$M$2,I72>$O$2),IF(O72="stena",IF(I72>$C$4,"",CONCATENATE("&FIRE ID = 'F.",$E$2,".5.",B72,"' COMP_ID = '",$E$2,"', FIRE_ID = 'FP.",$E$2,".X.",J72,"' LOCATION = ",D72,", ",H72," IGNITION_CRITERION = 'TEMPERATURE', DEVC_ID = 'T.",$E$2,".5.",B72,"', SETPOINT = ",$R$4," /")),""),"") ->  | T72: =IF(AND(E72>$M$2,K72>$O$2),IF(R72="stena",IF(K72>$C$4,"",CONCATENATE("&FIRE ID = 'F.",$E$2,".6.",B72,"' COMP_ID = '",$E$2,"', FIRE_ID = 'FP.",$E$2,".X.",L72,"' LOCATION = ",F72,", ",H72," IGNITION_CRITERION = 'TEMPERATURE', DEVC_ID = 'T.",$E$2,".6.",B72,"', SETPOINT = ",$R$4," /")),""),"") ->  | U72: =IF(S72="","",IF(O72="stena",IF(I72>$C$4,"",CONCATENATE("&DEVC ID = 'T.",$E$2,".5.",B72,"' COMP_ID = '",$E$2,"' LOCATION = ",D72,", ",H72,", ",J72," TYPE = '",$P$3,"' MATL_ID = '",$P$2,"' SURFACE_ORIENTATION = '",$P$4,"' THICKNESS = ",$R$2," TEMPERATURE_DEPTH = ",$R$3," DEPTH_UNITS = 'M' /")),"")) ->  | V72: =IF(T72="","",IF(R72="stena",IF(K72>$C$4,"",CONCATENATE("&DEVC ID = 'T.",$E$2,".6.",B72,"' COMP_ID = '",$E$2,"' LOCATION = ",F72,", ",H72,", ",L72," TYPE = '",$P$3,"' MATL_ID = '",$P$2,"' SURFACE_ORIENTATION = '",$P$4,"' THICKNESS = ",$R$2," TEMPERATURE_DEPTH = ",$R$3," DEPTH_UNITS = 'M' /")),"")) -> 
B73: 067 | C73: 1.5 | D73: 1.5 | E73: =IF(E72>=($C$2-$E$3),$G$2-$E$3,E72+$G$2) -> 1.95 | F73: 1.95 | G73: =G72 -> 9.95 | H73: 9.95 | I73: =IF(C73=$G$2/2,I72+$G$3*2,I72) -> 23.1875 | J73: 23.1875 | K73: =IF(E73=($G$2-$E$3),K72+$G$3*2,K72) -> 24.0625 | L73: =SUBSTITUTE(K73,",",".") -> 24.0625 | M73: stena | N73: stena | O73: stena | P73: stena | Q73: stena | R73: stena
B74: =RIGHT("00"&ROW(A68),3) -> 068 | C74: 2.5 | D74: 2.5 | E74: 2.95 | F74: 2.95 | G74: 9.95 | H74: 9.95 | I74: 23.1875 | J74: 23.1875 | K74: 24.0625 | L74: 24.0625 | M74: stena | N74: stena | O74: stena | P74: stena | Q74: stena | R74: stena
B75: 069 | C75: 3.5 | D75: 3.5 | E75: 3.95 | F75: 3.95 | G75: 9.95 | H75: 9.95 | I75: 23.1875 | J75: 23.1875 | K75: 24.0625 | L75: 24.0625 | M75: stena | N75: stena | O75: stena | P75: stena | Q75: stena | R75: stena
B76: 070 | C76: 4.5 | D76: 4.5 | E76: 4.95 | F76: 4.95 | G76: 9.95 | H76: 9.95 | I76: 23.1875 | J76: 23.1875 | K76: 24.0625 | L76: 24.0625 | M76: stena | N76: stena | O76: stena | P76: stena | Q76: stena | R76: stena
B77: 071 | C77: 0.5 | D77: 0.5 | E77: 0.95 | F77: 0.95 | G77: 9.95 | H77: 9.95 | I77: 24.9375 | J77: 24.9375 | K77: 25.8125 | L77: 25.8125 | M77: stena | N77: stena | O77: =IF(OR(M77="otvor",N77="otvor"),"otvor","stena") -> stena | P77: stena | Q77: stena | R77: stena
B78: 072 | C78: 1.5 | D78: 1.5 | E78: 1.95 | F78: 1.95 | G78: 9.95 | H78: 9.95 | I78: 24.9375 | J78: 24.9375 | K78: 25.8125 | L78: 25.8125 | M78: stena | N78: stena | O78: stena | P78: stena | Q78: stena | R78: stena
B79: 073 | C79: 2.5 | D79: 2.5 | E79: 2.95 | F79: 2.95 | G79: 9.95 | H79: 9.95 | I79: 24.9375 | J79: 24.9375 | K79: 25.8125 | L79: 25.8125 | M79: stena | N79: stena | O79: stena | P79: stena | Q79: stena | R79: stena
B80: 074 | C80: 3.5 | D80: 3.5 | E80: 3.95 | F80: 3.95 | G80: 9.95 | H80: 9.95 | I80: 24.9375 | J80: 24.9375 | K80: 25.8125 | L80: 25.8125 | M80: stena | N80: stena | O80: stena | P80: stena | Q80: stena | R80: stena
B81: 075 | C81: 4.5 | D81: 4.5 | E81: 4.95 | F81: 4.95 | G81: 9.95 | H81: 9.95 | I81: 24.9375 | J81: 24.9375 | K81: 25.8125 | L81: 25.8125 | M81: stena | N81: stena | O81: stena | P81: stena | Q81: stena | R81: stena
B82: 076 | C82: 0.5 | D82: 0.5 | E82: 0.95 | F82: 0.95 | G82: 9.95 | H82: 9.95 | I82: 26.6875 | J82: 26.6875 | K82: 27.5625 | L82: 27.5625 | M82: stena | N82: stena | O82: stena | P82: stena | Q82: stena | R82: stena
B83: 077 | C83: 1.5 | D83: 1.5 | E83: 1.95 | F83: 1.95 | G83: 9.95 | H83: 9.95 | I83: 26.6875 | J83: 26.6875 | K83: 27.5625 | L83: 27.5625 | M83: stena | N83: stena | O83: stena | P83: stena | Q83: stena | R83: stena
B84: 078 | C84: 2.5 | D84: 2.5 | E84: 2.95 | F84: 2.95 | G84: 9.95 | H84: 9.95 | I84: 26.6875 | J84: 26.6875 | K84: 27.5625 | L84: 27.5625 | M84: stena | N84: stena | O84: stena | P84: stena | Q84: stena | R84: stena
B85: 079 | C85: 3.5 | D85: 3.5 | E85: 3.95 | F85: 3.95 | G85: 9.95 | H85: 9.95 | I85: 26.6875 | J85: 26.6875 | K85: 27.5625 | L85: 27.5625 | M85: stena | N85: stena | O85: stena | P85: stena | Q85: stena | R85: stena
B86: 080 | C86: 4.5 | D86: 4.5 | E86: 4.95 | F86: 4.95 | G86: 9.95 | H86: 9.95 | I86: 26.6875 | J86: 26.6875 | K86: 27.5625 | L86: 27.5625 | M86: stena | N86: stena | O86: stena | P86: stena | Q86: stena | R86: stena
B87: 081 | C87: 0.5 | D87: 0.5 | E87: 0.95 | F87: 0.95 | G87: 9.95 | H87: 9.95 | I87: 28.4375 | J87: 28.4375 | K87: 29.3125 | L87: 29.3125 | M87: stena | N87: stena | O87: stena | P87: stena | Q87: stena | R87: stena
B88: 082 | C88: 1.5 | D88: 1.5 | E88: 1.95 | F88: 1.95 | G88: 9.95 | H88: 9.95 | I88: 28.4375 | J88: 28.4375 | K88: 29.3125 | L88: 29.3125 | M88: stena | N88: stena | O88: stena | P88: stena | Q88: stena | R88: stena
B89: 083 | C89: 2.5 | D89: 2.5 | E89: 2.95 | F89: 2.95 | G89: 9.95 | H89: 9.95 | I89: 28.4375 | J89: 28.4375 | K89: 29.3125 | L89: 29.3125 | M89: stena | N89: stena | O89: stena | P89: stena | Q89: stena | R89: stena
B90: 084 | C90: 3.5 | D90: 3.5 | E90: 3.95 | F90: 3.95 | G90: 9.95 | H90: 9.95 | I90: 28.4375 | J90: 28.4375 | K90: 29.3125 | L90: 29.3125 | M90: stena | N90: stena | O90: stena | P90: stena | Q90: stena | R90: stena
B91: 085 | C91: 4.5 | D91: 4.5 | E91: 4.95 | F91: 4.95 | G91: 9.95 | H91: 9.95 | I91: 28.4375 | J91: 28.4375 | K91: 29.3125 | L91: 29.3125 | M91: stena | N91: stena | O91: stena | P91: stena | Q91: stena | R91: stena
B92: 086 | C92: 0.5 | D92: 0.5 | E92: 0.95 | F92: 0.95 | G92: 9.95 | H92: 9.95 | I92: 30.1875 | J92: 30.1875 | K92: 31.0625 | L92: 31.0625 | M92: stena | N92: stena | O92: stena | P92: stena | Q92: stena | R92: stena
B93: 087 | C93: 1.5 | D93: 1.5 | E93: 1.95 | F93: 1.95 | G93: 9.95 | H93: 9.95 | I93: 30.1875 | J93: 30.1875 | K93: 31.0625 | L93: 31.0625 | M93: stena | N93: stena | O93: stena | P93: stena | Q93: stena | R93: stena
B94: 088 | C94: 2.5 | D94: 2.5 | E94: 2.95 | F94: 2.95 | G94: 9.95 | H94: 9.95 | I94: 30.1875 | J94: 30.1875 | K94: 31.0625 | L94: 31.0625 | M94: stena | N94: stena | O94: stena | P94: stena | Q94: stena | R94: stena
B95: 089 | C95: 3.5 | D95: 3.5 | E95: 3.95 | F95: 3.95 | G95: 9.95 | H95: 9.95 | I95: 30.1875 | J95: 30.1875 | K95: 31.0625 | L95: 31.0625 | M95: stena | N95: stena | O95: stena | P95: stena | Q95: stena | R95: stena
B96: 090 | C96: 4.5 | D96: 4.5 | E96: 4.95 | F96: 4.95 | G96: 9.95 | H96: 9.95 | I96: 30.1875 | J96: 30.1875 | K96: 31.0625 | L96: 31.0625 | M96: stena | N96: stena | O96: stena | P96: stena | Q96: stena | R96: stena
B97: 091 | C97: 0.5 | D97: 0.5 | E97: 0.95 | F97: 0.95 | G97: 9.95 | H97: 9.95 | I97: 31.9375 | J97: 31.9375 | K97: 32.8125 | L97: 32.8125 | M97: stena | N97: stena | O97: stena | P97: stena | Q97: stena | R97: stena
B98: 092 | C98: 1.5 | D98: 1.5 | E98: 1.95 | F98: 1.95 | G98: 9.95 | H98: 9.95 | I98: 31.9375 | J98: 31.9375 | K98: 32.8125 | L98: 32.8125 | M98: stena | N98: stena | O98: stena | P98: stena | Q98: stena | R98: stena
B99: 093 | C99: 2.5 | D99: =SUBSTITUTE(C99,",",".") -> 2.5 | E99: 2.95 | F99: =SUBSTITUTE(E99,",",".") -> 2.95 | G99: 9.95 | H99: 9.95 | I99: 31.9375 | J99: =SUBSTITUTE(I99,",",".") -> 31.9375 | K99: 32.8125 | L99: 32.8125 | M99: stena | N99: stena | O99: stena | P99: stena | Q99: stena | R99: stena
B100: 094 | C100: 3.5 | D100: 3.5 | E100: 3.95 | F100: 3.95 | G100: 9.95 | H100: 9.95 | I100: 31.9375 | J100: 31.9375 | K100: 32.8125 | L100: 32.8125 | M100: stena | N100: stena | O100: stena | P100: stena | Q100: stena | R100: stena
B101: 095 | C101: 4.5 | D101: 4.5 | E101: 4.95 | F101: 4.95 | G101: 9.95 | H101: 9.95 | I101: 31.9375 | J101: 31.9375 | K101: 32.8125 | L101: 32.8125 | M101: stena | N101: stena | O101: stena | P101: stena | Q101: stena | R101: stena
B102: 096 | C102: 0.5 | D102: 0.5 | E102: 0.95 | F102: 0.95 | G102: 9.95 | H102: 9.95 | I102: 33.6875 | J102: 33.6875 | K102: 34.5625 | L102: 34.5625 | M102: stena | N102: stena | O102: stena | P102: stena | Q102: stena | R102: stena
B103: 097 | C103: 1.5 | D103: =SUBSTITUTE(C103,",",".") -> 1.5 | E103: 1.95 | F103: =SUBSTITUTE(E103,",",".") -> 1.95 | G103: 9.95 | H103: 9.95 | I103: 33.6875 | J103: =SUBSTITUTE(I103,",",".") -> 33.6875 | K103: 34.5625 | L103: 34.5625 | M103: stena | N103: stena | O103: stena | P103: stena | Q103: stena | R103: stena
B104: 098 | C104: 2.5 | D104: 2.5 | E104: 2.95 | F104: 2.95 | G104: 9.95 | H104: 9.95 | I104: 33.6875 | J104: 33.6875 | K104: 34.5625 | L104: 34.5625 | M104: stena | N104: stena | O104: stena | P104: stena | Q104: stena | R104: stena
B105: 099 | C105: 3.5 | D105: 3.5 | E105: 3.95 | F105: 3.95 | G105: 9.95 | H105: 9.95 | I105: 33.6875 | J105: 33.6875 | K105: 34.5625 | L105: 34.5625 | M105: stena | N105: stena | O105: stena | P105: stena | Q105: stena | R105: stena
B106: 100 | C106: 4.5 | D106: 4.5 | E106: 4.95 | F106: 4.95 | G106: 9.95 | H106: 9.95 | I106: 33.6875 | J106: 33.6875 | K106: 34.5625 | L106: 34.5625 | M106: stena | N106: stena | O106: stena | P106: stena | Q106: stena | R106: stena
B107: 101 | C107: 0.5 | D107: 0.5 | E107: 0.95 | F107: 0.95 | G107: 9.95 | H107: 9.95 | I107: 35.4375 | J107: 35.4375 | K107: 36.3125 | L107: 36.3125 | M107: stena | N107: stena | O107: stena | P107: stena | Q107: stena | R107: stena
O108: =IF(O107="stena","ok","pozor") -> ok | R108: =IF(R107="stena","ok","pozor") -> ok | S108: =IF(S107="","ok","pozor") -> ok | T108: =IF(T107="","ok","pozor") -> ok

Sheet Fire Devc D
B2: x | C2: =zadani!G7 -> 5 | D2: místno. | E2: =zadani!G6 -> C1 | F2: hrana y | G2: =C3/zadani!G17 -> 1 | H2: STRANA D | M2: =zadani!G10 -> 0 | N2: =zadani!G11 -> 0 | O2: =zadani!G12 -> 0 | P2: =zadani!G38 -> M1 | Q2: =zadani!G41 -> 0.015 | R2: =SUBSTITUTE(Q2,",",".") -> 0.015
B3: y | C3: =zadani!G8 -> 10 | D3: odstup | E3: =zadani!G13 -> 0.05 | F3: hrana z | G3: =C4/zadani!G18 -> 0.875 | H3: otvor 1 | I3: =zadani!L14 -> ne | J3: =zadani!M14 -> - | K3: =zadani!N14 -> - | L3: =zadani!O14 -> 0 | M3: =zadani!P14 -> 0 | N3: =zadani!Q14 -> 0 | O3: =zadani!R14 -> 0 | P3: =zadani!G39 -> PLATE | Q3: =zadani!G42 -> 0 | R3: =SUBSTITUTE(Q3,",",".") -> 0
B4: z | C4: =zadani!G9 -> 3.5 | D4: vše ok? | E4: =IF(AND(O108="ok",R108="ok",S108="ok",T108="ok"),"ok","pozor") -> ok | H4: otvor 2 | I4: =zadani!L15 -> ne | J4: =zadani!M15 -> - | K4: =zadani!N15 -> - | L4: =zadani!O15 -> 0 | M4: =zadani!P15 -> 0 | N4: =zadani!Q15 -> 0 | O4: =zadani!R15 -> 0 | P4: =zadani!G40 -> FLOOR | Q4: =zadani!C42 -> 250 | R4: =SUBSTITUTE(Q4,",",".") -> 250
B6: pořad. číslo | C6: X | E6: Y lichá | G6: Y sudá | I6: Z lichá | K6: Z sudá | M6: otvor 1 lichy | N6: otvor 2 lichy | O6: otvory liche | P6: otvor 1 sudy | Q6: otvor 2 sudy | R6: otvory sude
B7: =RIGHT("00"&ROW(A1),3) -> 001 | C7: =E3 -> 0.05 | D7: =SUBSTITUTE(C7,",",".") -> 0.05 | E7: =G2/2 -> 0.5 | F7: =SUBSTITUTE(E7,",",".") -> 0.5 | G7: =G2-E3 -> 0.95 | H7: =SUBSTITUTE(G7,",",".") -> 0.95 | I7: =G3/2 -> 0.4375 | J7: =SUBSTITUTE(I7,",",".") -> 0.4375 | K7: =$G$3*1.5 -> 1.3125 | L7: =SUBSTITUTE(K7,",",".") -> 1.3125 | M7: =IF($I$3="ano",IF(AND(E7>$L$3,E7<$M$3,I7>$N$3,I7<$O$3),"otvor","stena"),"stena") -> stena | N7: =IF($I$4="ano",IF(AND(E7>$L$4,E7<$M$4,I7>$N$4,I7<$O$4),"otvor","stena"),"stena") -> stena | O7: =IF(OR(M7="otvor",N7="otvor"),"otvor","stena") -> stena | P7: =IF($I$3="ano",IF(AND(G7>$L$3,G7<$M$3,K7>$N$3,K7<$O$3),"otvor","stena"),"stena") -> stena | Q7: =IF($I$4="ano",IF(AND(G7>$L$4,G7<$M$4,K7>$N$4,K7<$O$4),"otvor","stena"),"stena") -> stena | R7: =IF(OR(P7="otvor",Q7="otvor"),"otvor","stena") -> stena | S7: =IF(AND(F7>$N$2,I7>$O$2),IF(O7="stena",IF(I7>$C$4,"",CONCATENATE("&FIRE ID = 'F.",$E$2,".7.",B7,"' COMP_ID = '",$E$2,"', FIRE_ID = 'FP.",$E$2,".Y.",J7,"' LOCATION = ",D7,", ",F7," IGNITION_CRITERION = 'TEMPERATURE', DEVC_ID = 'T.",$E$2,".7.",B7,"', SETPOINT = ",$R$4," /")),""),"") -> &FIRE ID = 'F.C1.7.001' COMP_ID = 'C1', FIRE_ID = 'FP.C1.Y.0.4375' LOCATION = 0.05, 0.5 IGNITION_CRITERION = 'TEMPERATURE', DEVC_ID = 'T.C1.7.001', SETPOINT = 250 / | T7: =IF(AND(G7>$N$2,K7>$O$2),IF(R7="stena",IF(K7>$C$4,"",CONCATENATE("&FIRE ID = 'F.",$E$2,".8.",B7,"' COMP_ID = '",$E$2,"', FIRE_ID = 'FP.",$E$2,".Y.",L7,"' LOCATION = ",D7,", ",H7," IGNITION_CRITERION = 'TEMPERATURE', DEVC_ID = 'T.",$E$2,".8.",B7,"', SETPOINT = ",$R$4," /")),""),"") -> &FIRE ID = 'F.C1.8.001' COMP_ID = 'C1', FIRE_ID = 'FP.C1.Y.1.3125' LOCATION = 0.05, 0.95 IGNITION_CRITERION = 'TEMPERATURE', DEVC_ID = 'T.C1.8.001', SETPOINT = 250 / | U7: =IF(S7="","",IF(O7="stena",IF(I7>$C$4,"",CONCATENATE("&DEVC ID = 'T.",$E$2,".7.",B7,"' COMP_ID = '",$E$2,"' LOCATION = ",D7,", ",F7,", ",J7," TYPE = '",$P$3,"' MATL_ID = '",$P$2,"' SURFACE_ORIENTATION = '",$P$4,"' THICKNESS = ",$R$2," TEMPERATURE_DEPTH = ",$R$3," DEPTH_UNITS = 'M' /")),"")) -> &DEVC ID = 'T.C1.7.001' COMP_ID = 'C1' LOCATION = 0.05, 0.5, 0.4375 TYPE = 'PLATE' MATL_ID = 'M1' SURFACE_ORIENTATION = 'FLOOR' THICKNESS = 0.015 TEMPERATURE_DEPTH = 0 DEPTH_UNITS = 'M' / | V7: =IF(T7="","",IF(R7="stena",IF(K7>$C$4,"",CONCATENATE("&DEVC ID = 'T.",$E$2,".8.",B7,"' COMP_ID = '",$E$2,"' LOCATION = ",D7,", ",H7,", ",L7," TYPE = '",$P$3,"' MATL_ID = '",$P$2,"' SURFACE_ORIENTATION = '",$P$4,"' THICKNESS = ",$R$2," TEMPERATURE_DEPTH = ",$R$3," DEPTH_UNITS = 'M' /")),"")) -> &DEVC ID = 'T.C1.8.001' COMP_ID = 'C1' LOCATION = 0.05, 0.95, 1.3125 TYPE = 'PLATE' MATL_ID = 'M1' SURFACE_ORIENTATION = 'FLOOR' THICKNESS = 0.015 TEMPERATURE_DEPTH = 0 DEPTH_UNITS = 'M' /
B8: =RIGHT("00"&ROW(A2),3) -> 002 | C8: =$C$7 -> 0.05 | D8: 0.05 | E8: =IF(E7>=($C$3-$G$2/2),$G$2/2,E7+$G$2) -> 1.5 | F8: 1.5 | G8: =IF(E7>=($C$3-$G$2),$G$2-$E$3,$G$2+G7) -> 1.95 | H8: =SUBSTITUTE(G8,",",".") -> 1.95 | I8: =IF(E8=$G$2/2,I7+$G$3*2,I7) -> 0.4375 | J8: 0.4375 | K8: =IF(G8=($G$2-$E$3),K7+$G$3*2,K7) -> 1.3125 | L8: =SUBSTITUTE(K8,",",".") -> 1.3125 | M8: =IF($I$3="ano",IF(AND(E8>$L$3,E8<$M$3,I8>$N$3,I8<$O$3),"otvor","stena"),"stena") -> stena | N8: =IF($I$4="ano",IF(AND(E8>$L$4,E8<$M$4,I8>$N$4,I8<$O$4),"otvor","stena"),"stena") -> stena | O8: =IF(OR(M8="otvor",N8="otvor"),"otvor","stena") -> stena | P8: =IF($I$3="ano",IF(AND(G8>$L$3,G8<$M$3,K8>$N$3,K8<$O$3),"otvor","stena"),"stena") -> stena | Q8: =IF($I$4="ano",IF(AND(G8>$L$4,G8<$M$4,K8>$N$4,K8<$O$4),"otvor","stena"),"stena") -> stena | R8: stena | S8: =IF(AND(F8>$N$2,I8>$O$2),IF(O8="stena",IF(I8>$C$4,"",CONCATENATE("&FIRE ID = 'F.",$E$2,".7.",B8,"' COMP_ID = '",$E$2,"', FIRE_ID = 'FP.",$E$2,".Y.",J8,"' LOCATION = ",D8,", ",F8," IGNITION_CRITERION = 'TEMPERATURE', DEVC_ID = 'T.",$E$2,".7.",B8,"', SETPOINT = ",$R$4," /")),""),"") -> &FIRE ID = 'F.C1.7.002' COMP_ID = 'C1', FIRE_ID = 'FP.C1.Y.0.4375' LOCATION = 0.05, 1.5 IGNITION_CRITERION = 'TEMPERATURE', DEVC_ID = 'T.C1.7.002', SETPOINT = 250 / | T8: =IF(AND(G8>$N$2,K8>$O$2),IF(R8="stena",IF(K8>$C$4,"",CONCATENATE("&FIRE ID = 'F.",$E$2,".8.",B8,"' COMP_ID = '",$E$2,"', FIRE_ID = 'FP.",$E$2,".Y.",L8,"' LOCATION = ",D8,", ",H8," IGNITION_CRITERION = 'TEMPERATURE', DEVC_ID = 'T.",$E$2,".8.",B8,"', SETPOINT = ",$R$4," /")),""),"") -> &FIRE ID = 'F.C1.8.002' COMP_ID = 'C1', FIRE_ID = 'FP.C1.Y.1.3125' LOCATION = 0.05, 1.95 IGNITION_CRITERION = 'TEMPERATURE', DEVC_ID = 'T.C1.8.002', SETPOINT = 250 / | U8: =IF(S8="","",IF(O8="stena",IF(I8>$C$4,"",CONCATENATE("&DEVC ID = 'T.",$E$2,".7.",B8,"' COMP_ID = '",$E$2,"' LOCATION = ",D8,", ",F8,", ",J8," TYPE = '",$P$3,"' MATL_ID = '",$P$2,"' SURFACE_ORIENTATION = '",$P$4,"' THICKNESS = ",$R$2," TEMPERATURE_DEPTH = ",$R$3," DEPTH_UNITS = 'M' /")),"")) -> &DEVC ID = 'T.C1.7.002' COMP_ID = 'C1' LOCATION = 0.05, 1.5, 0.4375 TYPE = 'PLATE' MATL_ID = 'M1' SURFACE_ORIENTATION = 'FLOOR' THICKNESS = 0.015 TEMPERATURE_DEPTH = 0 DEPTH_UNITS = 'M' / | V8: =IF(T8="","",IF(R8="stena",IF(K8>$C$4,"",CONCATENATE("&DEVC ID = 'T.",$E$2,".8.",B8,"' COMP_ID = '",$E$2,"' LOCATION = ",D8,", ",H8,", ",L8," TYPE = '",$P$3,"' MATL_ID = '",$P$2,"' SURFACE_ORIENTATION = '",$P$4,"' THICKNESS = ",$R$2," TEMPERATURE_DEPTH = ",$R$3," DEPTH_UNITS = 'M' /")),"")) -> &DEVC ID = 'T.C1.8.002' COMP_ID = 'C1' LOCATION = 0.05, 1.95, 1.3125 TYPE = 'PLATE' MATL_ID = 'M1' SURFACE_ORIENTATION = 'FLOOR' THICKNESS = 0.015 TEMPERATURE_DEPTH = 0 DEPTH_UNITS = 'M' /
B9: =RIGHT("00"&ROW(A3),3) -> 003 | C9: =$C$7 -> 0.05 | D9: 0.05 | E9: =IF(E8>=($C$3-$G$2/2),$G$2/2,E8+$G$2) -> 2.5 | F9: 2.5 | G9: =IF(E8>=($C$3-$G$2),$G$2-$E$3,$G$2+G8) -> 2.95 | H9: 2.95 | I9: =IF(E9=$G$2/2,I8+$G$3*2,I8) -> 0.4375 | J9: 0.4375 | K9: =IF(G9=($G$2-$E$3),K8+$G$3*2,K8) -> 1.3125 | L9: =SUBSTITUTE(K9,",",".") -> 1.3125 | M9: stena | N9: stena | O9: stena | P9: stena | Q9: stena | R9: stena | S9: &FIRE ID = 'F.C1.7.003' COMP_ID = 'C1', FIRE_ID = 'FP.C1.Y.0.4375' LOCATION = 0.05, 2.5 IGNITION_CRITERION = 'TEMPERATURE', DEVC_ID = 'T.C1.7.003', SETPOINT = 250 / | T9: &FIRE ID = 'F.C1.8.003' COMP_ID = 'C1', FIRE_ID = 'FP.C1.Y.1.3125' LOCATION = 0.05, 2.95 IGNITION_CRITERION = 'TEMPERATURE', DEVC_ID = 'T.C1.8.003', SETPOINT = 250 / | U9: &DEVC ID = 'T.C1.7.003' COMP_ID = 'C1' LOCATION = 0.05, 2.5, 0.4375 TYPE = 'PLATE' MATL_ID = 'M1' SURFACE_ORIENTATION = 'FLOOR' THICKNESS = 0.015 TEMPERATURE_DEPTH = 0 DEPTH_UNITS = 'M' / | V9: &DEVC ID = 'T.C1.8.003' COMP_ID = 'C1' LOCATION = 0.05, 2.95, 1.3125 TYPE = 'PLATE' MATL_ID = 'M1' SURFACE_ORIENTATION = 'FLOOR' THICKNESS = 0.015 TEMPERATURE_DEPTH = 0 DEPTH_UNITS = 'M' /
B10: =RIGHT("00"&ROW(A4),3) -> 004 | C10: 0.05 | D10: 0.05 | E10: 3.5 | F10: 3.5 | G10: 3.95 | H10: 3.95 | I10: 0.4375 | J10: 0.4375 | K10: 1.3125 | L10: 1.3125 | M10: stena | N10: stena | O10: stena | P10: stena | Q10: stena | R10: stena | S10: &FIRE ID = 'F.C1.7.004' COMP_ID = 'C1', FIRE_ID = 'FP.C1.Y.0.4375' LOCATION = 0.05, 3.5 IGNITION_CRITERION = 'TEMPERATURE', DEVC_ID = 'T.C1.7.004', SETPOINT = 250 / | T10: &FIRE ID = 'F.C1.8.004' COMP_ID = 'C1', FIRE_ID = 'FP.C1.Y.1.3125' LOCATION = 0.05, 3.95 IGNITION_CRITERION = 'TEMPERATURE', DEVC_ID = 'T.C1.8.004', SETPOINT = 250 / | U10: &DEVC ID = 'T.C1.7.004' COMP_ID = 'C1' LOCATION = 0.05, 3.5, 0.4375 TYPE = 'PLATE' MATL_ID = 'M1' SURFACE_ORIENTATION = 'FLOOR' THICKNESS = 0.015 TEMPERATURE_DEPTH = 0 DEPTH_UNITS = 'M' / | V10: &DEVC ID = 'T.C1.8.004' COMP_ID = 'C1' LOCATION = 0.05, 3.95, 1.3125 TYPE = 'PLATE' MATL_ID = 'M1' SURFACE_ORIENTATION = 'FLOOR' THICKNESS = 0.015 TEMPERATURE_DEPTH = 0 DEPTH_UNITS = 'M' /
B11: 005 | C11: 0.05 | D11: 0.05 | E11: 4.5 | F11: 4.5 | G11: 4.95 | H11: 4.95 | I11: 0.4375 | J11: 0.4375 | K11: 1.3125 | L11: 1.3125 | M11: stena | N11: stena | O11: stena | P11: stena | Q11: stena | R11: stena | S11: &FIRE ID = 'F.C1.7.005' COMP_ID = 'C1', FIRE_ID = 'FP.C1.Y.0.4375' LOCATION = 0.05, 4.5 IGNITION_CRITERION = 'TEMPERATURE', DEVC_ID = 'T.C1.7.005', SETPOINT = 250 / | T11: &FIRE ID = 'F.C1.8.005' COMP_ID = 'C1', FIRE_ID = 'FP.C1.Y.1.3125' LOCATION = 0.05, 4.95 IGNITION_CRITERION = 'TEMPERATURE', DEVC_ID = 'T.C1.8.005', SETPOINT = 250 / | U11: &DEVC ID = 'T.C1.7.005' COMP_ID = 'C1' LOCATION = 0.05, 4.5, 0.4375 TYPE = 'PLATE' MATL_ID = 'M1' SURFACE_ORIENTATION = 'FLOOR' THICKNESS = 0.015 TEMPERATURE_DEPTH = 0 DEPTH_UNITS = 'M' / | V11: &DEVC ID = 'T.C1.8.005' COMP_ID = 'C1' LOCATION = 0.05, 4.95, 1.3125 TYPE = 'PLATE' MATL_ID = 'M1' SURFACE_ORIENTATION = 'FLOOR' THICKNESS = 0.015 TEMPERATURE_DEPTH = 0 DEPTH_UNITS = 'M' /
B12: 006 | C12: 0.05 | D12: 0.05 | E12: 5.5 | F12: 5.5 | G12: 5.95 | H12: 5.95 | I12: 0.4375 | J12: 0.4375 | K12: 1.3125 | L12: 1.3125 | M12: stena | N12: stena | O12: stena | P12: stena | Q12: stena | R12: stena | S12: &FIRE ID = 'F.C1.7.006' COMP_ID = 'C1', FIRE_ID = 'FP.C1.Y.0.4375' LOCATION = 0.05, 5.5 IGNITION_CRITERION = 'TEMPERATURE', DEVC_ID = 'T.C1.7.006', SETPOINT = 250 / | T12: &FIRE ID = 'F.C1.8.006' COMP_ID = 'C1', FIRE_ID = 'FP.C1.Y.1.3125' LOCATION = 0.05, 5.95 IGNITION_CRITERION = 'TEMPERATURE', DEVC_ID = 'T.C1.8.006', SETPOINT = 250 / | U12: &DEVC ID = 'T.C1.7.006' COMP_ID = 'C1' LOCATION = 0.05, 5.5, 0.4375 TYPE = 'PLATE' MATL_ID = 'M1' SURFACE_ORIENTATION = 'FLOOR' THICKNESS = 0.015 TEMPERATURE_DEPTH = 0 DEPTH_UNITS = 'M' / | V12: &DEVC ID = 'T.C1.8.006' COMP_ID = 'C1' LOCATION = 0.05, 5.95, 1.3125 TYPE = 'PLATE' MATL_ID = 'M1' SURFACE_ORIENTATION = 'FLOOR' THICKNESS = 0.015 TEMPERATURE_DEPTH = 0 DEPTH_UNITS = 'M' /
B13: 007 | C13: 0.05 | D13: 0.05 | E13: 6.5 | F13: 6.5 | G13: 6.95 | H13: 6.95 | I13: 0.4375 | J13: 0.4375 | K13: 1.3125 | L13: 1.3125 | M13: stena | N13: stena | O13: stena | P13: stena | Q13: stena | R13: stena | S13: &FIRE ID = 'F.C1.7.007' COMP_ID = 'C1', FIRE_ID = 'FP.C1.Y.0.4375' LOCATION = 0.05, 6.5 IGNITION_CRITERION = 'TEMPERATURE', DEVC_ID = 'T.C1.7.007', SETPOINT = 250 / | T13: &FIRE ID = 'F.C1.8.007' COMP_ID = 'C1', FIRE_ID = 'FP.C1.Y.1.3125' LOCATION = 0.05, 6.95 IGNITION_CRITERION = 'TEMPERATURE', DEVC_ID = 'T.C1.8.007', SETPOINT = 250 / | U13: &DEVC ID = 'T.C1.7.007' COMP_ID = 'C1' LOCATION = 0.05, 6.5, 0.4375 TYPE = 'PLATE' MATL_ID = 'M1' SURFACE_ORIENTATION = 'FLOOR' THICKNESS = 0.015 TEMPERATURE_DEPTH = 0 DEPTH_UNITS = 'M' / | V13: &DEVC ID = 'T.C1.8.007' COMP_ID = 'C1' LOCATION = 0.05, 6.95, 1.3125 TYPE = 'PLATE' MATL_ID = 'M1' SURFACE_ORIENTATION = 'FLOOR' THICKNESS = 0.015 TEMPERATURE_DEPTH = 0 DEPTH_UNITS = 'M' /
B14: 008 | C14: 0.05 | D14: 0.05 | E14: 7.5 | F14: 7.5 | G14: 7.95 | H14: 7.95 | I14: 0.4375 | J14: 0.4375 | K14: 1.3125 | L14: 1.3125 | M14: stena | N14: stena | O14: stena | P14: stena | Q14: stena | R14: stena | S14: &FIRE ID = 'F.C1.7.008' COMP_ID = 'C1', FIRE_ID = 'FP.C1.Y.0.4375' LOCATION = 0.05, 7.5 IGNITION_CRITERION = 'TEMPERATURE', DEVC_ID = 'T.C1.7.008', SETPOINT = 250 / | T14: &FIRE ID = 'F.C1.8.008' COMP_ID = 'C1', FIRE_ID = 'FP.C1.Y.1.3125' LOCATION = 0.05, 7.95 IGNITION_CRITERION = 'TEMPERATURE', DEVC_ID = 'T.C1.8.008', SETPOINT = 250 / | U14: &DEVC ID = 'T.C1.7.008' COMP_ID = 'C1' LOCATION = 0.05, 7.5, 0.4375 TYPE = 'PLATE' MATL_ID = 'M1' SURFACE_ORIENTATION = 'FLOOR' THICKNESS = 0.015 TEMPERATURE_DEPTH = 0 DEPTH_UNITS = 'M' / | V14: &DEVC ID = 'T.C1.8.008' COMP_ID = 'C1' LOCATION = 0.05, 7.95, 1.3125 TYPE = 'PLATE' MATL_ID = 'M1' SURFACE_ORIENTATION = 'FLOOR' THICKNESS = 0.015 TEMPERATURE_DEPTH = 0 DEPTH_UNITS = 'M' /
B15: 009 | C15: 0.05 | D15: 0.05 | E15: 8.5 | F15: 8.5 | G15: 8.95 | H15: 8.95 | I15: 0.4375 | J15: 0.4375 | K15: 1.3125 | L15: 1.3125 | M15: stena | N15: stena | O15: stena | P15: stena | Q15: stena | R15: stena | S15: &FIRE ID = 'F.C1.7.009' COMP_ID = 'C1', FIRE_ID = 'FP.C1.Y.0.4375' LOCATION = 0.05, 8.5 IGNITION_CRITERION = 'TEMPERATURE', DEVC_ID = 'T.C1.7.009', SETPOINT = 250 / | T15: &FIRE ID = 'F.C1.8.009' COMP_ID = 'C1', FIRE_ID = 'FP.C1.Y.1.3125' LOCATION = 0.05, 8.95 IGNITION_CRITERION = 'TEMPERATURE', DEVC_ID = 'T.C1.8.009', SETPOINT = 250 / | U15: &DEVC ID = 'T.C1.7.009' COMP_ID = 'C1' LOCATION = 0.05, 8.5, 0.4375 TYPE = 'PLATE' MATL_ID = 'M1' SURFACE_ORIENTATION = 'FLOOR' THICKNESS = 0.015 TEMPERATURE_DEPTH = 0 DEPTH_UNITS = 'M' / | V15: &DEVC ID = 'T.C1.8.009' COMP_ID = 'C1' LOCATION = 0.05, 8.95, 1.3125 TYPE = 'PLATE' MATL_ID = 'M1' SURFACE_ORIENTATION = 'FLOOR' THICKNESS = 0.015 TEMPERATURE_DEPTH = 0 DEPTH_UNITS = 'M' /
B16: 010 | C16: 0.05 | D16: 0.05 | E16: 9.5 | F16: 9.5 | G16: 9.95 | H16: 9.95 | I16: 0.4375 | J16: 0.4375 | K16: 1.3125 | L16: 1.3125 | M16: stena | N16: stena | O16: stena | P16: stena | Q16: stena | R16: stena | S16: &FIRE ID = 'F.C1.7.010' COMP_ID = 'C1', FIRE_ID = 'FP.C1.Y.0.4375' LOCATION = 0.05, 9.5 IGNITION_CRITERION = 'TEMPERATURE', DEVC_ID = 'T.C1.7.010', SETPOINT = 250 / | T16: &FIRE ID = 'F.C1.8.010' COMP_ID = 'C1', FIRE_ID = 'FP.C1.Y.1.3125' LOCATION = 0.05, 9.95 IGNITION_CRITERION = 'TEMPERATURE', DEVC_ID = 'T.C1.8.010', SETPOINT = 250 / | U16: &DEVC ID = 'T.C1.7.010' COMP_ID = 'C1' LOCATION = 0.05, 9.5, 0.4375 TYPE = 'PLATE' MATL_ID = 'M1' SURFACE_ORIENTATION = 'FLOOR' THICKNESS = 0.015 TEMPERATURE_DEPTH = 0 DEPTH_UNITS = 'M' / | V16: &DEVC ID = 'T.C1.8.010' COMP_ID = 'C1' LOCATION = 0.05, 9.95, 1.3125 TYPE = 'PLATE' MATL_ID = 'M1' SURFACE_ORIENTATION = 'FLOOR' THICKNESS = 0.015 TEMPERATURE_DEPTH = 0 DEPTH_UNITS = 'M' /
B17: 011 | C17: 0.05 | D17: 0.05 | E17: 0.5 | F17: 0.5 | G17: 0.95 | H17: 0.95 | I17: 2.1875 | J17: 2.1875 | K17: 3.0625 | L17: 3.0625 | M17: stena | N17: stena | O17: stena | P17: stena | Q17: stena | R17: stena | S17: &FIRE ID = 'F.C1.7.011' COMP_ID = 'C1', FIRE_ID = 'FP.C1.Y.2.1875' LOCATION = 0.05, 0.5 IGNITION_CRITERION = 'TEMPERATURE', DEVC_ID = 'T.C1.7.011', SETPOINT = 250 / | T17: &FIRE ID = 'F.C1.8.011' COMP_ID = 'C1', FIRE_ID = 'FP.C1.Y.3.0625' LOCATION = 0.05, 0.95 IGNITION_CRITERION = 'TEMPERATURE', DEVC_ID = 'T.C1.8.011', SETPOINT = 250 / | U17: &DEVC ID = 'T.C1.7.011' COMP_ID = 'C1' LOCATION = 0.05, 0.5, 2.1875 TYPE = 'PLATE' MATL_ID = 'M1' SURFACE_ORIENTATION = 'FLOOR' THICKNESS = 0.015 TEMPERATURE_DEPTH = 0 DEPTH_UNITS = 'M' / | V17: &DEVC ID = 'T.C1.8.011' COMP_ID = 'C1' LOCATION = 0.05, 0.95, 3.0625 TYPE = 'PLATE' MATL_ID = 'M1' SURFACE_ORIENTATION = 'FLOOR' THICKNESS = 0.015 TEMPERATURE_DEPTH = 0 DEPTH_UNITS = 'M' /
B18: 012 | C18: 0.05 | D18: 0.05 | E18: 1.5 | F18: 1.5 | G18: 1.95 | H18: 1.95 | I18: 2.1875 | J18: 2.1875 | K18: 3.0625 | L18: 3.0625 | M18: stena | N18: stena | O18: stena | P18: stena | Q18: stena | R18: stena | S18: &FIRE ID = 'F.C1.7.012' COMP_ID = 'C1', FIRE_ID = 'FP.C1.Y.2.1875' LOCATION = 0.05, 1.5 IGNITION_CRITERION = 'TEMPERATURE', DEVC_ID = 'T.C1.7.012', SETPOINT = 250 / | T18: &FIRE ID = 'F.C1.8.012' COMP_ID = 'C1', FIRE_ID = 'FP.C1.Y.3.0625' LOCATION = 0.05, 1.95 IGNITION_CRITERION = 'TEMPERATURE', DEVC_ID = 'T.C1.8.012', SETPOINT = 250 / | U18: &DEVC ID = 'T.C1.7.012' COMP_ID = 'C1' LOCATION = 0.05, 1.5, 2.1875 TYPE = 'PLATE' MATL_ID = 'M1' SURFACE_ORIENTATION = 'FLOOR' THICKNESS = 0.015 TEMPERATURE_DEPTH = 0 DEPTH_UNITS = 'M' / | V18: &DEVC ID = 'T.C1.8.012' COMP_ID = 'C1' LOCATION = 0.05, 1.95, 3.0625 TYPE = 'PLATE' MATL_ID = 'M1' SURFACE_ORIENTATION = 'FLOOR' THICKNESS = 0.015 TEMPERATURE_DEPTH = 0 DEPTH_UNITS = 'M' /
B19: 013 | C19: 0.05 | D19: 0.05 | E19: 2.5 | F19: 2.5 | G19: 2.95 | H19: 2.95 | I19: 2.1875 | J19: 2.1875 | K19: 3.0625 | L19: 3.0625 | M19: stena | N19: stena | O19: stena | P19: stena | Q19: stena | R19: stena | S19: &FIRE ID = 'F.C1.7.013' COMP_ID = 'C1', FIRE_ID = 'FP.C1.Y.2.1875' LOCATION = 0.05, 2.5 IGNITION_CRITERION = 'TEMPERATURE', DEVC_ID = 'T.C1.7.013', SETPOINT = 250 / | T19: &FIRE ID = 'F.C1.8.013' COMP_ID = 'C1', FIRE_ID = 'FP.C1.Y.3.0625' LOCATION = 0.05, 2.95 IGNITION_CRITERION = 'TEMPERATURE', DEVC_ID = 'T.C1.8.013', SETPOINT = 250 / | U19: &DEVC ID = 'T.C1.7.013' COMP_ID = 'C1' LOCATION = 0.05, 2.5, 2.1875 TYPE = 'PLATE' MATL_ID = 'M1' SURFACE_ORIENTATION = 'FLOOR' THICKNESS = 0.015 TEMPERATURE_DEPTH = 0 DEPTH_UNITS = 'M' / | V19: &DEVC ID = 'T.C1.8.013' COMP_ID = 'C1' LOCATION = 0.05, 2.95, 3.0625 TYPE = 'PLATE' MATL_ID = 'M1' SURFACE_ORIENTATION = 'FLOOR' THICKNESS = 0.015 TEMPERATURE_DEPTH = 0 DEPTH_UNITS = 'M' /
B20: 014 | C20: 0.05 | D20: 0.05 | E20: 3.5 | F20: 3.5 | G20: 3.95 | H20: 3.95 | I20: 2.1875 | J20: 2.1875 | K20: 3.0625 | L20: 3.0625 | M20: stena | N20: stena | O20: stena | P20: stena | Q20: stena | R20: stena | S20: &FIRE ID = 'F.C1.7.014' COMP_ID = 'C1', FIRE_ID = 'FP.C1.Y.2.1875' LOCATION = 0.05, 3.5 IGNITION_CRITERION = 'TEMPERATURE', DEVC_ID = 'T.C1.7.014', SETPOINT = 250 / | T20: &FIRE ID = 'F.C1.8.014' COMP_ID = 'C1', FIRE_ID = 'FP.C1.Y.3.0625' LOCATION = 0.05, 3.95 IGNITION_CRITERION = 'TEMPERATURE', DEVC_ID = 'T.C1.8.014', SETPOINT = 250 / | U20: &DEVC ID = 'T.C1.7.014' COMP_ID = 'C1' LOCATION = 0.05, 3.5, 2.1875 TYPE = 'PLATE' MATL_ID = 'M1' SURFACE_ORIENTATION = 'FLOOR' THICKNESS = 0.015 TEMPERATURE_DEPTH = 0 DEPTH_UNITS = 'M' / | V20: &DEVC ID = 'T.C1.8.014' COMP_ID = 'C1' LOCATION = 0.05, 3.95, 3.0625 TYPE = 'PLATE' MATL_ID = 'M1' SURFACE_ORIENTATION = 'FLOOR' THICKNESS = 0.015 TEMPERATURE_DEPTH = 0 DEPTH_UNITS = 'M' /
B21: 015 | C21: 0.05 | D21: 0.05 | E21: 4.5 | F21: 4.5 | G21: 4.95 | H21: 4.95 | I21: 2.1875 | J21: 2.1875 | K21: 3.0625 | L21: 3.0625 | M21: stena | N21: stena | O21: stena | P21: stena | Q21: stena | R21: stena | S21: &FIRE ID = 'F.C1.7.015' COMP_ID = 'C1', FIRE_ID = 'FP.C1.Y.2.1875' LOCATION = 0.05, 4.5 IGNITION_CRITERION = 'TEMPERATURE', DEVC_ID = 'T.C1.7.015', SETPOINT = 250 / | T21: &FIRE ID = 'F.C1.8.015' COMP_ID = 'C1', FIRE_ID = 'FP.C1.Y.3.0625' LOCATION = 0.05, 4.95 IGNITION_CRITERION = 'TEMPERATURE', DEVC_ID = 'T.C1.8.015', SETPOINT = 250 / | U21: &DEVC ID = 'T.C1.7.015' COMP_ID = 'C1' LOCATION = 0.05, 4.5, 2.1875 TYPE = 'PLATE' MATL_ID = 'M1' SURFACE_ORIENTATION = 'FLOOR' THICKNESS = 0.015 TEMPERATURE_DEPTH = 0 DEPTH_UNITS = 'M' / | V21: &DEVC ID = 'T.C1.8.015' COMP_ID = 'C1' LOCATION = 0.05, 4.95, 3.0625 TYPE = 'PLATE' MATL_ID = 'M1' SURFACE_ORIENTATION = 'FLOOR' THICKNESS = 0.015 TEMPERATURE_DEPTH = 0 DEPTH_UNITS = 'M' /
B22: 016 | C22: 0.05 | D22: 0.05 | E22: 5.5 | F22: 5.5 | G22: 5.95 | H22: 5.95 | I22: 2.1875 | J22: 2.1875 | K22: 3.0625 | L22: 3.0625 | M22: stena | N22: stena | O22: stena | P22: stena | Q22: stena | R22: stena | S22: &FIRE ID = 'F.C1.7.016' COMP_ID = 'C1', FIRE_ID = 'FP.C1.Y.2.1875' LOCATION = 0.05, 5.5 IGNITION_CRITERION = 'TEMPERATURE', DEVC_ID = 'T.C1.7.016', SETPOINT = 250 / | T22: &FIRE ID = 'F.C1.8.016' COMP_ID = 'C1', FIRE_ID = 'FP.C1.Y.3.0625' LOCATION = 0.05, 5.95 IGNITION_CRITERION = 'TEMPERATURE', DEVC_ID = 'T.C1.8.016', SETPOINT = 250 / | U22: &DEVC ID = 'T.C1.7.016' COMP_ID = 'C1' LOCATION = 0.05, 5.5, 2.1875 TYPE = 'PLATE' MATL_ID = 'M1' SURFACE_ORIENTATION = 'FLOOR' THICKNESS = 0.015 TEMPERATURE_DEPTH = 0 DEPTH_UNITS = 'M' / | V22: &DEVC ID = 'T.C1.8.016' COMP_ID = 'C1' LOCATION = 0.05, 5.95, 3.0625 TYPE = 'PLATE' MATL_ID = 'M1' SURFACE_ORIENTATION = 'FLOOR' THICKNESS = 0.015 TEMPERATURE_DEPTH = 0 DEPTH_UNITS = 'M' /
B23: 017 | C23: 0.05 | D23: 0.05 | E23: 6.5 | F23: 6.5 | G23: 6.95 | H23: 6.95 | I23: 2.1875 | J23: 2.1875 | K23: 3.0625 | L23: 3.0625 | M23: stena | N23: stena | O23: stena | P23: stena | Q23: stena | R23: stena | S23: &FIRE ID = 'F.C1.7.017' COMP_ID = 'C1', FIRE_ID = 'FP.C1.Y.2.1875' LOCATION = 0.05, 6.5 IGNITION_CRITERION = 'TEMPERATURE', DEVC_ID = 'T.C1.7.017', SETPOINT = 250 / | T23: &FIRE ID = 'F.C1.8.017' COMP_ID = 'C1', FIRE_ID = 'FP.C1.Y.3.0625' LOCATION = 0.05, 6.95 IGNITION_CRITERION = 'TEMPERATURE', DEVC_ID = 'T.C1.8.017', SETPOINT = 250 / | U23: &DEVC ID = 'T.C1.7.017' COMP_ID = 'C1' LOCATION = 0.05, 6.5, 2.1875 TYPE = 'PLATE' MATL_ID = 'M1' SURFACE_ORIENTATION = 'FLOOR' THICKNESS = 0.015 TEMPERATURE_DEPTH = 0 DEPTH_UNITS = 'M' / | V23: &DEVC ID = 'T.C1.8.017' COMP_ID = 'C1' LOCATION = 0.05, 6.95, 3.0625 TYPE = 'PLATE' MATL_ID = 'M1' SURFACE_ORIENTATION = 'FLOOR' THICKNESS = 0.015 TEMPERATURE_DEPTH = 0 DEPTH_UNITS = 'M' /
B24: 018 | C24: 0.05 | D24: 0.05 | E24: 7.5 | F24: 7.5 | G24: 7.95 | H24: 7.95 | I24: 2.1875 | J24: 2.1875 | K24: 3.0625 | L24: 3.0625 | M24: stena | N24: stena | O24: stena | P24: stena | Q24: stena | R24: stena | S24: &FIRE ID = 'F.C1.7.018' COMP_ID = 'C1', FIRE_ID = 'FP.C1.Y.2.1875' LOCATION = 0.05, 7.5 IGNITION_CRITERION = 'TEMPERATURE', DEVC_ID = 'T.C1.7.018', SETPOINT = 250 / | T24: &FIRE ID = 'F.C1.8.018' COMP_ID = 'C1', FIRE_ID = 'FP.C1.Y.3.0625' LOCATION = 0.05, 7.95 IGNITION_CRITERION = 'TEMPERATURE', DEVC_ID = 'T.C1.8.018', SETPOINT = 250 / | U24: &DEVC ID = 'T.C1.7.018' COMP_ID = 'C1' LOCATION = 0.05, 7.5, 2.1875 TYPE = 'PLATE' MATL_ID = 'M1' SURFACE_ORIENTATION = 'FLOOR' THICKNESS = 0.015 TEMPERATURE_DEPTH = 0 DEPTH_UNITS = 'M' / | V24: &DEVC ID = 'T.C1.8.018' COMP_ID = 'C1' LOCATION = 0.05, 7.95, 3.0625 TYPE = 'PLATE' MATL_ID = 'M1' SURFACE_ORIENTATION = 'FLOOR' THICKNESS = 0.015 TEMPERATURE_DEPTH = 0 DEPTH_UNITS = 'M' /
B25: 019 | C25: 0.05 | D25: 0.05 | E25: 8.5 | F25: 8.5 | G25: 8.95 | H25: 8.95 | I25: 2.1875 | J25: 2.1875 | K25: 3.0625 | L25: 3.0625 | M25: stena | N25: stena | O25: stena | P25: stena | Q25: stena | R25: stena | S25: &FIRE ID = 'F.C1.7.019' COMP_ID = 'C1', FIRE_ID = 'FP.C1.Y.2.1875' LOCATION = 0.05, 8.5 IGNITION_CRITERION = 'TEMPERATURE', DEVC_ID = 'T.C1.7.019', SETPOINT = 250 / | T25: &FIRE ID = 'F.C1.8.019' COMP_ID = 'C1', FIRE_ID = 'FP.C1.Y.3.0625' LOCATION = 0.05, 8.95 IGNITION_CRITERION = 'TEMPERATURE', DEVC_ID = 'T.C1.8.019', SETPOINT = 250 / | U25: &DEVC ID = 'T.C1.7.019' COMP_ID = 'C1' LOCATION = 0.05, 8.5, 2.1875 TYPE = 'PLATE' MATL_ID = 'M1' SURFACE_ORIENTATION = 'FLOOR' THICKNESS = 0.015 TEMPERATURE_DEPTH = 0 DEPTH_UNITS = 'M' / | V25: &DEVC ID = 'T.C1.8.019' COMP_ID = 'C1' LOCATION = 0.05, 8.95, 3.0625 TYPE = 'PLATE' MATL_ID = 'M1' SURFACE_ORIENTATION = 'FLOOR' THICKNESS = 0.015 TEMPERATURE_DEPTH = 0 DEPTH_UNITS = 'M' /
B26: 020 | C26: 0.05 | D26: 0.05 | E26: 9.5 | F26: 9.5 | G26: 9.95 | H26: 9.95 | I26: 2.1875 | J26: 2.1875 | K26: 3.0625 | L26: 3.0625 | M26: stena | N26: stena | O26: stena | P26: stena | Q26: stena | R26: stena | S26: &FIRE ID = 'F.C1.7.020' COMP_ID = 'C1', FIRE_ID = 'FP.C1.Y.2.1875' LOCATION = 0.05, 9.5 IGNITION_CRITERION = 'TEMPERATURE', DEVC_ID = 'T.C1.7.020', SETPOINT = 250 / | T26: &FIRE ID = 'F.C1.8.020' COMP_ID = 'C1', FIRE_ID = 'FP.C1.Y.3.0625' LOCATION = 0.05, 9.95 IGNITION_CRITERION = 'TEMPERATURE', DEVC_ID = 'T.C1.8.020', SETPOINT = 250 / | U26: &DEVC ID = 'T.C1.7.020' COMP_ID = 'C1' LOCATION = 0.05, 9.5, 2.1875 TYPE = 'PLATE' MATL_ID = 'M1' SURFACE_ORIENTATION = 'FLOOR' THICKNESS = 0.015 TEMPERATURE_DEPTH = 0 DEPTH_UNITS = 'M' / | V26: &DEVC ID = 'T.C1.8.020' COMP_ID = 'C1' LOCATION = 0.05, 9.95, 3.0625 TYPE = 'PLATE' MATL_ID = 'M1' SURFACE_ORIENTATION = 'FLOOR' THICKNESS = 0.015 TEMPERATURE_DEPTH = 0 DEPTH_UNITS = 'M' /
B27: 021 | C27: 0.05 | D27: 0.05 | E27: 0.5 | F27: 0.5 | G27: 0.95 | H27: 0.95 | I27: 3.9375 | J27: 3.9375 | K27: 4.8125 | L27: 4.8125 | M27: stena | N27: stena | O27: stena | P27: stena | Q27: stena | R27: stena
B28: 022 | C28: 0.05 | D28: 0.05 | E28: 1.5 | F28: 1.5 | G28: 1.95 | H28: 1.95 | I28: 3.9375 | J28: 3.9375 | K28: 4.8125 | L28: 4.8125 | M28: stena | N28: stena | O28: stena | P28: stena | Q28: stena | R28: stena
B29: 023 | C29: 0.05 | D29: 0.05 | E29: 2.5 | F29: 2.5 | G29: 2.95 | H29: 2.95 | I29: 3.9375 | J29: 3.9375 | K29: 4.8125 | L29: 4.8125 | M29: stena | N29: stena | O29: stena | P29: stena | Q29: stena | R29: stena
B30: 024 | C30: 0.05 | D30: 0.05 | E30: 3.5 | F30: 3.5 | G30: 3.95 | H30: 3.95 | I30: 3.9375 | J30: 3.9375 | K30: 4.8125 | L30: 4.8125 | M30: stena | N30: stena | O30: stena | P30: stena | Q30: stena | R30: stena
B31: 025 | C31: 0.05 | D31: 0.05 | E31: 4.5 | F31: 4.5 | G31: 4.95 | H31: 4.95 | I31: 3.9375 | J31: 3.9375 | K31: 4.8125 | L31: 4.8125 | M31: stena | N31: stena | O31: stena | P31: stena | Q31: stena | R31: stena
B32: 026 | C32: 0.05 | D32: 0.05 | E32: 5.5 | F32: 5.5 | G32: 5.95 | H32: 5.95 | I32: 3.9375 | J32: 3.9375 | K32: 4.8125 | L32: 4.8125 | M32: stena | N32: stena | O32: stena | P32: stena | Q32: stena | R32: stena
B33: 027 | C33: 0.05 | D33: 0.05 | E33: 6.5 | F33: 6.5 | G33: 6.95 | H33: 6.95 | I33: 3.9375 | J33: 3.9375 | K33: 4.8125 | L33: 4.8125 | M33: stena | N33: stena | O33: stena | P33: stena | Q33: stena | R33: stena
B34: 028 | C34: 0.05 | D34: 0.05 | E34: 7.5 | F34: 7.5 | G34: 7.95 | H34: 7.95 | I34: 3.9375 | J34: 3.9375 | K34: 4.8125 | L34: 4.8125 | M34: stena | N34: stena | O34: stena | P34: stena | Q34: stena | R34: stena
B35: 029 | C35: 0.05 | D35: 0.05 | E35: 8.5 | F35: 8.5 | G35: 8.95 | H35: 8.95 | I35: 3.9375 | J35: 3.9375 | K35: 4.8125 | L35: 4.8125 | M35: stena | N35: stena | O35: stena | P35: stena | Q35: stena | R35: stena
B36: 030 | C36: 0.05 | D36: 0.05 | E36: 9.5 | F36: 9.5 | G36: 9.95 | H36: 9.95 | I36: 3.9375 | J36: 3.9375 | K36: 4.8125 | L36: 4.8125 | M36: stena | N36: stena | O36: stena | P36: stena | Q36: stena | R36: stena
B37: 031 | C37: 0.05 | D37: 0.05 | E37: 0.5 | F37: 0.5 | G37: 0.95 | H37: 0.95 | I37: 5.6875 | J37: 5.6875 | K37: 6.5625 | L37: 6.5625 | M37: stena | N37: stena | O37: stena | P37: stena | Q37: stena | R37: stena
B38: 032 | C38: 0.05 | D38: 0.05 | E38: 1.5 | F38: 1.5 | G38: 1.95 | H38: 1.95 | I38: 5.6875 | J38: 5.6875 | K38: 6.5625 | L38: 6.5625 | M38: stena | N38: stena | O38: stena | P38: stena | Q38: stena | R38: stena
B39: 033 | C39: 0.05 | D39: 0.05 | E39: 2.5 | F39: 2.5 | G39: 2.95 | H39: 2.95 | I39: 5.6875 | J39: 5.6875 | K39: 6.5625 | L39: 6.5625 | M39: stena | N39: stena | O39: stena | P39: stena | Q39: stena | R39: stena
B40: 034 | C40: 0.05 | D40: 0.05 | E40: 3.5 | F40: 3.5 | G40: 3.95 | H40: 3.95 | I40: 5.6875 | J40: 5.6875 | K40: 6.5625 | L40: 6.5625 | M40: stena | N40: stena | O40: stena | P40: stena | Q40: stena | R40: stena
B41: 035 | C41: 0.05 | D41: 0.05 | E41: 4.5 | F41: 4.5 | G41: 4.95 | H41: 4.95 | I41: 5.6875 | J41: 5.6875 | K41: 6.5625 | L41: 6.5625 | M41: stena | N41: stena | O41: stena | P41: stena | Q41: stena | R41: stena
B42: 036 | C42: 0.05 | D42: 0.05 | E42: 5.5 | F42: 5.5 | G42: 5.95 | H42: 5.95 | I42: 5.6875 | J42: 5.6875 | K42: 6.5625 | L42: 6.5625 | M42: stena | N42: stena | O42: stena | P42: stena | Q42: stena | R42: stena
B43: 037 | C43: 0.05 | D43: 0.05 | E43: 6.5 | F43: 6.5 | G43: 6.95 | H43: 6.95 | I43: 5.6875 | J43: 5.6875 | K43: 6.5625 | L43: 6.5625 | M43: stena | N43: stena | O43: stena | P43: stena | Q43: stena | R43: stena
B44: 038 | C44: 0.05 | D44: 0.05 | E44: 7.5 | F44: 7.5 | G44: 7.95 | H44: 7.95 | I44: 5.6875 | J44: 5.6875 | K44: 6.5625 | L44: 6.5625 | M44: stena | N44: stena | O44: stena | P44: stena | Q44: stena | R44: stena
B45: 039 | C45: 0.05 | D45: 0.05 | E45: 8.5 | F45: 8.5 | G45: 8.95 | H45: 8.95 | I45: 5.6875 | J45: 5.6875 | K45: 6.5625 | L45: 6.5625 | M45: stena | N45: stena | O45: stena | P45: stena | Q45: stena | R45: stena
B46: 040 | C46: 0.05 | D46: 0.05 | E46: 9.5 | F46: 9.5 | G46: 9.95 | H46: 9.95 | I46: 5.6875 | J46: 5.6875 | K46: 6.5625 | L46: 6.5625 | M46: stena | N46: stena | O46: stena | P46: stena | Q46: stena | R46: stena
B47: 041 | C47: 0.05 | D47: 0.05 | E47: 0.5 | F47: 0.5 | G47: 0.95 | H47: 0.95 | I47: 7.4375 | J47: 7.4375 | K47: 8.3125 | L47: 8.3125 | M47: stena | N47: stena | O47: stena | P47: stena | Q47: stena | R47: stena
B48: 042 | C48: 0.05 | D48: 0.05 | E48: 1.5 | F48: 1.5 | G48: 1.95 | H48: 1.95 | I48: 7.4375 | J48: 7.4375 | K48: 8.3125 | L48: 8.3125 | M48: stena | N48: stena | O48: stena | P48: stena | Q48: stena | R48: stena
B49: 043 | C49: 0.05 | D49: 0.05 | E49: 2.5 | F49: 2.5 | G49: 2.95 | H49: 2.95 | I49: 7.4375 | J49: 7.4375 | K49: 8.3125 | L49: 8.3125 | M49: stena | N49: stena | O49: stena | P49: stena | Q49: stena | R49: stena
B50: 044 | C50: 0.05 | D50: 0.05 | E50: 3.5 | F50: 3.5 | G50: 3.95 | H50: 3.95 | I50: 7.4375 | J50: 7.4375 | K50: 8.3125 | L50: 8.3125 | M50: stena | N50: stena | O50: stena | P50: stena | Q50: stena | R50: stena
B51: 045 | C51: 0.05 | D51: 0.05 | E51: 4.5 | F51: 4.5 | G51: 4.95 | H51: 4.95 | I51: 7.4375 | J51: 7.4375 | K51: 8.3125 | L51: 8.3125 | M51: stena | N51: stena | O51: stena | P51: stena | Q51: stena | R51: stena
B52: 046 | C52: 0.05 | D52: 0.05 | E52: 5.5 | F52: 5.5 | G52: 5.95 | H52: 5.95 | I52: 7.4375 | J52: 7.4375 | K52: 8.3125 | L52: 8.3125 | M52: stena | N52: stena | O52: stena | P52: stena | Q52: stena | R52: stena
B53: 047 | C53: 0.05 | D53: 0.05 | E53: 6.5 | F53: 6.5 | G53: 6.95 | H53: 6.95 | I53: 7.4375 | J53: 7.4375 | K53: 8.3125 | L53: 8.3125 | M53: stena | N53: stena | O53: stena | P53: stena | Q53: stena | R53: stena
B54: 048 | C54: 0.05 | D54: 0.05 | E54: 7.5 | F54: 7.5 | G54: 7.95 | H54: 7.95 | I54: 7.4375 | J54: 7.4375 | K54: 8.3125 | L54: 8.3125 | M54: stena | N54: stena | O54: stena | P54: stena | Q54: stena | R54: stena
B55: 049 | C55: 0.05 | D55: 0.05 | E55: 8.5 | F55: 8.5 | G55: 8.95 | H55: 8.95 | I55: 7.4375 | J55: 7.4375 | K55: 8.3125 | L55: 8.3125 | M55: stena | N55: stena | O55: stena | P55: stena | Q55: stena | R55: stena
B56: 050 | C56: 0.05 | D56: 0.05 | E56: 9.5 | F56: 9.5 | G56: 9.95 | H56: 9.95 | I56: 7.4375 | J56: 7.4375 | K56: 8.3125 | L56: 8.3125 | M56: stena | N56: stena | O56: stena | P56: stena | Q56: stena | R56: stena
B57: 051 | C57: 0.05 | D57: 0.05 | E57: 0.5 | F57: 0.5 | G57: 0.95 | H57: 0.95 | I57: 9.1875 | J57: 9.1875 | K57: 10.0625 | L57: 10.0625 | M57: stena | N57: stena | O57: stena | P57: stena | Q57: stena | R57: stena
B58: 052 | C58: 0.05 | D58: 0.05 | E58: 1.5 | F58: 1.5 | G58: 1.95 | H58: 1.95 | I58: 9.1875 | J58: 9.1875 | K58: 10.0625 | L58: 10.0625 | M58: stena | N58: stena | O58: stena | P58: stena | Q58: stena | R58: stena
B59: 053 | C59: 0.05 | D59: 0.05 | E59: 2.5 | F59: 2.5 | G59: 2.95 | H59: 2.95 | I59: 9.1875 | J59: 9.1875 | K59: 10.0625 | L59: 10.0625 | M59: stena | N59: stena | O59: stena | P59: stena | Q59: stena | R59: stena
B60: 054 | C60: 0.05 | D60: 0.05 | E60: 3.5 | F60: 3.5 | G60: 3.95 | H60: 3.95 | I60: 9.1875 | J60: 9.1875 | K60: 10.0625 | L60: 10.0625 | M60: stena | N60: stena | O60: stena | P60: stena | Q60: stena | R60: stena
B61: 055 | C61: 0.05 | D61: 0.05 | E61: 4.5 | F61: 4.5 | G61: 4.95 | H61: 4.95 | I61: 9.1875 | J61: 9.1875 | K61: 10.0625 | L61: 10.0625 | M61: stena | N61: stena | O61: stena | P61: stena | Q61: stena | R61: stena
B62: 056 | C62: 0.05 | D62: 0.05 | E62: 5.5 | F62: 5.5 | G62: 5.95 | H62: 5.95 | I62: 9.1875 | J62: 9.1875 | K62: 10.0625 | L62: 10.0625 | M62: stena | N62: stena | O62: stena | P62: stena | Q62: stena | R62: stena
B63: 057 | C63: 0.05 | D63: 0.05 | E63: 6.5 | F63: 6.5 | G63: 6.95 | H63: 6.95 | I63: 9.1875 | J63: 9.1875 | K63: 10.0625 | L63: 10.0625 | M63: stena | N63: stena | O63: stena | P63: stena | Q63: stena | R63: stena
B64: 058 | C64: 0.05 | D64: 0.05 | E64: 7.5 | F64: 7.5 | G64: 7.95 | H64: 7.95 | I64: 9.1875 | J64: 9.1875 | K64: 10.0625 | L64: 10.0625 | M64: stena | N64: stena | O64: stena | P64: stena | Q64: stena | R64: stena
B65: 059 | C65: 0.05 | D65: 0.05 | E65: 8.5 | F65: 8.5 | G65: 8.95 | H65: 8.95 | I65: 9.1875 | J65: 9.1875 | K65: 10.0625 | L65: 10.0625 | M65: stena | N65: stena | O65: stena | P65: stena | Q65: stena | R65: stena
B66: 060 | C66: 0.05 | D66: 0.05 | E66: 9.5 | F66: 9.5 | G66: 9.95 | H66: 9.95 | I66: 9.1875 | J66: 9.1875 | K66: 10.0625 | L66: 10.0625 | M66: stena | N66: stena | O66: stena | P66: stena | Q66: stena | R66: stena
B67: 061 | C67: 0.05 | D67: 0.05 | E67: 0.5 | F67: 0.5 | G67: 0.95 | H67: 0.95 | I67: 10.9375 | J67: 10.9375 | K67: 11.8125 | L67: 11.8125 | M67: stena | N67: stena | O67: stena | P67: stena | Q67: stena | R67: stena
B68: 062 | C68: 0.05 | D68: 0.05 | E68: 1.5 | F68: 1.5 | G68: 1.95 | H68: 1.95 | I68: 10.9375 | J68: 10.9375 | K68: 11.8125 | L68: 11.8125 | M68: stena | N68: stena | O68: stena | P68: stena | Q68: stena | R68: stena
B69: 063 | C69: 0.05 | D69: 0.05 | E69: 2.5 | F69: 2.5 | G69: 2.95 | H69: 2.95 | I69: 10.9375 | J69: 10.9375 | K69: 11.8125 | L69: 11.8125 | M69: stena | N69: stena | O69: stena | P69: stena | Q69: stena | R69: stena
B70: 064 | C70: 0.05 | D70: 0.05 | E70: 3.5 | F70: 3.5 | G70: 3.95 | H70: 3.95 | I70: 10.9375 | J70: 10.9375 | K70: 11.8125 | L70: 11.8125 | M70: stena | N70: stena | O70: stena | P70: stena | Q70: stena | R70: stena
B71: 065 | C71: 0.05 | D71: =SUBSTITUTE(C71,",",".") -> 0.05 | E71: 4.5 | F71: =SUBSTITUTE(E71,",",".") -> 4.5 | G71: 4.95 | H71: 4.95 | I71: 10.9375 | J71: =SUBSTITUTE(I71,",",".") -> 10.9375 | K71: 11.8125 | L71: 11.8125 | M71: stena | N71: stena | O71: stena | P71: stena | Q71: stena | R71: =IF(OR(P71="otvor",Q71="otvor"),"otvor","stena") -> stena
B72: 066 | C72: 0.05 | D72: 0.05 | E72: 5.5 | F72: 5.5 | G72: 5.95 | H72: =SUBSTITUTE(G72,",",".") -> 5.95 | I72: 10.9375 | J72: 10.9375 | K72: 11.8125 | L72: 11.8125 | M72: =IF($I$3="ano",IF(AND(E72>$L$3,E72<$M$3,I72>$N$3,I72<$O$3),"otvor","stena"),"stena") -> stena | N72: =IF($I$4="ano",IF(AND(E72>$L$4,E72<$M$4,I72>$N$4,I72<$O$4),"otvor","stena"),"stena") -> stena | O72: =IF(OR(M72="otvor",N72="otvor"),"otvor","stena") -> stena | P72: =IF($I$3="ano",IF(AND(G72>$L$3,G72<$M$3,K72>$N$3,K72<$O$3),"otvor","stena"),"stena") -> stena | Q72: =IF($I$4="ano",IF(AND(G72>$L$4,G72<$M$4,K72>$N$4,K72<$O$4),"otvor","stena"),"stena") -> stena | R72: stena | S72: =IF(AND(F72>$N$2,I72>$O$2),IF(O72="stena",IF(I72>$C$4,"",CONCATENATE("&FIRE ID = 'F.",$E$2,".7.",B72,"' COMP_ID = '",$E$2,"', FIRE_ID = 'FP.",$E$2,".Y.",J72,"' LOCATION = ",D72,", ",F72," IGNITION_CRITERION = 'TEMPERATURE', DEVC_ID = 'T.",$E$2,".7.",B72,"', SETPOINT = ",$R$4," /")),""),"") ->  | T72: =IF(AND(G72>$N$2,K72>$O$2),IF(R72="stena",IF(K72>$C$4,"",CONCATENATE("&FIRE ID = 'F.",$E$2,".8.",B72,"' COMP_ID = '",$E$2,"', FIRE_ID = 'FP.",$E$2,".Y.",L72,"' LOCATION = ",D72,", ",H72," IGNITION_CRITERION = 'TEMPERATURE', DEVC_ID = 'T.",$E$2,".8.",B72,"', SETPOINT = ",$R$4," /")),""),"") ->  | U72: =IF(S72="","",IF(O72="stena",IF(I72>$C$4,"",CONCATENATE("&DEVC ID = 'T.",$E$2,".7.",B72,"' COMP_ID = '",$E$2,"' LOCATION = ",D72,", ",F72,", ",J72," TYPE = '",$P$3,"' MATL_ID = '",$P$2,"' SURFACE_ORIENTATION = '",$P$4,"' THICKNESS = ",$R$2," TEMPERATURE_DEPTH = ",$R$3," DEPTH_UNITS = 'M' /")),"")) ->  | V72: =IF(T72="","",IF(R72="stena",IF(K72>$C$4,"",CONCATENATE("&DEVC ID = 'T.",$E$2,".8.",B72,"' COMP_ID = '",$E$2,"' LOCATION = ",D72,", ",H72,", ",L72," TYPE = '",$P$3,"' MATL_ID = '",$P$2,"' SURFACE_ORIENTATION = '",$P$4,"' THICKNESS = ",$R$2," TEMPERATURE_DEPTH = ",$R$3," DEPTH_UNITS = 'M' /")),"")) -> 
B73: 067 | C73: =$C$7 -> 0.05 | D73: 0.05 | E73: =IF(E72>=($C$3-$G$2/2),$G$2/2,E72+$G$2) -> 6.5 | F73: 6.5 | G73: =IF(E72>=($C$3-$G$2),$G$2-$E$3,$G$2+G72) -> 6.95 | H73: 6.95 | I73: =IF(E73=$G$2/2,I72+$G$3*2,I72) -> 10.9375 | J73: 10.9375 | K73: =IF(G73=($G$2-$E$3),K72+$G$3*2,K72) -> 11.8125 | L73: =SUBSTITUTE(K73,",",".") -> 11.8125 | M73: stena | N73: stena | O73: stena | P73: stena | Q73: stena | R73: stena
B74: =RIGHT("00"&ROW(A68),3) -> 068 | C74: 0.05 | D74: 0.05 | E74: 7.5 | F74: 7.5 | G74: 7.95 | H74: 7.95 | I74: 10.9375 | J74: 10.9375 | K74: 11.8125 | L74: 11.8125 | M74: stena | N74: stena | O74: stena | P74: stena | Q74: stena | R74: stena
B75: 069 | C75: 0.05 | D75: 0.05 | E75: 8.5 | F75: 8.5 | G75: 8.95 | H75: 8.95 | I75: 10.9375 | J75: 10.9375 | K75: 11.8125 | L75: 11.8125 | M75: stena | N75: stena | O75: stena | P75: stena | Q75: stena | R75: stena
B76: 070 | C76: 0.05 | D76: 0.05 | E76: 9.5 | F76: 9.5 | G76: 9.95 | H76: 9.95 | I76: 10.9375 | J76: 10.9375 | K76: 11.8125 | L76: 11.8125 | M76: stena | N76: stena | O76: stena | P76: stena | Q76: stena | R76: stena
B77: 071 | C77: 0.05 | D77: 0.05 | E77: 0.5 | F77: 0.5 | G77: 0.95 | H77: 0.95 | I77: 12.6875 | J77: 12.6875 | K77: 13.5625 | L77: 13.5625 | M77: stena | N77: stena | O77: stena | P77: stena | Q77: stena | R77: stena
B78: 072 | C78: 0.05 | D78: 0.05 | E78: 1.5 | F78: 1.5 | G78: 1.95 | H78: 1.95 | I78: 12.6875 | J78: 12.6875 | K78: 13.5625 | L78: 13.5625 | M78: stena | N78: stena | O78: stena | P78: stena | Q78: stena | R78: stena
B79: 073 | C79: 0.05 | D79: 0.05 | E79: 2.5 | F79: 2.5 | G79: 2.95 | H79: 2.95 | I79: 12.6875 | J79: 12.6875 | K79: 13.5625 | L79: 13.5625 | M79: stena | N79: stena | O79: stena | P79: stena | Q79: stena | R79: stena
B80: 074 | C80: 0.05 | D80: 0.05 | E80: 3.5 | F80: 3.5 | G80: 3.95 | H80: 3.95 | I80: 12.6875 | J80: 12.6875 | K80: 13.5625 | L80: 13.5625 | M80: stena | N80: stena | O80: stena | P80: stena | Q80: stena | R80: stena
B81: 075 | C81: 0.05 | D81: 0.05 | E81: 4.5 | F81: 4.5 | G81: 4.95 | H81: 4.95 | I81: 12.6875 | J81: 12.6875 | K81: 13.5625 | L81: 13.5625 | M81: stena | N81: stena | O81: stena | P81: stena | Q81: stena | R81: stena
B82: 076 | C82: 0.05 | D82: 0.05 | E82: 5.5 | F82: 5.5 | G82: 5.95 | H82: 5.95 | I82: 12.6875 | J82: 12.6875 | K82: 13.5625 | L82: 13.5625 | M82: stena | N82: stena | O82: stena | P82: stena | Q82: stena | R82: stena
B83: 077 | C83: 0.05 | D83: 0.05 | E83: 6.5 | F83: 6.5 | G83: 6.95 | H83: 6.95 | I83: 12.6875 | J83: 12.6875 | K83: 13.5625 | L83: 13.5625 | M83: stena | N83: stena | O83: stena | P83: stena | Q83: stena | R83: stena
B84: 078 | C84: 0.05 | D84: 0.05 | E84: 7.5 | F84: 7.5 | G84: 7.95 | H84: 7.95 | I84: 12.6875 | J84: 12.6875 | K84: 13.5625 | L84: 13.5625 | M84: stena | N84: stena | O84: stena | P84: stena | Q84: stena | R84: stena
B85: 079 | C85: 0.05 | D85: 0.05 | E85: 8.5 | F85: 8.5 | G85: 8.95 | H85: 8.95 | I85: 12.6875 | J85: 12.6875 | K85: 13.5625 | L85: 13.5625 | M85: stena | N85: stena | O85: stena | P85: stena | Q85: stena | R85: stena
B86: 080 | C86: 0.05 | D86: 0.05 | E86: 9.5 | F86: 9.5 | G86: 9.95 | H86: 9.95 | I86: 12.6875 | J86: 12.6875 | K86: 13.5625 | L86: 13.5625 | M86: stena | N86: stena | O86: stena | P86: stena | Q86: stena | R86: stena
B87: 081 | C87: 0.05 | D87: 0.05 | E87: 0.5 | F87: 0.5 | G87: 0.95 | H87: 0.95 | I87: 14.4375 | J87: 14.4375 | K87: 15.3125 | L87: 15.3125 | M87: stena | N87: stena | O87: stena | P87: stena | Q87: stena | R87: stena
B88: 082 | C88: 0.05 | D88: 0.05 | E88: 1.5 | F88: 1.5 | G88: 1.95 | H88: 1.95 | I88: 14.4375 | J88: 14.4375 | K88: 15.3125 | L88: 15.3125 | M88: stena | N88: stena | O88: stena | P88: stena | Q88: stena | R88: stena
B89: 083 | C89: 0.05 | D89: 0.05 | E89: 2.5 | F89: 2.5 | G89: 2.95 | H89: 2.95 | I89: 14.4375 | J89: 14.4375 | K89: 15.3125 | L89: 15.3125 | M89: stena | N89: stena | O89: stena | P89: stena | Q89: stena | R89: stena
B90: 084 | C90: 0.05 | D90: 0.05 | E90: 3.5 | F90: 3.5 | G90: 3.95 | H90: 3.95 | I90: 14.4375 | J90: 14.4375 | K90: 15.3125 | L90: 15.3125 | M90: stena | N90: stena | O90: stena | P90: stena | Q90: stena | R90: stena
B91: 085 | C91: 0.05 | D91: 0.05 | E91: 4.5 | F91: 4.5 | G91: 4.95 | H91: 4.95 | I91: 14.4375 | J91: 14.4375 | K91: 15.3125 | L91: 15.3125 | M91: stena | N91: stena | O91: stena | P91: stena | Q91: stena | R91: stena
B92: 086 | C92: 0.05 | D92: 0.05 | E92: 5.5 | F92: 5.5 | G92: 5.95 | H92: 5.95 | I92: 14.4375 | J92: 14.4375 | K92: 15.3125 | L92: 15.3125 | M92: stena | N92: stena | O92: stena | P92: stena | Q92: stena | R92: stena
B93: 087 | C93: 0.05 | D93: 0.05 | E93: 6.5 | F93: 6.5 | G93: 6.95 | H93: 6.95 | I93: 14.4375 | J93: 14.4375 | K93: 15.3125 | L93: 15.3125 | M93: stena | N93: stena | O93: stena | P93: stena | Q93: stena | R93: stena
B94: 088 | C94: 0.05 | D94: 0.05 | E94: 7.5 | F94: 7.5 | G94: 7.95 | H94: 7.95 | I94: 14.4375 | J94: 14.4375 | K94: 15.3125 | L94: 15.3125 | M94: stena | N94: stena | O94: stena | P94: stena | Q94: stena | R94: stena
B95: 089 | C95: 0.05 | D95: 0.05 | E95: 8.5 | F95: 8.5 | G95: 8.95 | H95: 8.95 | I95: 14.4375 | J95: 14.4375 | K95: 15.3125 | L95: 15.3125 | M95: stena | N95: stena | O95: stena | P95: stena | Q95: stena | R95: stena
B96: 090 | C96: 0.05 | D96: 0.05 | E96: 9.5 | F96: 9.5 | G96: 9.95 | H96: 9.95 | I96: 14.4375 | J96: 14.4375 | K96: 15.3125 | L96: 15.3125 | M96: stena | N96: stena | O96: stena | P96: stena | Q96: stena | R96: stena
B97: 091 | C97: 0.05 | D97: 0.05 | E97: 0.5 | F97: 0.5 | G97: 0.95 | H97: 0.95 | I97: 16.1875 | J97: 16.1875 | K97: 17.0625 | L97: 17.0625 | M97: stena | N97: stena | O97: stena | P97: stena | Q97: stena | R97: stena
B98: 092 | C98: 0.05 | D98: 0.05 | E98: 1.5 | F98: 1.5 | G98: 1.95 | H98: 1.95 | I98: 16.1875 | J98: 16.1875 | K98: 17.0625 | L98: 17.0625 | M98: stena | N98: stena | O98: stena | P98: stena | Q98: stena | R98: stena
B99: 093 | C99: 0.05 | D99: =SUBSTITUTE(C99,",",".") -> 0.05 | E99: 2.5 | F99: =SUBSTITUTE(E99,",",".") -> 2.5 | G99: 2.95 | H99: 2.95 | I99: 16.1875 | J99: =SUBSTITUTE(I99,",",".") -> 16.1875 | K99: 17.0625 | L99: 17.0625 | M99: stena | N99: stena | O99: stena | P99: stena | Q99: stena | R99: stena
B100: 094 | C100: 0.05 | D100: 0.05 | E100: 3.5 | F100: 3.5 | G100: 3.95 | H100: 3.95 | I100: 16.1875 | J100: 16.1875 | K100: 17.0625 | L100: 17.0625 | M100: stena | N100: stena | O100: stena | P100: stena | Q100: stena | R100: stena
B101: 095 | C101: 0.05 | D101: 0.05 | E101: 4.5 | F101: 4.5 | G101: 4.95 | H101: 4.95 | I101: 16.1875 | J101: 16.1875 | K101: 17.0625 | L101: 17.0625 | M101: stena | N101: stena | O101: stena | P101: stena | Q101: stena | R101: stena
B102: 096 | C102: 0.05 | D102: 0.05 | E102: 5.5 | F102: 5.5 | G102: 5.95 | H102: 5.95 | I102: 16.1875 | J102: 16.1875 | K102: 17.0625 | L102: 17.0625 | M102: stena | N102: stena | O102: stena | P102: stena | Q102: stena | R102: stena
B103: 097 | C103: 0.05 | D103: =SUBSTITUTE(C103,",",".") -> 0.05 | E103: 6.5 | F103: =SUBSTITUTE(E103,",",".") -> 6.5 | G103: 6.95 | H103: 6.95 | I103: 16.1875 | J103: =SUBSTITUTE(I103,",",".") -> 16.1875 | K103: 17.0625 | L103: 17.0625 | M103: stena | N103: stena | O103: stena | P103: stena | Q103: stena | R103: stena
B104: 098 | C104: 0.05 | D104: 0.05 | E104: 7.5 | F104: 7.5 | G104: 7.95 | H104: 7.95 | I104: 16.1875 | J104: 16.1875 | K104: 17.0625 | L104: 17.0625 | M104: stena | N104: stena | O104: stena | P104: stena | Q104: stena | R104: stena
B105: 099 | C105: 0.05 | D105: 0.05 | E105: 8.5 | F105: 8.5 | G105: 8.95 | H105: 8.95 | I105: 16.1875 | J105: 16.1875 | K105: 17.0625 | L105: 17.0625 | M105: stena | N105: stena | O105: stena | P105: stena | Q105: stena | R105: stena
B106: 100 | C106: 0.05 | D106: 0.05 | E106: 9.5 | F106: 9.5 | G106: 9.95 | H106: 9.95 | I106: 16.1875 | J106: 16.1875 | K106: 17.0625 | L106: 17.0625 | M106: stena | N106: stena | O106: stena | P106: stena | Q106: stena | R106: stena
B107: 101 | C107: 0.05 | D107: 0.05 | E107: 0.5 | F107: 0.5 | G107: 0.95 | H107: 0.95 | I107: 17.9375 | J107: 17.9375 | K107: 18.8125 | L107: 18.8125 | M107: stena | N107: stena | O107: stena | P107: stena | Q107: stena | R107: stena
O108: =IF(O107="stena","ok","pozor") -> ok | R108: =IF(R107="stena","ok","pozor") -> ok | S108: =IF(S107="","ok","pozor") -> ok | T108: =IF(T107="","ok","pozor") -> ok

Sheet Fire Devc E
B2: x | C2: =zadani!G7 -> 5 | D2: místno. | E2: =zadani!G6 -> C1 | F2: hrana x | G2: =zadani!G7/zadani!G16 -> 1 | H2: STRANA E | M2: =zadani!G10 -> 0 | N2: =zadani!G11 -> 0 | O2: =zadani!G12 -> 0 | P2: =zadani!G38 -> M1 | Q2: =zadani!G41 -> 0.015 | R2: =SUBSTITUTE(Q2,",",".") -> 0.015
B3: y | C3: =zadani!G8 -> 10 | D3: odstup | E3: =zadani!G14 -> 0.1 | F3: hrana y | G3: =zadani!G8/zadani!G17 -> 1 | H3: otvor 1 | I3: =zadani!L16 -> ne | J3: =zadani!M16 -> 0 | K3: =zadani!N16 -> 0 | L3: =zadani!O16 -> 0 | M3: =zadani!P16 -> 0 | N3: =zadani!Q16 -> - | O3: =zadani!R16 -> - | P3: =zadani!G39 -> PLATE | Q3: =zadani!G42 -> 0 | R3: =SUBSTITUTE(Q3,",",".") -> 0
B4: z | C4: =zadani!G9 -> 3.5 | D4: vše ok? | E4: =IF(AND(R108="ok",S108="ok"),"ok","pozor") -> ok | H4: otvor 2 | I4: =zadani!L17 -> ne | J4: =zadani!M17 -> 0 | K4: =zadani!N17 -> 0 | L4: =zadani!O17 -> 0 | M4: =zadani!P17 -> 0 | N4: =zadani!Q17 -> - | O4: =zadani!R17 -> - | P4: =zadani!G40 -> FLOOR | Q4: =zadani!C42 -> 250 | R4: =SUBSTITUTE(Q4,",",".") -> 250
I6: pořad. číslo | J6: X | L6: Y | N6: Z | P6: otvor 1 | Q6: otvor 2 | R6: otvory
I7: =RIGHT("00"&ROW(A1),3) -> 001 | J7: =G2/2 -> 0.5 | K7: =SUBSTITUTE(J7,",",".") -> 0.5 | L7: =G3/2 -> 0.5 | M7: =SUBSTITUTE(L7,",",".") -> 0.5 | N7: =C4-E3 -> 3.4 | O7: =SUBSTITUTE(N7,",",".") -> 3.4 | P7: =IF($I$3="ano",IF(AND(J7>$J$3,J7<$K$3,L7>$L$3,L7<$M$3),"otvor","stena"),"stena") -> stena | Q7: =IF($I$4="ano",IF(AND(J7>$J$4,J7<$K$4,L7>$L$4,L7<$M$4),"otvor","stena"),"stena") -> stena | R7: =IF(OR(P7="otvor",Q7="otvor"),"otvor","stena") -> stena | S7: =IF(AND(J7>$M$2,L7>$N$2),IF(R7="stena",IF(L7>$C$3,"",CONCATENATE("&FIRE ID = 'F.",$E$2,".9.",I7,"' COMP_ID = '",$E$2,"', FIRE_ID = 'FP.",$E$2,".Z.",O7,"' LOCATION = ",K7,", ",M7," IGNITION_CRITERION = 'TEMPERATURE', DEVC_ID = 'T.",$E$2,".9.",I7,"', SETPOINT = ",$R$4," /")),""),"") -> &FIRE ID = 'F.C1.9.001' COMP_ID = 'C1', FIRE_ID = 'FP.C1.Z.3.4' LOCATION = 0.5, 0.5 IGNITION_CRITERION = 'TEMPERATURE', DEVC_ID = 'T.C1.9.001', SETPOINT = 250 / | T7: =IF(S7="","",IF(R7="stena",IF(L7>$C$3,"",CONCATENATE("&DEVC ID = 'T.",$E$2,".9.",I7,"' COMP_ID = '",$E$2,"' LOCATION = ",K7,", ",M7,", ",O7," TYPE = '",$P$3,"' MATL_ID = '",$P$2,"' SURFACE_ORIENTATION = '",$P$4,"' THICKNESS = ",$R$2," TEMPERATURE_DEPTH = ",$R$3," DEPTH_UNITS = 'M' /")),"")) -> &DEVC ID = 'T.C1.9.001' COMP_ID = 'C1' LOCATION = 0.5, 0.5, 3.4 TYPE = 'PLATE' MATL_ID = 'M1' SURFACE_ORIENTATION = 'FLOOR' THICKNESS = 0.015 TEMPERATURE_DEPTH = 0 DEPTH_UNITS = 'M' /
I8: 002 | J8: =IF(J7=($C$2-$G$2/2),$G$2/2,J7+$G$2) -> 1.5 | K8: 1.5 | L8: =IF(J8=$G$2/2,L7+$G$3,L7) -> 0.5 | M8: 0.5 | N8: =N7 -> 3.4 | O8: 3.4 | P8: =IF($I$3="ano",IF(AND(J8>$J$3,J8<$K$3,L8>$L$3,L8<$M$3),"otvor","stena"),"stena") -> stena | Q8: =IF($I$4="ano",IF(AND(J8>$J$4,J8<$K$4,L8>$L$4,L8<$M$4),"otvor","stena"),"stena") -> stena | R8: stena | S8: =IF(AND(J8>$M$2,L8>$N$2),IF(R8="stena",IF(L8>$C$3,"",CONCATENATE("&FIRE ID = 'F.",$E$2,".9.",I8,"' COMP_ID = '",$E$2,"', FIRE_ID = 'FP.",$E$2,".Z.",O8,"' LOCATION = ",K8,", ",M8," IGNITION_CRITERION = 'TEMPERATURE', DEVC_ID = 'T.",$E$2,".9.",I8,"', SETPOINT = ",$R$4," /")),""),"") -> &FIRE ID = 'F.C1.9.002' COMP_ID = 'C1', FIRE_ID = 'FP.C1.Z.3.4' LOCATION = 1.5, 0.5 IGNITION_CRITERION = 'TEMPERATURE', DEVC_ID = 'T.C1.9.002', SETPOINT = 250 / | T8: =IF(S8="","",IF(R8="stena",IF(L8>$C$3,"",CONCATENATE("&DEVC ID = 'T.",$E$2,".9.",I8,"' COMP_ID = '",$E$2,"' LOCATION = ",K8,", ",M8,", ",O8," TYPE = '",$P$3,"' MATL_ID = '",$P$2,"' SURFACE_ORIENTATION = '",$P$4,"' THICKNESS = ",$R$2," TEMPERATURE_DEPTH = ",$R$3," DEPTH_UNITS = 'M' /")),"")) -> &DEVC ID = 'T.C1.9.002' COMP_ID = 'C1' LOCATION = 1.5, 0.5, 3.4 TYPE = 'PLATE' MATL_ID = 'M1' SURFACE_ORIENTATION = 'FLOOR' THICKNESS = 0.015 TEMPERATURE_DEPTH = 0 DEPTH_UNITS = 'M' /
I9: 003 | J9: =IF(J8=($C$2-$G$2/2),$G$2/2,J8+$G$2) -> 2.5 | K9: 2.5 | L9: =IF(J9=$G$2/2,L8+$G$3,L8) -> 0.5 | M9: 0.5 | N9: =N8 -> 3.4 | O9: 3.4 | P9: stena | Q9: stena | R9: stena | S9: &FIRE ID = 'F.C1.9.003' COMP_ID = 'C1', FIRE_ID = 'FP.C1.Z.3.4' LOCATION = 2.5, 0.5 IGNITION_CRITERION = 'TEMPERATURE', DEVC_ID = 'T.C1.9.003', SETPOINT = 250 / | T9: &DEVC ID = 'T.C1.9.003' COMP_ID = 'C1' LOCATION = 2.5, 0.5, 3.4 TYPE = 'PLATE' MATL_ID = 'M1' SURFACE_ORIENTATION = 'FLOOR' THICKNESS = 0.015 TEMPERATURE_DEPTH = 0 DEPTH_UNITS = 'M' /
I10: 004 | J10: 3.5 | K10: 3.5 | L10: 0.5 | M10: 0.5 | N10: 3.4 | O10: 3.4 | P10: stena | Q10: stena | R10: stena | S10: &FIRE ID = 'F.C1.9.004' COMP_ID = 'C1', FIRE_ID = 'FP.C1.Z.3.4' LOCATION = 3.5, 0.5 IGNITION_CRITERION = 'TEMPERATURE', DEVC_ID = 'T.C1.9.004', SETPOINT = 250 / | T10: &DEVC ID = 'T.C1.9.004' COMP_ID = 'C1' LOCATION = 3.5, 0.5, 3.4 TYPE = 'PLATE' MATL_ID = 'M1' SURFACE_ORIENTATION = 'FLOOR' THICKNESS = 0.015 TEMPERATURE_DEPTH = 0 DEPTH_UNITS = 'M' /
I11: 005 | J11: 4.5 | K11: 4.5 | L11: 0.5 | M11: 0.5 | N11: 3.4 | O11: 3.4 | P11: stena | Q11: stena | R11: =IF(OR(P11="otvor",Q11="otvor"),"otvor","stena") -> stena | S11: &FIRE ID = 'F.C1.9.005' COMP_ID = 'C1', FIRE_ID = 'FP.C1.Z.3.4' LOCATION = 4.5, 0.5 IGNITION_CRITERION = 'TEMPERATURE', DEVC_ID = 'T.C1.9.005', SETPOINT = 250 / | T11: &DEVC ID = 'T.C1.9.005' COMP_ID = 'C1' LOCATION = 4.5, 0.5, 3.4 TYPE = 'PLATE' MATL_ID = 'M1' SURFACE_ORIENTATION = 'FLOOR' THICKNESS = 0.015 TEMPERATURE_DEPTH = 0 DEPTH_UNITS = 'M' /
I12: 006 | J12: 0.5 | K12: 0.5 | L12: 1.5 | M12: 1.5 | N12: 3.4 | O12: 3.4 | P12: stena | Q12: stena | R12: =IF(OR(P12="otvor",Q12="otvor"),"otvor","stena") -> stena | S12: &FIRE ID = 'F.C1.9.006' COMP_ID = 'C1', FIRE_ID = 'FP.C1.Z.3.4' LOCATION = 0.5, 1.5 IGNITION_CRITERION = 'TEMPERATURE', DEVC_ID = 'T.C1.9.006', SETPOINT = 250 / | T12: &DEVC ID = 'T.C1.9.006' COMP_ID = 'C1' LOCATION = 0.5, 1.5, 3.4 TYPE = 'PLATE' MATL_ID = 'M1' SURFACE_ORIENTATION = 'FLOOR' THICKNESS = 0.015 TEMPERATURE_DEPTH = 0 DEPTH_UNITS = 'M' /
I13: 007 | J13: 1.5 | K13: 1.5 | L13: 1.5 | M13: 1.5 | N13: 3.4 | O13: 3.4 | P13: stena | Q13: stena | R13: =IF(OR(P13="otvor",Q13="otvor"),"otvor","stena") -> stena | S13: &FIRE ID = 'F.C1.9.007' COMP_ID = 'C1', FIRE_ID = 'FP.C1.Z.3.4' LOCATION = 1.5, 1.5 IGNITION_CRITERION = 'TEMPERATURE', DEVC_ID = 'T.C1.9.007', SETPOINT = 250 / | T13: &DEVC ID = 'T.C1.9.007' COMP_ID = 'C1' LOCATION = 1.5, 1.5, 3.4 TYPE = 'PLATE' MATL_ID = 'M1' SURFACE_ORIENTATION = 'FLOOR' THICKNESS = 0.015 TEMPERATURE_DEPTH = 0 DEPTH_UNITS = 'M' /
I14: 008 | J14: 2.5 | K14: 2.5 | L14: 1.5 | M14: 1.5 | N14: 3.4 | O14: 3.4 | P14: stena | Q14: stena | R14: stena | S14: &FIRE ID = 'F.C1.9.008' COMP_ID = 'C1', FIRE_ID = 'FP.C1.Z.3.4' LOCATION = 2.5, 1.5 IGNITION_CRITERION = 'TEMPERATURE', DEVC_ID = 'T.C1.9.008', SETPOINT = 250 / | T14: &DEVC ID = 'T.C1.9.008' COMP_ID = 'C1' LOCATION = 2.5, 1.5, 3.4 TYPE = 'PLATE' MATL_ID = 'M1' SURFACE_ORIENTATION = 'FLOOR' THICKNESS = 0.015 TEMPERATURE_DEPTH = 0 DEPTH_UNITS = 'M' /
I15: 009 | J15: 3.5 | K15: 3.5 | L15: 1.5 | M15: 1.5 | N15: 3.4 | O15: 3.4 | P15: stena | Q15: stena | R15: stena | S15: &FIRE ID = 'F.C1.9.009' COMP_ID = 'C1', FIRE_ID = 'FP.C1.Z.3.4' LOCATION = 3.5, 1.5 IGNITION_CRITERION = 'TEMPERATURE', DEVC_ID = 'T.C1.9.009', SETPOINT = 250 / | T15: &DEVC ID = 'T.C1.9.009' COMP_ID = 'C1' LOCATION = 3.5, 1.5, 3.4 TYPE = 'PLATE' MATL_ID = 'M1' SURFACE_ORIENTATION = 'FLOOR' THICKNESS = 0.015 TEMPERATURE_DEPTH = 0 DEPTH_UNITS = 'M' /
I16: 010 | J16: 4.5 | K16: 4.5 | L16: 1.5 | M16: 1.5 | N16: 3.4 | O16: 3.4 | P16: stena | Q16: stena | R16: stena | S16: &FIRE ID = 'F.C1.9.010' COMP_ID = 'C1', FIRE_ID = 'FP.C1.Z.3.4' LOCATION = 4.5, 1.5 IGNITION_CRITERION = 'TEMPERATURE', DEVC_ID = 'T.C1.9.010', SETPOINT = 250 / | T16: &DEVC ID = 'T.C1.9.010' COMP_ID = 'C1' LOCATION = 4.5, 1.5, 3.4 TYPE = 'PLATE' MATL_ID = 'M1' SURFACE_ORIENTATION = 'FLOOR' THICKNESS = 0.015 TEMPERATURE_DEPTH = 0 DEPTH_UNITS = 'M' /
I17: 011 | J17: 0.5 | K17: 0.5 | L17: 2.5 | M17: 2.5 | N17: 3.4 | O17: 3.4 | P17: stena | Q17: stena | R17: stena | S17: &FIRE ID = 'F.C1.9.011' COMP_ID = 'C1', FIRE_ID = 'FP.C1.Z.3.4' LOCATION = 0.5, 2.5 IGNITION_CRITERION = 'TEMPERATURE', DEVC_ID = 'T.C1.9.011', SETPOINT = 250 / | T17: &DEVC ID = 'T.C1.9.011' COMP_ID = 'C1' LOCATION = 0.5, 2.5, 3.4 TYPE = 'PLATE' MATL_ID = 'M1' SURFACE_ORIENTATION = 'FLOOR' THICKNESS = 0.015 TEMPERATURE_DEPTH = 0 DEPTH_UNITS = 'M' /
I18: 012 | J18: 1.5 | K18: 1.5 | L18: 2.5 | M18: 2.5 | N18: 3.4 | O18: 3.4 | P18: stena | Q18: stena | R18: stena | S18: &FIRE ID = 'F.C1.9.012' COMP_ID = 'C1', FIRE_ID = 'FP.C1.Z.3.4' LOCATION = 1.5, 2.5 IGNITION_CRITERION = 'TEMPERATURE', DEVC_ID = 'T.C1.9.012', SETPOINT = 250 / | T18: &DEVC ID = 'T.C1.9.012' COMP_ID = 'C1' LOCATION = 1.5, 2.5, 3.4 TYPE = 'PLATE' MATL_ID = 'M1' SURFACE_ORIENTATION = 'FLOOR' THICKNESS = 0.015 TEMPERATURE_DEPTH = 0 DEPTH_UNITS = 'M' /
I19: 013 | J19: 2.5 | K19: 2.5 | L19: 2.5 | M19: 2.5 | N19: 3.4 | O19: 3.4 | P19: stena | Q19: stena | R19: stena | S19: &FIRE ID = 'F.C1.9.013' COMP_ID = 'C1', FIRE_ID = 'FP.C1.Z.3.4' LOCATION = 2.5, 2.5 IGNITION_CRITERION = 'TEMPERATURE', DEVC_ID = 'T.C1.9.013', SETPOINT = 250 / | T19: &DEVC ID = 'T.C1.9.013' COMP_ID = 'C1' LOCATION = 2.5, 2.5, 3.4 TYPE = 'PLATE' MATL_ID = 'M1' SURFACE_ORIENTATION = 'FLOOR' THICKNESS = 0.015 TEMPERATURE_DEPTH = 0 DEPTH_UNITS = 'M' /
I20: 014 | J20: 3.5 | K20: 3.5 | L20: 2.5 | M20: 2.5 | N20: 3.4 | O20: 3.4 | P20: stena | Q20: stena | R20: stena | S20: &FIRE ID = 'F.C1.9.014' COMP_ID = 'C1', FIRE_ID = 'FP.C1.Z.3.4' LOCATION = 3.5, 2.5 IGNITION_CRITERION = 'TEMPERATURE', DEVC_ID = 'T.C1.9.014', SETPOINT = 250 / | T20: &DEVC ID = 'T.C1.9.014' COMP_ID = 'C1' LOCATION = 3.5, 2.5, 3.4 TYPE = 'PLATE' MATL_ID = 'M1' SURFACE_ORIENTATION = 'FLOOR' THICKNESS = 0.015 TEMPERATURE_DEPTH = 0 DEPTH_UNITS = 'M' /
I21: 015 | J21: 4.5 | K21: 4.5 | L21: 2.5 | M21: 2.5 | N21: 3.4 | O21: 3.4 | P21: stena | Q21: stena | R21: stena | S21: &FIRE ID = 'F.C1.9.015' COMP_ID = 'C1', FIRE_ID = 'FP.C1.Z.3.4' LOCATION = 4.5, 2.5 IGNITION_CRITERION = 'TEMPERATURE', DEVC_ID = 'T.C1.9.015', SETPOINT = 250 / | T21: &DEVC ID = 'T.C1.9.015' COMP_ID = 'C1' LOCATION = 4.5, 2.5, 3.4 TYPE = 'PLATE' MATL_ID = 'M1' SURFACE_ORIENTATION = 'FLOOR' THICKNESS = 0.015 TEMPERATURE_DEPTH = 0 DEPTH_UNITS = 'M' /
I22: 016 | J22: 0.5 | K22: 0.5 | L22: 3.5 | M22: 3.5 | N22: 3.4 | O22: 3.4 | P22: stena | Q22: stena | R22: stena | S22: &FIRE ID = 'F.C1.9.016' COMP_ID = 'C1', FIRE_ID = 'FP.C1.Z.3.4' LOCATION = 0.5, 3.5 IGNITION_CRITERION = 'TEMPERATURE', DEVC_ID = 'T.C1.9.016', SETPOINT = 250 / | T22: &DEVC ID = 'T.C1.9.016' COMP_ID = 'C1' LOCATION = 0.5, 3.5, 3.4 TYPE = 'PLATE' MATL_ID = 'M1' SURFACE_ORIENTATION = 'FLOOR' THICKNESS = 0.015 TEMPERATURE_DEPTH = 0 DEPTH_UNITS = 'M' /
I23: 017 | J23: 1.5 | K23: 1.5 | L23: 3.5 | M23: 3.5 | N23: 3.4 | O23: 3.4 | P23: stena | Q23: stena | R23: stena | S23: &FIRE ID = 'F.C1.9.017' COMP_ID = 'C1', FIRE_ID = 'FP.C1.Z.3.4' LOCATION = 1.5, 3.5 IGNITION_CRITERION = 'TEMPERATURE', DEVC_ID = 'T.C1.9.017', SETPOINT = 250 / | T23: &DEVC ID = 'T.C1.9.017' COMP_ID = 'C1' LOCATION = 1.5, 3.5, 3.4 TYPE = 'PLATE' MATL_ID = 'M1' SURFACE_ORIENTATION = 'FLOOR' THICKNESS = 0.015 TEMPERATURE_DEPTH = 0 DEPTH_UNITS = 'M' /
I24: 018 | J24: 2.5 | K24: 2.5 | L24: 3.5 | M24: 3.5 | N24: 3.4 | O24: 3.4 | P24: stena | Q24: stena | R24: stena | S24: &FIRE ID = 'F.C1.9.018' COMP_ID = 'C1', FIRE_ID = 'FP.C1.Z.3.4' LOCATION = 2.5, 3.5 IGNITION_CRITERION = 'TEMPERATURE', DEVC_ID = 'T.C1.9.018', SETPOINT = 250 / | T24: &DEVC ID = 'T.C1.9.018' COMP_ID = 'C1' LOCATION = 2.5, 3.5, 3.4 TYPE = 'PLATE' MATL_ID = 'M1' SURFACE_ORIENTATION = 'FLOOR' THICKNESS = 0.015 TEMPERATURE_DEPTH = 0 DEPTH_UNITS = 'M' /
I25: 019 | J25: 3.5 | K25: 3.5 | L25: 3.5 | M25: 3.5 | N25: 3.4 | O25: 3.4 | P25: stena | Q25: stena | R25: stena | S25: &FIRE ID = 'F.C1.9.019' COMP_ID = 'C1', FIRE_ID = 'FP.C1.Z.3.4' LOCATION = 3.5, 3.5 IGNITION_CRITERION = 'TEMPERATURE', DEVC_ID = 'T.C1.9.019', SETPOINT = 250 / | T25: &DEVC ID = 'T.C1.9.019' COMP_ID = 'C1' LOCATION = 3.5, 3.5, 3.4 TYPE = 'PLATE' MATL_ID = 'M1' SURFACE_ORIENTATION = 'FLOOR' THICKNESS = 0.015 TEMPERATURE_DEPTH = 0 DEPTH_UNITS = 'M' /
I26: 020 | J26: 4.5 | K26: 4.5 | L26: 3.5 | M26: 3.5 | N26: 3.4 | O26: 3.4 | P26: stena | Q26: stena | R26: stena | S26: &FIRE ID = 'F.C1.9.020' COMP_ID = 'C1', FIRE_ID = 'FP.C1.Z.3.4' LOCATION = 4.5, 3.5 IGNITION_CRITERION = 'TEMPERATURE', DEVC_ID = 'T.C1.9.020', SETPOINT = 250 / | T26: &DEVC ID = 'T.C1.9.020' COMP_ID = 'C1' LOCATION = 4.5, 3.5, 3.4 TYPE = 'PLATE' MATL_ID = 'M1' SURFACE_ORIENTATION = 'FLOOR' THICKNESS = 0.015 TEMPERATURE_DEPTH = 0 DEPTH_UNITS = 'M' /
I27: 021 | J27: 0.5 | K27: 0.5 | L27: 4.5 | M27: 4.5 | N27: 3.4 | O27: 3.4 | P27: stena | Q27: stena | R27: stena | S27: &FIRE ID = 'F.C1.9.021' COMP_ID = 'C1', FIRE_ID = 'FP.C1.Z.3.4' LOCATION = 0.5, 4.5 IGNITION_CRITERION = 'TEMPERATURE', DEVC_ID = 'T.C1.9.021', SETPOINT = 250 / | T27: &DEVC ID = 'T.C1.9.021' COMP_ID = 'C1' LOCATION = 0.5, 4.5, 3.4 TYPE = 'PLATE' MATL_ID = 'M1' SURFACE_ORIENTATION = 'FLOOR' THICKNESS = 0.015 TEMPERATURE_DEPTH = 0 DEPTH_UNITS = 'M' /
I28: 022 | J28: 1.5 | K28: 1.5 | L28: 4.5 | M28: 4.5 | N28: 3.4 | O28: 3.4 | P28: stena | Q28: stena | R28: stena | S28: &FIRE ID = 'F.C1.9.022' COMP_ID = 'C1', FIRE_ID = 'FP.C1.Z.3.4' LOCATION = 1.5, 4.5 IGNITION_CRITERION = 'TEMPERATURE', DEVC_ID = 'T.C1.9.022', SETPOINT = 250 / | T28: &DEVC ID = 'T.C1.9.022' COMP_ID = 'C1' LOCATION = 1.5, 4.5, 3.4 TYPE = 'PLATE' MATL_ID = 'M1' SURFACE_ORIENTATION = 'FLOOR' THICKNESS = 0.015 TEMPERATURE_DEPTH = 0 DEPTH_UNITS = 'M' /
I29: 023 | J29: 2.5 | K29: 2.5 | L29: 4.5 | M29: 4.5 | N29: 3.4 | O29: 3.4 | P29: stena | Q29: stena | R29: stena | S29: &FIRE ID = 'F.C1.9.023' COMP_ID = 'C1', FIRE_ID = 'FP.C1.Z.3.4' LOCATION = 2.5, 4.5 IGNITION_CRITERION = 'TEMPERATURE', DEVC_ID = 'T.C1.9.023', SETPOINT = 250 / | T29: &DEVC ID = 'T.C1.9.023' COMP_ID = 'C1' LOCATION = 2.5, 4.5, 3.4 TYPE = 'PLATE' MATL_ID = 'M1' SURFACE_ORIENTATION = 'FLOOR' THICKNESS = 0.015 TEMPERATURE_DEPTH = 0 DEPTH_UNITS = 'M' /
I30: 024 | J30: 3.5 | K30: 3.5 | L30: 4.5 | M30: 4.5 | N30: 3.4 | O30: 3.4 | P30: stena | Q30: stena | R30: stena | S30: &FIRE ID = 'F.C1.9.024' COMP_ID = 'C1', FIRE_ID = 'FP.C1.Z.3.4' LOCATION = 3.5, 4.5 IGNITION_CRITERION = 'TEMPERATURE', DEVC_ID = 'T.C1.9.024', SETPOINT = 250 / | T30: &DEVC ID = 'T.C1.9.024' COMP_ID = 'C1' LOCATION = 3.5, 4.5, 3.4 TYPE = 'PLATE' MATL_ID = 'M1' SURFACE_ORIENTATION = 'FLOOR' THICKNESS = 0.015 TEMPERATURE_DEPTH = 0 DEPTH_UNITS = 'M' /
I31: 025 | J31: 4.5 | K31: 4.5 | L31: 4.5 | M31: 4.5 | N31: 3.4 | O31: 3.4 | P31: stena | Q31: stena | R31: stena | S31: &FIRE ID = 'F.C1.9.025' COMP_ID = 'C1', FIRE_ID = 'FP.C1.Z.3.4' LOCATION = 4.5, 4.5 IGNITION_CRITERION = 'TEMPERATURE', DEVC_ID = 'T.C1.9.025', SETPOINT = 250 / | T31: &DEVC ID = 'T.C1.9.025' COMP_ID = 'C1' LOCATION = 4.5, 4.5, 3.4 TYPE = 'PLATE' MATL_ID = 'M1' SURFACE_ORIENTATION = 'FLOOR' THICKNESS = 0.015 TEMPERATURE_DEPTH = 0 DEPTH_UNITS = 'M' /
I32: 026 | J32: 0.5 | K32: 0.5 | L32: 5.5 | M32: 5.5 | N32: 3.4 | O32: 3.4 | P32: stena | Q32: stena | R32: stena | S32: &FIRE ID = 'F.C1.9.026' COMP_ID = 'C1', FIRE_ID = 'FP.C1.Z.3.4' LOCATION = 0.5, 5.5 IGNITION_CRITERION = 'TEMPERATURE', DEVC_ID = 'T.C1.9.026', SETPOINT = 250 / | T32: &DEVC ID = 'T.C1.9.026' COMP_ID = 'C1' LOCATION = 0.5, 5.5, 3.4 TYPE = 'PLATE' MATL_ID = 'M1' SURFACE_ORIENTATION = 'FLOOR' THICKNESS = 0.015 TEMPERATURE_DEPTH = 0 DEPTH_UNITS = 'M' /
I33: 027 | J33: 1.5 | K33: 1.5 | L33: 5.5 | M33: 5.5 | N33: 3.4 | O33: 3.4 | P33: stena | Q33: stena | R33: stena | S33: &FIRE ID = 'F.C1.9.027' COMP_ID = 'C1', FIRE_ID = 'FP.C1.Z.3.4' LOCATION = 1.5, 5.5 IGNITION_CRITERION = 'TEMPERATURE', DEVC_ID = 'T.C1.9.027', SETPOINT = 250 / | T33: &DEVC ID = 'T.C1.9.027' COMP_ID = 'C1' LOCATION = 1.5, 5.5, 3.4 TYPE = 'PLATE' MATL_ID = 'M1' SURFACE_ORIENTATION = 'FLOOR' THICKNESS = 0.015 TEMPERATURE_DEPTH = 0 DEPTH_UNITS = 'M' /
I34: 028 | J34: 2.5 | K34: 2.5 | L34: 5.5 | M34: 5.5 | N34: 3.4 | O34: 3.4 | P34: stena | Q34: stena | R34: stena | S34: &FIRE ID = 'F.C1.9.028' COMP_ID = 'C1', FIRE_ID = 'FP.C1.Z.3.4' LOCATION = 2.5, 5.5 IGNITION_CRITERION = 'TEMPERATURE', DEVC_ID = 'T.C1.9.028', SETPOINT = 250 / | T34: &DEVC ID = 'T.C1.9.028' COMP_ID = 'C1' LOCATION = 2.5, 5.5, 3.4 TYPE = 'PLATE' MATL_ID = 'M1' SURFACE_ORIENTATION = 'FLOOR' THICKNESS = 0.015 TEMPERATURE_DEPTH = 0 DEPTH_UNITS = 'M' /
I35: 029 | J35: 3.5 | K35: 3.5 | L35: 5.5 | M35: 5.5 | N35: 3.4 | O35: 3.4 | P35: stena | Q35: stena | R35: stena | S35: &FIRE ID = 'F.C1.9.029' COMP_ID = 'C1', FIRE_ID = 'FP.C1.Z.3.4' LOCATION = 3.5, 5.5 IGNITION_CRITERION = 'TEMPERATURE', DEVC_ID = 'T.C1.9.029', SETPOINT = 250 / | T35: &DEVC ID = 'T.C1.9.029' COMP_ID = 'C1' LOCATION = 3.5, 5.5, 3.4 TYPE = 'PLATE' MATL_ID = 'M1' SURFACE_ORIENTATION = 'FLOOR' THICKNESS = 0.015 TEMPERATURE_DEPTH = 0 DEPTH_UNITS = 'M' /
I36: 030 | J36: 4.5 | K36: 4.5 | L36: 5.5 | M36: 5.5 | N36: 3.4 | O36: 3.4 | P36: stena | Q36: stena | R36: stena | S36: &FIRE ID = 'F.C1.9.030' COMP_ID = 'C1', FIRE_ID = 'FP.C1.Z.3.4' LOCATION = 4.5, 5.5 IGNITION_CRITERION = 'TEMPERATURE', DEVC_ID = 'T.C1.9.030', SETPOINT = 250 / | T36: &DEVC ID = 'T.C1.9.030' COMP_ID = 'C1' LOCATION = 4.5, 5.5, 3.4 TYPE = 'PLATE' MATL_ID = 'M1' SURFACE_ORIENTATION = 'FLOOR' THICKNESS = 0.015 TEMPERATURE_DEPTH = 0 DEPTH_UNITS = 'M' /
I37: 031 | J37: 0.5 | K37: 0.5 | L37: 6.5 | M37: 6.5 | N37: 3.4 | O37: 3.4 | P37: stena | Q37: stena | R37: stena | S37: &FIRE ID = 'F.C1.9.031' COMP_ID = 'C1', FIRE_ID = 'FP.C1.Z.3.4' LOCATION = 0.5, 6.5 IGNITION_CRITERION = 'TEMPERATURE', DEVC_ID = 'T.C1.9.031', SETPOINT = 250 / | T37: &DEVC ID = 'T.C1.9.031' COMP_ID = 'C1' LOCATION = 0.5, 6.5, 3.4 TYPE = 'PLATE' MATL_ID = 'M1' SURFACE_ORIENTATION = 'FLOOR' THICKNESS = 0.015 TEMPERATURE_DEPTH = 0 DEPTH_UNITS = 'M' /
I38: 032 | J38: 1.5 | K38: 1.5 | L38: 6.5 | M38: 6.5 | N38: 3.4 | O38: 3.4 | P38: stena | Q38: stena | R38: stena | S38: &FIRE ID = 'F.C1.9.032' COMP_ID = 'C1', FIRE_ID = 'FP.C1.Z.3.4' LOCATION = 1.5, 6.5 IGNITION_CRITERION = 'TEMPERATURE', DEVC_ID = 'T.C1.9.032', SETPOINT = 250 / | T38: &DEVC ID = 'T.C1.9.032' COMP_ID = 'C1' LOCATION = 1.5, 6.5, 3.4 TYPE = 'PLATE' MATL_ID = 'M1' SURFACE_ORIENTATION = 'FLOOR' THICKNESS = 0.015 TEMPERATURE_DEPTH = 0 DEPTH_UNITS = 'M' /
I39: =RIGHT("00"&ROW(A33),3) -> 033 | J39: 2.5 | K39: 2.5 | L39: 6.5 | M39: 6.5 | N39: 3.4 | O39: 3.4 | P39: stena | Q39: stena | R39: stena | S39: &FIRE ID = 'F.C1.9.033' COMP_ID = 'C1', FIRE_ID = 'FP.C1.Z.3.4' LOCATION = 2.5, 6.5 IGNITION_CRITERION = 'TEMPERATURE', DEVC_ID = 'T.C1.9.033', SETPOINT = 250 / | T39: &DEVC ID = 'T.C1.9.033' COMP_ID = 'C1' LOCATION = 2.5, 6.5, 3.4 TYPE = 'PLATE' MATL_ID = 'M1' SURFACE_ORIENTATION = 'FLOOR' THICKNESS = 0.015 TEMPERATURE_DEPTH = 0 DEPTH_UNITS = 'M' /
I40: 034 | J40: 3.5 | K40: 3.5 | L40: 6.5 | M40: 6.5 | N40: 3.4 | O40: 3.4 | P40: stena | Q40: stena | R40: stena | S40: &FIRE ID = 'F.C1.9.034' COMP_ID = 'C1', FIRE_ID = 'FP.C1.Z.3.4' LOCATION = 3.5, 6.5 IGNITION_CRITERION = 'TEMPERATURE', DEVC_ID = 'T.C1.9.034', SETPOINT = 250 / | T40: &DEVC ID = 'T.C1.9.034' COMP_ID = 'C1' LOCATION = 3.5, 6.5, 3.4 TYPE = 'PLATE' MATL_ID = 'M1' SURFACE_ORIENTATION = 'FLOOR' THICKNESS = 0.015 TEMPERATURE_DEPTH = 0 DEPTH_UNITS = 'M' /
I41: 035 | J41: 4.5 | K41: 4.5 | L41: 6.5 | M41: 6.5 | N41: 3.4 | O41: 3.4 | P41: stena | Q41: stena | R41: stena | S41: &FIRE ID = 'F.C1.9.035' COMP_ID = 'C1', FIRE_ID = 'FP.C1.Z.3.4' LOCATION = 4.5, 6.5 IGNITION_CRITERION = 'TEMPERATURE', DEVC_ID = 'T.C1.9.035', SETPOINT = 250 / | T41: &DEVC ID = 'T.C1.9.035' COMP_ID = 'C1' LOCATION = 4.5, 6.5, 3.4 TYPE = 'PLATE' MATL_ID = 'M1' SURFACE_ORIENTATION = 'FLOOR' THICKNESS = 0.015 TEMPERATURE_DEPTH = 0 DEPTH_UNITS = 'M' /
I42: 036 | J42: 0.5 | K42: 0.5 | L42: 7.5 | M42: 7.5 | N42: 3.4 | O42: 3.4 | P42: stena | Q42: stena | R42: stena | S42: &FIRE ID = 'F.C1.9.036' COMP_ID = 'C1', FIRE_ID = 'FP.C1.Z.3.4' LOCATION = 0.5, 7.5 IGNITION_CRITERION = 'TEMPERATURE', DEVC_ID = 'T.C1.9.036', SETPOINT = 250 / | T42: &DEVC ID = 'T.C1.9.036' COMP_ID = 'C1' LOCATION = 0.5, 7.5, 3.4 TYPE = 'PLATE' MATL_ID = 'M1' SURFACE_ORIENTATION = 'FLOOR' THICKNESS = 0.015 TEMPERATURE_DEPTH = 0 DEPTH_UNITS = 'M' /
I43: 037 | J43: 1.5 | K43: 1.5 | L43: 7.5 | M43: 7.5 | N43: 3.4 | O43: 3.4 | P43: stena | Q43: stena | R43: stena | S43: &FIRE ID = 'F.C1.9.037' COMP_ID = 'C1', FIRE_ID = 'FP.C1.Z.3.4' LOCATION = 1.5, 7.5 IGNITION_CRITERION = 'TEMPERATURE', DEVC_ID = 'T.C1.9.037', SETPOINT = 250 / | T43: &DEVC ID = 'T.C1.9.037' COMP_ID = 'C1' LOCATION = 1.5, 7.5, 3.4 TYPE = 'PLATE' MATL_ID = 'M1' SURFACE_ORIENTATION = 'FLOOR' THICKNESS = 0.015 TEMPERATURE_DEPTH = 0 DEPTH_UNITS = 'M' /
I44: 038 | J44: 2.5 | K44: 2.5 | L44: 7.5 | M44: 7.5 | N44: 3.4 | O44: 3.4 | P44: stena | Q44: stena | R44: stena | S44: &FIRE ID = 'F.C1.9.038' COMP_ID = 'C1', FIRE_ID = 'FP.C1.Z.3.4' LOCATION = 2.5, 7.5 IGNITION_CRITERION = 'TEMPERATURE', DEVC_ID = 'T.C1.9.038', SETPOINT = 250 / | T44: &DEVC ID = 'T.C1.9.038' COMP_ID = 'C1' LOCATION = 2.5, 7.5, 3.4 TYPE = 'PLATE' MATL_ID = 'M1' SURFACE_ORIENTATION = 'FLOOR' THICKNESS = 0.015 TEMPERATURE_DEPTH = 0 DEPTH_UNITS = 'M' /
I45: 039 | J45: 3.5 | K45: 3.5 | L45: 7.5 | M45: 7.5 | N45: 3.4 | O45: 3.4 | P45: stena | Q45: stena | R45: stena | S45: &FIRE ID = 'F.C1.9.039' COMP_ID = 'C1', FIRE_ID = 'FP.C1.Z.3.4' LOCATION = 3.5, 7.5 IGNITION_CRITERION = 'TEMPERATURE', DEVC_ID = 'T.C1.9.039', SETPOINT = 250 / | T45: &DEVC ID = 'T.C1.9.039' COMP_ID = 'C1' LOCATION = 3.5, 7.5, 3.4 TYPE = 'PLATE' MATL_ID = 'M1' SURFACE_ORIENTATION = 'FLOOR' THICKNESS = 0.015 TEMPERATURE_DEPTH = 0 DEPTH_UNITS = 'M' /
I46: 040 | J46: 4.5 | K46: 4.5 | L46: 7.5 | M46: 7.5 | N46: 3.4 | O46: 3.4 | P46: stena | Q46: stena | R46: stena | S46: &FIRE ID = 'F.C1.9.040' COMP_ID = 'C1', FIRE_ID = 'FP.C1.Z.3.4' LOCATION = 4.5, 7.5 IGNITION_CRITERION = 'TEMPERATURE', DEVC_ID = 'T.C1.9.040', SETPOINT = 250 / | T46: &DEVC ID = 'T.C1.9.040' COMP_ID = 'C1' LOCATION = 4.5, 7.5, 3.4 TYPE = 'PLATE' MATL_ID = 'M1' SURFACE_ORIENTATION = 'FLOOR' THICKNESS = 0.015 TEMPERATURE_DEPTH = 0 DEPTH_UNITS = 'M' /
I47: 041 | J47: 0.5 | K47: 0.5 | L47: 8.5 | M47: 8.5 | N47: 3.4 | O47: 3.4 | P47: stena | Q47: stena | R47: stena | S47: &FIRE ID = 'F.C1.9.041' COMP_ID = 'C1', FIRE_ID = 'FP.C1.Z.3.4' LOCATION = 0.5, 8.5 IGNITION_CRITERION = 'TEMPERATURE', DEVC_ID = 'T.C1.9.041', SETPOINT = 250 / | T47: &DEVC ID = 'T.C1.9.041' COMP_ID = 'C1' LOCATION = 0.5, 8.5, 3.4 TYPE = 'PLATE' MATL_ID = 'M1' SURFACE_ORIENTATION = 'FLOOR' THICKNESS = 0.015 TEMPERATURE_DEPTH = 0 DEPTH_UNITS = 'M' /
I48: 042 | J48: 1.5 | K48: 1.5 | L48: 8.5 | M48: 8.5 | N48: 3.4 | O48: 3.4 | P48: stena | Q48: stena | R48: stena | S48: &FIRE ID = 'F.C1.9.042' COMP_ID = 'C1', FIRE_ID = 'FP.C1.Z.3.4' LOCATION = 1.5, 8.5 IGNITION_CRITERION = 'TEMPERATURE', DEVC_ID = 'T.C1.9.042', SETPOINT = 250 / | T48: &DEVC ID = 'T.C1.9.042' COMP_ID = 'C1' LOCATION = 1.5, 8.5, 3.4 TYPE = 'PLATE' MATL_ID = 'M1' SURFACE_ORIENTATION = 'FLOOR' THICKNESS = 0.015 TEMPERATURE_DEPTH = 0 DEPTH_UNITS = 'M' /
I49: 043 | J49: 2.5 | K49: 2.5 | L49: 8.5 | M49: 8.5 | N49: 3.4 | O49: 3.4 | P49: stena | Q49: stena | R49: stena | S49: &FIRE ID = 'F.C1.9.043' COMP_ID = 'C1', FIRE_ID = 'FP.C1.Z.3.4' LOCATION = 2.5, 8.5 IGNITION_CRITERION = 'TEMPERATURE', DEVC_ID = 'T.C1.9.043', SETPOINT = 250 / | T49: &DEVC ID = 'T.C1.9.043' COMP_ID = 'C1' LOCATION = 2.5, 8.5, 3.4 TYPE = 'PLATE' MATL_ID = 'M1' SURFACE_ORIENTATION = 'FLOOR' THICKNESS = 0.015 TEMPERATURE_DEPTH = 0 DEPTH_UNITS = 'M' /
I50: 044 | J50: 3.5 | K50: 3.5 | L50: 8.5 | M50: 8.5 | N50: 3.4 | O50: 3.4 | P50: stena | Q50: stena | R50: stena | S50: &FIRE ID = 'F.C1.9.044' COMP_ID = 'C1', FIRE_ID = 'FP.C1.Z.3.4' LOCATION = 3.5, 8.5 IGNITION_CRITERION = 'TEMPERATURE', DEVC_ID = 'T.C1.9.044', SETPOINT = 250 / | T50: &DEVC ID = 'T.C1.9.044' COMP_ID = 'C1' LOCATION = 3.5, 8.5, 3.4 TYPE = 'PLATE' MATL_ID = 'M1' SURFACE_ORIENTATION = 'FLOOR' THICKNESS = 0.015 TEMPERATURE_DEPTH = 0 DEPTH_UNITS = 'M' /
I51: 045 | J51: 4.5 | K51: 4.5 | L51: 8.5 | M51: 8.5 | N51: 3.4 | O51: 3.4 | P51: stena | Q51: stena | R51: stena | S51: &FIRE ID = 'F.C1.9.045' COMP_ID = 'C1', FIRE_ID = 'FP.C1.Z.3.4' LOCATION = 4.5, 8.5 IGNITION_CRITERION = 'TEMPERATURE', DEVC_ID = 'T.C1.9.045', SETPOINT = 250 / | T51: &DEVC ID = 'T.C1.9.045' COMP_ID = 'C1' LOCATION = 4.5, 8.5, 3.4 TYPE = 'PLATE' MATL_ID = 'M1' SURFACE_ORIENTATION = 'FLOOR' THICKNESS = 0.015 TEMPERATURE_DEPTH = 0 DEPTH_UNITS = 'M' /
I52: 046 | J52: 0.5 | K52: 0.5 | L52: 9.5 | M52: 9.5 | N52: 3.4 | O52: 3.4 | P52: stena | Q52: stena | R52: stena | S52: &FIRE ID = 'F.C1.9.046' COMP_ID = 'C1', FIRE_ID = 'FP.C1.Z.3.4' LOCATION = 0.5, 9.5 IGNITION_CRITERION = 'TEMPERATURE', DEVC_ID = 'T.C1.9.046', SETPOINT = 250 / | T52: &DEVC ID = 'T.C1.9.046' COMP_ID = 'C1' LOCATION = 0.5, 9.5, 3.4 TYPE = 'PLATE' MATL_ID = 'M1' SURFACE_ORIENTATION = 'FLOOR' THICKNESS = 0.015 TEMPERATURE_DEPTH = 0 DEPTH_UNITS = 'M' /
I53: 047 | J53: 1.5 | K53: 1.5 | L53: 9.5 | M53: 9.5 | N53: 3.4 | O53: 3.4 | P53: stena | Q53: stena | R53: stena | S53: &FIRE ID = 'F.C1.9.047' COMP_ID = 'C1', FIRE_ID = 'FP.C1.Z.3.4' LOCATION = 1.5, 9.5 IGNITION_CRITERION = 'TEMPERATURE', DEVC_ID = 'T.C1.9.047', SETPOINT = 250 / | T53: &DEVC ID = 'T.C1.9.047' COMP_ID = 'C1' LOCATION = 1.5, 9.5, 3.4 TYPE = 'PLATE' MATL_ID = 'M1' SURFACE_ORIENTATION = 'FLOOR' THICKNESS = 0.015 TEMPERATURE_DEPTH = 0 DEPTH_UNITS = 'M' /
I54: 048 | J54: 2.5 | K54: 2.5 | L54: 9.5 | M54: 9.5 | N54: 3.4 | O54: 3.4 | P54: stena | Q54: stena | R54: stena | S54: &FIRE ID = 'F.C1.9.048' COMP_ID = 'C1', FIRE_ID = 'FP.C1.Z.3.4' LOCATION = 2.5, 9.5 IGNITION_CRITERION = 'TEMPERATURE', DEVC_ID = 'T.C1.9.048', SETPOINT = 250 / | T54: &DEVC ID = 'T.C1.9.048' COMP_ID = 'C1' LOCATION = 2.5, 9.5, 3.4 TYPE = 'PLATE' MATL_ID = 'M1' SURFACE_ORIENTATION = 'FLOOR' THICKNESS = 0.015 TEMPERATURE_DEPTH = 0 DEPTH_UNITS = 'M' /
I55: 049 | J55: 3.5 | K55: 3.5 | L55: 9.5 | M55: 9.5 | N55: 3.4 | O55: 3.4 | P55: stena | Q55: stena | R55: stena | S55: &FIRE ID = 'F.C1.9.049' COMP_ID = 'C1', FIRE_ID = 'FP.C1.Z.3.4' LOCATION = 3.5, 9.5 IGNITION_CRITERION = 'TEMPERATURE', DEVC_ID = 'T.C1.9.049', SETPOINT = 250 / | T55: &DEVC ID = 'T.C1.9.049' COMP_ID = 'C1' LOCATION = 3.5, 9.5, 3.4 TYPE = 'PLATE' MATL_ID = 'M1' SURFACE_ORIENTATION = 'FLOOR' THICKNESS = 0.015 TEMPERATURE_DEPTH = 0 DEPTH_UNITS = 'M' /
I56: 050 | J56: 4.5 | K56: 4.5 | L56: 9.5 | M56: 9.5 | N56: 3.4 | O56: 3.4 | P56: stena | Q56: stena | R56: stena | S56: &FIRE ID = 'F.C1.9.050' COMP_ID = 'C1', FIRE_ID = 'FP.C1.Z.3.4' LOCATION = 4.5, 9.5 IGNITION_CRITERION = 'TEMPERATURE', DEVC_ID = 'T.C1.9.050', SETPOINT = 250 / | T56: &DEVC ID = 'T.C1.9.050' COMP_ID = 'C1' LOCATION = 4.5, 9.5, 3.4 TYPE = 'PLATE' MATL_ID = 'M1' SURFACE_ORIENTATION = 'FLOOR' THICKNESS = 0.015 TEMPERATURE_DEPTH = 0 DEPTH_UNITS = 'M' /
I57: 051 | J57: 0.5 | K57: 0.5 | L57: 10.5 | M57: 10.5 | N57: 3.4 | O57: 3.4 | P57: stena | Q57: stena | R57: stena
I58: 052 | J58: 1.5 | K58: 1.5 | L58: 10.5 | M58: 10.5 | N58: 3.4 | O58: 3.4 | P58: stena | Q58: stena | R58: stena
I59: 053 | J59: 2.5 | K59: 2.5 | L59: 10.5 | M59: 10.5 | N59: 3.4 | O59: 3.4 | P59: stena | Q59: stena | R59: stena
I60: 054 | J60: 3.5 | K60: 3.5 | L60: 10.5 | M60: 10.5 | N60: 3.4 | O60: 3.4 | P60: stena | Q60: stena | R60: stena
I61: 055 | J61: 4.5 | K61: 4.5 | L61: 10.5 | M61: 10.5 | N61: 3.4 | O61: 3.4 | P61: stena | Q61: stena | R61: stena
I62: 056 | J62: 0.5 | K62: 0.5 | L62: 11.5 | M62: 11.5 | N62: 3.4 | O62: 3.4 | P62: stena | Q62: stena | R62: stena
I63: 057 | J63: 1.5 | K63: 1.5 | L63: 11.5 | M63: 11.5 | N63: 3.4 | O63: 3.4 | P63: stena | Q63: stena | R63: stena
I64: 058 | J64: 2.5 | K64: 2.5 | L64: 11.5 | M64: 11.5 | N64: 3.4 | O64: 3.4 | P64: stena | Q64: stena | R64: stena
I65: 059 | J65: 3.5 | K65: 3.5 | L65: 11.5 | M65: 11.5 | N65: 3.4 | O65: 3.4 | P65: stena | Q65: stena | R65: stena
I66: 060 | J66: 4.5 | K66: 4.5 | L66: 11.5 | M66: 11.5 | N66: 3.4 | O66: 3.4 | P66: stena | Q66: stena | R66: stena
I67: 061 | J67: 0.5 | K67: 0.5 | L67: 12.5 | M67: 12.5 | N67: 3.4 | O67: 3.4 | P67: stena | Q67: stena | R67: stena
I68: 062 | J68: 1.5 | K68: 1.5 | L68: 12.5 | M68: 12.5 | N68: 3.4 | O68: 3.4 | P68: stena | Q68: stena | R68: stena
I69: 063 | J69: 2.5 | K69: 2.5 | L69: 12.5 | M69: 12.5 | N69: 3.4 | O69: 3.4 | P69: stena | Q69: stena | R69: stena
I70: 064 | J70: 3.5 | K70: 3.5 | L70: 12.5 | M70: 12.5 | N70: 3.4 | O70: 3.4 | P70: stena | Q70: stena | R70: stena
I71: =RIGHT("00"&ROW(A65),3) -> 065 | J71: 4.5 | K71: =SUBSTITUTE(J71,",",".") -> 4.5 | L71: 12.5 | M71: =SUBSTITUTE(L71,",",".") -> 12.5 | N71: 3.4 | O71: =SUBSTITUTE(N71,",",".") -> 3.4 | P71: stena | Q71: stena | R71: stena
I72: 066 | J72: 0.5 | K72: 0.5 | L72: 13.5 | M72: 13.5 | N72: 3.4 | O72: 3.4 | P72: =IF($I$3="ano",IF(AND(J72>$J$3,J72<$K$3,L72>$L$3,L72<$M$3),"otvor","stena"),"stena") -> stena | Q72: =IF($I$4="ano",IF(AND(J72>$J$4,J72<$K$4,L72>$L$4,L72<$M$4),"otvor","stena"),"stena") -> stena | R72: stena | S72: =IF(AND(J72>$M$2,L72>$N$2),IF(R72="stena",IF(L72>$C$3,"",CONCATENATE("&FIRE ID = 'F.",$E$2,".9.",I72,"' COMP_ID = '",$E$2,"', FIRE_ID = 'FP.",$E$2,".Z.",O72,"' LOCATION = ",K72,", ",M72," IGNITION_CRITERION = 'TEMPERATURE', DEVC_ID = 'T.",$E$2,".9.",I72,"', SETPOINT = ",$R$4," /")),""),"") ->  | T72: =IF(S72="","",IF(R72="stena",IF(L72>$C$3,"",CONCATENATE("&DEVC ID = 'T.",$E$2,".9.",I72,"' COMP_ID = '",$E$2,"' LOCATION = ",K72,", ",M72,", ",O72," TYPE = '",$P$3,"' MATL_ID = '",$P$2,"' SURFACE_ORIENTATION = '",$P$4,"' THICKNESS = ",$R$2," TEMPERATURE_DEPTH = ",$R$3," DEPTH_UNITS = 'M' /")),"")) -> 
I73: 067 | J73: =IF(J72=($C$2-$G$2/2),$G$2/2,J72+$G$2) -> 1.5 | K73: 1.5 | L73: =IF(J73=$G$2/2,L72+$G$3,L72) -> 13.5 | M73: 13.5 | N73: =N72 -> 3.4 | O73: 3.4 | P73: stena | Q73: stena | R73: stena
I74: 068 | J74: 2.5 | K74: 2.5 | L74: 13.5 | M74: 13.5 | N74: 3.4 | O74: 3.4 | P74: stena | Q74: stena | R74: stena
I75: 069 | J75: 3.5 | K75: 3.5 | L75: 13.5 | M75: 13.5 | N75: 3.4 | O75: 3.4 | P75: stena | Q75: stena | R75: stena
I76: 070 | J76: 4.5 | K76: 4.5 | L76: 13.5 | M76: 13.5 | N76: 3.4 | O76: 3.4 | P76: stena | Q76: stena | R76: stena
I77: 071 | J77: 0.5 | K77: 0.5 | L77: 14.5 | M77: 14.5 | N77: 3.4 | O77: 3.4 | P77: stena | Q77: stena | R77: =IF(OR(P77="otvor",Q77="otvor"),"otvor","stena") -> stena
I78: 072 | J78: 1.5 | K78: 1.5 | L78: 14.5 | M78: 14.5 | N78: 3.4 | O78: 3.4 | P78: stena | Q78: stena | R78: stena
I79: 073 | J79: 2.5 | K79: 2.5 | L79: 14.5 | M79: 14.5 | N79: 3.4 | O79: 3.4 | P79: stena | Q79: stena | R79: stena
I80: 074 | J80: 3.5 | K80: 3.5 | L80: 14.5 | M80: 14.5 | N80: 3.4 | O80: 3.4 | P80: stena | Q80: stena | R80: stena
I81: 075 | J81: 4.5 | K81: 4.5 | L81: 14.5 | M81: 14.5 | N81: 3.4 | O81: 3.4 | P81: stena | Q81: stena | R81: stena
I82: 076 | J82: 0.5 | K82: 0.5 | L82: 15.5 | M82: 15.5 | N82: 3.4 | O82: 3.4 | P82: stena | Q82: stena | R82: stena
I83: 077 | J83: 1.5 | K83: 1.5 | L83: 15.5 | M83: 15.5 | N83: 3.4 | O83: 3.4 | P83: stena | Q83: stena | R83: stena
I84: 078 | J84: 2.5 | K84: 2.5 | L84: 15.5 | M84: 15.5 | N84: 3.4 | O84: 3.4 | P84: stena | Q84: stena | R84: stena
I85: 079 | J85: 3.5 | K85: 3.5 | L85: 15.5 | M85: 15.5 | N85: 3.4 | O85: 3.4 | P85: stena | Q85: stena | R85: stena
I86: 080 | J86: 4.5 | K86: 4.5 | L86: 15.5 | M86: 15.5 | N86: 3.4 | O86: 3.4 | P86: stena | Q86: stena | R86: stena
I87: 081 | J87: 0.5 | K87: 0.5 | L87: 16.5 | M87: 16.5 | N87: 3.4 | O87: 3.4 | P87: stena | Q87: stena | R87: stena
I88: 082 | J88: 1.5 | K88: 1.5 | L88: 16.5 | M88: 16.5 | N88: 3.4 | O88: 3.4 | P88: stena | Q88: stena | R88: stena
I89: 083 | J89: 2.5 | K89: 2.5 | L89: 16.5 | M89: 16.5 | N89: 3.4 | O89: 3.4 | P89: stena | Q89: stena | R89: stena
I90: 084 | J90: 3.5 | K90: 3.5 | L90: 16.5 | M90: 16.5 | N90: 3.4 | O90: 3.4 | P90: stena | Q90: stena | R90: stena
I91: 085 | J91: 4.5 | K91: 4.5 | L91: 16.5 | M91: 16.5 | N91: 3.4 | O91: 3.4 | P91: stena | Q91: stena | R91: stena
I92: 086 | J92: 0.5 | K92: 0.5 | L92: 17.5 | M92: 17.5 | N92: 3.4 | O92: 3.4 | P92: stena | Q92: stena | R92: stena
I93: 087 | J93: 1.5 | K93: 1.5 | L93: 17.5 | M93: 17.5 | N93: 3.4 | O93: 3.4 | P93: stena | Q93: stena | R93: stena
I94: 088 | J94: 2.5 | K94: 2.5 | L94: 17.5 | M94: 17.5 | N94: 3.4 | O94: 3.4 | P94: stena | Q94: stena | R94: stena
I95: 089 | J95: 3.5 | K95: 3.5 | L95: 17.5 | M95: 17.5 | N95: 3.4 | O95: 3.4 | P95: stena | Q95: stena | R95: stena
I96: 090 | J96: 4.5 | K96: 4.5 | L96: 17.5 | M96: 17.5 | N96: 3.4 | O96: 3.4 | P96: stena | Q96: stena | R96: stena
I97: 091 | J97: 0.5 | K97: 0.5 | L97: 18.5 | M97: 18.5 | N97: 3.4 | O97: 3.4 | P97: stena | Q97: stena | R97: stena
I98: 092 | J98: 1.5 | K98: 1.5 | L98: 18.5 | M98: 18.5 | N98: 3.4 | O98: 3.4 | P98: stena | Q98: stena | R98: stena
I99: 093 | J99: 2.5 | K99: =SUBSTITUTE(J99,",",".") -> 2.5 | L99: 18.5 | M99: =SUBSTITUTE(L99,",",".") -> 18.5 | N99: 3.4 | O99: =SUBSTITUTE(N99,",",".") -> 3.4 | P99: stena | Q99: stena | R99: stena
I100: 094 | J100: 3.5 | K100: 3.5 | L100: 18.5 | M100: 18.5 | N100: 3.4 | O100: 3.4 | P100: stena | Q100: stena | R100: stena
I101: 095 | J101: 4.5 | K101: 4.5 | L101: 18.5 | M101: 18.5 | N101: 3.4 | O101: 3.4 | P101: stena | Q101: stena | R101: stena
I102: 096 | J102: 0.5 | K102: 0.5 | L102: 19.5 | M102: 19.5 | N102: 3.4 | O102: 3.4 | P102: stena | Q102: stena | R102: stena
I103: =RIGHT("00"&ROW(A97),3) -> 097 | J103: 1.5 | K103: =SUBSTITUTE(J103,",",".") -> 1.5 | L103: 19.5 | M103: =SUBSTITUTE(L103,",",".") -> 19.5 | N103: 3.4 | O103: =SUBSTITUTE(N103,",",".") -> 3.4 | P103: stena | Q103: stena | R103: stena
I104: 098 | J104: 2.5 | K104: 2.5 | L104: 19.5 | M104: 19.5 | N104: 3.4 | O104: 3.4 | P104: stena | Q104: stena | R104: stena
I105: 099 | J105: 3.5 | K105: 3.5 | L105: 19.5 | M105: 19.5 | N105: 3.4 | O105: 3.4 | P105: stena | Q105: stena | R105: stena
I106: 100 | J106: 4.5 | K106: 4.5 | L106: 19.5 | M106: 19.5 | N106: 3.4 | O106: 3.4 | P106: stena | Q106: stena | R106: stena
I107: 101 | J107: 0.5 | K107: 0.5 | L107: 20.5 | M107: 20.5 | N107: 3.4 | O107: 3.4 | P107: stena | Q107: stena | R107: stena
R108: =IF(R107="stena","ok","pozor") -> ok | S108: =IF(S107="","ok","pozor") -> ok

Sheet Fire Devc F
B2: x | C2: =zadani!G7 -> 5 | D2: místno. | E2: =zadani!G6 -> C1 | F2: hrana x | G2: =zadani!G7/zadani!G16 -> 1 | H2: STRANA F | M2: =zadani!G10 -> 0 | N2: =zadani!G11 -> 0 | O2: =zadani!G12 -> 0 | P2: =zadani!G38 -> M1 | Q2: =zadani!G41 -> 0.015 | R2: =SUBSTITUTE(Q2,",",".") -> 0.015
B3: y | C3: =zadani!G8 -> 10 | D3: odstup | E3: =zadani!G15 -> 0.01 | F3: hrana y | G3: =zadani!G8/zadani!G17 -> 1 | H3: otvor 1 | I3: =zadani!L18 -> ne | J3: =zadani!M18 -> 0 | K3: =zadani!N18 -> 0 | L3: =zadani!O18 -> 0 | M3: =zadani!P18 -> 0 | N3: =zadani!Q18 -> - | O3: =zadani!R18 -> - | P3: =zadani!G39 -> PLATE | Q3: =zadani!G42 -> 0 | R3: =SUBSTITUTE(Q3,",",".") -> 0
B4: z | C4: =zadani!G9 -> 3.5 | D4: vše ok? | E4: =IF(AND(R108="ok",S108="ok"),"ok","pozor") -> ok | H4: otvor 2 | I4: =zadani!L19 -> ne | J4: =zadani!M19 -> 0 | K4: =zadani!N19 -> 0 | L4: =zadani!O19 -> 0 | M4: =zadani!P19 -> 0 | N4: =zadani!Q19 -> - | O4: =zadani!R19 -> - | P4: =zadani!G40 -> FLOOR | Q4: =zadani!C42 -> 250 | R4: =SUBSTITUTE(Q4,",",".") -> 250
I6: pořad. číslo | J6: X | L6: Y | N6: Z | P6: otvor 1 | Q6: otvor 2 | R6: otvory
I7: =RIGHT("00"&ROW(A1),3) -> 001 | J7: =G2/2 -> 0.5 | K7: =SUBSTITUTE(J7,",",".") -> 0.5 | L7: =G3/2 -> 0.5 | M7: =SUBSTITUTE(L7,",",".") -> 0.5 | N7: =E3 -> 0.01 | O7: =SUBSTITUTE(N7,",",".") -> 0.01 | P7: =IF($I$3="ano",IF(AND(J7>$J$3,J7<$K$3,L7>$L$3,L7<$M$3),"otvor","stena"),"stena") -> stena | Q7: =IF($I$4="ano",IF(AND(J7>$J$4,J7<$K$4,L7>$L$4,L7<$M$4),"otvor","stena"),"stena") -> stena | R7: =IF(OR(P7="otvor",Q7="otvor"),"otvor","stena") -> stena | S7: =IF(AND(J7>$M$2,L7>$N$2),IF(R7="stena",IF(L7>$C$3,"",CONCATENATE("&FIRE ID = 'F.",$E$2,".10.",I7,"' COMP_ID = '",$E$2,"', FIRE_ID = 'FP.",$E$2,".Z.",O7,"' LOCATION = ",K7,", ",M7," IGNITION_CRITERION = 'TEMPERATURE', DEVC_ID = 'T.",$E$2,".10.",I7,"', SETPOINT = ",$R$4," /")),""),"") -> &FIRE ID = 'F.C1.10.001' COMP_ID = 'C1', FIRE_ID = 'FP.C1.Z.0.01' LOCATION = 0.5, 0.5 IGNITION_CRITERION = 'TEMPERATURE', DEVC_ID = 'T.C1.10.001', SETPOINT = 250 / | T7: =IF(S7="","",IF(R7="stena",IF(L7>$C$3,"",CONCATENATE("&DEVC ID = 'T.",$E$2,".10.",I7,"' COMP_ID = '",$E$2,"' LOCATION = ",K7,", ",M7,", ",O7," TYPE = '",$P$3,"' MATL_ID = '",$P$2,"' SURFACE_ORIENTATION = '",$P$4,"' THICKNESS = ",$R$2," TEMPERATURE_DEPTH = ",$R$3," DEPTH_UNITS = 'M' /")),"")) -> &DEVC ID = 'T.C1.10.001' COMP_ID = 'C1' LOCATION = 0.5, 0.5, 0.01 TYPE = 'PLATE' MATL_ID = 'M1' SURFACE_ORIENTATION = 'FLOOR' THICKNESS = 0.015 TEMPERATURE_DEPTH = 0 DEPTH_UNITS = 'M' /
I8: 002 | J8: =IF(J7=($C$2-$G$2/2),$G$2/2,J7+$G$2) -> 1.5 | K8: 1.5 | L8: =IF(J8=$G$2/2,L7+$G$3,L7) -> 0.5 | M8: 0.5 | N8: =N7 -> 0.01 | O8: 0.01 | P8: =IF($I$3="ano",IF(AND(J8>$J$3,J8<$K$3,L8>$L$3,L8<$M$3),"otvor","stena"),"stena") -> stena | Q8: =IF($I$4="ano",IF(AND(J8>$J$4,J8<$K$4,L8>$L$4,L8<$M$4),"otvor","stena"),"stena") -> stena | R8: stena | S8: =IF(AND(J8>$M$2,L8>$N$2),IF(R8="stena",IF(L8>$C$3,"",CONCATENATE("&FIRE ID = 'F.",$E$2,".10.",I8,"' COMP_ID = '",$E$2,"', FIRE_ID = 'FP.",$E$2,".Z.",O8,"' LOCATION = ",K8,", ",M8," IGNITION_CRITERION = 'TEMPERATURE', DEVC_ID = 'T.",$E$2,".10.",I8,"', SETPOINT = ",$R$4," /")),""),"") -> &FIRE ID = 'F.C1.10.002' COMP_ID = 'C1', FIRE_ID = 'FP.C1.Z.0.01' LOCATION = 1.5, 0.5 IGNITION_CRITERION = 'TEMPERATURE', DEVC_ID = 'T.C1.10.002', SETPOINT = 250 / | T8: =IF(S8="","",IF(R8="stena",IF(L8>$C$3,"",CONCATENATE("&DEVC ID = 'T.",$E$2,".10.",I8,"' COMP_ID = '",$E$2,"' LOCATION = ",K8,", ",M8,", ",O8," TYPE = '",$P$3,"' MATL_ID = '",$P$2,"' SURFACE_ORIENTATION = '",$P$4,"' THICKNESS = ",$R$2," TEMPERATURE_DEPTH = ",$R$3," DEPTH_UNITS = 'M' /")),"")) -> &DEVC ID = 'T.C1.10.002' COMP_ID = 'C1' LOCATION = 1.5, 0.5, 0.01 TYPE = 'PLATE' MATL_ID = 'M1' SURFACE_ORIENTATION = 'FLOOR' THICKNESS = 0.015 TEMPERATURE_DEPTH = 0 DEPTH_UNITS = 'M' /
I9: 003 | J9: =IF(J8=($C$2-$G$2/2),$G$2/2,J8+$G$2) -> 2.5 | K9: 2.5 | L9: =IF(J9=$G$2/2,L8+$G$3,L8) -> 0.5 | M9: 0.5 | N9: =N8 -> 0.01 | O9: 0.01 | P9: stena | Q9: stena | R9: stena | S9: &FIRE ID = 'F.C1.10.003' COMP_ID = 'C1', FIRE_ID = 'FP.C1.Z.0.01' LOCATION = 2.5, 0.5 IGNITION_CRITERION = 'TEMPERATURE', DEVC_ID = 'T.C1.10.003', SETPOINT = 250 / | T9: &DEVC ID = 'T.C1.10.003' COMP_ID = 'C1' LOCATION = 2.5, 0.5, 0.01 TYPE = 'PLATE' MATL_ID = 'M1' SURFACE_ORIENTATION = 'FLOOR' THICKNESS = 0.015 TEMPERATURE_DEPTH = 0 DEPTH_UNITS = 'M' /
I10: 004 | J10: 3.5 | K10: 3.5 | L10: 0.5 | M10: 0.5 | N10: 0.01 | O10: 0.01 | P10: stena | Q10: stena | R10: stena | S10: &FIRE ID = 'F.C1.10.004' COMP_ID = 'C1', FIRE_ID = 'FP.C1.Z.0.01' LOCATION = 3.5, 0.5 IGNITION_CRITERION = 'TEMPERATURE', DEVC_ID = 'T.C1.10.004', SETPOINT = 250 / | T10: &DEVC ID = 'T.C1.10.004' COMP_ID = 'C1' LOCATION = 3.5, 0.5, 0.01 TYPE = 'PLATE' MATL_ID = 'M1' SURFACE_ORIENTATION = 'FLOOR' THICKNESS = 0.015 TEMPERATURE_DEPTH = 0 DEPTH_UNITS = 'M' /
I11: 005 | J11: 4.5 | K11: 4.5 | L11: 0.5 | M11: 0.5 | N11: 0.01 | O11: 0.01 | P11: stena | Q11: stena | R11: =IF(OR(P11="otvor",Q11="otvor"),"otvor","stena") -> stena | S11: &FIRE ID = 'F.C1.10.005' COMP_ID = 'C1', FIRE_ID = 'FP.C1.Z.0.01' LOCATION = 4.5, 0.5 IGNITION_CRITERION = 'TEMPERATURE', DEVC_ID = 'T.C1.10.005', SETPOINT = 250 / | T11: &DEVC ID = 'T.C1.10.005' COMP_ID = 'C1' LOCATION = 4.5, 0.5, 0.01 TYPE = 'PLATE' MATL_ID = 'M1' SURFACE_ORIENTATION = 'FLOOR' THICKNESS = 0.015 TEMPERATURE_DEPTH = 0 DEPTH_UNITS = 'M' /
I12: 006 | J12: 0.5 | K12: 0.5 | L12: 1.5 | M12: 1.5 | N12: 0.01 | O12: 0.01 | P12: stena | Q12: stena | R12: =IF(OR(P12="otvor",Q12="otvor"),"otvor","stena") -> stena | S12: &FIRE ID = 'F.C1.10.006' COMP_ID = 'C1', FIRE_ID = 'FP.C1.Z.0.01' LOCATION = 0.5, 1.5 IGNITION_CRITERION = 'TEMPERATURE', DEVC_ID = 'T.C1.10.006', SETPOINT = 250 / | T12: &DEVC ID = 'T.C1.10.006' COMP_ID = 'C1' LOCATION = 0.5, 1.5, 0.01 TYPE = 'PLATE' MATL_ID = 'M1' SURFACE_ORIENTATION = 'FLOOR' THICKNESS = 0.015 TEMPERATURE_DEPTH = 0 DEPTH_UNITS = 'M' /
I13: 007 | J13: 1.5 | K13: 1.5 | L13: 1.5 | M13: 1.5 | N13: 0.01 | O13: 0.01 | P13: stena | Q13: stena | R13: =IF(OR(P13="otvor",Q13="otvor"),"otvor","stena") -> stena | S13: &FIRE ID = 'F.C1.10.007' COMP_ID = 'C1', FIRE_ID = 'FP.C1.Z.0.01' LOCATION = 1.5, 1.5 IGNITION_CRITERION = 'TEMPERATURE', DEVC_ID = 'T.C1.10.007', SETPOINT = 250 / | T13: &DEVC ID = 'T.C1.10.007' COMP_ID = 'C1' LOCATION = 1.5, 1.5, 0.01 TYPE = 'PLATE' MATL_ID = 'M1' SURFACE_ORIENTATION = 'FLOOR' THICKNESS = 0.015 TEMPERATURE_DEPTH = 0 DEPTH_UNITS = 'M' /
I14: 008 | J14: 2.5 | K14: 2.5 | L14: 1.5 | M14: 1.5 | N14: 0.01 | O14: 0.01 | P14: stena | Q14: stena | R14: stena | S14: &FIRE ID = 'F.C1.10.008' COMP_ID = 'C1', FIRE_ID = 'FP.C1.Z.0.01' LOCATION = 2.5, 1.5 IGNITION_CRITERION = 'TEMPERATURE', DEVC_ID = 'T.C1.10.008', SETPOINT = 250 / | T14: &DEVC ID = 'T.C1.10.008' COMP_ID = 'C1' LOCATION = 2.5, 1.5, 0.01 TYPE = 'PLATE' MATL_ID = 'M1' SURFACE_ORIENTATION = 'FLOOR' THICKNESS = 0.015 TEMPERATURE_DEPTH = 0 DEPTH_UNITS = 'M' /
I15: 009 | J15: 3.5 | K15: 3.5 | L15: 1.5 | M15: 1.5 | N15: 0.01 | O15: 0.01 | P15: stena | Q15: stena | R15: stena | S15: &FIRE ID = 'F.C1.10.009' COMP_ID = 'C1', FIRE_ID = 'FP.C1.Z.0.01' LOCATION = 3.5, 1.5 IGNITION_CRITERION = 'TEMPERATURE', DEVC_ID = 'T.C1.10.009', SETPOINT = 250 / | T15: &DEVC ID = 'T.C1.10.009' COMP_ID = 'C1' LOCATION = 3.5, 1.5, 0.01 TYPE = 'PLATE' MATL_ID = 'M1' SURFACE_ORIENTATION = 'FLOOR' THICKNESS = 0.015 TEMPERATURE_DEPTH = 0 DEPTH_UNITS = 'M' /
I16: 010 | J16: 4.5 | K16: 4.5 | L16: 1.5 | M16: 1.5 | N16: 0.01 | O16: 0.01 | P16: stena | Q16: stena | R16: stena | S16: &FIRE ID = 'F.C1.10.010' COMP_ID = 'C1', FIRE_ID = 'FP.C1.Z.0.01' LOCATION = 4.5, 1.5 IGNITION_CRITERION = 'TEMPERATURE', DEVC_ID = 'T.C1.10.010', SETPOINT = 250 / | T16: &DEVC ID = 'T.C1.10.010' COMP_ID = 'C1' LOCATION = 4.5, 1.5, 0.01 TYPE = 'PLATE' MATL_ID = 'M1' SURFACE_ORIENTATION = 'FLOOR' THICKNESS = 0.015 TEMPERATURE_DEPTH = 0 DEPTH_UNITS = 'M' /
I17: 011 | J17: 0.5 | K17: 0.5 | L17: 2.5 | M17: 2.5 | N17: 0.01 | O17: 0.01 | P17: stena | Q17: stena | R17: stena | S17: &FIRE ID = 'F.C1.10.011' COMP_ID = 'C1', FIRE_ID = 'FP.C1.Z.0.01' LOCATION = 0.5, 2.5 IGNITION_CRITERION = 'TEMPERATURE', DEVC_ID = 'T.C1.10.011', SETPOINT = 250 / | T17: &DEVC ID = 'T.C1.10.011' COMP_ID = 'C1' LOCATION = 0.5, 2.5, 0.01 TYPE = 'PLATE' MATL_ID = 'M1' SURFACE_ORIENTATION = 'FLOOR' THICKNESS = 0.015 TEMPERATURE_DEPTH = 0 DEPTH_UNITS = 'M' /
I18: 012 | J18: 1.5 | K18: 1.5 | L18: 2.5 | M18: 2.5 | N18: 0.01 | O18: 0.01 | P18: stena | Q18: stena | R18: stena | S18: &FIRE ID = 'F.C1.10.012' COMP_ID = 'C1', FIRE_ID = 'FP.C1.Z.0.01' LOCATION = 1.5, 2.5 IGNITION_CRITERION = 'TEMPERATURE', DEVC_ID = 'T.C1.10.012', SETPOINT = 250 / | T18: &DEVC ID = 'T.C1.10.012' COMP_ID = 'C1' LOCATION = 1.5, 2.5, 0.01 TYPE = 'PLATE' MATL_ID = 'M1' SURFACE_ORIENTATION = 'FLOOR' THICKNESS = 0.015 TEMPERATURE_DEPTH = 0 DEPTH_UNITS = 'M' /
I19: 013 | J19: 2.5 | K19: 2.5 | L19: 2.5 | M19: 2.5 | N19: 0.01 | O19: 0.01 | P19: stena | Q19: stena | R19: stena | S19: &FIRE ID = 'F.C1.10.013' COMP_ID = 'C1', FIRE_ID = 'FP.C1.Z.0.01' LOCATION = 2.5, 2.5 IGNITION_CRITERION = 'TEMPERATURE', DEVC_ID = 'T.C1.10.013', SETPOINT = 250 / | T19: &DEVC ID = 'T.C1.10.013' COMP_ID = 'C1' LOCATION = 2.5, 2.5, 0.01 TYPE = 'PLATE' MATL_ID = 'M1' SURFACE_ORIENTATION = 'FLOOR' THICKNESS = 0.015 TEMPERATURE_DEPTH = 0 DEPTH_UNITS = 'M' /
I20: 014 | J20: 3.5 | K20: 3.5 | L20: 2.5 | M20: 2.5 | N20: 0.01 | O20: 0.01 | P20: stena | Q20: stena | R20: stena | S20: &FIRE ID = 'F.C1.10.014' COMP_ID = 'C1', FIRE_ID = 'FP.C1.Z.0.01' LOCATION = 3.5, 2.5 IGNITION_CRITERION = 'TEMPERATURE', DEVC_ID = 'T.C1.10.014', SETPOINT = 250 / | T20: &DEVC ID = 'T.C1.10.014' COMP_ID = 'C1' LOCATION = 3.5, 2.5, 0.01 TYPE = 'PLATE' MATL_ID = 'M1' SURFACE_ORIENTATION = 'FLOOR' THICKNESS = 0.015 TEMPERATURE_DEPTH = 0 DEPTH_UNITS = 'M' /
I21: 015 | J21: 4.5 | K21: 4.5 | L21: 2.5 | M21: 2.5 | N21: 0.01 | O21: 0.01 | P21: stena | Q21: stena | R21: stena | S21: &FIRE ID = 'F.C1.10.015' COMP_ID = 'C1', FIRE_ID = 'FP.C1.Z.0.01' LOCATION = 4.5, 2.5 IGNITION_CRITERION = 'TEMPERATURE', DEVC_ID = 'T.C1.10.015', SETPOINT = 250 / | T21: &DEVC ID = 'T.C1.10.015' COMP_ID = 'C1' LOCATION = 4.5, 2.5, 0.01 TYPE = 'PLATE' MATL_ID = 'M1' SURFACE_ORIENTATION = 'FLOOR' THICKNESS = 0.015 TEMPERATURE_DEPTH = 0 DEPTH_UNITS = 'M' /
I22: 016 | J22: 0.5 | K22: 0.5 | L22: 3.5 | M22: 3.5 | N22: 0.01 | O22: 0.01 | P22: stena | Q22: stena | R22: stena | S22: &FIRE ID = 'F.C1.10.016' COMP_ID = 'C1', FIRE_ID = 'FP.C1.Z.0.01' LOCATION = 0.5, 3.5 IGNITION_CRITERION = 'TEMPERATURE', DEVC_ID = 'T.C1.10.016', SETPOINT = 250 / | T22: &DEVC ID = 'T.C1.10.016' COMP_ID = 'C1' LOCATION = 0.5, 3.5, 0.01 TYPE = 'PLATE' MATL_ID = 'M1' SURFACE_ORIENTATION = 'FLOOR' THICKNESS = 0.015 TEMPERATURE_DEPTH = 0 DEPTH_UNITS = 'M' /
I23: 017 | J23: 1.5 | K23: 1.5 | L23: 3.5 | M23: 3.5 | N23: 0.01 | O23: 0.01 | P23: stena | Q23: stena | R23: stena | S23: &FIRE ID = 'F.C1.10.017' COMP_ID = 'C1', FIRE_ID = 'FP.C1.Z.0.01' LOCATION = 1.5, 3.5 IGNITION_CRITERION = 'TEMPERATURE', DEVC_ID = 'T.C1.10.017', SETPOINT = 250 / | T23: &DEVC ID = 'T.C1.10.017' COMP_ID = 'C1' LOCATION = 1.5, 3.5, 0.01 TYPE = 'PLATE' MATL_ID = 'M1' SURFACE_ORIENTATION = 'FLOOR' THICKNESS = 0.015 TEMPERATURE_DEPTH = 0 DEPTH_UNITS = 'M' /
I24: 018 | J24: 2.5 | K24: 2.5 | L24: 3.5 | M24: 3.5 | N24: 0.01 | O24: 0.01 | P24: stena | Q24: stena | R24: stena | S24: &FIRE ID = 'F.C1.10.018' COMP_ID = 'C1', FIRE_ID = 'FP.C1.Z.0.01' LOCATION = 2.5, 3.5 IGNITION_CRITERION = 'TEMPERATURE', DEVC_ID = 'T.C1.10.018', SETPOINT = 250 / | T24: &DEVC ID = 'T.C1.10.018' COMP_ID = 'C1' LOCATION = 2.5, 3.5, 0.01 TYPE = 'PLATE' MATL_ID = 'M1' SURFACE_ORIENTATION = 'FLOOR' THICKNESS = 0.015 TEMPERATURE_DEPTH = 0 DEPTH_UNITS = 'M' /
I25: 019 | J25: 3.5 | K25: 3.5 | L25: 3.5 | M25: 3.5 | N25: 0.01 | O25: 0.01 | P25: stena | Q25: stena | R25: stena | S25: &FIRE ID = 'F.C1.10.019' COMP_ID = 'C1', FIRE_ID = 'FP.C1.Z.0.01' LOCATION = 3.5, 3.5 IGNITION_CRITERION = 'TEMPERATURE', DEVC_ID = 'T.C1.10.019', SETPOINT = 250 / | T25: &DEVC ID = 'T.C1.10.019' COMP_ID = 'C1' LOCATION = 3.5, 3.5, 0.01 TYPE = 'PLATE' MATL_ID = 'M1' SURFACE_ORIENTATION = 'FLOOR' THICKNESS = 0.015 TEMPERATURE_DEPTH = 0 DEPTH_UNITS = 'M' /
I26: 020 | J26: 4.5 | K26: 4.5 | L26: 3.5 | M26: 3.5 | N26: 0.01 | O26: 0.01 | P26: stena | Q26: stena | R26: stena | S26: &FIRE ID = 'F.C1.10.020' COMP_ID = 'C1', FIRE_ID = 'FP.C1.Z.0.01' LOCATION = 4.5, 3.5 IGNITION_CRITERION = 'TEMPERATURE', DEVC_ID = 'T.C1.10.020', SETPOINT = 250 / | T26: &DEVC ID = 'T.C1.10.020' COMP_ID = 'C1' LOCATION = 4.5, 3.5, 0.01 TYPE = 'PLATE' MATL_ID = 'M1' SURFACE_ORIENTATION = 'FLOOR' THICKNESS = 0.015 TEMPERATURE_DEPTH = 0 DEPTH_UNITS = 'M' /
I27: 021 | J27: 0.5 | K27: 0.5 | L27: 4.5 | M27: 4.5 | N27: 0.01 | O27: 0.01 | P27: stena | Q27: stena | R27: stena | S27: &FIRE ID = 'F.C1.10.021' COMP_ID = 'C1', FIRE_ID = 'FP.C1.Z.0.01' LOCATION = 0.5, 4.5 IGNITION_CRITERION = 'TEMPERATURE', DEVC_ID = 'T.C1.10.021', SETPOINT = 250 / | T27: &DEVC ID = 'T.C1.10.021' COMP_ID = 'C1' LOCATION = 0.5, 4.5, 0.01 TYPE = 'PLATE' MATL_ID = 'M1' SURFACE_ORIENTATION = 'FLOOR' THICKNESS = 0.015 TEMPERATURE_DEPTH = 0 DEPTH_UNITS = 'M' /
I28: 022 | J28: 1.5 | K28: 1.5 | L28: 4.5 | M28: 4.5 | N28: 0.01 | O28: 0.01 | P28: stena | Q28: stena | R28: stena | S28: &FIRE ID = 'F.C1.10.022' COMP_ID = 'C1', FIRE_ID = 'FP.C1.Z.0.01' LOCATION = 1.5, 4.5 IGNITION_CRITERION = 'TEMPERATURE', DEVC_ID = 'T.C1.10.022', SETPOINT = 250 / | T28: &DEVC ID = 'T.C1.10.022' COMP_ID = 'C1' LOCATION = 1.5, 4.5, 0.01 TYPE = 'PLATE' MATL_ID = 'M1' SURFACE_ORIENTATION = 'FLOOR' THICKNESS = 0.015 TEMPERATURE_DEPTH = 0 DEPTH_UNITS = 'M' /
I29: 023 | J29: 2.5 | K29: 2.5 | L29: 4.5 | M29: 4.5 | N29: 0.01 | O29: 0.01 | P29: stena | Q29: stena | R29: stena | S29: &FIRE ID = 'F.C1.10.023' COMP_ID = 'C1', FIRE_ID = 'FP.C1.Z.0.01' LOCATION = 2.5, 4.5 IGNITION_CRITERION = 'TEMPERATURE', DEVC_ID = 'T.C1.10.023', SETPOINT = 250 / | T29: &DEVC ID = 'T.C1.10.023' COMP_ID = 'C1' LOCATION = 2.5, 4.5, 0.01 TYPE = 'PLATE' MATL_ID = 'M1' SURFACE_ORIENTATION = 'FLOOR' THICKNESS = 0.015 TEMPERATURE_DEPTH = 0 DEPTH_UNITS = 'M' /
I30: 024 | J30: 3.5 | K30: 3.5 | L30: 4.5 | M30: 4.5 | N30: 0.01 | O30: 0.01 | P30: stena | Q30: stena | R30: stena | S30: &FIRE ID = 'F.C1.10.024' COMP_ID = 'C1', FIRE_ID = 'FP.C1.Z.0.01' LOCATION = 3.5, 4.5 IGNITION_CRITERION = 'TEMPERATURE', DEVC_ID = 'T.C1.10.024', SETPOINT = 250 / | T30: &DEVC ID = 'T.C1.10.024' COMP_ID = 'C1' LOCATION = 3.5, 4.5, 0.01 TYPE = 'PLATE' MATL_ID = 'M1' SURFACE_ORIENTATION = 'FLOOR' THICKNESS = 0.015 TEMPERATURE_DEPTH = 0 DEPTH_UNITS = 'M' /
I31: 025 | J31: 4.5 | K31: 4.5 | L31: 4.5 | M31: 4.5 | N31: 0.01 | O31: 0.01 | P31: stena | Q31: stena | R31: stena | S31: &FIRE ID = 'F.C1.10.025' COMP_ID = 'C1', FIRE_ID = 'FP.C1.Z.0.01' LOCATION = 4.5, 4.5 IGNITION_CRITERION = 'TEMPERATURE', DEVC_ID = 'T.C1.10.025', SETPOINT = 250 / | T31: &DEVC ID = 'T.C1.10.025' COMP_ID = 'C1' LOCATION = 4.5, 4.5, 0.01 TYPE = 'PLATE' MATL_ID = 'M1' SURFACE_ORIENTATION = 'FLOOR' THICKNESS = 0.015 TEMPERATURE_DEPTH = 0 DEPTH_UNITS = 'M' /
I32: 026 | J32: 0.5 | K32: 0.5 | L32: 5.5 | M32: 5.5 | N32: 0.01 | O32: 0.01 | P32: stena | Q32: stena | R32: stena | S32: &FIRE ID = 'F.C1.10.026' COMP_ID = 'C1', FIRE_ID = 'FP.C1.Z.0.01' LOCATION = 0.5, 5.5 IGNITION_CRITERION = 'TEMPERATURE', DEVC_ID = 'T.C1.10.026', SETPOINT = 250 / | T32: &DEVC ID = 'T.C1.10.026' COMP_ID = 'C1' LOCATION = 0.5, 5.5, 0.01 TYPE = 'PLATE' MATL_ID = 'M1' SURFACE_ORIENTATION = 'FLOOR' THICKNESS = 0.015 TEMPERATURE_DEPTH = 0 DEPTH_UNITS = 'M' /
I33: 027 | J33: 1.5 | K33: 1.5 | L33: 5.5 | M33: 5.5 | N33: 0.01 | O33: 0.01 | P33: stena | Q33: stena | R33: stena | S33: &FIRE ID = 'F.C1.10.027' COMP_ID = 'C1', FIRE_ID = 'FP.C1.Z.0.01' LOCATION = 1.5, 5.5 IGNITION_CRITERION = 'TEMPERATURE', DEVC_ID = 'T.C1.10.027', SETPOINT = 250 / | T33: &DEVC ID = 'T.C1.10.027' COMP_ID = 'C1' LOCATION = 1.5, 5.5, 0.01 TYPE = 'PLATE' MATL_ID = 'M1' SURFACE_ORIENTATION = 'FLOOR' THICKNESS = 0.015 TEMPERATURE_DEPTH = 0 DEPTH_UNITS = 'M' /
I34: 028 | J34: 2.5 | K34: 2.5 | L34: 5.5 | M34: 5.5 | N34: 0.01 | O34: 0.01 | P34: stena | Q34: stena | R34: stena | S34: &FIRE ID = 'F.C1.10.028' COMP_ID = 'C1', FIRE_ID = 'FP.C1.Z.0.01' LOCATION = 2.5, 5.5 IGNITION_CRITERION = 'TEMPERATURE', DEVC_ID = 'T.C1.10.028', SETPOINT = 250 / | T34: &DEVC ID = 'T.C1.10.028' COMP_ID = 'C1' LOCATION = 2.5, 5.5, 0.01 TYPE = 'PLATE' MATL_ID = 'M1' SURFACE_ORIENTATION = 'FLOOR' THICKNESS = 0.015 TEMPERATURE_DEPTH = 0 DEPTH_UNITS = 'M' /
I35: 029 | J35: 3.5 | K35: 3.5 | L35: 5.5 | M35: 5.5 | N35: 0.01 | O35: 0.01 | P35: stena | Q35: stena | R35: stena | S35: &FIRE ID = 'F.C1.10.029' COMP_ID = 'C1', FIRE_ID = 'FP.C1.Z.0.01' LOCATION = 3.5, 5.5 IGNITION_CRITERION = 'TEMPERATURE', DEVC_ID = 'T.C1.10.029', SETPOINT = 250 / | T35: &DEVC ID = 'T.C1.10.029' COMP_ID = 'C1' LOCATION = 3.5, 5.5, 0.01 TYPE = 'PLATE' MATL_ID = 'M1' SURFACE_ORIENTATION = 'FLOOR' THICKNESS = 0.015 TEMPERATURE_DEPTH = 0 DEPTH_UNITS = 'M' /
I36: 030 | J36: 4.5 | K36: 4.5 | L36: 5.5 | M36: 5.5 | N36: 0.01 | O36: 0.01 | P36: stena | Q36: stena | R36: stena | S36: &FIRE ID = 'F.C1.10.030' COMP_ID = 'C1', FIRE_ID = 'FP.C1.Z.0.01' LOCATION = 4.5, 5.5 IGNITION_CRITERION = 'TEMPERATURE', DEVC_ID = 'T.C1.10.030', SETPOINT = 250 / | T36: &DEVC ID = 'T.C1.10.030' COMP_ID = 'C1' LOCATION = 4.5, 5.5, 0.01 TYPE = 'PLATE' MATL_ID = 'M1' SURFACE_ORIENTATION = 'FLOOR' THICKNESS = 0.015 TEMPERATURE_DEPTH = 0 DEPTH_UNITS = 'M' /
I37: 031 | J37: 0.5 | K37: 0.5 | L37: 6.5 | M37: 6.5 | N37: 0.01 | O37: 0.01 | P37: stena | Q37: stena | R37: stena | S37: &FIRE ID = 'F.C1.10.031' COMP_ID = 'C1', FIRE_ID = 'FP.C1.Z.0.01' LOCATION = 0.5, 6.5 IGNITION_CRITERION = 'TEMPERATURE', DEVC_ID = 'T.C1.10.031', SETPOINT = 250 / | T37: &DEVC ID = 'T.C1.10.031' COMP_ID = 'C1' LOCATION = 0.5, 6.5, 0.01 TYPE = 'PLATE' MATL_ID = 'M1' SURFACE_ORIENTATION = 'FLOOR' THICKNESS = 0.015 TEMPERATURE_DEPTH = 0 DEPTH_UNITS = 'M' /
I38: 032 | J38: 1.5 | K38: 1.5 | L38: 6.5 | M38: 6.5 | N38: 0.01 | O38: 0.01 | P38: stena | Q38: stena | R38: stena | S38: &FIRE ID = 'F.C1.10.032' COMP_ID = 'C1', FIRE_ID = 'FP.C1.Z.0.01' LOCATION = 1.5, 6.5 IGNITION_CRITERION = 'TEMPERATURE', DEVC_ID = 'T.C1.10.032', SETPOINT = 250 / | T38: &DEVC ID = 'T.C1.10.032' COMP_ID = 'C1' LOCATION = 1.5, 6.5, 0.01 TYPE = 'PLATE' MATL_ID = 'M1' SURFACE_ORIENTATION = 'FLOOR' THICKNESS = 0.015 TEMPERATURE_DEPTH = 0 DEPTH_UNITS = 'M' /
I39: =RIGHT("00"&ROW(A33),3) -> 033 | J39: 2.5 | K39: 2.5 | L39: 6.5 | M39: 6.5 | N39: 0.01 | O39: 0.01 | P39: stena | Q39: stena | R39: stena | S39: &FIRE ID = 'F.C1.10.033' COMP_ID = 'C1', FIRE_ID = 'FP.C1.Z.0.01' LOCATION = 2.5, 6.5 IGNITION_CRITERION = 'TEMPERATURE', DEVC_ID = 'T.C1.10.033', SETPOINT = 250 / | T39: &DEVC ID = 'T.C1.10.033' COMP_ID = 'C1' LOCATION = 2.5, 6.5, 0.01 TYPE = 'PLATE' MATL_ID = 'M1' SURFACE_ORIENTATION = 'FLOOR' THICKNESS = 0.015 TEMPERATURE_DEPTH = 0 DEPTH_UNITS = 'M' /
I40: 034 | J40: 3.5 | K40: 3.5 | L40: 6.5 | M40: 6.5 | N40: 0.01 | O40: 0.01 | P40: stena | Q40: stena | R40: stena | S40: &FIRE ID = 'F.C1.10.034' COMP_ID = 'C1', FIRE_ID = 'FP.C1.Z.0.01' LOCATION = 3.5, 6.5 IGNITION_CRITERION = 'TEMPERATURE', DEVC_ID = 'T.C1.10.034', SETPOINT = 250 / | T40: &DEVC ID = 'T.C1.10.034' COMP_ID = 'C1' LOCATION = 3.5, 6.5, 0.01 TYPE = 'PLATE' MATL_ID = 'M1' SURFACE_ORIENTATION = 'FLOOR' THICKNESS = 0.015 TEMPERATURE_DEPTH = 0 DEPTH_UNITS = 'M' /
I41: 035 | J41: 4.5 | K41: 4.5 | L41: 6.5 | M41: 6.5 | N41: 0.01 | O41: 0.01 | P41: stena | Q41: stena | R41: stena | S41: &FIRE ID = 'F.C1.10.035' COMP_ID = 'C1', FIRE_ID = 'FP.C1.Z.0.01' LOCATION = 4.5, 6.5 IGNITION_CRITERION = 'TEMPERATURE', DEVC_ID = 'T.C1.10.035', SETPOINT = 250 / | T41: &DEVC ID = 'T.C1.10.035' COMP_ID = 'C1' LOCATION = 4.5, 6.5, 0.01 TYPE = 'PLATE' MATL_ID = 'M1' SURFACE_ORIENTATION = 'FLOOR' THICKNESS = 0.015 TEMPERATURE_DEPTH = 0 DEPTH_UNITS = 'M' /
I42: 036 | J42: 0.5 | K42: 0.5 | L42: 7.5 | M42: 7.5 | N42: 0.01 | O42: 0.01 | P42: stena | Q42: stena | R42: stena | S42: &FIRE ID = 'F.C1.10.036' COMP_ID = 'C1', FIRE_ID = 'FP.C1.Z.0.01' LOCATION = 0.5, 7.5 IGNITION_CRITERION = 'TEMPERATURE', DEVC_ID = 'T.C1.10.036', SETPOINT = 250 / | T42: &DEVC ID = 'T.C1.10.036' COMP_ID = 'C1' LOCATION = 0.5, 7.5, 0.01 TYPE = 'PLATE' MATL_ID = 'M1' SURFACE_ORIENTATION = 'FLOOR' THICKNESS = 0.015 TEMPERATURE_DEPTH = 0 DEPTH_UNITS = 'M' /
I43: 037 | J43: 1.5 | K43: 1.5 | L43: 7.5 | M43: 7.5 | N43: 0.01 | O43: 0.01 | P43: stena | Q43: stena | R43: stena | S43: &FIRE ID = 'F.C1.10.037' COMP_ID = 'C1', FIRE_ID = 'FP.C1.Z.0.01' LOCATION = 1.5, 7.5 IGNITION_CRITERION = 'TEMPERATURE', DEVC_ID = 'T.C1.10.037', SETPOINT = 250 / | T43: &DEVC ID = 'T.C1.10.037' COMP_ID = 'C1' LOCATION = 1.5, 7.5, 0.01 TYPE = 'PLATE' MATL_ID = 'M1' SURFACE_ORIENTATION = 'FLOOR' THICKNESS = 0.015 TEMPERATURE_DEPTH = 0 DEPTH_UNITS = 'M' /
I44: 038 | J44: 2.5 | K44: 2.5 | L44: 7.5 | M44: 7.5 | N44: 0.01 | O44: 0.01 | P44: stena | Q44: stena | R44: stena | S44: &FIRE ID = 'F.C1.10.038' COMP_ID = 'C1', FIRE_ID = 'FP.C1.Z.0.01' LOCATION = 2.5, 7.5 IGNITION_CRITERION = 'TEMPERATURE', DEVC_ID = 'T.C1.10.038', SETPOINT = 250 / | T44: &DEVC ID = 'T.C1.10.038' COMP_ID = 'C1' LOCATION = 2.5, 7.5, 0.01 TYPE = 'PLATE' MATL_ID = 'M1' SURFACE_ORIENTATION = 'FLOOR' THICKNESS = 0.015 TEMPERATURE_DEPTH = 0 DEPTH_UNITS = 'M' /
I45: 039 | J45: 3.5 | K45: 3.5 | L45: 7.5 | M45: 7.5 | N45: 0.01 | O45: 0.01 | P45: stena | Q45: stena | R45: stena | S45: &FIRE ID = 'F.C1.10.039' COMP_ID = 'C1', FIRE_ID = 'FP.C1.Z.0.01' LOCATION = 3.5, 7.5 IGNITION_CRITERION = 'TEMPERATURE', DEVC_ID = 'T.C1.10.039', SETPOINT = 250 / | T45: &DEVC ID = 'T.C1.10.039' COMP_ID = 'C1' LOCATION = 3.5, 7.5, 0.01 TYPE = 'PLATE' MATL_ID = 'M1' SURFACE_ORIENTATION = 'FLOOR' THICKNESS = 0.015 TEMPERATURE_DEPTH = 0 DEPTH_UNITS = 'M' /
I46: 040 | J46: 4.5 | K46: 4.5 | L46: 7.5 | M46: 7.5 | N46: 0.01 | O46: 0.01 | P46: stena | Q46: stena | R46: stena | S46: &FIRE ID = 'F.C1.10.040' COMP_ID = 'C1', FIRE_ID = 'FP.C1.Z.0.01' LOCATION = 4.5, 7.5 IGNITION_CRITERION = 'TEMPERATURE', DEVC_ID = 'T.C1.10.040', SETPOINT = 250 / | T46: &DEVC ID = 'T.C1.10.040' COMP_ID = 'C1' LOCATION = 4.5, 7.5, 0.01 TYPE = 'PLATE' MATL_ID = 'M1' SURFACE_ORIENTATION = 'FLOOR' THICKNESS = 0.015 TEMPERATURE_DEPTH = 0 DEPTH_UNITS = 'M' /
I47: 041 | J47: 0.5 | K47: 0.5 | L47: 8.5 | M47: 8.5 | N47: 0.01 | O47: 0.01 | P47: stena | Q47: stena | R47: stena | S47: &FIRE ID = 'F.C1.10.041' COMP_ID = 'C1', FIRE_ID = 'FP.C1.Z.0.01' LOCATION = 0.5, 8.5 IGNITION_CRITERION = 'TEMPERATURE', DEVC_ID = 'T.C1.10.041', SETPOINT = 250 / | T47: &DEVC ID = 'T.C1.10.041' COMP_ID = 'C1' LOCATION = 0.5, 8.5, 0.01 TYPE = 'PLATE' MATL_ID = 'M1' SURFACE_ORIENTATION = 'FLOOR' THICKNESS = 0.015 TEMPERATURE_DEPTH = 0 DEPTH_UNITS = 'M' /
I48: 042 | J48: 1.5 | K48: 1.5 | L48: 8.5 | M48: 8.5 | N48: 0.01 | O48: 0.01 | P48: stena | Q48: stena | R48: stena | S48: &FIRE ID = 'F.C1.10.042' COMP_ID = 'C1', FIRE_ID = 'FP.C1.Z.0.01' LOCATION = 1.5, 8.5 IGNITION_CRITERION = 'TEMPERATURE', DEVC_ID = 'T.C1.10.042', SETPOINT = 250 / | T48: &DEVC ID = 'T.C1.10.042' COMP_ID = 'C1' LOCATION = 1.5, 8.5, 0.01 TYPE = 'PLATE' MATL_ID = 'M1' SURFACE_ORIENTATION = 'FLOOR' THICKNESS = 0.015 TEMPERATURE_DEPTH = 0 DEPTH_UNITS = 'M' /
I49: 043 | J49: 2.5 | K49: 2.5 | L49: 8.5 | M49: 8.5 | N49: 0.01 | O49: 0.01 | P49: stena | Q49: stena | R49: stena | S49: &FIRE ID = 'F.C1.10.043' COMP_ID = 'C1', FIRE_ID = 'FP.C1.Z.0.01' LOCATION = 2.5, 8.5 IGNITION_CRITERION = 'TEMPERATURE', DEVC_ID = 'T.C1.10.043', SETPOINT = 250 / | T49: &DEVC ID = 'T.C1.10.043' COMP_ID = 'C1' LOCATION = 2.5, 8.5, 0.01 TYPE = 'PLATE' MATL_ID = 'M1' SURFACE_ORIENTATION = 'FLOOR' THICKNESS = 0.015 TEMPERATURE_DEPTH = 0 DEPTH_UNITS = 'M' /
I50: 044 | J50: 3.5 | K50: 3.5 | L50: 8.5 | M50: 8.5 | N50: 0.01 | O50: 0.01 | P50: stena | Q50: stena | R50: stena | S50: &FIRE ID = 'F.C1.10.044' COMP_ID = 'C1', FIRE_ID = 'FP.C1.Z.0.01' LOCATION = 3.5, 8.5 IGNITION_CRITERION = 'TEMPERATURE', DEVC_ID = 'T.C1.10.044', SETPOINT = 250 / | T50: &DEVC ID = 'T.C1.10.044' COMP_ID = 'C1' LOCATION = 3.5, 8.5, 0.01 TYPE = 'PLATE' MATL_ID = 'M1' SURFACE_ORIENTATION = 'FLOOR' THICKNESS = 0.015 TEMPERATURE_DEPTH = 0 DEPTH_UNITS = 'M' /
I51: 045 | J51: 4.5 | K51: 4.5 | L51: 8.5 | M51: 8.5 | N51: 0.01 | O51: 0.01 | P51: stena | Q51: stena | R51: stena | S51: &FIRE ID = 'F.C1.10.045' COMP_ID = 'C1', FIRE_ID = 'FP.C1.Z.0.01' LOCATION = 4.5, 8.5 IGNITION_CRITERION = 'TEMPERATURE', DEVC_ID = 'T.C1.10.045', SETPOINT = 250 / | T51: &DEVC ID = 'T.C1.10.045' COMP_ID = 'C1' LOCATION = 4.5, 8.5, 0.01 TYPE = 'PLATE' MATL_ID = 'M1' SURFACE_ORIENTATION = 'FLOOR' THICKNESS = 0.015 TEMPERATURE_DEPTH = 0 DEPTH_UNITS = 'M' /
I52: 046 | J52: 0.5 | K52: 0.5 | L52: 9.5 | M52: 9.5 | N52: 0.01 | O52: 0.01 | P52: stena | Q52: stena | R52: stena | S52: &FIRE ID = 'F.C1.10.046' COMP_ID = 'C1', FIRE_ID = 'FP.C1.Z.0.01' LOCATION = 0.5, 9.5 IGNITION_CRITERION = 'TEMPERATURE', DEVC_ID = 'T.C1.10.046', SETPOINT = 250 / | T52: &DEVC ID = 'T.C1.10.046' COMP_ID = 'C1' LOCATION = 0.5, 9.5, 0.01 TYPE = 'PLATE' MATL_ID = 'M1' SURFACE_ORIENTATION = 'FLOOR' THICKNESS = 0.015 TEMPERATURE_DEPTH = 0 DEPTH_UNITS = 'M' /
I53: 047 | J53: 1.5 | K53: 1.5 | L53: 9.5 | M53: 9.5 | N53: 0.01 | O53: 0.01 | P53: stena | Q53: stena | R53: stena | S53: &FIRE ID = 'F.C1.10.047' COMP_ID = 'C1', FIRE_ID = 'FP.C1.Z.0.01' LOCATION = 1.5, 9.5 IGNITION_CRITERION = 'TEMPERATURE', DEVC_ID = 'T.C1.10.047', SETPOINT = 250 / | T53: &DEVC ID = 'T.C1.10.047' COMP_ID = 'C1' LOCATION = 1.5, 9.5, 0.01 TYPE = 'PLATE' MATL_ID = 'M1' SURFACE_ORIENTATION = 'FLOOR' THICKNESS = 0.015 TEMPERATURE_DEPTH = 0 DEPTH_UNITS = 'M' /
I54: 048 | J54: 2.5 | K54: 2.5 | L54: 9.5 | M54: 9.5 | N54: 0.01 | O54: 0.01 | P54: stena | Q54: stena | R54: stena | S54: &FIRE ID = 'F.C1.10.048' COMP_ID = 'C1', FIRE_ID = 'FP.C1.Z.0.01' LOCATION = 2.5, 9.5 IGNITION_CRITERION = 'TEMPERATURE', DEVC_ID = 'T.C1.10.048', SETPOINT = 250 / | T54: &DEVC ID = 'T.C1.10.048' COMP_ID = 'C1' LOCATION = 2.5, 9.5, 0.01 TYPE = 'PLATE' MATL_ID = 'M1' SURFACE_ORIENTATION = 'FLOOR' THICKNESS = 0.015 TEMPERATURE_DEPTH = 0 DEPTH_UNITS = 'M' /
I55: 049 | J55: 3.5 | K55: 3.5 | L55: 9.5 | M55: 9.5 | N55: 0.01 | O55: 0.01 | P55: stena | Q55: stena | R55: stena | S55: &FIRE ID = 'F.C1.10.049' COMP_ID = 'C1', FIRE_ID = 'FP.C1.Z.0.01' LOCATION = 3.5, 9.5 IGNITION_CRITERION = 'TEMPERATURE', DEVC_ID = 'T.C1.10.049', SETPOINT = 250 / | T55: &DEVC ID = 'T.C1.10.049' COMP_ID = 'C1' LOCATION = 3.5, 9.5, 0.01 TYPE = 'PLATE' MATL_ID = 'M1' SURFACE_ORIENTATION = 'FLOOR' THICKNESS = 0.015 TEMPERATURE_DEPTH = 0 DEPTH_UNITS = 'M' /
I56: 050 | J56: 4.5 | K56: 4.5 | L56: 9.5 | M56: 9.5 | N56: 0.01 | O56: 0.01 | P56: stena | Q56: stena | R56: stena | S56: &FIRE ID = 'F.C1.10.050' COMP_ID = 'C1', FIRE_ID = 'FP.C1.Z.0.01' LOCATION = 4.5, 9.5 IGNITION_CRITERION = 'TEMPERATURE', DEVC_ID = 'T.C1.10.050', SETPOINT = 250 / | T56: &DEVC ID = 'T.C1.10.050' COMP_ID = 'C1' LOCATION = 4.5, 9.5, 0.01 TYPE = 'PLATE' MATL_ID = 'M1' SURFACE_ORIENTATION = 'FLOOR' THICKNESS = 0.015 TEMPERATURE_DEPTH = 0 DEPTH_UNITS = 'M' /
I57: 051 | J57: 0.5 | K57: 0.5 | L57: 10.5 | M57: 10.5 | N57: 0.01 | O57: 0.01 | P57: stena | Q57: stena | R57: stena
I58: 052 | J58: 1.5 | K58: 1.5 | L58: 10.5 | M58: 10.5 | N58: 0.01 | O58: 0.01 | P58: stena | Q58: stena | R58: stena
I59: 053 | J59: 2.5 | K59: 2.5 | L59: 10.5 | M59: 10.5 | N59: 0.01 | O59: 0.01 | P59: stena | Q59: stena | R59: stena
I60: 054 | J60: 3.5 | K60: 3.5 | L60: 10.5 | M60: 10.5 | N60: 0.01 | O60: 0.01 | P60: stena | Q60: stena | R60: stena
I61: 055 | J61: 4.5 | K61: 4.5 | L61: 10.5 | M61: 10.5 | N61: 0.01 | O61: 0.01 | P61: stena | Q61: stena | R61: stena
I62: 056 | J62: 0.5 | K62: 0.5 | L62: 11.5 | M62: 11.5 | N62: 0.01 | O62: 0.01 | P62: stena | Q62: stena | R62: stena
I63: 057 | J63: 1.5 | K63: 1.5 | L63: 11.5 | M63: 11.5 | N63: 0.01 | O63: 0.01 | P63: stena | Q63: stena | R63: stena
I64: 058 | J64: 2.5 | K64: 2.5 | L64: 11.5 | M64: 11.5 | N64: 0.01 | O64: 0.01 | P64: stena | Q64: stena | R64: stena
I65: 059 | J65: 3.5 | K65: 3.5 | L65: 11.5 | M65: 11.5 | N65: 0.01 | O65: 0.01 | P65: stena | Q65: stena | R65: stena
I66: 060 | J66: 4.5 | K66: 4.5 | L66: 11.5 | M66: 11.5 | N66: 0.01 | O66: 0.01 | P66: stena | Q66: stena | R66: stena
I67: 061 | J67: 0.5 | K67: 0.5 | L67: 12.5 | M67: 12.5 | N67: 0.01 | O67: 0.01 | P67: stena | Q67: stena | R67: stena
I68: 062 | J68: 1.5 | K68: 1.5 | L68: 12.5 | M68: 12.5 | N68: 0.01 | O68: 0.01 | P68: stena | Q68: stena | R68: stena
I69: 063 | J69: 2.5 | K69: 2.5 | L69: 12.5 | M69: 12.5 | N69: 0.01 | O69: 0.01 | P69: stena | Q69: stena | R69: stena
I70: 064 | J70: 3.5 | K70: 3.5 | L70: 12.5 | M70: 12.5 | N70: 0.01 | O70: 0.01 | P70: stena | Q70: stena | R70: stena
I71: =RIGHT("00"&ROW(A65),3) -> 065 | J71: 4.5 | K71: =SUBSTITUTE(J71,",",".") -> 4.5 | L71: 12.5 | M71: =SUBSTITUTE(L71,",",".") -> 12.5 | N71: 0.01 | O71: =SUBSTITUTE(N71,",",".") -> 0.01 | P71: stena | Q71: stena | R71: stena
I72: 066 | J72: 0.5 | K72: 0.5 | L72: 13.5 | M72: 13.5 | N72: 0.01 | O72: 0.01 | P72: =IF($I$3="ano",IF(AND(J72>$J$3,J72<$K$3,L72>$L$3,L72<$M$3),"otvor","stena"),"stena") -> stena | Q72: =IF($I$4="ano",IF(AND(J72>$J$4,J72<$K$4,L72>$L$4,L72<$M$4),"otvor","stena"),"stena") -> stena | R72: stena | S72: =IF(AND(J72>$M$2,L72>$N$2),IF(R72="stena",IF(L72>$C$3,"",CONCATENATE("&FIRE ID = 'F.",$E$2,".10.",I72,"' COMP_ID = '",$E$2,"', FIRE_ID = 'FP.",$E$2,".Z.",O72,"' LOCATION = ",K72,", ",M72," IGNITION_CRITERION = 'TEMPERATURE', DEVC_ID = 'T.",$E$2,".10.",I72,"', SETPOINT = ",$R$4," /")),""),"") ->  | T72: =IF(S72="","",IF(R72="stena",IF(L72>$C$3,"",CONCATENATE("&DEVC ID = 'T.",$E$2,".10.",I72,"' COMP_ID = '",$E$2,"' LOCATION = ",K72,", ",M72,", ",O72," TYPE = '",$P$3,"' MATL_ID = '",$P$2,"' SURFACE_ORIENTATION = '",$P$4,"' THICKNESS = ",$R$2," TEMPERATURE_DEPTH = ",$R$3," DEPTH_UNITS = 'M' /")),"")) -> 
I73: 067 | J73: =IF(J72=($C$2-$G$2/2),$G$2/2,J72+$G$2) -> 1.5 | K73: 1.5 | L73: =IF(J73=$G$2/2,L72+$G$3,L72) -> 13.5 | M73: 13.5 | N73: =N72 -> 0.01 | O73: 0.01 | P73: stena | Q73: stena | R73: stena
I74: 068 | J74: 2.5 | K74: 2.5 | L74: 13.5 | M74: 13.5 | N74: 0.01 | O74: 0.01 | P74: stena | Q74: stena | R74: stena
I75: 069 | J75: 3.5 | K75: 3.5 | L75: 13.5 | M75: 13.5 | N75: 0.01 | O75: 0.01 | P75: stena | Q75: stena | R75: stena
I76: 070 | J76: 4.5 | K76: 4.5 | L76: 13.5 | M76: 13.5 | N76: 0.01 | O76: 0.01 | P76: stena | Q76: stena | R76: stena
I77: 071 | J77: 0.5 | K77: 0.5 | L77: 14.5 | M77: 14.5 | N77: 0.01 | O77: 0.01 | P77: stena | Q77: stena | R77: =IF(OR(P77="otvor",Q77="otvor"),"otvor","stena") -> stena
I78: 072 | J78: 1.5 | K78: 1.5 | L78: 14.5 | M78: 14.5 | N78: 0.01 | O78: 0.01 | P78: stena | Q78: stena | R78: stena
I79: 073 | J79: 2.5 | K79: 2.5 | L79: 14.5 | M79: 14.5 | N79: 0.01 | O79: 0.01 | P79: stena | Q79: stena | R79: stena
I80: 074 | J80: 3.5 | K80: 3.5 | L80: 14.5 | M80: 14.5 | N80: 0.01 | O80: 0.01 | P80: stena | Q80: stena | R80: stena
I81: 075 | J81: 4.5 | K81: 4.5 | L81: 14.5 | M81: 14.5 | N81: 0.01 | O81: 0.01 | P81: stena | Q81: stena | R81: stena
I82: 076 | J82: 0.5 | K82: 0.5 | L82: 15.5 | M82: 15.5 | N82: 0.01 | O82: 0.01 | P82: stena | Q82: stena | R82: stena
I83: 077 | J83: 1.5 | K83: 1.5 | L83: 15.5 | M83: 15.5 | N83: 0.01 | O83: 0.01 | P83: stena | Q83: stena | R83: stena
I84: 078 | J84: 2.5 | K84: 2.5 | L84: 15.5 | M84: 15.5 | N84: 0.01 | O84: 0.01 | P84: stena | Q84: stena | R84: stena
I85: 079 | J85: 3.5 | K85: 3.5 | L85: 15.5 | M85: 15.5 | N85: 0.01 | O85: 0.01 | P85: stena | Q85: stena | R85: stena
I86: 080 | J86: 4.5 | K86: 4.5 | L86: 15.5 | M86: 15.5 | N86: 0.01 | O86: 0.01 | P86: stena | Q86: stena | R86: stena
I87: 081 | J87: 0.5 | K87: 0.5 | L87: 16.5 | M87: 16.5 | N87: 0.01 | O87: 0.01 | P87: stena | Q87: stena | R87: stena
I88: 082 | J88: 1.5 | K88: 1.5 | L88: 16.5 | M88: 16.5 | N88: 0.01 | O88: 0.01 | P88: stena | Q88: stena | R88: stena
I89: 083 | J89: 2.5 | K89: 2.5 | L89: 16.5 | M89: 16.5 | N89: 0.01 | O89: 0.01 | P89: stena | Q89: stena | R89: stena
I90: 084 | J90: 3.5 | K90: 3.5 | L90: 16.5 | M90: 16.5 | N90: 0.01 | O90: 0.01 | P90: stena | Q90: stena | R90: stena
I91: 085 | J91: 4.5 | K91: 4.5 | L91: 16.5 | M91: 16.5 | N91: 0.01 | O91: 0.01 | P91: stena | Q91: stena | R91: stena
I92: 086 | J92: 0.5 | K92: 0.5 | L92: 17.5 | M92: 17.5 | N92: 0.01 | O92: 0.01 | P92: stena | Q92: stena | R92: stena
I93: 087 | J93: 1.5 | K93: 1.5 | L93: 17.5 | M93: 17.5 | N93: 0.01 | O93: 0.01 | P93: stena | Q93: stena | R93: stena
I94: 088 | J94: 2.5 | K94: 2.5 | L94: 17.5 | M94: 17.5 | N94: 0.01 | O94: 0.01 | P94: stena | Q94: stena | R94: stena
I95: 089 | J95: 3.5 | K95: 3.5 | L95: 17.5 | M95: 17.5 | N95: 0.01 | O95: 0.01 | P95: stena | Q95: stena | R95: stena
I96: 090 | J96: 4.5 | K96: 4.5 | L96: 17.5 | M96: 17.5 | N96: 0.01 | O96: 0.01 | P96: stena | Q96: stena | R96: stena
I97: 091 | J97: 0.5 | K97: 0.5 | L97: 18.5 | M97: 18.5 | N97: 0.01 | O97: 0.01 | P97: stena | Q97: stena | R97: stena
I98: 092 | J98: 1.5 | K98: 1.5 | L98: 18.5 | M98: 18.5 | N98: 0.01 | O98: 0.01 | P98: stena | Q98: stena | R98: stena
I99: 093 | J99: 2.5 | K99: =SUBSTITUTE(J99,",",".") -> 2.5 | L99: 18.5 | M99: =SUBSTITUTE(L99,",",".") -> 18.5 | N99: 0.01 | O99: =SUBSTITUTE(N99,",",".") -> 0.01 | P99: stena | Q99: stena | R99: stena
I100: 094 | J100: 3.5 | K100: 3.5 | L100: 18.5 | M100: 18.5 | N100: 0.01 | O100: 0.01 | P100: stena | Q100: stena | R100: stena
I101: 095 | J101: 4.5 | K101: 4.5 | L101: 18.5 | M101: 18.5 | N101: 0.01 | O101: 0.01 | P101: stena | Q101: stena | R101: stena
I102: 096 | J102: 0.5 | K102: 0.5 | L102: 19.5 | M102: 19.5 | N102: 0.01 | O102: 0.01 | P102: stena | Q102: stena | R102: stena
I103: =RIGHT("00"&ROW(A97),3) -> 097 | J103: 1.5 | K103: =SUBSTITUTE(J103,",",".") -> 1.5 | L103: 19.5 | M103: =SUBSTITUTE(L103,",",".") -> 19.5 | N103: 0.01 | O103: =SUBSTITUTE(N103,",",".") -> 0.01 | P103: stena | Q103: stena | R103: stena
I104: 098 | J104: 2.5 | K104: 2.5 | L104: 19.5 | M104: 19.5 | N104: 0.01 | O104: 0.01 | P104: stena | Q104: stena | R104: stena
I105: 099 | J105: 3.5 | K105: 3.5 | L105: 19.5 | M105: 19.5 | N105: 0.01 | O105: 0.01 | P105: stena | Q105: stena | R105: stena
I106: 100 | J106: 4.5 | K106: 4.5 | L106: 19.5 | M106: 19.5 | N106: 0.01 | O106: 0.01 | P106: stena | Q106: stena | R106: stena
I107: 101 | J107: 0.5 | K107: 0.5 | L107: 20.5 | M107: 20.5 | N107: 0.01 | O107: 0.01 | P107: stena | Q107: stena | R107: stena
R108: =IF(R107="stena","ok","pozor") -> ok | S108: =IF(S107="","ok","pozor") -> ok

Sheet Tabl
B2: z | C2: =zadani!G9 -> 3.5 | E2: =zadani!G12 -> 0 | G2: poř. č. | H2: Z
B3: hrana z | C3: =zadani!G9/zadani!G18 -> 0.875 | G3: 1 | H3: =C3/2 -> 0.4375 | I3: =SUBSTITUTE(H3,",",".") -> 0.4375 | J3: =IF(OR(H3<$E$2,H3>$C$2),"",CONCATENATE("&CHEM ID = 'FP.",zadani!$G$6,".X.",I3,"' CARBON = ",$E$6," CHLORINE = ",$E$7," HYDROGEN = ",$E$8," NITROGEN = ",$E$9," OXYGEN = ",$E$10," HEAT_OF_COMBUSTION = ",$E$11," RADIATIVE_FRACTION = ",$E$12," /")) -> &CHEM ID = 'FP.C1.X.0.4375' CARBON = 39.3 CHLORINE = 0 HYDROGEN = 4.7 NITROGEN = 0.4 OXYGEN = 34.1 HEAT_OF_COMBUSTION = 14277 RADIATIVE_FRACTION = 0.35 / | K3: =IF(OR(H3<$E$2,H3>$C$2),"",CONCATENATE("&CHEM ID = 'FP.",zadani!$G$6,".Y.",I3,"' CARBON = ",$E$6," CHLORINE = ",$E$7," HYDROGEN = ",$E$8," NITROGEN = ",$E$9," OXYGEN = ",$E$10," HEAT_OF_COMBUSTION = ",$E$11," RADIATIVE_FRACTION = ",$E$12," /")) -> &CHEM ID = 'FP.C1.Y.0.4375' CARBON = 39.3 CHLORINE = 0 HYDROGEN = 4.7 NITROGEN = 0.4 OXYGEN = 34.1 HEAT_OF_COMBUSTION = 14277 RADIATIVE_FRACTION = 0.35 / | L3: =CONCATENATE("&CHEM ID = 'FP.",zadani!$G$6,".Z.",E37,"' CARBON = ",$E$6," CHLORINE = ",$E$7," HYDROGEN = ",$E$8," NITROGEN = ",$E$9," OXYGEN = ",$E$10," HEAT_OF_COMBUSTION = ",$E$11," RADIATIVE_FRACTION = ",$E$12," /") -> &CHEM ID = 'FP.C1.Z.3.4' CARBON = 39.3 CHLORINE = 0 HYDROGEN = 4.7 NITROGEN = 0.4 OXYGEN = 34.1 HEAT_OF_COMBUSTION = 14277 RADIATIVE_FRACTION = 0.35 /
B4: hrana x | C4: =zadani!G7/zadani!G16 -> 1 | J4: =IF(OR(H3<$E$2,H3>$C$2),"",CONCATENATE("&TABL ID = 'FP.",zadani!$G$6,".X.",I3,"' LABELS = 'TIME', 'HRR' , 'HEIGHT' , 'AREA' , 'CO_YIELD' , 'SOOT_YIELD' , 'HCN_YIELD' , 'HCL_YIELD' , 'TRACE_YIELD' /")) -> &TABL ID = 'FP.C1.X.0.4375' LABELS = 'TIME', 'HRR' , 'HEIGHT' , 'AREA' , 'CO_YIELD' , 'SOOT_YIELD' , 'HCN_YIELD' , 'HCL_YIELD' , 'TRACE_YIELD' / | K4: =IF(OR(H3<$E$2,H3>$C$2),"",CONCATENATE("&TABL ID = 'FP.",zadani!$G$6,".Y.",I3,"' LABELS = 'TIME', 'HRR' , 'HEIGHT' , 'AREA' , 'CO_YIELD' , 'SOOT_YIELD' , 'HCN_YIELD' , 'HCL_YIELD' , 'TRACE_YIELD' /")) -> &TABL ID = 'FP.C1.Y.0.4375' LABELS = 'TIME', 'HRR' , 'HEIGHT' , 'AREA' , 'CO_YIELD' , 'SOOT_YIELD' , 'HCN_YIELD' , 'HCL_YIELD' , 'TRACE_YIELD' / | L4: =CONCATENATE("&TABL ID = 'FP.",zadani!$G$6,".Z.",E37,"' LABELS = 'TIME', 'HRR' , 'HEIGHT' , 'AREA' , 'CO_YIELD' , 'SOOT_YIELD' , 'HCN_YIELD' , 'HCL_YIELD' , 'TRACE_YIELD' /") -> &TABL ID = 'FP.C1.Z.3.4' LABELS = 'TIME', 'HRR' , 'HEIGHT' , 'AREA' , 'CO_YIELD' , 'SOOT_YIELD' , 'HCN_YIELD' , 'HCL_YIELD' , 'TRACE_YIELD' /
B5: hrana y | C5: =zadani!G8/zadani!G17 -> 1 | J5: =IF(OR(H3<$E$2,H3>$C$2),"",CONCATENATE("&TABL ID = 'FP.",zadani!$G$6,".X.",I3,"', DATA = ",$C$13,", ",$E$13,", ",I3,", ",$E$31,", ",$E$32,", ",$E$33,", ",$E$34,", ",$E$35,", ",$E$36," /")) -> &TABL ID = 'FP.C1.X.0.4375', DATA = 0, 0, 0.4375, 0.1, 0, 0, 0, 0, 0 / | K5: =IF(OR(H3<$E$2,H3>$C$2),"",CONCATENATE("&TABL ID = 'FP.",zadani!$G$6,".Y.",I3,"', DATA = ",$C$19,", ",$E$19,", ",I3,", ",$E$31,", ",$E$32,", ",$E$33,", ",$E$34,", ",$E$35,", ",$E$36," /")) -> &TABL ID = 'FP.C1.Y.0.4375', DATA = 0, 0, 0.4375, 0.1, 0, 0, 0, 0, 0 / | L5: =CONCATENATE("&TABL ID = 'FP.",zadani!$G$6,".Z.",E37,"', DATA = ",$C$13,", ",$E$25,", ",E37,", ",$E$31,", ",$E$32,", ",$E$33,", ",$E$34,", ",$E$35,", ",$E$36," /") -> &TABL ID = 'FP.C1.Z.3.4', DATA = 0, 0, 3.4, 0.1, 0, 0, 0, 0, 0 /
B6: =zadani!B29 -> uhlík | C6: =zadani!C29 -> 39.3 | E6: =SUBSTITUTE(C6,",",".") -> 39.3 | J6: =IF(OR(H3<$E$2,H3>$C$2),"",CONCATENATE("&TABL ID = 'FP.",zadani!$G$6,".X.",I3,"', DATA = ",$C$14,", ",$E$14,", ",I3,", ",$E$31,", ",$E$32,", ",$E$33,", ",$E$34,", ",$E$35,", ",$E$36," /")) -> &TABL ID = 'FP.C1.X.0.4375', DATA = 60, 183.75, 0.4375, 0.1, 0, 0, 0, 0, 0 / | K6: =IF(OR(H3<$E$2,H3>$C$2),"",CONCATENATE("&TABL ID = 'FP.",zadani!$G$6,".Y.",I3,"', DATA = ",$C$20,", ",$E$20,", ",I3,", ",$E$31,", ",$E$32,", ",$E$33,", ",$E$34,", ",$E$35,", ",$E$36," /")) -> &TABL ID = 'FP.C1.Y.0.4375', DATA = 60, 183.75, 0.4375, 0.1, 0, 0, 0, 0, 0 / | L6: =CONCATENATE("&TABL ID = 'FP.",zadani!$G$6,".Z.",E37,"', DATA = ",$C$14,", ",$E$26,", ",E37,", ",$E$31,", ",$E$32,", ",$E$33,", ",$E$34,", ",$E$35,", ",$E$36," /") -> &TABL ID = 'FP.C1.Z.3.4', DATA = 60, 210, 3.4, 0.1, 0, 0, 0, 0, 0 /
B7: =zadani!B30 -> chlór | C7: =zadani!C30 -> 0 | E7: 0 | J7: =IF(OR(H3<$E$2,H3>$C$2),"",CONCATENATE("&TABL ID = 'FP.",zadani!$G$6,".X.",I3,"', DATA = ",$C$15,", ",$E$15,", ",I3,", ",$E$31,", ",$E$32,", ",$E$33,", ",$E$34,", ",$E$35,", ",$E$36," /")) -> &TABL ID = 'FP.C1.X.0.4375', DATA = 400, 87.5, 0.4375, 0.1, 0, 0, 0, 0, 0 / | K7: =IF(OR(H3<$E$2,H3>$C$2),"",CONCATENATE("&TABL ID = 'FP.",zadani!$G$6,".Y.",I3,"', DATA = ",$C$21,", ",$E$21,", ",I3,", ",$E$31,", ",$E$32,", ",$E$33,", ",$E$34,", ",$E$35,", ",$E$36," /")) -> &TABL ID = 'FP.C1.Y.0.4375', DATA = 400, 87.5, 0.4375, 0.1, 0, 0, 0, 0, 0 / | L7: =CONCATENATE("&TABL ID = 'FP.",zadani!$G$6,".Z.",E37,"', DATA = ",$C$15,", ",$E$27,", ",E37,", ",$E$31,", ",$E$32,", ",$E$33,", ",$E$34,", ",$E$35,", ",$E$36," /") -> &TABL ID = 'FP.C1.Z.3.4', DATA = 400, 100, 3.4, 0.1, 0, 0, 0, 0, 0 /
B8: =zadani!B31 -> vodík | C8: =zadani!C31 -> 4.7 | E8: 4.7 | J8: =IF(OR(H3<$E$2,H3>$C$2),"",CONCATENATE("&TABL ID = 'FP.",zadani!$G$6,".X.",I3,"', DATA = ",$C$16,", ",$E$16,", ",I3,", ",$E$31,", ",$E$32,", ",$E$33,", ",$E$34,", ",$E$35,", ",$E$36," /")) -> &TABL ID = 'FP.C1.X.0.4375', DATA = 750, 157.5, 0.4375, 0.1, 0, 0, 0, 0, 0 / | K8: =IF(OR(H3<$E$2,H3>$C$2),"",CONCATENATE("&TABL ID = 'FP.",zadani!$G$6,".Y.",I3,"', DATA = ",$C$22,", ",$E$22,", ",I3,", ",$E$31,", ",$E$32,", ",$E$33,", ",$E$34,", ",$E$35,", ",$E$36," /")) -> &TABL ID = 'FP.C1.Y.0.4375', DATA = 750, 157.5, 0.4375, 0.1, 0, 0, 0, 0, 0 / | L8: =CONCATENATE("&TABL ID = 'FP.",zadani!$G$6,".Z.",E37,"', DATA = ",$C$16,", ",$E$28,", ",E37,", ",$E$31,", ",$E$32,", ",$E$33,", ",$E$34,", ",$E$35,", ",$E$36," /") -> &TABL ID = 'FP.C1.Z.3.4', DATA = 750, 180, 3.4, 0.1, 0, 0, 0, 0, 0 /
B9: =zadani!B32 -> dusík | C9: =zadani!C32 -> 0.4 | E9: 0.4 | J9: =IF(OR(H3<$E$2,H3>$C$2),"",CONCATENATE("&TABL ID = 'FP.",zadani!$G$6,".X.",I3,"', DATA = ",$C$17,", ",$E$17,", ",I3,", ",$E$31,", ",$E$32,", ",$E$33,", ",$E$34,", ",$E$35,", ",$E$36," /")) -> &TABL ID = 'FP.C1.X.0.4375', DATA = 1000, 43.75, 0.4375, 0.1, 0, 0, 0, 0, 0 / | K9: =IF(OR(H3<$E$2,H3>$C$2),"",CONCATENATE("&TABL ID = 'FP.",zadani!$G$6,".Y.",I3,"', DATA = ",$C$23,", ",$E$23,", ",I3,", ",$E$31,", ",$E$32,", ",$E$33,", ",$E$34,", ",$E$35,", ",$E$36," /")) -> &TABL ID = 'FP.C1.Y.0.4375', DATA = 1000, 43.75, 0.4375, 0.1, 0, 0, 0, 0, 0 / | L9: =CONCATENATE("&TABL ID = 'FP.",zadani!$G$6,".Z.",E37,"', DATA = ",$C$17,", ",$E$29,", ",E37,", ",$E$31,", ",$E$32,", ",$E$33,", ",$E$34,", ",$E$35,", ",$E$36," /") -> &TABL ID = 'FP.C1.Z.3.4', DATA = 1000, 50, 3.4, 0.1, 0, 0, 0, 0, 0 /
B10: =zadani!B33 -> kyslík | C10: =zadani!C33 -> 34.1 | E10: 34.1 | J10: =IF(OR(H3<$E$2,H3>$C$2),"",CONCATENATE("&TABL ID = 'FP.",zadani!$G$6,".X.",I3,"', DATA = ",$C$18,", ",$E$18,", ",I3,", ",$E$31,", ",$E$32,", ",$E$33,", ",$E$34,", ",$E$35,", ",$E$36," /")) -> &TABL ID = 'FP.C1.X.0.4375', DATA = 1010, 43.75, 0.4375, 0.1, 0, 0, 0, 0, 0 / | K10: =IF(OR(H3<$E$2,H3>$C$2),"",CONCATENATE("&TABL ID = 'FP.",zadani!$G$6,".Y.",I3,"', DATA = ",$C$24,", ",$E$24,", ",I3,", ",$E$31,", ",$E$32,", ",$E$33,", ",$E$34,", ",$E$35,", ",$E$36," /")) -> &TABL ID = 'FP.C1.Y.0.4375', DATA = 1010, 43.75, 0.4375, 0.1, 0, 0, 0, 0, 0 / | L10: =CONCATENATE("&TABL ID = 'FP.",zadani!$G$6,".Z.",E37,"', DATA = ",$C$18,", ",$E$30,", ",E37,", ",$E$31,", ",$E$32,", ",$E$33,", ",$E$34,", ",$E$35,", ",$E$36," /") -> &TABL ID = 'FP.C1.Z.3.4', DATA = 1010, 50, 3.4, 0.1, 0, 0, 0, 0, 0 /
B11: =zadani!B34 -> spalné teplo | C11: =zadani!C34 -> 14277 | E11: 14277 | G11: =G3+1 -> 2 | H11: =H3+$C$3 -> 1.3125 | I11: =SUBSTITUTE(H11,",",".") -> 1.3125 | J11: =IF(OR(H11<$E$2,H11>$C$2),"",CONCATENATE("&CHEM ID = 'FP.",zadani!$G$6,".X.",I11,"' CARBON = ",$E$6," CHLORINE = ",$E$7," HYDROGEN = ",$E$8," NITROGEN = ",$E$9," OXYGEN = ",$E$10," HEAT_OF_COMBUSTION = ",$E$11," RADIATIVE_FRACTION = ",$E$12," /")) -> &CHEM ID = 'FP.C1.X.1.3125' CARBON = 39.3 CHLORINE = 0 HYDROGEN = 4.7 NITROGEN = 0.4 OXYGEN = 34.1 HEAT_OF_COMBUSTION = 14277 RADIATIVE_FRACTION = 0.35 / | K11: =IF(OR(H11<$E$2,H11>$C$2),"",CONCATENATE("&CHEM ID = 'FP.",zadani!$G$6,".Y.",I11,"' CARBON = ",$E$6," CHLORINE = ",$E$7," HYDROGEN = ",$E$8," NITROGEN = ",$E$9," OXYGEN = ",$E$10," HEAT_OF_COMBUSTION = ",$E$11," RADIATIVE_FRACTION = ",$E$12," /")) -> &CHEM ID = 'FP.C1.Y.1.3125' CARBON = 39.3 CHLORINE = 0 HYDROGEN = 4.7 NITROGEN = 0.4 OXYGEN = 34.1 HEAT_OF_COMBUSTION = 14277 RADIATIVE_FRACTION = 0.35 / | L11: =CONCATENATE("&CHEM ID = 'FP.",zadani!$G$6,".Z.",E38,"' CARBON = ",$E$6," CHLORINE = ",$E$7," HYDROGEN = ",$E$8," NITROGEN = ",$E$9," OXYGEN = ",$E$10," HEAT_OF_COMBUSTION = ",$E$11," RADIATIVE_FRACTION = ",$E$12," /") -> &CHEM ID = 'FP.C1.Z.0.01' CARBON = 39.3 CHLORINE = 0 HYDROGEN = 4.7 NITROGEN = 0.4 OXYGEN = 34.1 HEAT_OF_COMBUSTION = 14277 RADIATIVE_FRACTION = 0.35 /
B12: =zadani!B35 -> radiační frakce | C12: =zadani!C35 -> 0.35 | E12: 0.35 | J12: =IF(OR(H11<$E$2,H11>$C$2),"",CONCATENATE("&TABL ID = 'FP.",zadani!$G$6,".X.",I11,"' LABELS = 'TIME', 'HRR' , 'HEIGHT' , 'AREA' , 'CO_YIELD' , 'SOOT_YIELD' , 'HCN_YIELD' , 'HCL_YIELD' , 'TRACE_YIELD' /")) -> &TABL ID = 'FP.C1.X.1.3125' LABELS = 'TIME', 'HRR' , 'HEIGHT' , 'AREA' , 'CO_YIELD' , 'SOOT_YIELD' , 'HCN_YIELD' , 'HCL_YIELD' , 'TRACE_YIELD' / | K12: =IF(OR(H11<$E$2,H11>$C$2),"",CONCATENATE("&TABL ID = 'FP.",zadani!$G$6,".Y.",I11,"' LABELS = 'TIME', 'HRR' , 'HEIGHT' , 'AREA' , 'CO_YIELD' , 'SOOT_YIELD' , 'HCN_YIELD' , 'HCL_YIELD' , 'TRACE_YIELD' /")) -> &TABL ID = 'FP.C1.Y.1.3125' LABELS = 'TIME', 'HRR' , 'HEIGHT' , 'AREA' , 'CO_YIELD' , 'SOOT_YIELD' , 'HCN_YIELD' , 'HCL_YIELD' , 'TRACE_YIELD' / | L12: =CONCATENATE("&TABL ID = 'FP.",zadani!$G$6,".Z.",E38,"' LABELS = 'TIME', 'HRR' , 'HEIGHT' , 'AREA' , 'CO_YIELD' , 'SOOT_YIELD' , 'HCN_YIELD' , 'HCL_YIELD' , 'TRACE_YIELD' /") -> &TABL ID = 'FP.C1.Z.0.01' LABELS = 'TIME', 'HRR' , 'HEIGHT' , 'AREA' , 'CO_YIELD' , 'SOOT_YIELD' , 'HCN_YIELD' , 'HCL_YIELD' , 'TRACE_YIELD' /
B13: HRR x (A,C) | C13: =zadani!F30 -> 0 | D13: =zadani!G30*$C$3*$C$4 -> 0 | E13: =SUBSTITUTE(D13,",",".") -> 0 | J13: =IF(OR(H11<$E$2,H11>$C$2),"",CONCATENATE("&TABL ID = 'FP.",zadani!$G$6,".X.",I11,"', DATA = ",$C$13,", ",$E$13,", ",I11,", ",$E$31,", ",$E$32,", ",$E$33,", ",$E$34,", ",$E$35,", ",$E$36," /")) -> &TABL ID = 'FP.C1.X.1.3125', DATA = 0, 0, 1.3125, 0.1, 0, 0, 0, 0, 0 / | K13: =IF(OR(H11<$E$2,H11>$C$2),"",CONCATENATE("&TABL ID = 'FP.",zadani!$G$6,".Y.",I11,"', DATA = ",$C$19,", ",$E$19,", ",I11,", ",$E$31,", ",$E$32,", ",$E$33,", ",$E$34,", ",$E$35,", ",$E$36," /")) -> &TABL ID = 'FP.C1.Y.1.3125', DATA = 0, 0, 1.3125, 0.1, 0, 0, 0, 0, 0 / | L13: =CONCATENATE("&TABL ID = 'FP.",zadani!$G$6,".Z.",E38,"', DATA = ",$C$13,", ",$E$25,", ",E38,", ",$E$31,", ",$E$32,", ",$E$33,", ",$E$34,", ",$E$35,", ",$E$36," /") -> &TABL ID = 'FP.C1.Z.0.01', DATA = 0, 0, 0.01, 0.1, 0, 0, 0, 0, 0 /
